Workbook

Sheet Tageswerte
E1: Kursdaten | AA1: Tagesänderung | AX1: Wochenwerte | BU1: Wochenänderung
A2: Date | E2: VW | F2: Thyssen | G2: Siemens | H2: SAP | I2: RWE | J2: Münchener | K2: Linde | L2: Henkel | M2: Fresenius | N2: EON | O2: Telekom | P2: Lufthansa | Q2: Deutsche Post | R2: Deutsche Bank | S2: Daimler | T2: Commerzbank | U2: BMW | V2: Bayer | W2: BASF | X2: Allianz | Y2: Adidas | AA2: VW | AB2: Thyssen | AC2: Siemens | AD2: SAP | AE2: RWE | AF2: Münchener | AG2: Linde | AH2: Henkel | AI2: Fresenius | AJ2: EON | AK2: Telekom | AL2: Lufthansa | AM2: Deutsche Post | AN2: Deutsche Bank | AO2: Daimler | AP2: Commerzbank | AQ2: BMW | AR2: Bayer | AS2: BASF | AT2: Allianz | AU2: Adidas | AX2: VW | AY2: Thyssen | AZ2: Siemens | BA2: SAP | BB2: RWE | BC2: Münchener | BD2: Linde | BE2: Henkel | BF2: Fresenius | BG2: EON | BH2: Telekom | BI2: Lufthansa | BJ2: Deutsche Post | BK2: Deutsche Bank | BL2: Daimler | BM2: Commerzbank | BN2: BMW | BO2: Bayer | BP2: BASF | BQ2: Allianz | BR2: Adidas | BU2: VW | BV2: Thyssen | BW2: Siemens | BX2: SAP | BY2: RWE | BZ2: Münchener | CA2: Linde | CB2: Henkel | CC2: Fresenius | CD2: EON | CE2: Telekom | CF2: Lufthansa | CG2: Deutsche Post | CH2: Deutsche Bank | CI2: Daimler | CJ2: Commerzbank | CK2: BMW | CL2: Bayer | CM2: BASF | CN2: Allianz | CO2: Adidas
Z3: Jahresrendite | AA3: =(1+AVERAGE(AA7:AA3810))^250-1 -> 0.08030313631 | AB3: =(1+AVERAGE(AB7:AB3810))^250-1 -> 0.0303660936 | AC3: 0.06200690317 | AD3: 0.06160542746 | AE3: -0.0512347784 | AF3: -0.02108570548 | AG3: 0.08763347619 | AH3: 0.1121587678 | AI3: 0.07095044041 | AJ3: -0.02984811708 | AK3: 0.08105741437 | AL3: -0.02013061054 | AM3: 0.05103671956 | AN3: -0.07300601605 | AO3: 0.03741679014 | AP3: -0.1886396231 | AQ3: 0.07626065926 | AR3: 0.08537341657 | AS3: -0.01441343625 | AT3: -0.01402969638 | AU3: 0.1717640661 | AW3: Erwartete Rendite | AX3: =AVERAGE(AX7:AX3810) -> 104.0541598 | AY3: =AVERAGE(AY7:AY3810) -> 20.0396132 | AZ3: 61.24364567 | BA3: 38.98588849 | BB3: 32.980089 | BC3: 105.0760427 | BD3: 84.12212678 | BE3: 37.61486494 | BF3: 37.53524241 | BG3: 15.12068862 | BH3: 5.441547348 | BI3: 12.22588616 | BJ3: 15.65339198 | BK3: 37.03647684 | BL3: 38.86330013 | BM3: 63.4334404 | BN3: 43.72720569 | BO3: 49.63913066 | BP3: 31.23312937 | BQ3: 81.34338939 | BR3: 42.89308461
Z4: Varianz | AA4: =VAR(AA7:AA3810) -> 0.0009482528946 | AB4: =VAR(AB7:AB3810) -> 0.0005482761575 | AC4: 0.0004109972776 | AD4: 0.0003913171724 | AE4: 0.0003752435974 | AF4: 0.0003820697567 | AG4: 0.0002759598043 | AH4: 0.0002282911915 | AI4: 0.0002892925699 | AJ4: 0.0003468400329 | AK4: 0.0004903013715 | AL4: 0.0004366152373 | AM4: 0.00033511913 | AN4: 0.0006357659097 | AO4: 0.0004825365953 | AP4: 0.0008892021327 | AQ4: 0.0004273609878 | AR4: 0.0005468910926 | AS4: 0.0006217430684 | AT4: 0.0005476278872 | AU4: 0.0003309441682 | AW4: Varianz | AX4: =VAR(AX7:AX3810) -> 4035.388456 | AY4: =VAR(AY7:AY3810) -> 57.35975873 | AZ4: 338.6412878 | BA4: 204.300205 | BB4: 194.7226094 | BC4: 1665.3196 | BD4: 1676.694099 | BE4: 563.9449242 | BF4: 329.9595111 | BG4: 27.13073316 | BH4: 15.972896 | BI4: 8.592327731 | BJ4: 33.46841763 | BK4: 188.6251721 | BL4: 237.022354 | BM4: 3264.14811 | BN4: 535.8963027 | BO4: 1029.582499 | BP4: 932.9079132 | BQ4: 963.3439015 | BR4: 668.3276293
Z5: Standardabweichung | AA5: =SQRT(AA4) -> 0.03079371518 | AB5: =SQRT(AB4) -> 0.02341529751 | AC5: 0.02027306779 | AD5: 0.01978173836 | AE5: 0.01937120537 | AF5: 0.01954660474 | AG5: 0.01661203793 | AH5: 0.01510930811 | AI5: 0.01700860282 | AJ5: 0.01862364177 | AK5: 0.02214274986 | AL5: 0.02089534009 | AM5: 0.01830625931 | AN5: 0.02521439886 | AO5: 0.02196671562 | AP5: 0.0298194925 | AQ5: 0.02067271119 | AR5: 0.02338570274 | AS5: 0.02493477629 | AT5: 0.02340145054 | AU5: 0.01819187094 | AW5: Standardabweichung | AX5: =SQRT(AX4) -> 63.52470744 | AY5: =SQRT(AY4) -> 7.573622564 | AZ5: =SQRT(AZ4) -> 18.40220878 | BA5: =SQRT(BA4) -> 14.29336227 | BB5: =SQRT(BB4) -> 13.95430433 | BC5: =SQRT(BC4) -> 40.80832758 | BD5: =SQRT(BD4) -> 40.94745534 | BE5: =SQRT(BE4) -> 23.74752459 | BF5: =SQRT(BF4) -> 18.16478767 | BG5: =SQRT(BG4) -> 5.208717036 | BH5: =SQRT(BH4) -> 3.996610564 | BI5: =SQRT(BI4) -> 2.931267257 | BJ5: =SQRT(BJ4) -> 5.785189507 | BK5: =SQRT(BK4) -> 13.73408796 | BL5: =SQRT(BL4) -> 15.39553033 | BM5: =SQRT(BM4) -> 57.13272364 | BN5: =SQRT(BN4) -> 23.14943418 | BO5: =SQRT(BO4) -> 32.08710799 | BP5: =SQRT(BP4) -> 30.54354127 | BQ5: =SQRT(BQ4) -> 31.03778184 | BR5: =SQRT(BR4) -> 25.85203337
Z6: Volatilität | AA6: =STDEV(AA7:AA3810)*SQRT(250) -> 0.4868913879 | AB6: =STDEV(AB7:AB3810)*SQRT(250) -> 0.3702283611 | AC6: 0.3205453469 | AD6: 0.3127767464 | AE6: 0.3062856499 | AF6: 0.3090589574 | AG6: 0.2626593822 | AH6: 0.2388991375 | AI6: 0.2689296236 | AJ6: 0.2944656317 | AK6: 0.3501076161 | AL6: 0.3303843358 | AM6: 0.2894473743 | AN6: 0.3986746511 | AO6: 0.3473242704 | AP6: 0.4714875748 | AQ6: 0.3268642638 | AR6: 0.3697604267 | AS6: 0.3942534301 | AT6: 0.3700094212 | AU6: 0.2876387353
A7: 2016-09-09 | B7: 37 | C7: 9 | D7: 2016 | E7: 131.92 | F7: 21.311 | G7: 104.502 | H7: 78.711 | I7: 14.889 | J7: 166.252 | K7: 148.203 | L7: 100.1 | M7: 78.97 | N7: 8.168 | O7: 14.781 | P7: 11.069 | Q7: 27.909 | R7: 13.66 | S7: 63.1 | T7: 6.431 | U7: 76.599 | V7: 95.02 | W7: 72.267 | X7: 136.55 | Y7: 144.745 | AA7: =LN(E7/E8) -> -0.001325682447 | AB7: =LN(F7/F8) -> -0.02781106063 | AC7: -0.01705907537 | AD7: -0.01620621703 | AE7: -0.01684965441 | AF7: 0.007541053985 | AG7: -0.01398380537 | AH7: -0.01880312696 | AI7: -0.01145747504 | AJ7: -0.000856635921 | AK7: -0.01803541896 | AL7: 0.01446860856 | AM7: -0.03336872615 | AN7: 0.03881084109 | AO7: -0.008757106966 | AP7: -0.001087885724 | AQ7: -0.009769483353 | AR7: -0.01223800641 | AS7: -0.02234523452 | AT7: 0.006612808815 | AU7: -0.008633048166 | AX7: =IF($B7<$B5,AA7,"") ->  | BU7: =IF($C7<$C5,AA7,"") ->  | BV7: =IF($C7<$C5,AB7,"") -> 
A8: 2016-09-08 | B8: 37 | C8: 9 | D8: 2016 | E8: 132.095 | F8: 21.912 | G8: 106.3 | H8: 79.997 | I8: 15.142 | J8: 165.003 | K8: 150.29 | L8: 102 | M8: 79.88 | N8: 8.175 | O8: 15.05 | P8: 10.91 | Q8: 28.856 | R8: 13.14 | S8: 63.655 | T8: 6.438 | U8: 77.351 | V8: 96.19 | W8: 73.9 | X8: 135.65 | Y8: 146 | AA8: =LN(E8/E9) -> -0.006827767523 | AB8: =LN(F8/F9) -> -0.01409335664 | AC8: =LN(G8/G9) -> -0.0167914393 | AD8: =LN(H8/H9) -> -0.008476789517 | AE8: =LN(I8/I9) -> 0.00370517825 | AF8: =LN(J8/J9) -> 0.000976216179 | AG8: =LN(K8/K9) -> -0.02697987664 | AH8: =LN(L8/L9) -> -0.001469507979 | AI8: =LN(M8/M9) -> -0.004122686831 | AJ8: =LN(N8/N9) -> -0.004759298751 | AK8: =LN(O8/O9) -> -0.0005978279098 | AL8: =LN(P8/P9) -> 0.03326962016 | AM8: =LN(Q8/Q9) -> 0.003158573286 | AN8: =LN(R8/R9) -> 0.01680711832 | AO8: =LN(S8/S9) -> -0.004701834538 | AP8: =LN(T8/T9) -> 0.009520165543 | AQ8: =LN(U8/U9) -> -0.01855949168 | AR8: =LN(V8/V9) -> -0.007869979524 | AS8: =LN(W8/W9) -> -0.006205334899 | AT8: =LN(X8/X9) -> 0.004432958866 | AU8: =LN(Y8/Y9) -> -0.01448364489 | AX8: =IF($B8<$B7,AA8,"") ->  | AY8: =IF($B8<$B7,AB8,"") ->  | AZ8: =IF($B8<$B7,AC8,"") ->  | BA8: =IF($B8<$B7,AD8,"") ->  | BB8: =IF($B8<$B7,AE8,"") ->  | BC8: =IF($B8<$B7,AF8,"") ->  | BD8: =IF($B8<$B7,AG8,"") ->  | BE8: =IF($B8<$B7,AH8,"") ->  | BF8: =IF($B8<$B7,AI8,"") ->  | BG8: =IF($B8<$B7,AJ8,"") ->  | BH8: =IF($B8<$B7,AK8,"") ->  | BI8: =IF($B8<$B7,AL8,"") ->  | BJ8: =IF($B8<$B7,AM8,"") ->  | BK8: =IF($B8<$B7,AN8,"") ->  | BL8: =IF($B8<$B7,AO8,"") ->  | BM8: =IF($B8<$B7,AP8,"") ->  | BN8: =IF($B8<$B7,AQ8,"") ->  | BO8: =IF($B8<$B7,AR8,"") ->  | BP8: =IF($B8<$B7,AS8,"") ->  | BQ8: =IF($B8<$B7,AT8,"") ->  | BR8: =IF($B8<$B7,AU8,"") ->  | BU8: =IF($C8<$C7,AA8,"") ->  | BV8: =IF($C8<$C7,AB8,"") ->  | BW8: =IF($C8<$C7,AC8,"") ->  | BX8: =IF($C8<$C7,AD8,"") ->  | BY8: =IF($C8<$C7,AE8,"") ->  | BZ8: =IF($C8<$C7,AF8,"") ->  | CA8: =IF($C8<$C7,AG8,"") ->  | CB8: =IF($C8<$C7,AH8,"") ->  | CC8: =IF($C8<$C7,AI8,"") ->  | CD8: =IF($C8<$C7,AJ8,"") ->  | CE8: =IF($C8<$C7,AK8,"") ->  | CF8: =IF($C8<$C7,AL8,"") ->  | CG8: =IF($C8<$C7,AM8,"") ->  | CH8: =IF($C8<$C7,AN8,"") ->  | CI8: =IF($C8<$C7,AO8,"") ->  | CJ8: =IF($C8<$C7,AP8,"") ->  | CK8: =IF($C8<$C7,AQ8,"") ->  | CL8: =IF($C8<$C7,AR8,"") ->  | CM8: =IF($C8<$C7,AS8,"") ->  | CN8: =IF($C8<$C7,AT8,"") ->  | CO8: =IF($C8<$C7,AU8,"") -> 
A9: 2016-09-07 | B9: 37 | C9: 9 | D9: 2016 | E9: 133 | F9: 22.223 | G9: 108.1 | H9: 80.678 | I9: 15.086 | J9: 164.842 | K9: 154.4 | L9: 102.15 | M9: 80.21 | N9: 8.214 | O9: 15.059 | P9: 10.553 | Q9: 28.765 | R9: 12.921 | S9: 63.955 | T9: 6.377 | U9: 78.8 | V9: 96.95 | W9: 74.36 | X9: 135.05 | Y9: 148.13 | AA9: 0.009177321431 | AB9: 0.01779681057 | AC9: 0.0009254975209 | AD9: 0.006092045745 | AE9: -0.00225120932 | AF9: 0.006573285101 | AG9: 0.007717527487 | AH9: 0.004385520119 | AI9: -0.01045506631 | AJ9: -0.02155800957 | AK9: -0.001260908685 | AL9: -0.02137514587 | AM9: -0.001528468009 | AN9: 0.001626583372 | AO9: 0.008968247388 | AP9: 0.01040362473 | AQ9: 0.01350448201 | AR9: 0.01068087097 | AS9: 0.0131304763 | AT9: 0.002594996822 | AU9: 0.01084643196
A10: 2016-09-06 | B10: 37 | C10: 9 | D10: 2016 | E10: 131.785 | F10: 21.831 | G10: 108 | H10: 80.188 | I10: 15.12 | J10: 163.762 | K10: 153.213 | L10: 101.703 | M10: 81.053 | N10: 8.393 | O10: 15.078 | P10: 10.781 | Q10: 28.809 | R10: 12.9 | S10: 63.384 | T10: 6.311 | U10: 77.743 | V10: 95.92 | W10: 73.39 | X10: 134.7 | Y10: 146.532 | AA10: -0.0008343447086 | AB10: 0.0009165483433 | AC10: 9.259687955e-05 | AD10: -0.007194588519 | AE10: -0.006526276501 | AF10: -0.007531319627 | AG10: -0.01605058656 | AH10: -0.001935139084 | AI10: 0.01062962337 | AJ10: 0.005975161181 | AK10: 0.0008625552072 | AL10: -0.003610947861 | AM10: 0.001076631983 | AN10: -0.02865525576 | AO10: 0.008078739942 | AP10: -0.02318036445 | AQ10: -0.003889881597 | AR10: 0.01766979082 | AS10: -0.001484114127 | AT10: -0.005921556903 | AU10: -0.007011368596
A11: 2016-09-05 | B11: 37 | C11: 9 | D11: 2016 | E11: 131.895 | F11: 21.811 | G11: 107.99 | H11: 80.767 | I11: 15.219 | J11: 165 | K11: 155.692 | L11: 101.9 | M11: 80.196 | N11: 8.343 | O11: 15.065 | P11: 10.82 | Q11: 28.778 | R11: 13.275 | S11: 62.874 | T11: 6.459 | U11: 78.046 | V11: 94.24 | W11: 73.499 | X11: 135.5 | Y11: 147.563 | AA11: 0.002489923932 | AB11: 0.01143554676 | AC11: -0.00157298205 | AD11: 0.005910931291 | AE11: 0.01249644349 | AF11: 0.006079046076 | AG11: 0.004945022568 | AH11: 0.01283968256 | AI11: -0.0001246867248 | AJ11: 0.005890502096 | AK11: 0.001527884178 | AL11: 0.004724637072 | AM11: 0.0002085143361 | AN11: -0.003834447012 | AO11: 0.002276980403 | AP11: -0.008018547204 | AQ11: -0.004206602504 | AR11: -0.00729505799 | AS11: 0.007072667385 | AT11: -0.001474926521 | AU11: 0.01907439012
A12: 2016-09-02 | B12: 36 | C12: 9 | D12: 2016 | E12: 131.567 | F12: 21.563 | G12: 108.16 | H12: 80.291 | I12: 15.03 | J12: 164 | K12: 154.924 | L12: 100.6 | M12: 80.206 | N12: 8.294 | O12: 15.042 | P12: 10.769 | Q12: 28.772 | R12: 13.326 | S12: 62.731 | T12: 6.511 | U12: 78.375 | V12: 94.93 | W12: 72.981 | X12: 135.7 | Y12: 144.775 | AA12: 0.01023714602 | AB12: 0.02075842409 | AC12: 0.01405916738 | AD12: 0.01747630712 | AE12: 0.05511752499 | AF12: 0.01044459933 | AG12: -0.005214749567 | AH12: 0.001492166405 | AI12: 0.02966029606 | AJ12: 0.02614048929 | AK12: 0.007205795791 | AL12: 0.01430933932 | AM12: 0.009989953493 | AN12: 0.01268707548 | AO12: 0.01160846142 | AP12: 0.00384704637 | AQ12: 0.003118093845 | AR12: 0.01112240691 | AS12: 0.003857748759 | AT12: 0.01372679687 | AU12: -0.02278117954 | AX12: =IF($B12<$B11,E12,"") -> 131.567 | AY12: =IF($B12<$B11,F12,"") -> 21.563 | AZ12: 108.16 | BA12: 80.291 | BB12: 15.03 | BC12: 164 | BD12: 154.924 | BE12: 100.6 | BF12: 80.206 | BG12: 8.294 | BH12: 15.042 | BI12: 10.769 | BJ12: 28.772 | BK12: 13.326 | BL12: 62.731 | BM12: 6.511 | BN12: 78.375 | BO12: 94.93 | BP12: 72.981 | BQ12: 135.7 | BR12: 144.775 | BU12: =IFERROR(LN(AX12/SUM(AX16:AX17)),"") -> 0.02085952954 | BV12: =IFERROR(LN(AY12/SUM(AY16:AY17)),"") -> 0.01415151001 | BW12: 0.009381890375 | BX12: 0.03527637813 | BY12: 0.01542102299 | BZ12: 0.03348111862 | CA12: 0.002740577753 | CB12: 0.002129502362 | CC12: 0.01641709719 | CD12: 0.007503363292 | CE12: 0.005733731289 | CF12: 0.03958850295 | CG12: 0.01548137816 | CH12: 0.06855879835 | CI12: 0.02374496591 | CJ12: 0.08140030724 | CK12: 0.03023233045 | CL12: -0.02157120061 | CM12: 0.01376915327 | CN12: 0.04599378292 | CO12: -0.05250168159
A13: 2016-09-01 | B13: 36 | C13: 9 | D13: 2016 | E13: 130.227 | F13: 21.12 | G13: 106.65 | H13: 78.9 | I13: 14.224 | J13: 162.296 | K13: 155.734 | L13: 100.45 | M13: 77.862 | N13: 8.08 | O13: 14.934 | P13: 10.616 | Q13: 28.486 | R13: 13.158 | S13: 62.007 | T13: 6.486 | U13: 78.131 | V13: 93.88 | W13: 72.7 | X13: 133.85 | Y13: 148.111 | AA13: -0.0003685192478 | AB13: 0.011811911 | AC13: -0.005162460262 | AD13: -0.000240782163 | AE13: -0.0325766211 | AF13: 0.003147354194 | AG13: 0.01368693199 | AH13: -0.001492166405 | AI13: -0.0174296074 | AJ13: -0.01985116038 | AK13: -0.005076153032 | AL13: 0.01375276572 | AM13: 0.004186240789 | AN13: -0.002808031291 | AO13: -0.0002257554755 | AP13: 0.03690455694 | AQ13: 0.005956448374 | AR13: -0.02201827165 | AS13: 1.375525279e-05 | AT13: 0.00224383041 | AU13: -0.003538371392 | AX13: =IF($B13<$B12,E13,"") ->  | AY13: =IF($B13<$B12,F13,"") ->  | AZ13: =IF($B13<$B12,G13,"") ->  | BA13: =IF($B13<$B12,H13,"") ->  | BB13: =IF($B13<$B12,I13,"") ->  | BC13: =IF($B13<$B12,J13,"") ->  | BD13: =IF($B13<$B12,K13,"") ->  | BE13: =IF($B13<$B12,L13,"") ->  | BF13: =IF($B13<$B12,M13,"") ->  | BG13: =IF($B13<$B12,N13,"") ->  | BH13: =IF($B13<$B12,O13,"") ->  | BI13: =IF($B13<$B12,P13,"") ->  | BJ13: =IF($B13<$B12,Q13,"") ->  | BK13: =IF($B13<$B12,R13,"") ->  | BL13: =IF($B13<$B12,S13,"") ->  | BM13: =IF($B13<$B12,T13,"") ->  | BN13: =IF($B13<$B12,U13,"") ->  | BO13: =IF($B13<$B12,V13,"") ->  | BP13: =IF($B13<$B12,W13,"") ->  | BQ13: =IF($B13<$B12,X13,"") ->  | BR13: =IF($B13<$B12,Y13,"") ->  | BU13: =IFERROR(LN(AX13/SUM(AX17:AX18)),"") ->  | BV13: =IFERROR(LN(AY13/SUM(AY17:AY18)),"") ->  | BW13: =IFERROR(LN(AZ13/SUM(AZ17:AZ18)),"") ->  | BX13: =IFERROR(LN(BA13/SUM(BA17:BA18)),"") ->  | BY13: =IFERROR(LN(BB13/SUM(BB17:BB18)),"") ->  | BZ13: =IFERROR(LN(BC13/SUM(BC17:BC18)),"") ->  | CA13: =IFERROR(LN(BD13/SUM(BD17:BD18)),"") ->  | CB13: =IFERROR(LN(BE13/SUM(BE17:BE18)),"") ->  | CC13: =IFERROR(LN(BF13/SUM(BF17:BF18)),"") ->  | CD13: =IFERROR(LN(BG13/SUM(BG17:BG18)),"") ->  | CE13: =IFERROR(LN(BH13/SUM(BH17:BH18)),"") ->  | CF13: =IFERROR(LN(BI13/SUM(BI17:BI18)),"") ->  | CG13: =IFERROR(LN(BJ13/SUM(BJ17:BJ18)),"") ->  | CH13: =IFERROR(LN(BK13/SUM(BK17:BK18)),"") ->  | CI13: =IFERROR(LN(BL13/SUM(BL17:BL18)),"") ->  | CJ13: =IFERROR(LN(BM13/SUM(BM17:BM18)),"") ->  | CK13: =IFERROR(LN(BN13/SUM(BN17:BN18)),"") ->  | CL13: =IFERROR(LN(BO13/SUM(BO17:BO18)),"") ->  | CM13: =IFERROR(LN(BP13/SUM(BP17:BP18)),"") ->  | CN13: =IFERROR(LN(BQ13/SUM(BQ17:BQ18)),"") ->  | CO13: =IFERROR(LN(BR13/SUM(BR17:BR18)),"") -> 
A14: 2016-08-31 | B14: 36 | C14: 8 | D14: 2016 | E14: 130.275 | F14: 20.872 | G14: 107.202 | H14: 78.919 | I14: 14.695 | J14: 161.786 | K14: 153.617 | L14: 100.6 | M14: 79.231 | N14: 8.242 | O14: 15.01 | P14: 10.471 | Q14: 28.367 | R14: 13.195 | S14: 62.021 | T14: 6.251 | U14: 77.667 | V14: 95.97 | W14: 72.699 | X14: 133.55 | Y14: 148.636 | AA14: -0.004908295361 | AB14: -0.006351956787 | AC14: -0.01029181338 | AD14: -0.009471093377 | AE14: -0.001835673766 | AF14: 0.006585866104 | AG14: 0.0007619246454 | AH14: -0.004957868361 | AI14: -0.0129784827 | AJ14: -0.01014011586 | AK14: -0.002993516288 | AL14: -0.005808710329 | AM14: -0.004747762528 | AN14: 0.02727267169 | AO14: -0.004472336927 | AP14: 0.03086664798 | AQ14: -0.01264074354 | AR14: -0.01324933987 | AS14: -0.007687128064 | AT14: 0.00789329413 | AU14: -0.02443725006
A15: 2016-08-30 | B15: 36 | C15: 8 | D15: 2016 | E15: 130.916 | F15: 21.005 | G15: 108.311 | H15: 79.67 | I15: 14.722 | J15: 160.724 | K15: 153.5 | L15: 101.1 | M15: 80.266 | N15: 8.326 | O15: 15.055 | P15: 10.532 | Q15: 28.502 | R15: 12.84 | S15: 62.299 | T15: 6.061 | U15: 78.655 | V15: 97.25 | W15: 73.26 | X15: 132.5 | Y15: 152.313 | AA15: 0.01746035743 | AB15: -0.001902497601 | AC15: 0.006586070835 | AD15: 0.0211842767 | AE15: 0.002516408986 | AF15: 0.008384771684 | AG15: -0.004056906196 | AH15: 0.007196953759 | AI15: 0.008834665098 | AJ15: 0.01159713408 | AK15: 0.001928127987 | AL15: 0.007051005868 | AM15: -0.0007014590636 | AN15: 0.02859820457 | AO15: 0.01861551217 | AP15: 0.01848358341 | AQ15: 0.02414003501 | AR15: 0.005981866022 | AS15: 0.01457471145 | AT15: 0.02522105408 | AU15: -0.002059422253
A16: 2016-08-29 | B16: 36 | C16: 8 | D16: 2016 | E16: 128.65 | F16: 21.045 | G16: 107.6 | H16: 78 | I16: 14.685 | J16: 159.382 | K16: 154.124 | L16: 100.375 | M16: 79.56 | N16: 8.23 | O16: 15.026 | P16: 10.458 | Q16: 28.522 | R16: 12.478 | S16: 61.15 | T16: 5.95 | U16: 76.779 | V16: 96.67 | W16: 72.2 | X16: 129.2 | Y16: 152.627 | AA16: -0.001561159303 | AB16: -0.01016437069 | AC16: 0.004190925808 | AD16: 0.006327669851 | AE16: -0.007800616119 | AF16: 0.004918527316 | AG16: -0.002436623114 | AH16: -0.0001095830367 | AI16: 0.008330226134 | AJ16: -0.0002429838428 | AK16: 0.004669476832 | AL16: 0.01028410236 | AM16: 0.006754405472 | AN16: 0.002808877895 | AO16: -0.001780915273 | AP16: -0.008701527461 | AQ16: 0.009658496756 | AR16: -0.003407862027 | AS16: 0.003010065872 | AT16: -0.00309119257 | AU16: 0.0003145416564
A17: 2016-08-26 | B17: 35 | C17: 8 | D17: 2016 | E17: 128.851 | F17: 21.26 | G17: 107.15 | H17: 77.508 | I17: 14.8 | J17: 158.6 | K17: 154.5 | L17: 100.386 | M17: 78.9 | N17: 8.232 | O17: 14.956 | P17: 10.351 | Q17: 28.33 | R17: 12.443 | S17: 61.259 | T17: 6.002 | U17: 76.041 | V17: 97 | W17: 71.983 | X17: 129.6 | Y17: 152.579 | AA17: 0.01034427422 | AB17: 0.004431252242 | AC17: 0.003271795393 | AD17: 0.000735678503 | AE17: 0.01319477757 | AF17: -0.008788506033 | AG17: -0.001946324745 | AH17: -0.004611509097 | AI17: -0.0109035839 | AJ17: 0.002797885166 | AK17: -0.006132534884 | AL17: -0.008657229906 | AM17: -0.00422684673 | AN17: -0.001525798329 | AO17: 0.0003265359463 | AP17: -0.008130800622 | AQ17: -0.004827821775 | AR17: 0.00994620715 | AS17: -0.004117485698 | AT17: 0.001544401851 | AU17: 0.008814515679 | AX17: 128.851 | AY17: 21.26 | AZ17: 107.15 | BA17: 77.508 | BB17: 14.8 | BC17: 158.6 | BD17: 154.5 | BE17: 100.386 | BF17: 78.9 | BG17: 8.232 | BH17: 14.956 | BI17: 10.351 | BJ17: 28.33 | BK17: 12.443 | BL17: 61.259 | BM17: 6.002 | BN17: 76.041 | BO17: 97 | BP17: 71.983 | BQ17: 129.6 | BR17: 152.579 | BU17: 0.004199693529 | BV17: -0.01960892806 | BW17: 0.005615363375 | BX17: -0.005712095809 | BY17: 0.02538711045 | BZ17: -0.0009075325822 | CA17: 0.02284803655 | CB17: 0.01087718425 | CC17: -0.0008488158263 | CD17: 0.006459104779 | CE17: -0.01427315365 | CF17: -0.004722672746 | CG17: 0.01021792754 | CH17: 0.0383370725 | CI17: -0.0009789685717 | CJ17: 0.04829878208 | CK17: -0.01419371086 | CL17: 0.006723583643 | CM17: 0.0002917781118 | CN17: 0.003865486066 | CO17: -0.02541824271
A18: 2016-08-25 | B18: 35 | C18: 8 | D18: 2016 | E18: 127.525 | F18: 21.166 | G18: 106.8 | H18: 77.451 | I18: 14.606 | J18: 160 | K18: 154.801 | L18: 100.85 | M18: 79.765 | N18: 8.209 | O18: 15.048 | P18: 10.441 | Q18: 28.45 | R18: 12.462 | S18: 61.239 | T18: 6.051 | U18: 76.409 | V18: 96.04 | W18: 72.28 | X18: 129.4 | Y18: 151.24 | AA18: -0.01671889643 | AB18: 0.001418372892 | AC18: -0.01022840989 | AD18: -0.00179307457 | AE18: -0.006347061062 | AF18: -0.008866823279 | AG18: -0.005469475805 | AH18: 0.008464078412 | AI18: -0.01247127314 | AJ18: -0.00158237511 | AK18: 0.001396508955 | AL18: -0.02075805543 | AM18: -0.009898127434 | AN18: -0.01497320105 | AO18: -0.01278553266 | AP18: -0.003464492453 | AQ18: -0.01576328474 | AR18: -0.007055434953 | AS18: -0.007017379161 | AT18: -0.008081629516 | AU18: -0.01079186197
A19: 2016-08-24 | B19: 35 | C19: 8 | D19: 2016 | E19: 129.675 | F19: 21.136 | G19: 107.898 | H19: 77.59 | I19: 14.699 | J19: 161.425 | K19: 155.65 | L19: 100 | M19: 80.766 | N19: 8.222 | O19: 15.027 | P19: 10.66 | Q19: 28.733 | R19: 12.65 | S19: 62.027 | T19: 6.072 | U19: 77.623 | V19: 96.72 | W19: 72.789 | X19: 130.45 | Y19: 152.881 | AA19: -0.003272065281 | AB19: -0.006413906161 | AC19: 0.01084657844 | AD19: 0.000116001057 | AE19: 0.008060152926 | AF19: 0.0001548826767 | AG19: 0.01366180349 | AH19: -0.00399202127 | AI19: 0.0003467406415 | AJ19: -0.002793467536 | AK19: -0.006764848719 | AL19: 0.0152184042 | AM19: 0.01592680828 | AN19: 0.02262558041 | AO19: 0.001209882466 | AP19: 0.03026227755 | AQ19: 0.001843936488 | AR19: 0.00051708983 | AS19: 0.003964490016 | AT19: -0.003443661333 | AU19: -0.004815669992
A20: 2016-08-23 | B20: 35 | C20: 8 | D20: 2016 | E20: 130.1 | F20: 21.272 | G20: 106.734 | H20: 77.581 | I20: 14.581 | J20: 161.4 | K20: 153.538 | L20: 100.4 | M20: 80.738 | N20: 8.245 | O20: 15.129 | P20: 10.499 | Q20: 28.279 | R20: 12.367 | S20: 61.952 | T20: 5.891 | U20: 77.48 | V20: 96.67 | W20: 72.501 | X20: 130.9 | Y20: 153.619 | AA20: 0.01725798141 | AB20: 0.01191728849 | AC20: 0.008307313104 | AD20: 0.00150923954 | AE20: -0.0007541219978 | AF20: 0.01813116252 | AG20: 0.02671190304 | AH20: 0.006094229361 | AI20: 0.006299370395 | AJ20: 0.005228929042 | AK20: -0.004089715463 | AL20: -0.002283323226 | AM20: 0.01123727198 | AN20: 0.03112548531 | AO20: 0.007989605829 | AP20: 0.02614078341 | AQ20: 0.009349195103 | AR20: 0.008101415311 | AS20: 0.01027313712 | AT20: 0.01268515953 | AU20: -0.001177546091
A21: 2016-08-22 | B21: 35 | C21: 8 | D21: 2016 | E21: 127.874 | F21: 21.02 | G21: 105.851 | H21: 77.464 | I21: 14.592 | J21: 158.5 | K21: 149.491 | L21: 99.79 | M21: 80.231 | N21: 8.202 | O21: 15.191 | P21: 10.523 | Q21: 27.963 | R21: 11.988 | S21: 61.459 | T21: 5.739 | U21: 76.759 | V21: 95.89 | W21: 71.76 | X21: 129.25 | Y21: 153.8 | AA21: -0.003411600397 | AB21: -0.03096193552 | AC21: -0.006581913677 | AD21: -0.006279940338 | AE21: 0.01123336302 | AF21: -0.001538248466 | AG21: -0.01010986944 | AH21: 0.004922406845 | AI21: 0.01587993018 | AJ21: 0.002808133217 | AK21: 0.00131743646 | AL21: 0.01175753161 | AM21: -0.002821178552 | AN21: 0.001085006157 | AO21: 0.002280539847 | AP21: 0.003491014193 | AQ21: -0.004795735926 | AR21: -0.004785693695 | AS21: -0.002810984164 | AT21: 0.001161215536 | AU21: -0.01744768034
A22: 2016-08-19 | B22: 34 | C22: 8 | D22: 2016 | E22: 128.311 | F22: 21.681 | G22: 106.55 | H22: 77.952 | I22: 14.429 | J22: 158.744 | K22: 151.01 | L22: 99.3 | M22: 78.967 | N22: 8.179 | O22: 15.171 | P22: 10.4 | Q22: 28.042 | R22: 11.975 | S22: 61.319 | T22: 5.719 | U22: 77.128 | V22: 96.35 | W22: 71.962 | X22: 129.1 | Y22: 156.507 | AA22: -0.00345436924 | AB22: 0.00541104338 | AC22: 0.004571673046 | AD22: 0.004422737988 | AE22: -0.03178551585 | AF22: -0.007011845869 | AG22: 0.002712104338 | AH22: -0.0005033979467 | AI22: -0.03565054156 | AJ22: -0.01130642401 | AK22: -0.01361723169 | AL22: -0.01299215829 | AM22: 0.0003923456973 | AN22: -0.02799688828 | AO22: -0.01260793262 | AP22: -0.001921565793 | AQ22: -0.02270217414 | AR22: -0.004659599422 | AS22: -0.01020318262 | AT22: -0.02145676187 | AU22: 0.005163235988 | AX22: 128.311 | AY22: 21.681 | AZ22: 106.55 | BA22: 77.952 | BB22: 14.429 | BC22: 158.744 | BD22: 151.01 | BE22: 99.3 | BF22: 78.967 | BG22: 8.179 | BH22: 15.171 | BI22: 10.4 | BJ22: 28.042 | BK22: 11.975 | BL22: 61.319 | BM22: 5.719 | BN22: 77.128 | BO22: 96.35 | BP22: 71.962 | BQ22: 129.1 | BR22: 156.507 | BU22: -0.03090980776 | BV22: 0.007407098354 | BW22: -0.006081890092 | BX22: -0.005730674709 | BY22: -0.06843365585 | BZ22: -0.01161150635 | CA22: 0.08538607535 | CB22: -0.0189531858 | CC22: -0.06960137939 | CD22: -0.065080922 | CE22: -0.03012628014 | CF22: -0.04970549604 | CG22: -0.008981724296 | CH22: -0.06082600151 | CI22: -0.02115465056 | CJ22: -0.009571116308 | CK22: -0.03117075803 | CL22: -0.01799997171 | CM22: -0.009955559121 | CN22: -0.04134857932 | CO22: 0.008682565351
A23: 2016-08-18 | B23: 34 | C23: 8 | D23: 2016 | E23: 128.755 | F23: 21.564 | G23: 106.064 | H23: 77.608 | I23: 14.895 | J23: 159.861 | K23: 150.601 | L23: 99.35 | M23: 81.833 | N23: 8.272 | O23: 15.379 | P23: 10.536 | Q23: 28.031 | R23: 12.315 | S23: 62.097 | T23: 5.73 | U23: 78.899 | V23: 96.8 | W23: 72.7 | X23: 131.9 | Y23: 155.701 | AA23: 0.00139898208 | AB23: 0.02056808435 | AC23: 0.005236950345 | AD23: -0.002458062972 | AE23: 0.00174707745 | AF23: 0.004558073065 | AG23: 0.00243987689 | AH23: -0.004719595044 | AI23: -0.0008184056206 | AJ23: 0.004604394418 | AK23: -0.000715005393 | AL23: 0.01520614582 | AM23: 0.01260090985 | AN23: -0.0003247544073 | AO23: 0.002176384676 | AP23: -0.002266191156 | AQ23: -0.001228664773 | AR23: 0.0119512984 | AS23: 0.001280048624 | AT23: 0.003417508547 | AU23: -0.001918505823
A24: 2016-08-17 | B24: 34 | C24: 8 | D24: 2016 | E24: 128.575 | F24: 21.125 | G24: 105.51 | H24: 77.799 | I24: 14.869 | J24: 159.134 | K24: 150.234 | L24: 99.82 | M24: 81.9 | N24: 8.234 | O24: 15.39 | P24: 10.377 | Q24: 27.68 | R24: 12.319 | S24: 61.962 | T24: 5.743 | U24: 78.996 | V24: 95.65 | W24: 72.607 | X24: 131.45 | Y24: 156 | AA24: -0.01102205879 | AB24: -0.01787479273 | AC24: -0.003217262427 | AD24: 0.0003728249245 | AE24: -0.02306899709 | AF24: -0.01084997082 | AG24: -0.01954365131 | AH24: 0.003210919877 | AI24: -0.01750162678 | AJ24: -0.03531743816 | AK24: -0.005120073404 | AL24: -0.01549084333 | AM24: -0.01381311764 | AN24: -0.02730463074 | AO24: -0.01045163036 | AP24: -0.007977843215 | AQ24: -0.00870924255 | AR24: -0.02345512288 | AS24: 0.001474774055 | AT24: -0.01021768587 | AU24: 0.000185914717
A25: 2016-08-16 | B25: 34 | C25: 8 | D25: 2016 | E25: 130 | F25: 21.506 | G25: 105.85 | H25: 77.77 | I25: 15.216 | J25: 160.87 | K25: 153.199 | L25: 99.5 | M25: 83.346 | N25: 8.53 | O25: 15.469 | P25: 10.539 | Q25: 28.065 | R25: 12.66 | S25: 62.613 | T25: 5.789 | U25: 79.687 | V25: 97.92 | W25: 72.5 | X25: 132.8 | Y25: 155.971 | AA25: -0.02828839143 | AB25: -0.003481331991 | AC25: -0.008213695136 | AD25: -0.01130273374 | AE25: -0.01273403435 | AF25: 0.002327565261 | AG25: 0.09582598197 | AH25: -0.01496287268 | AI25: -0.01717699367 | AJ25: -0.02432082816 | AK25: -0.01156899593 | AL25: -0.02723739906 | AM25: -0.01098522741 | AN25: -0.01170063213 | AO25: -0.01318470276 | AP25: 0.002767689018 | AQ25: -0.01263211445 | AR25: -0.007326040092 | AS25: -0.008364916332 | AT25: -0.01494796144 | AU25: 0.0003142103247
A26: 2016-08-15 | B26: 34 | C26: 8 | D26: 2016 | E26: 133.73 | F26: 21.581 | G26: 106.723 | H26: 78.654 | I26: 15.411 | J26: 160.496 | K26: 139.2 | L26: 101 | M26: 84.79 | N26: 8.74 | O26: 15.649 | P26: 10.83 | Q26: 28.375 | R26: 12.809 | S26: 63.444 | T26: 5.773 | U26: 80.7 | V26: 98.64 | W26: 73.109 | X26: 134.8 | Y26: 155.922 | AA26: 0.01045602962 | AB26: 0.002784095344 | AC26: -0.00445955592 | AD26: 0.003234559087 | AE26: -0.002592186015 | AF26: -0.0006353279939 | AG26: 0.003951763459 | AH26: -0.001978240012 | AI26: 0.001546188247 | AJ26: 0.001259373914 | AK26: 0.0008950262712 | AL26: -0.009191241176 | AM26: 0.002823365207 | AN26: 0.006500904038 | AO26: 0.0129132305 | AP26: -0.0001732051619 | AQ26: 0.01410143789 | AR26: 0.005489492285 | AS26: 0.005857717156 | AT26: 0.001856321305 | AU26: 0.004937710144
A27: 2016-08-12 | B27: 33 | C27: 8 | D27: 2016 | E27: 132.339 | F27: 21.521 | G27: 107.2 | H27: 78.4 | I27: 15.451 | J27: 160.598 | K27: 138.651 | L27: 101.2 | M27: 84.659 | N27: 8.729 | O27: 15.635 | P27: 10.93 | Q27: 28.295 | R27: 12.726 | S27: 62.63 | T27: 5.774 | U27: 79.57 | V27: 98.1 | W27: 72.682 | X27: 134.55 | Y27: 155.154 | AA27: -0.0128535123 | AB27: 0.01370813765 | AC27: 0.003728958859 | AD27: -0.00513982964 | AE27: -0.01215800895 | AF27: 0.004393252451 | AG27: -0.0005624053793 | AH27: -0.004102246207 | AI27: -0.001274893046 | AJ27: -0.009123110374 | AK27: -0.002555095609 | AL27: 0.007346222202 | AM27: 0.006204043652 | AN27: -0.003373213632 | AO27: -0.002487722148 | AP27: -0.002594483856 | AQ27: -0.007512242665 | AR27: -0.002341802221 | AS27: 0.001059971053 | AT27: -0.007773498333 | AU27: 0.006842387245 | AX27: 132.339 | AY27: 21.521 | AZ27: 107.2 | BA27: 78.4 | BB27: 15.451 | BC27: 160.598 | BD27: 138.651 | BE27: 101.2 | BF27: 84.659 | BG27: 8.729 | BH27: 15.635 | BI27: 10.93 | BJ27: 28.295 | BK27: 12.726 | BL27: 62.63 | BM27: 5.774 | BN27: 79.57 | BO27: 98.1 | BP27: 72.682 | BQ27: 134.55 | BR27: 155.154 | BU27: 0.006458824846 | BV27: 0.04568176203 | BW27: 0.0489982082 | BX27: 0.01051426534 | BY27: 0.02284654079 | BZ27: 0.06395172048 | CA27: 0.04080666839 | CB27: 0.05922984398 | CC27: 0.01952579015 | CD27: -0.04928647052 | CE27: 0.009963122748 | CF27: 0.04004081146 | CG27: 0.02653739497 | CH27: 0.07343121043 | CI27: 0.02638692594 | CJ27: 0.06733656664 | CK27: 0.02635920103 | CL27: 0.02299425948 | CM27: 0.0461492583 | CN27: 0.06208890406 | CO27: 0.05538111641
A28: 2016-08-11 | B28: 33 | C28: 8 | D28: 2016 | E28: 134.051 | F28: 21.228 | G28: 106.801 | H28: 78.804 | I28: 15.64 | J28: 159.894 | K28: 138.729 | L28: 101.616 | M28: 84.767 | N28: 8.809 | O28: 15.675 | P28: 10.85 | Q28: 28.12 | R28: 12.769 | S28: 62.786 | T28: 5.789 | U28: 80.17 | V28: 98.33 | W28: 72.605 | X28: 135.6 | Y28: 154.096 | AA28: 0.005055614935 | AB28: 0.01638563411 | AC28: 0.01556987745 | AD28: 0.003877871143 | AE28: 0.0373248133 | AF28: 0.0009010024261 | AG28: 0.003118843359 | AH28: 0.04267257802 | AI28: 0.007602528151 | AJ28: 0.01141695242 | AK28: -0.0003827018799 | AL28: 0.0008298373073 | AM28: -0.002699056969 | AN28: 0.005497108236 | AO28: 0.004565561943 | AP28: 0.008848847538 | AQ28: 0.005240099284 | AR28: 0.009297640414 | AS28: 0.004209660818 | AT28: -0.002209945651 | AU28: 0.01121150894
A29: 2016-08-10 | B29: 33 | C29: 8 | D29: 2016 | E29: 133.375 | F29: 20.883 | G29: 105.151 | H29: 78.499 | I29: 15.067 | J29: 159.75 | K29: 138.297 | L29: 97.371 | M29: 84.125 | N29: 8.709 | O29: 15.681 | P29: 10.841 | Q29: 28.196 | R29: 12.699 | S29: 62.5 | T29: 5.738 | U29: 79.751 | V29: 97.42 | W29: 72.3 | X29: 135.9 | Y29: 152.378 | AA29: 0.0007425436586 | AB29: -0.02916401483 | AC29: -0.002469582661 | AD29: 0.001746769877 | AE29: -0.02839761615 | AF29: -0.005250666834 | AG29: -0.009964863969 | AH29: -0.0003183192769 | AI29: -0.01168774642 | AJ29: -0.0744359862 | AK29: 0.002618053282 | AL29: -0.01419632762 | AM29: 0.006332963138 | AN29: 0.03306284747 | AO29: -0.0007836928325 | AP29: 0.01988976947 | AQ29: 0.001267244415 | AR29: -0.01426848504 | AS29: 0.008333381559 | AT29: 0.01557317346 | AU29: 0.027464238
A30: 2016-08-09 | B30: 33 | C30: 8 | D30: 2016 | E30: 133.276 | F30: 21.501 | G30: 105.411 | H30: 78.362 | I30: 15.501 | J30: 160.591 | K30: 139.682 | L30: 97.402 | M30: 85.114 | N30: 9.382 | O30: 15.64 | P30: 10.996 | Q30: 28.018 | R30: 12.286 | S30: 62.549 | T30: 5.625 | U30: 79.65 | V30: 98.82 | W30: 71.7 | X30: 133.8 | Y30: 148.25 | AA30: 0.01569928945 | AB30: 0.02233967853 | AC30: 0.01952318887 | AD30: 0.01184858631 | AE30: 0.005498606861 | AF30: 0.04825945335 | AG30: 0.02884815434 | AH30: 0.01554076243 | AI30: 0.02274418656 | AJ30: 0.009962055501 | AK30: 0.01170506643 | AL30: 0.03781028594 | AM30: 0.01325759982 | AN30: 0.009815226843 | AO30: 0.02080682444 | AP30: 0.006420567803 | AQ30: 0.02817733381 | AR30: 0.02895182195 | AS30: 0.02212582593 | AT30: 0.02689046706 | AU30: 0.0033513092
A31: 2016-08-08 | B31: 33 | C31: 8 | D31: 2016 | E31: 131.2 | F31: 21.026 | G31: 103.373 | H31: 77.439 | I31: 15.416 | J31: 153.025 | K31: 135.71 | L31: 95.9 | M31: 83.2 | N31: 9.289 | O31: 15.458 | P31: 10.588 | Q31: 27.649 | R31: 12.166 | S31: 61.261 | T31: 5.589 | U31: 77.437 | V31: 96 | W31: 70.131 | X31: 130.25 | Y31: 147.754 | AA31: -0.002185110905 | AB31: 0.02241232657 | AC31: 0.01264576568 | AD31: -0.00181913235 | AE31: 0.02057874573 | AF31: 0.01564867909 | AG31: 0.01936694004 | AH31: 0.005437069019 | AI31: 0.002141714912 | AJ31: 0.01289361814 | AK31: -0.001422199477 | AL31: 0.008250793641 | AM31: 0.003441845327 | AN31: 0.02842924152 | AO31: 0.004285954541 | AP31: 0.03477186569 | AQ31: -0.0008132338108 | AR31: 0.001355084379 | AS31: 0.01042041894 | AT31: 0.02960870752 | AU31: 0.006511673023
A32: 2016-08-05 | B32: 32 | C32: 8 | D32: 2016 | E32: 131.487 | F32: 20.56 | G32: 102.074 | H32: 77.58 | I32: 15.102 | J32: 150.649 | K32: 133.107 | L32: 95.38 | M32: 83.022 | N32: 9.17 | O32: 15.48 | P32: 10.501 | Q32: 27.554 | R32: 11.825 | S32: 60.999 | T32: 5.398 | U32: 77.5 | V32: 95.87 | W32: 69.404 | X32: 126.45 | Y32: 146.795 | AA32: 0.02025905032 | AB32: 0.0258666965 | AC32: 0.01107269568 | AD32: 0.002361641857 | AE32: -0.02077332981 | AF32: 0.01223526447 | AG32: 0.03005491723 | AH32: -0.0006288649196 | AI32: 0.003692579224 | AJ32: 0.0007636502853 | AK32: 0.01510052125 | AL32: 0.01680550427 | AM32: 0.01293074232 | AN32: 0.0301323282 | AO32: 0.02575548974 | AP32: 0.01983226834 | AQ32: 0.02281308968 | AR32: 0.02023038123 | AS32: 0.003203789559 | AT32: -0.01374457137 | AU32: -0.001395531124 | AX32: 131.487 | AY32: 20.56 | AZ32: 102.074 | BA32: 77.58 | BB32: 15.102 | BC32: 150.649 | BD32: 133.107 | BE32: 95.38 | BF32: 83.022 | BG32: 9.17 | BH32: 15.48 | BI32: 10.501 | BJ32: 27.554 | BK32: 11.825 | BL32: 60.999 | BM32: 5.398 | BN32: 77.5 | BO32: 95.87 | BP32: 69.404 | BQ32: 126.45 | BR32: 146.795 | BU32: -0.008858862225 | BV32: 0.003898640416 | BW32: 0.05304071563 | BX32: -0.006680394834 | BY32: -0.04834231494 | BZ32: 0.008318661535 | CA32: 0.03172858373 | CB32: -0.01426141904 | CC32: 0.01431507364 | CD32: -0.04185962394 | CE32: 0.01983363553 | CF32: -0.01352586239 | CG32: 0.03024895832 | CH32: -0.0180185055 | CI32: 0.004436127149 | CJ32: -0.08892383632 | CK32: 0.008305361976 | CL32: -0.003644129182 | CM32: -0.006119214119 | CN32: -0.01452429851 | CO32: -0.0004699328219
A33: 2016-08-04 | B33: 32 | C33: 8 | D33: 2016 | E33: 128.85 | F33: 20.035 | G33: 100.95 | H33: 77.397 | I33: 15.419 | J33: 148.817 | K33: 129.166 | L33: 95.44 | M33: 82.716 | N33: 9.163 | O33: 15.248 | P33: 10.326 | Q33: 27.2 | R33: 11.474 | S33: 59.448 | T33: 5.292 | U33: 75.752 | V33: 93.95 | W33: 69.182 | X33: 128.2 | Y33: 147 | AA33: 0.01601423607 | AB33: 0.01549248833 | AC33: 0.04326016338 | AD33: 0.002289529318 | AE33: 0.0127273852 | AF33: 0.002806032452 | AG33: 0.00740545542 | AH33: -0.00616286486 | AI33: 0.01582895728 | AJ33: 0.00656960646 | AK33: 0.005656049278 | AL33: 0.002132817095 | AM33: -0.004328852279 | AN33: 0.01271779629 | AO33: -0.001697522194 | AP33: 0.01293285428 | AQ33: -0.003413219974 | AR33: -0.004460500174 | AS33: 0.002083635539 | AT33: 0.006652343061 | AU33: -0.008130126083
A34: 2016-08-03 | B34: 32 | C34: 8 | D34: 2016 | E34: 126.803 | F34: 19.727 | G34: 96.676 | H34: 77.22 | I34: 15.224 | J34: 148.4 | K34: 128.213 | L34: 96.03 | M34: 81.417 | N34: 9.103 | O34: 15.162 | P34: 10.304 | Q34: 27.318 | R34: 11.329 | S34: 59.549 | T34: 5.224 | U34: 76.011 | V34: 94.37 | W34: 69.038 | X34: 127.35 | Y34: 148.2 | AA34: -0.00292938968 | AB34: 0.004419952835 | AC34: 0.00870591534 | AD34: 0.004152614324 | AE34: 0.008045944613 | AF34: 0.003496672277 | AG34: 0.01441552747 | AH34: -0.005597136093 | AI34: -0.01139436021 | AJ34: -0.01320475344 | AK34: -0.001647501114 | AL34: -0.0007760962749 | AM34: 0.03475015872 | AN34: 0.00664218888 | AO34: 0.01194361741 | AP34: -0.01066270574 | AQ34: 0.007275352119 | AR34: 0.001803044451 | AS34: 0.002087986143 | AT34: 0.005117114098 | AU34: 0.0002361952333
A35: 2016-08-02 | B35: 32 | C35: 8 | D35: 2016 | E35: 127.175 | F35: 19.64 | G35: 95.838 | H35: 76.9 | I35: 15.102 | J35: 147.882 | K35: 126.378 | L35: 96.569 | M35: 82.35 | N35: 9.224 | O35: 15.187 | P35: 10.312 | Q35: 26.385 | R35: 11.254 | S35: 58.842 | T35: 5.28 | U35: 75.46 | V35: 94.2 | W35: 68.894 | X35: 126.7 | Y35: 148.165 | AA35: -0.03336671239 | AB35: -0.02066085083 | AC35: -0.009987728247 | AD35: -0.01522806559 | AE35: -0.01387495545 | AF35: -0.002148054406 | AG35: -0.02092251023 | AH35: -0.00385508278 | AI35: 0.006994654598 | AJ35: -0.01388836449 | AK35: -0.005974086371 | AL35: -0.03412779968 | AM35: -0.009993483754 | AN35: -0.0415965301 | AO35: -0.02696069142 | AP35: -0.08770558042 | AQ35: -0.01666398589 | AR35: -0.02256721328 | AS35: -0.02040183401 | AT35: -0.01098912158 | AU35: -0.002931614655
A36: 2016-08-01 | B36: 32 | C36: 8 | D36: 2016 | E36: 131.49 | F36: 20.05 | G36: 96.8 | H36: 78.08 | I36: 15.313 | J36: 148.2 | K36: 129.05 | L36: 96.942 | M36: 81.776 | N36: 9.353 | O36: 15.278 | P36: 10.67 | Q36: 26.65 | R36: 11.732 | S36: 60.45 | T36: 5.764 | U36: 76.728 | V36: 96.35 | W36: 70.314 | X36: 128.1 | Y36: 148.6 | AA36: -0.008836046541 | AB36: -0.02121964642 | AC36: -1.033052515e-05 | AD36: -0.0002561147408 | AE36: -0.03446735949 | AF36: -0.008071253255 | AG36: 0.0007751938373 | AH36: 0.001982529613 | AI36: -0.0008067572465 | AJ36: -0.02209976275 | AK36: 0.006698652486 | AL36: 0.002439712198 | AM36: -0.003109606687 | AN36: -0.02591428877 | AO36: -0.004604766387 | AP36: -0.02332067277 | AQ36: -0.001705873958 | AR36: 0.001350158589 | AS36: 0.006907208647 | AT36: -0.001560062719 | AU36: 0.01175114381
A37: 2016-07-29 | B37: 31 | C37: 7 | D37: 2016 | E37: 132.657 | F37: 20.48 | G37: 96.801 | H37: 78.1 | I37: 15.85 | J37: 149.401 | K37: 128.95 | L37: 96.75 | M37: 81.842 | N37: 9.562 | O37: 15.176 | P37: 10.644 | Q37: 26.733 | R37: 12.04 | S37: 60.729 | T37: 5.9 | U37: 76.859 | V37: 96.22 | W37: 69.83 | X37: 128.3 | Y37: 146.864 | AA37: 0.01018306333 | AB37: 0.01015884869 | AC37: -0.002053653696 | AD37: -0.002429824074 | AE37: -0.002520480225 | AF37: 0.00624431314 | AG37: -0.007948166618 | AH37: 0.002172901678 | AI37: -0.005373965713 | AJ37: -0.001671891717 | AK37: 0 | AL37: 0.0183943747 | AM37: 0.003109606687 | AN37: 0.003244460231 | AO37: -0.001151998021 | AP37: 0.0336093676 | AQ37: 0.002696876777 | AR37: 0.02005000772 | AS37: -0.01308881967 | AT37: 0.006647140799 | AU37: 0.01257326605 | AX37: 132.657 | AY37: 20.48 | AZ37: 96.801 | BA37: 78.1 | BB37: 15.85 | BC37: 149.401 | BD37: 128.95 | BE37: 96.75 | BF37: 81.842 | BG37: 9.562 | BH37: 15.176 | BI37: 10.644 | BJ37: 26.733 | BK37: 12.04 | BL37: 60.729 | BM37: 5.9 | BN37: 76.859 | BO37: 96.22 | BP37: 69.83 | BQ37: 128.3 | BR37: 146.864 | BU37: 0.01946346412 | BV37: 0.04534882674 | BW37: 0.02096175794 | BX37: 0.01453534583 | BY37: 0.004679702463 | BZ37: 0.01553493479 | CA37: 0.003184592384 | CB37: 0.01941200592 | CC37: 0.01162618019 | CD37: 0.007663677212 | CE37: -0.00944393168 | CF37: 0.03382380327 | CG37: 0.03703703694 | CH37: -0.08468308723 | CI37: 0.0234411113 | CJ37: 0.01124947947 | CK37: 0.01982864931 | CL37: 0.04408807897 | CM37: -0.02380155093 | CN37: 0.01928055004 | CO37: 0.06702554192
A38: 2016-07-28 | B38: 31 | C38: 7 | D38: 2016 | E38: 131.313 | F38: 20.273 | G38: 97 | H38: 78.29 | I38: 15.89 | J38: 148.471 | K38: 129.979 | L38: 96.54 | M38: 82.283 | N38: 9.578 | O38: 15.176 | P38: 10.45 | Q38: 26.65 | R38: 12.001 | S38: 60.799 | T38: 5.705 | U38: 76.652 | V38: 94.31 | W38: 70.75 | X38: 127.45 | Y38: 145.029 | AA38: -0.03294383841 | AB38: 0.0223966266 | AC38: 0.006194403497 | AD38: 0.00349312926 | AE38: 0.0001888158107 | AF38: 0.0008153062398 | AG38: -0.01125365223 | AH38: -0.004320464813 | AI38: 0.01029797218 | AJ38: 0.008177003314 | AK38: 0.0003954392723 | AL38: -0.001338816304 | AM38: 0.01280204792 | AN38: -0.03230318584 | AO38: -0.01763984442 | AP38: 0.009687438156 | AQ38: -0.01926478391 | AR38: -0.003281641647 | AS38: 0.00903004773 | AT38: -0.01286316703 | AU38: 0.02935183058
A39: 2016-07-27 | B39: 31 | C39: 7 | D39: 2016 | E39: 135.711 | F39: 19.824 | G39: 96.401 | H39: 78.017 | I39: 15.887 | J39: 148.35 | K39: 131.45 | L39: 96.958 | M39: 81.44 | N39: 9.5 | O39: 15.17 | P39: 10.464 | Q39: 26.311 | R39: 12.395 | S39: 61.881 | T39: 5.65 | U39: 78.143 | V39: 94.62 | W39: 70.114 | X39: 129.1 | Y39: 140.834 | AA39: 0.0220599646 | AB39: -0.002971770389 | AC39: 0.00625389003 | AD39: 0.009232796067 | AE39: -0.002137827776 | AF39: 0.005766510147 | AG39: 0.02007851168 | AH39: 0.00287133921 | AI39: -0.002085250679 | AJ39: -0.00671425099 | AK39: 0.0006594131462 | AL39: 0.01599109309 | AM39: 0.009777414331 | AN39: -0.03830491242 | AO39: 0.02108332293 | AP39: 0.009246154065 | AQ39: 0.01625569577 | AR39: 0.01115905092 | AS39: -0.02097258517 | AT39: 0.0191599214 | AU39: 0.004519049938
A40: 2016-07-26 | B40: 31 | C40: 7 | D40: 2016 | E40: 132.75 | F40: 19.883 | G40: 95.8 | H40: 77.3 | I40: 15.921 | J40: 147.497 | K40: 128.837 | L40: 96.68 | M40: 81.61 | N40: 9.564 | O40: 15.16 | P40: 10.298 | Q40: 26.055 | R40: 12.879 | S40: 60.59 | T40: 5.598 | U40: 76.883 | V40: 93.57 | W40: 71.6 | X40: 126.65 | Y40: 140.199 | AA40: 0.008457509695 | AB40: 0.002870887665 | AC40: 0.005631694653 | AD40: 0.003382168458 | AE40: 0.01016390808 | AF40: -0.002410700338 | AG40: -0.003749646086 | AH40: -0.00186008114 | AI40: 0.007403888254 | AJ40: 0.01156811723 | AK40: -0.007229739016 | AL40: 0.001749441597 | AM40: 0.0007679017463 | AN40: -0.02226750482 | AO40: 0.008952314431 | AP40: -0.03699904792 | AQ40: 0.008070668301 | AR40: 0.01020471824 | AS40: -0.0009492699711 | AT40: 0.005145469496 | AU40: 0.007610969849
A41: 2016-07-25 | B41: 31 | C41: 7 | D41: 2016 | E41: 131.632 | F41: 19.826 | G41: 95.262 | H41: 77.039 | I41: 15.76 | J41: 147.853 | K41: 129.321 | L41: 96.86 | M41: 81.008 | N41: 9.454 | O41: 15.27 | P41: 10.28 | Q41: 26.035 | R41: 13.169 | S41: 60.05 | T41: 5.809 | U41: 76.265 | V41: 92.62 | W41: 71.668 | X41: 126 | Y41: 139.136 | AA41: 0.01170676491 | AB41: 0.01289423418 | AC41: 0.004935423451 | AD41: 0.0008570761245 | AE41: -0.001014713431 | AF41: 0.005119505606 | AG41: 0.00605754564 | AH41: 0.02054831099 | AI41: 0.001383536143 | AJ41: -0.003695300621 | AK41: -0.003269045082 | AL41: -0.0009722898189 | AM41: 0.01058006626 | AN41: 0.004948055617 | AO41: 0.01219731638 | AP41: -0.004294432435 | AQ41: 0.01207019238 | AR41: 0.005955943753 | AS41: 0.002179076152 | AT41: 0.00119118537 | AU41: 0.0129704255
A42: 2016-07-22 | B42: 30 | C42: 7 | D42: 2016 | E42: 130.1 | F42: 19.572 | G42: 94.793 | H42: 76.973 | I42: 15.776 | J42: 147.098 | K42: 128.54 | L42: 94.89 | M42: 80.896 | N42: 9.489 | O42: 15.32 | P42: 10.29 | Q42: 25.761 | R42: 13.104 | S42: 59.322 | T42: 5.834 | U42: 75.35 | V42: 92.07 | W42: 71.512 | X42: 125.85 | Y42: 137.343 | AA42: -0.0003842459221 | AB42: -0.001225490349 | AC42: 0.000295424094 | AD42: 0.01009324832 | AE42: 0.0003169873549 | AF42: 0.001898495724 | AG42: 0.001642861127 | AH42: -0.006512628061 | AI42: 0.00155876963 | AJ42: 0.00327228877 | AK42: 0.008456017087 | AL42: -0.01284235291 | AM42: -0.006153151126 | AN42: -0.001067805761 | AO42: -0.004239005136 | AP42: -0.01800626193 | AQ42: -0.008576257233 | AR42: 0.0003258921326 | AS42: -0.003879922803 | AT42: 0.003582093383 | AU42: -0.004554823666 | AX42: 130.1 | AY42: 19.572 | AZ42: 94.793 | BA42: 76.973 | BB42: 15.776 | BC42: 147.098 | BD42: 128.54 | BE42: 94.89 | BF42: 80.896 | BG42: 9.489 | BH42: 15.32 | BI42: 10.29 | BJ42: 25.761 | BK42: 13.104 | BL42: 59.322 | BM42: 5.834 | BN42: 75.35 | BO42: 92.07 | BP42: 71.512 | BQ42: 125.85 | BR42: 137.343 | BU42: 0.0205792547 | BV42: -0.005401287017 | BW42: 0.007443795854 | BX42: 0.07841143182 | BY42: 0.01173183566 | BZ42: -0.006788689952 | CA42: 0.003819327298 | CB42: -0.006931344701 | CC42: 0.02855097858 | CD42: -0.001158565615 | CE42: -0.007154502063 | CF42: -0.1024408056 | CG42: 0.001437312086 | CH42: 0.005356199201 | CI42: 0.01732668213 | CJ42: -0.01665855283 | CK42: 0.01168042647 | CL42: -0.01957472697 | CM42: -0.002555742381 | CN42: -0.01693954234 | CO42: 0.04291961589
A43: 2016-07-21 | B43: 30 | C43: 7 | D43: 2016 | E43: 130.15 | F43: 19.596 | G43: 94.765 | H43: 76.2 | I43: 15.771 | J43: 146.819 | K43: 128.329 | L43: 95.51 | M43: 80.77 | N43: 9.458 | O43: 15.191 | P43: 10.423 | Q43: 25.92 | R43: 13.118 | S43: 59.574 | T43: 5.94 | U43: 75.999 | V43: 92.04 | W43: 71.79 | X43: 125.4 | Y43: 137.97 | AA43: -0.007021011396 | AB43: 0.003629768051 | AC43: -0.001423562838 | AD43: 0.006028634441 | AE43: 0.009108633313 | AF43: -0.01071079514 | AG43: 0.007493191103 | AH43: 0.01962381384 | AI43: -0.001855402845 | AJ43: -0.00116236078 | AK43: -0.002826624725 | AL43: -0.05886791155 | AM43: 0.006347261808 | AN43: 0.009805502189 | AO43: 0.0164845407 | AP43: 0.008113634774 | AQ43: 0.01056895135 | AR43: 0.002610967541 | AS43: 0.0005433987636 | AT43: -0.009918748249 | AU43: 0.01272099898
A44: 2016-07-20 | B44: 30 | C44: 7 | D44: 2016 | E44: 131.067 | F44: 19.525 | G44: 94.9 | H44: 75.742 | I44: 15.628 | J44: 148.4 | K44: 127.371 | L44: 93.654 | M44: 80.92 | N44: 9.469 | O44: 15.234 | P44: 11.055 | Q44: 25.756 | R44: 12.99 | S44: 58.6 | T44: 5.892 | U44: 75.2 | V44: 91.8 | W44: 71.751 | X44: 126.65 | Y44: 136.226 | AA44: 0.02672990509 | AB44: 0.005598227301 | AC44: 0.01626432126 | AD44: 0.05598638923 | AE44: 0.006226150605 | AF44: 0.008710331776 | AG44: 0.001343436807 | AH44: -0.00347485347 | AI44: 0.02253324279 | AJ44: 0.01478829014 | AK44: -0.0005250032933 | AL44: -0.008466993476 | AM44: 0.01002837397 | AN44: 0.01951167655 | AO44: 0.0177504682 | AP44: 0.001868683123 | AQ44: 0.02233535322 | AR44: 0.0002178886598 | AS44: 0.009114455016 | AT44: 0.008325122414 | AU44: 0.02867646732
A45: 2016-07-19 | B45: 30 | C45: 7 | D45: 2016 | E45: 127.61 | F45: 19.416 | G45: 93.369 | H45: 71.618 | I45: 15.531 | J45: 147.113 | K45: 127.2 | L45: 93.98 | M45: 79.117 | N45: 9.33 | O45: 15.242 | P45: 11.149 | Q45: 25.499 | R45: 12.739 | S45: 57.569 | T45: 5.881 | U45: 73.539 | V45: 91.78 | W45: 71.1 | X45: 125.6 | Y45: 132.375 | AA45: 0.0007839448504 | AB45: -0.01700538873 | AC45: -0.005671001854 | AD45: -0.002412680988 | AE45: -0.02077301662 | AF45: -0.01072985451 | AG45: -0.0121274225 | AH45: -0.01865863439 | AI45: -0.00872104038 | AJ45: -0.01931914453 | AK45: -0.002490008494 | AL45: -0.02847230351 | AM45: -0.004265566958 | AN45: -0.03463917108 | AO45: -0.01428029027 | AP45: -0.009308690387 | AQ45: -0.0209514173 | AR45: -0.01212923685 | AS45: -0.006840125346 | AT45: -0.0130514014 | AU45: 0.007994096331
A46: 2016-07-18 | B46: 30 | C46: 7 | D46: 2016 | E46: 127.51 | F46: 19.749 | G46: 93.9 | H46: 71.791 | I46: 15.857 | J46: 148.7 | K46: 128.752 | L46: 95.75 | M46: 79.81 | N46: 9.512 | O46: 15.28 | P46: 11.471 | Q46: 25.608 | R46: 13.188 | S46: 58.397 | T46: 5.936 | U46: 75.096 | V46: 92.9 | W46: 71.588 | X46: 127.25 | Y46: 131.321 | AA46: 0.0004706620733 | AB46: 0.00360159671 | AC46: -0.002021384804 | AD46: 0.00871584082 | AE46: 0.016853081 | AF46: 0.004043132192 | AG46: 0.005467260758 | AH46: 0.002090957374 | AI46: 0.01503540938 | AJ46: 0.001262360782 | AK46: -0.009768882637 | AL46: 0.006208755899 | AM46: -0.004519605605 | AN46: 0.0117459973 | AO46: 0.001610968643 | AP46: 0.0006740815894 | AQ46: 0.008303796435 | AR46: -0.01060023845 | AS46: -0.001493548012 | AT46: -0.005876608489 | AU46: -0.001917123078
A47: 2016-07-15 | B47: 29 | C47: 7 | D47: 2016 | E47: 127.45 | F47: 19.678 | G47: 94.09 | H47: 71.168 | I47: 15.592 | J47: 148.1 | K47: 128.05 | L47: 95.55 | M47: 78.619 | N47: 9.5 | O47: 15.43 | P47: 11.4 | Q47: 25.724 | R47: 13.034 | S47: 58.303 | T47: 5.932 | U47: 74.475 | V47: 93.89 | W47: 71.695 | X47: 128 | Y47: 131.573 | AA47: -0.001959632216 | AB47: -0.0007112014524 | AC47: 0.002266356235 | AD47: 0.004054972891 | AE47: -0.01084401773 | AF47: -0.007165354526 | AG47: -0.001950458976 | AH47: 0.003774776423 | AI47: -0.0001526232117 | AJ47: 0.008032171697 | AK47: 0.01055453149 | AL47: -0.005947192621 | AM47: -0.001476129701 | AN47: 0.0002301937474 | AO47: -0.006394277215 | AP47: -0.008727816396 | AQ47: 0.001410863884 | AR47: 0.004804365191 | AS47: 0.006689456204 | AT47: -0.008169662245 | AU47: 0.01261986339 | AX47: 127.45 | AY47: 19.678 | AZ47: 94.09 | BA47: 71.168 | BB47: 15.592 | BC47: 148.1 | BD47: 128.05 | BE47: 95.55 | BF47: 78.619 | BG47: 9.5 | BH47: 15.43 | BI47: 11.4 | BJ47: 25.724 | BK47: 13.034 | BL47: 58.303 | BM47: 5.932 | BN47: 74.475 | BO47: 93.89 | BP47: 71.695 | BQ47: 128 | BR47: 131.573 | BU47: 0.05193358523 | BV47: 0.08580171245 | BW47: 0.05190319892 | BX47: 0.02876522108 | BY47: 0.05165792028 | BZ47: 0.02078163439 | CA47: 0.04206740072 | CB47: 0.01848481467 | CC47: -0.004074669732 | CD47: 0.03372007994 | CE47: 0.03932441263 | CF47: 0.04705482863 | CG47: 0.03807380463 | CH47: 0.09912287083 | CI47: 0.07685470578 | CJ47: 0.03516959086 | CK47: 0.08495910368 | CL47: 0.03214388529 | CM47: 0.06477752499 | CN47: 0.04432748052 | CO47: 0.04343072874
A48: 2016-07-14 | B48: 29 | C48: 7 | D48: 2016 | E48: 127.7 | F48: 19.692 | G48: 93.877 | H48: 70.88 | I48: 15.762 | J48: 149.165 | K48: 128.3 | L48: 95.19 | M48: 78.631 | N48: 9.424 | O48: 15.268 | P48: 11.468 | Q48: 25.762 | R48: 13.031 | S48: 58.677 | T48: 5.984 | U48: 74.37 | V48: 93.44 | W48: 71.217 | X48: 129.05 | Y48: 129.923 | AA48: 0.02361253829 | AB48: 0.02031464135 | AC48: 0.009385921631 | AD48: 0.006425793132 | AE48: -0.005630609884 | AF48: 0.003579623496 | AG48: 0.02878124024 | AH48: 0.004316477724 | AI48: -0.003757350921 | AJ48: -0.006978985713 | AK48: 0.0117268621 | AL48: 0.01883692701 | AM48: 0.01584571193 | AN48: 0.03062298581 | AO48: 0.02306680675 | AP48: 0.02521497493 | AQ48: 0.0199639957 | AR48: 0.005472997511 | AS48: 0.03033602544 | AT48: 0.01758888416 | AU48: -0.00693387246
A49: 2016-07-13 | B49: 29 | C49: 7 | D49: 2016 | E49: 124.72 | F49: 19.296 | G49: 93 | H49: 70.426 | I49: 15.851 | J49: 148.632 | K49: 124.66 | L49: 94.78 | M49: 78.927 | N49: 9.49 | O49: 15.09 | P49: 11.254 | Q49: 25.357 | R49: 12.638 | S49: 57.339 | T49: 5.835 | U49: 72.9 | V49: 92.93 | W49: 69.089 | X49: 126.8 | Y49: 130.827 | AA49: -0.02201376681 | AB49: -0.01812862589 | AC49: -0.002727459893 | AD49: -0.002864153276 | AE49: 0.04055653652 | AF49: -0.001035579647 | AG49: -0.00749629896 | AH49: -0.006205647051 | AI49: 0.0003041246935 | AJ49: 0.02442657843 | AK49: -0.002184490989 | AL49: -0.006730454029 | AM49: -0.009537525444 | AN49: -0.01819087326 | AO49: -0.007765511336 | AP49: -0.02086058855 | AQ49: -0.003122691337 | AR49: -0.002149844964 | AS49: -0.0001592022523 | AT49: -0.001182266148 | AU49: -4.586104105e-05
A50: 2016-07-12 | B50: 29 | C50: 7 | D50: 2016 | E50: 127.496 | F50: 19.649 | G50: 93.254 | H50: 70.628 | I50: 15.221 | J50: 148.786 | K50: 125.598 | L50: 95.37 | M50: 78.903 | N50: 9.261 | O50: 15.123 | P50: 11.33 | Q50: 25.6 | R50: 12.87 | S50: 57.786 | T50: 5.958 | U50: 73.128 | V50: 93.13 | W50: 69.1 | X50: 126.95 | Y50: 130.833 | AA50: 0.03109917355 | AB50: 0.01776592219 | AC50: 0.01324494079 | AD50: 0.00138851522 | AE50: 0.008975180687 | AF50: 0.01551773377 | AG50: 0.007279733289 | AH50: 0.0007342529307 | AI50: -0.01051446903 | AJ50: -0.001079214437 | AK50: 0.01183996803 | AL50: 0.01870878622 | AM50: 0.009537525444 | AN50: 0.06649848257 | AO50: 0.04484199297 | AP50: 0.02981227512 | AQ50: 0.0456322086 | AR50: 0.00419648757 | AS50: 0.006096694744 | AT50: 0.01388084948 | AU50: 0.01077378017
A51: 2016-07-11 | B51: 29 | C51: 7 | D51: 2016 | E51: 123.592 | F51: 19.303 | G51: 92.027 | H51: 70.53 | I51: 15.085 | J51: 146.495 | K51: 124.687 | L51: 95.3 | M51: 79.737 | N51: 9.271 | O51: 14.945 | P51: 11.12 | Q51: 25.357 | R51: 12.042 | S51: 55.252 | T51: 5.783 | U51: 69.866 | V51: 92.74 | W51: 68.68 | X51: 125.2 | Y51: 129.431 | AA51: 0.02119527241 | AB51: 0.06656097626 | AC51: 0.02973344015 | AD51: 0.01976009311 | AE51: 0.01860083068 | AF51: 0.009885211297 | AG51: 0.01545318513 | AH51: 0.01586495465 | AI51: 0.01004564874 | AJ51: 0.009319529958 | AK51: 0.007387541993 | AL51: 0.02218676205 | AM51: 0.0237042224 | AN51: 0.01996208196 | AO51: 0.02310569461 | AP51: 0.009730745764 | AQ51: 0.02107472683 | AR51: 0.01981987998 | AS51: 0.02181455085 | AT51: 0.02220967527 | AU51: 0.02701681868
A52: 2016-07-08 | B52: 28 | C52: 7 | D52: 2016 | E52: 121 | F52: 18.06 | G52: 89.331 | H52: 69.15 | I52: 14.807 | J52: 145.054 | K52: 122.775 | L52: 93.8 | M52: 78.94 | N52: 9.185 | O52: 14.835 | P52: 10.876 | Q52: 24.763 | R52: 11.804 | S52: 53.99 | T52: 5.727 | U52: 68.409 | V52: 90.92 | W52: 67.198 | X52: 122.45 | Y52: 125.981 | AA52: 0.03148213827 | AB52: 0.06048620393 | AC52: 0.01387603916 | AD52: 0.02489147546 | AE52: 0.01407851321 | AF52: 0.01724492372 | AG52: 0.01914358977 | AH52: -0.01250148711 | AI52: 0.01654091421 | AJ52: 0.01624445775 | AK52: 0.01350500659 | AL52: 0.03423134188 | AM52: 0.01517739142 | AN52: 0.03798799309 | AO52: 0.03260585506 | AP52: 0.05601895296 | AQ52: 0.03944702477 | AR52: 0.02562243321 | AS52: 0.01889824754 | AT52: 0.02187909772 | AU52: -0.001039299082 | AX52: 121 | AY52: 18.06 | AZ52: 89.331 | BA52: 69.15 | BB52: 14.807 | BC52: 145.054 | BD52: 122.775 | BE52: 93.8 | BF52: 78.94 | BG52: 9.185 | BH52: 14.835 | BI52: 10.876 | BJ52: 24.763 | BK52: 11.804 | BL52: 53.99 | BM52: 5.727 | BN52: 68.409 | BO52: 90.92 | BP52: 67.198 | BQ52: 122.45 | BR52: 125.981 | BU52: -0.03858478308 | BV52: -0.04588556494 | BW52: -0.02713299803 | BX52: 0.02271445474 | BY52: 0.03694061044 | BZ52: -0.04822732537 | CA52: -0.04322253182 | CB52: -0.03509131981 | CC52: 0.01083886838 | CD52: 0.009517109519 | CE52: -0.02562109869 | CF52: -0.00769375475 | CG52: -0.02263886037 | CH52: -0.06064455504 | CI52: -0.01638658167 | CJ52: -0.01936771589 | CK52: 0.006614527625 | CL52: 0.002532901525 | CM52: -0.03080142101 | CN52: -0.03884372217 | CO52: -0.01502377895
A53: 2016-07-07 | B53: 28 | C53: 7 | D53: 2016 | E53: 117.25 | F53: 17 | G53: 88.1 | H53: 67.45 | I53: 14.6 | J53: 142.574 | K53: 120.447 | L53: 94.98 | M53: 77.645 | N53: 9.037 | O53: 14.636 | P53: 10.51 | Q53: 24.39 | R53: 11.364 | S53: 52.258 | T53: 5.415 | U53: 65.763 | V53: 88.62 | W53: 65.94 | X53: 119.8 | Y53: 126.112 | AA53: -0.01427712598 | AB53: -0.00580663821 | AC53: -0.005670611287 | AD53: 0.003311630105 | AE53: 0.03839913293 | AF53: 0.002626645797 | AG53: -0.01853252957 | AH53: -0.01057767625 | AI53: 0.009277236548 | AJ53: 0.01448977647 | AK53: 0.004382368011 | AL53: 0.001047170356 | AM53: 0.008481954751 | AN53: -0.02725626587 | AO53: -0.005933603222 | AP53: -0.00258207447 | AQ53: 0.002298764095 | AR53: 0.003957266739 | AS53: -0.005444659548 | AT53: 0.00502093105 | AU53: -0.01292048353
A54: 2016-07-06 | B54: 28 | C54: 7 | D54: 2016 | E54: 118.936 | F54: 17.099 | G54: 88.601 | H54: 67.227 | I54: 14.05 | J54: 142.2 | K54: 122.7 | L54: 95.99 | M54: 76.928 | N54: 8.907 | O54: 14.572 | P54: 10.499 | Q54: 24.184 | R54: 11.678 | S54: 52.569 | T54: 5.429 | U54: 65.612 | V54: 88.27 | W54: 66.3 | X54: 119.2 | Y54: 127.752 | AA54: -0.001478693642 | AB54: 0.002869778537 | AC54: -0.01288488314 | AD54: 0.003382333158 | AE54: -0.03152625365 | AF54: -0.02911491474 | AG54: -0.005769793748 | AH54: -0.001238944661 | AI54: -0.01188828805 | AJ54: -0.01360413488 | AK54: -0.01721306574 | AL54: -0.03242412975 | AM54: -0.01989667306 | AN54: -0.03805742993 | AO54: 0.006124979794 | AP54: -0.02653736242 | AQ54: 0.008633147145 | AR54: -0.02051986558 | AS54: -0.01497033946 | AT54: -0.0232182901 | AU54: 0.02498227819
A55: 2016-07-05 | B55: 28 | C55: 7 | D55: 2016 | E55: 119.112 | F55: 17.05 | G55: 89.75 | H55: 67 | I55: 14.5 | J55: 146.401 | K55: 123.41 | L55: 96.109 | M55: 77.848 | N55: 9.029 | O55: 14.825 | P55: 10.845 | Q55: 24.67 | R55: 12.131 | S55: 52.248 | T55: 5.575 | U55: 65.048 | V55: 90.1 | W55: 67.3 | X55: 122 | Y55: 124.6 | AA55: -0.02480072389 | AB55: -0.07402418146 | AC55: -0.02552112993 | AD55: -0.0030103896 | AE55: -0.02344709377 | AF55: -0.03030106765 | AG55: -0.02512534153 | AH55: -0.01019661738 | AI55: -0.006236294326 | AJ55: -0.02741992747 | AK55: -0.02036458292 | AL55: -0.02683809022 | AM55: -0.01835503466 | AN55: -0.02338287315 | AO55: -0.04074849618 | AP55: -0.0298635144 | AQ55: -0.02891022833 | AR55: -0.004982019715 | AS55: -0.02494626795 | AT55: -0.03345063035 | AU55: -0.02520925474
A56: 2016-07-04 | B56: 28 | C56: 7 | D56: 2016 | E56: 122.103 | F56: 18.36 | G56: 92.07 | H56: 67.202 | I56: 14.844 | J56: 150.905 | K56: 126.55 | L56: 97.094 | M56: 78.335 | N56: 9.28 | O56: 15.13 | P56: 11.14 | Q56: 25.127 | R56: 12.418 | S56: 54.421 | T56: 5.744 | U56: 66.956 | V56: 90.55 | W56: 69 | X56: 126.15 | Y56: 127.781 | AA56: -0.02951037784 | AB56: -0.02941072774 | AC56: 0.003067587172 | AD56: -0.005860594375 | AE56: 0.03943631171 | AF56: -0.008682912506 | AG56: -0.01293845675 | AH56: -0.0005765944024 | AI56: 0.00314529999 | AJ56: 0.01980693765 | AK56: -0.005930824633 | AL56: 0.01628995298 | AM56: -0.008046498812 | AN56: -0.009935979178 | AO56: -0.008435317119 | AP56: -0.01640371756 | AQ56: -0.01485418005 | AR56: -0.00154491313 | AS56: -0.004338401599 | AT56: -0.009074830476 | AU56: -0.0008370197892
A57: 2016-07-01 | B57: 27 | C57: 7 | D57: 2016 | E57: 125.76 | F57: 18.908 | G57: 91.788 | H57: 67.597 | I57: 14.27 | J57: 152.221 | K57: 128.198 | L57: 97.15 | M57: 78.089 | N57: 9.098 | O57: 15.22 | P57: 10.96 | Q57: 25.33 | R57: 12.542 | S57: 54.882 | T57: 5.839 | U57: 67.958 | V57: 90.69 | W57: 69.3 | X57: 127.3 | Y57: 127.888 | AA57: 0.0303624807 | AB57: 0.04428109421 | AC57: -0.009131493138 | AD57: -0.001227111932 | AE57: -0.005938882084 | AF57: 0.008053575442 | AG57: 0.01149343255 | AH57: 0.0004839050199 | AI57: 0.002320558488 | AJ57: 0.003192604682 | AK57: -0.006940380115 | AL57: 0.02606673144 | AM57: 0.001778129482 | AN57: 0.003434371013 | AO57: 0.01268903632 | AP57: -0.01714958407 | AQ57: 0.02237988831 | AR57: 0.007637427129 | AS57: 0.0007217611284 | AT57: -0.00392003638 | AU57: -0.008657523478 | AX57: 125.76 | AY57: 18.908 | AZ57: 91.788 | BA57: 67.597 | BB57: 14.27 | BC57: 152.221 | BD57: 128.198 | BE57: 97.15 | BF57: 78.089 | BG57: 9.098 | BH57: 15.22 | BI57: 10.96 | BJ57: 25.33 | BK57: 12.542 | BL57: 54.882 | BM57: 5.839 | BN57: 67.958 | BO57: 90.69 | BP57: 69.3 | BQ57: 127.3 | BR57: 127.888 | BU57: -0.01374103592 | BV57: 0.08202354844 | BW57: 0.0196718998 | BX57: 0.006783611814 | BY57: 0.1333111746 | BZ57: 0.01645299038 | CA57: 0.02667920991 | CB57: 0.03936483059 | CC57: 0.06083594151 | CD57: 0.06305943673 | CE57: 0.08355302282 | CF57: -0.0009119927673 | CG57: 0.0361366463 | CH57: -0.06833353548 | CI57: -0.002911104272 | CJ57: -0.06545863204 | CK57: -0.006760696538 | CL57: 0.03420958273 | CM57: 0.03823995327 | CN57: 0.00393546356 | CO57: 0.0653311952
A58: 2016-06-30 | B58: 27 | C58: 6 | D58: 2016 | E58: 121.999 | F58: 18.089 | G58: 92.63 | H58: 67.68 | I58: 14.355 | J58: 151 | K58: 126.733 | L58: 97.103 | M58: 77.908 | N58: 9.069 | O58: 15.326 | P58: 10.678 | Q58: 25.285 | R58: 12.499 | S58: 54.19 | T58: 5.94 | U58: 66.454 | V58: 90 | W58: 69.25 | X58: 127.8 | Y58: 129 | AA58: -0.002464194715 | AB58: 0.00654467117 | AC58: 0.01885306208 | AD58: 0.0008869180182 | AE58: 0.08017623569 | AF58: 0.00911425662 | AG58: 0.01448903321 | AH58: 0.01685546933 | AI58: 0.001772890661 | AJ58: 0.0353512657 | AK58: 0.01996837247 | AL58: 0.01490734277 | AM58: 0.01582557494 | AN58: -0.01271978355 | AO58: 0.005570014123 | AP58: 0.001684920365 | AQ58: 0.00382951604 | AR58: 0.009938108706 | AS58: 0.02368625993 | AT58: 0.006279455485 | AU58: 0.02631214037
A59: 2016-06-29 | B59: 27 | C59: 6 | D59: 2016 | E59: 122.3 | F59: 17.971 | G59: 90.9 | H59: 67.62 | I59: 13.249 | J59: 149.63 | K59: 124.91 | L59: 95.48 | M59: 77.77 | N59: 8.754 | O59: 15.023 | P59: 10.52 | Q59: 24.888 | R59: 12.659 | S59: 53.889 | T59: 5.93 | U59: 66.2 | V59: 89.11 | W59: 67.629 | X59: 127 | Y59: 125.65 | AA59: -0.0214606239 | AB59: 0.01553374849 | AC59: 0.0155213759 | AD59: 0.01764966708 | AE59: 0.03447690696 | AF59: 0.02592976062 | AG59: 0.01398736955 | AH59: 0.007674957508 | AI59: 0.01607293189 | AJ59: 0.02932693513 | AK59: 0.03405535068 | AL59: 0.001426873013 | AM59: 0.0237036691 | AN59: -0.004413974219 | AO59: -0.001316655885 | AP59: -0.009900240273 | AQ59: 0.0008462794436 | AR59: -0.0003366058938 | AS59: 0.02338264278 | AT59: 0.02390552085 | AU59: 0.02212111075
A60: 2016-06-28 | B60: 27 | C60: 6 | D60: 2016 | E60: 124.953 | F60: 17.694 | G60: 89.5 | H60: 66.437 | I60: 12.8 | J60: 145.8 | K60: 123.175 | L60: 94.75 | M60: 76.53 | N60: 8.501 | O60: 14.52 | P60: 10.505 | Q60: 24.305 | R60: 12.715 | S60: 53.96 | T60: 5.989 | U60: 66.144 | V60: 89.14 | W60: 66.066 | X60: 124 | Y60: 122.901 | AA60: 0.032147121 | AB60: 0.03221917071 | AC60: 0.02019130617 | AD60: 0.01710896629 | AE60: 0.05047126393 | AF60: 0.006399031021 | AG60: 0.01211284601 | AH60: -0.00389740842 | AI60: 0.0358634907 | AJ60: 0.02863815805 | AK60: 0.03554153921 | AL60: 0.03437762881 | AM60: 0.01651078741 | AN60: 0.008450865759 | AO60: 0.005388845151 | AP60: 0.008215319908 | AQ60: -0.0008462794436 | AR60: 0.02452996035 | AS60: 0.01396193879 | AT60: 0.03154060342 | AU60: 0.02388741045
A61: 2016-06-27 | B61: 27 | C61: 6 | D61: 2016 | E61: 121 | F61: 17.133 | G61: 87.711 | H61: 65.31 | I61: 12.17 | J61: 144.87 | K61: 121.692 | L61: 95.12 | M61: 73.834 | N61: 8.261 | O61: 14.013 | P61: 10.15 | Q61: 23.907 | R61: 12.608 | S61: 53.67 | T61: 5.94 | U61: 66.2 | V61: 86.98 | W61: 65.15 | X61: 120.15 | Y61: 120 | AA61: -0.052325819 | AB61: -0.01655513614 | AC61: -0.02576235122 | AD61: -0.02763482764 | AE61: -0.02587434988 | AF61: -0.03304363332 | AG61: -0.02540347141 | AH61: 0.01824790715 | AI61: 0.004806069775 | AJ61: -0.03344952684 | AK61: 0.0009281405728 | AL61: -0.0776905688 | AM61: -0.02168151463 | AN61: -0.06308501448 | AO61: -0.02524234399 | AP61: -0.04830904797 | AQ61: -0.03297010089 | AR61: -0.007559307558 | AS61: -0.02351264935 | AT61: -0.05387007982 | AU61: 0.001668057101
A62: 2016-06-24 | B62: 26 | C62: 6 | D62: 2016 | E62: 127.5 | F62: 17.419 | G62: 90 | H62: 67.14 | I62: 12.489 | J62: 149.737 | K62: 124.823 | L62: 93.4 | M62: 73.48 | N62: 8.542 | O62: 14 | P62: 10.97 | Q62: 24.431 | R62: 13.429 | S62: 55.042 | T62: 6.234 | U62: 68.419 | V62: 87.64 | W62: 66.7 | X62: 126.8 | Y62: 119.8 | AA62: -0.06122421135 | AB62: -0.1220921388 | AC62: -0.07829759611 | AD62: -0.05458916772 | AE62: -0.09619056723 | AF62: -0.07314486831 | AG62: -0.05476817897 | AH62: 0.00418433098 | AI62: -0.03213988472 | AJ62: -0.07962837911 | AK62: -0.06136384432 | AL62: -0.0905753618 | AM62: -0.07894955145 | AN62: -0.1498543667 | AO62: -0.088728287 | AP62: -0.1370941754 | AQ62: -0.07876581901 | AR62: -0.06118826674 | AS62: -0.07367952313 | AT62: -0.1096886751 | AU62: -0.02851282369 | AX62: 127.5 | AY62: 17.419 | AZ62: 90 | BA62: 67.14 | BB62: 12.489 | BC62: 149.737 | BD62: 124.823 | BE62: 93.4 | BF62: 73.48 | BG62: 8.542 | BH62: 14 | BI62: 10.97 | BJ62: 24.431 | BK62: 13.429 | BL62: 55.042 | BM62: 6.234 | BN62: 68.419 | BO62: 87.64 | BP62: 66.7 | BQ62: 126.8 | BR62: 119.8 | BU62: -0.01627005909 | BV62: -0.06015511207 | BW62: -0.02488771551 | BX62: -0.01124131536 | BY62: 0.0008010253552 | BZ62: -0.009233504077 | CA62: 0.0001842778916 | CB62: 0.03331101501 | CC62: 0.01826597513 | CD62: 0.00539970792 | CE62: -0.02106233773 | CF62: -0.03176009296 | CG62: -0.03570228431 | CH62: -0.02362227651 | CI62: -0.02053548868 | CJ62: -0.0494468683 | CK62: -0.01340021939 | CL62: -0.005007977687 | CM62: -0.01192264496 | CN62: -0.02761209838 | CO62: 0.01851764356
A63: 2016-06-23 | B63: 26 | C63: 6 | D63: 2016 | E63: 135.55 | F63: 19.681 | G63: 97.33 | H63: 70.907 | I63: 13.75 | J63: 161.1 | K63: 131.85 | L63: 93.01 | M63: 75.88 | N63: 9.25 | O63: 14.886 | P63: 12.01 | Q63: 26.438 | R63: 15.6 | S63: 60.149 | T63: 7.15 | U63: 74.026 | V63: 93.17 | W63: 71.8 | X63: 141.5 | Y63: 123.265 | AA63: 0.03177963607 | AB63: 0.04070344389 | AC63: 0.01195861344 | AD63: 0.01572082296 | AE63: 0.03244806305 | AF63: 0.02099477151 | AG63: 0.02992375317 | AH63: 0.01493737188 | AI63: 0.005616692996 | AJ63: 0.02252199711 | AK63: 0.02834363329 | AL63: 0.02393103755 | AM63: 0.02052079116 | AN63: 0.03662408731 | AO63: 0.02044058033 | AP63: 0.04330175657 | AQ63: 0.02303915632 | AR63: 0.01437784889 | AS63: 0.02040169249 | AT63: 0.02359780575 | AU63: -0.001524007461
A64: 2016-06-22 | B64: 26 | C64: 6 | D64: 2016 | E64: 131.31 | F64: 18.896 | G64: 96.173 | H64: 69.801 | I64: 13.311 | J64: 157.753 | K64: 127.963 | L64: 91.631 | M64: 75.455 | N64: 9.044 | O64: 14.47 | P64: 11.726 | Q64: 25.901 | R64: 15.039 | S64: 58.932 | T64: 6.847 | U64: 72.34 | V64: 91.84 | W64: 70.35 | X64: 138.2 | Y64: 123.453 | AA64: -0.008191927422 | AB64: -0.003592185585 | AC64: 0.003364183505 | AD64: -0.005685729603 | AE64: 0.01224505096 | AF64: 0.005128721533 | AG64: -0.003253456251 | AH64: 0.002195990198 | AI64: 0.01398642864 | AJ64: 0.007435803641 | AK64: -0.005032237552 | AL64: 0.0001705756934 | AM64: 3.860929326e-05 | AN64: 0.01581696402 | AO64: 0.004114882275 | AP64: 0.0040977666 | AQ64: -0.006613416223 | AR64: 0.001089443402 | AS64: 0.006560206071 | AT64: 0.01274366418 | AU64: 0.002782252173
A65: 2016-06-21 | B65: 26 | C65: 6 | D65: 2016 | E65: 132.3901 | F65: 18.964 | G65: 95.85 | H65: 70.199 | I65: 13.149 | J65: 156.946 | K65: 128.38 | L65: 91.43 | M65: 74.407 | N65: 8.977 | O65: 14.543 | P65: 11.724 | Q65: 25.9 | R65: 14.803 | S65: 58.69 | T65: 6.819 | U65: 72.82 | V65: 91.74 | W65: 69.89 | X65: 136.45 | Y65: 123.11 | AA65: -0.02164336298 | AB65: -0.002001791745 | AC65: 0.008276198306 | AD65: 0.01108703272 | AE65: 0.01001269495 | AF65: 0.007534076326 | AG65: 0.006588097305 | AH65: 0.006033697203 | AI65: 0.002866739065 | AJ65: 0.01991402929 | AK65: -0.002197954041 | AL65: 0.006331842837 | AM65: -0.01292765957 | AN65: 0.02213053913 | AO65: 0.001125185519 | AP65: 0.01417835005 | AQ65: 0.001387944348 | AR65: 0.0144930073 | AS65: 0.005595824918 | AT65: 0.00661767121 | AU65: 0.01034493392
A66: 2016-06-20 | B66: 26 | C66: 6 | D66: 2016 | E66: 135.2867 | F66: 19.002 | G66: 95.06 | H66: 69.425 | I66: 13.018 | J66: 155.768 | K66: 127.537 | L66: 90.88 | M66: 74.194 | N66: 8.8 | O66: 14.575 | P66: 11.65 | Q66: 26.237 | R66: 14.479 | S66: 58.624 | T66: 6.723 | U66: 72.719 | V66: 90.42 | W66: 69.5 | X66: 135.55 | Y66: 121.843 | AA66: 0.04300980658 | AB66: 0.02682756022 | AC66: 0.02981088535 | AD66: 0.02222572628 | AE66: 0.04228578362 | AF66: 0.03025379486 | AG66: 0.02169406264 | AH66: 0.005959624746 | AI66: 0.02793599915 | AJ66: 0.03515625698 | AK66: 0.01918806489 | AL66: 0.02838181276 | AM66: 0.03561552625 | AN66: 0.05166049969 | AO66: 0.04251215019 | AP66: 0.02606943384 | AQ66: 0.04755191518 | AR66: 0.02621998945 | AS66: 0.02919915469 | AT66: 0.03911743557 | AU66: 0.03542728862
A67: 2016-06-17 | B67: 25 | C67: 6 | D67: 2016 | E67: 129.5914 | F67: 18.499 | G67: 92.268 | H67: 67.899 | I67: 12.479 | J67: 151.126 | K67: 124.8 | L67: 90.34 | M67: 72.15 | N67: 8.496 | O67: 14.298 | P67: 11.324 | Q67: 25.319 | R67: 13.75 | S67: 56.184 | T67: 6.55 | U67: 69.342 | V67: 88.08 | W67: 67.5 | X67: 130.35 | Y67: 117.602 | AA67: 0.02103669559 | AB67: 0.02108676406 | AC67: 0.00618591176 | AD67: 0.008118404059 | AE67: 0.0373921112 | AF67: 0.006918788597 | AG67: -0.003615251966 | AH67: -0.001924204648 | AI67: -0.005184044788 | AJ67: 0.02418367903 | AK67: -0.01251058853 | AL67: 0.01683106654 | AM67: -0.001815168993 | AN67: 0.04972514658 | AO67: 0.006858149469 | AP67: 0.03101023674 | AQ67: 0.003192191238 | AR67: 0.00352573581 | AS67: -0.01254322602 | AT67: 0.007701231747 | AU67: 0.01380206163 | AX67: 129.5914 | AY67: 18.499 | AZ67: 92.268 | BA67: 67.899 | BB67: 12.479 | BC67: 151.126 | BD67: 124.8 | BE67: 90.34 | BF67: 72.15 | BG67: 8.496 | BH67: 14.298 | BI67: 11.324 | BJ67: 25.319 | BK67: 13.75 | BL67: 56.184 | BM67: 6.55 | BN67: 69.342 | BO67: 88.08 | BP67: 67.5 | BQ67: 130.35 | BR67: 117.602 | BU67: -0.02173649343 | BV67: 0.005529068726 | BW67: -0.007364328329 | BX67: -0.02105831844 | BY67: -0.03007448728 | BZ67: -0.03144716602 | CA67: -0.02800170311 | CB67: -0.03865005599 | CC67: -0.02098410673 | CD67: 0.003891743812 | CE67: -0.03078437492 | CF67: -0.003174046043 | CG67: -0.02075549893 | CH67: -0.0180185055 | CI67: -0.01748472105 | CJ67: -0.03613315648 | CK67: -0.01939478968 | CL67: 0.0009086779362 | CM67: -0.00148038517 | CN67: -0.03319806941 | CO67: -0.00684713622
A68: 2016-06-16 | B68: 25 | C68: 6 | D68: 2016 | E68: 126.8937 | F68: 18.113 | G68: 91.699 | H68: 67.35 | I68: 12.021 | J68: 150.084 | K68: 125.252 | L68: 90.514 | M68: 72.525 | N68: 8.293 | O68: 14.478 | P68: 11.135 | Q68: 25.365 | R68: 13.083 | S68: 55.8 | T68: 6.35 | U68: 69.121 | V68: 87.77 | W68: 68.352 | X68: 129.35 | Y68: 115.99 | AA68: -0.01756129736 | AB68: 0.02024439659 | AC68: -0.00175420482 | AD68: -0.005183277062 | AE68: -0.007789233946 | AF68: -0.005521627057 | AG68: -0.01185737589 | AH68: -0.00842717068 | AI68: -0.003784625195 | AJ68: -0.01139032757 | AK68: 0.003251585417 | AL68: 0.004320049919 | AM68: 0.002526350375 | AN68: -0.01937839763 | AO68: 1.792130754e-05 | AP68: -0.02026569746 | AQ68: 0.001302912918 | AR68: -0.003752776338 | AS68: 0.0044280948 | AT68: 0 | AU68: 0.004753066028
A69: 2016-06-15 | B69: 25 | C69: 6 | D69: 2016 | E69: 129.1418 | F69: 17.75 | G69: 91.86 | H69: 67.7 | I69: 12.115 | J69: 150.915 | K69: 126.746 | L69: 91.28 | M69: 72.8 | N69: 8.388 | O69: 14.431 | P69: 11.087 | Q69: 25.301 | R69: 13.339 | S69: 55.799 | T69: 6.48 | U69: 69.031 | V69: 88.1 | W69: 68.05 | X69: 129.35 | Y69: 115.44 | AA69: 0.01245589472 | AB69: 0.02020270732 | AC69: 0.01879072925 | AD69: 0.001907282996 | AE69: 0.0233831113 | AF69: 0.005754856993 | AG69: 0.009273930815 | AH69: 0.01634673025 | AI69: -0.0001098840724 | AJ69: 0.03493805136 | AK69: 0.00653506219 | AL69: 0.006515270536 | AM69: 0.009172008474 | AN69: 0.01465061698 | AO69: 0.01111913493 | AP69: 0.004640379557 | AQ69: 0.01699103688 | AR69: 0.01072702287 | AS69: 0.02213893258 | AT69: 0.00620397492 | AU69: 0.002758478862
A70: 2016-06-14 | B70: 25 | C70: 6 | D70: 2016 | E70: 127.5432 | F70: 17.395 | G70: 90.15 | H70: 67.571 | I70: 11.835 | J70: 150.049 | K70: 125.576 | L70: 89.8 | M70: 72.808 | N70: 8.1 | O70: 14.337 | P70: 11.015 | Q70: 25.07 | R70: 13.145 | S70: 55.182 | T70: 6.45 | U70: 67.868 | V70: 87.16 | W70: 66.56 | X70: 128.55 | Y70: 115.122 | AA70: -0.008331771169 | AB70: -0.01324900883 | AC70: -0.009384556868 | AD70: -0.006931567735 | AE70: -0.04663522965 | AF70: -0.01541549363 | AG70: 0.0006053944011 | AH70: -0.000890472009 | AI70: 0.003232887443 | AJ70: -0.02727884685 | AK70: -0.01509096893 | AL70: -0.02554474546 | AM70: -0.009172008474 | AN70: -0.0251656473 | AO70: -0.01785280628 | AP70: -0.01064085913 | AQ70: -0.01523666319 | AR70: -0.01027289025 | AS70: -0.003299838003 | AT70: -0.01773369526 | AU70: -0.01513822012
A71: 2016-06-13 | B71: 25 | C71: 6 | D71: 2016 | E71: 128.6103 | F71: 17.627 | G71: 91 | H71: 68.041 | I71: 12.4 | J71: 152.38 | K71: 125.5 | L71: 89.88 | M71: 72.573 | N71: 8.324 | O71: 14.555 | P71: 11.3 | Q71: 25.301 | R71: 13.48 | S71: 56.176 | T71: 6.519 | U71: 68.91 | V71: 88.06 | W71: 66.78 | X71: 130.85 | Y71: 116.878 | AA71: -0.02933601522 | AB71: -0.04275579041 | AC71: -0.02120220765 | AD71: -0.0189691607 | AE71: -0.0364252462 | AF71: -0.02318369093 | AG71: -0.02240840048 | AH71: -0.0437549389 | AI71: -0.01513844012 | AJ71: -0.01656081216 | AK71: -0.01296946507 | AL71: -0.005295687575 | AM71: -0.02146668031 | AN71: -0.03785022413 | AO71: -0.01762712048 | AP71: -0.04087721619 | AQ71: -0.02564426753 | AR71: 0.0006815858494 | AS71: -0.01220434853 | AT71: -0.02936958081 | AU71: -0.01302252261
A72: 2016-06-10 | B72: 24 | C72: 6 | D72: 2016 | E72: 132.4391 | F72: 18.397 | G72: 92.95 | H72: 69.344 | I72: 12.86 | J72: 155.954 | K72: 128.344 | L72: 93.9 | M72: 73.68 | N72: 8.463 | O72: 14.745 | P72: 11.36 | Q72: 25.85 | R72: 14 | S72: 57.175 | T72: 6.791 | U72: 70.7 | V72: 88 | W72: 67.6 | X72: 134.75 | Y72: 118.41 | AA72: =LN(E72/E73) -> -0.01251208895 | AB72: =LN(F72/F73) -> -0.05468212103 | AC72: =LN(G72/G73) -> -0.02391822763 | AD72: =LN(H72/H73) -> -0.02475451485 | AE72: =LN(I72/I73) -> -0.03070567789 | AF72: =LN(J72/J73) -> -0.02292160545 | AG72: =LN(K72/K73) -> -0.01918461147 | AH72: =LN(L72/L73) -> -0.003285332206 | AI72: =LN(M72/M73) -> -0.03307873769 | AJ72: =LN(N72/N73) -> -0.03369277806 | AK72: =LN(O72/O73) -> -0.01440908313 | AL72: =LN(P72/P73) -> -0.05347401348 | AM72: =LN(Q72/Q73) -> -0.0256639763 | AN72: =LN(R72/R73) -> -0.05665034829 | AO72: =LN(S72/S73) -> -0.02856918465 | AP72: =LN(T72/T73) -> -0.04449657792 | AQ72: =LN(U72/U73) -> -0.01958073175 | AR72: =LN(V72/V73) -> -0.02502515153 | AS72: =LN(W72/W73) -> -0.0235373778 | AT72: =LN(X72/X73) -> -0.03714920986 | AU72: =LN(Y72/Y73) -> -0.009163193029 | AX72: 132.4391 | AY72: 18.397 | AZ72: 92.95 | BA72: 69.344 | BB72: 12.86 | BC72: 155.954 | BD72: 128.344 | BE72: 93.9 | BF72: 73.68 | BG72: 8.463 | BH72: 14.745 | BI72: 11.36 | BJ72: 25.85 | BK72: 14 | BL72: 57.175 | BM72: 6.791 | BN72: 70.7 | BO72: 88 | BP72: 67.6 | BQ72: 134.75 | BR72: 118.41 | BU72: -0.02562125992 | BV72: -0.06903997951 | BW72: -0.02601686429 | BX72: -0.03033806494 | BY72: 0.05424435809 | BZ72: -0.03307233108 | CA72: -0.0299874731 | CB72: 0.005553196671 | CC72: -0.0329474231 | CD72: 0.0227306958 | CE72: -0.06262927344 | CF72: -0.09081867402 | CG72: -0.009279826321 | CH72: -0.07424571777 | CI72: -0.03763862076 | CJ72: -0.08561148728 | CK72: -0.02237855626 | CL72: -0.01511250145 | CM72: -0.01322576222 | CN72: -0.05697286787 | CO72: 0.01454663905
A73: 2016-06-09 | B73: 24 | C73: 6 | D73: 2016 | E73: 134.1066 | F73: 19.431 | G73: 95.2 | H73: 71.082 | I73: 13.261 | J73: 159.57 | K73: 130.83 | L73: 94.209 | M73: 76.158 | N73: 8.753 | O73: 14.959 | P73: 11.984 | Q73: 26.522 | R73: 14.816 | S73: 58.832 | T73: 7.1 | U73: 72.098 | V73: 90.23 | W73: 69.21 | X73: 139.85 | Y73: 119.5 | AA73: -0.02359157157 | AB73: -0.0186606822 | AC73: -0.01045981083 | AD73: -0.008447380498 | AE73: 0.00332351692 | AF73: -0.006427877421 | AG73: -0.009713429761 | AH73: -0.001071510136 | AI73: -0.00879807491 | AJ73: -0.005127924176 | AK73: -0.03584942716 | AL73: -0.01400362611 | AM73: 0.001849231587 | AN73: -0.007664933647 | AO73: -0.01353995666 | AP73: -0.02476131514 | AQ73: -0.01436278038 | AR73: -0.01550589158 | AS73: -0.01420295018 | AT73: -0.02192449912 | AU73: -0.001672241192
A74: 2016-06-08 | B74: 24 | C74: 6 | D74: 2016 | E74: 137.308 | F74: 19.797 | G74: 96.201 | H74: 71.685 | I74: 13.217 | J74: 160.599 | K74: 132.107 | L74: 94.31 | M74: 76.831 | N74: 8.798 | O74: 15.505 | P74: 12.153 | Q74: 26.473 | R74: 14.93 | S74: 59.634 | T74: 7.278 | U74: 73.141 | V74: 91.64 | W74: 70.2 | X74: 142.95 | Y74: 119.7 | AA74: -0.01320660749 | AB74: -0.007147201755 | AC74: -0.009507574683 | AD74: -0.009026585383 | AE74: 0.02948390151 | AF74: -0.01053589968 | AG74: -0.006548940345 | AH74: -0.008762262448 | AI74: -0.003339421889 | AJ74: 0.02570841591 | AK74: -0.00873311914 | AL74: -0.01291711878 | AM74: -0.001962338831 | AN74: -0.02448021685 | AO74: -0.00854905858 | AP74: -0.01824420923 | AQ74: -0.01185166841 | AR74: -0.003594579329 | AS74: -0.007662872746 | AT74: -0.005232874317 | AU74: 0.003942598932
A75: 2016-06-07 | B75: 24 | C75: 6 | D75: 2016 | E75: 139.1334 | F75: 19.939 | G75: 97.12 | H75: 72.335 | I75: 12.833 | J75: 162.3 | K75: 132.975 | L75: 95.14 | M75: 77.088 | N75: 8.5747 | O75: 15.641 | P75: 12.311 | Q75: 26.525 | R75: 15.3 | S75: 60.146 | T75: 7.412 | U75: 74.013 | V75: 91.97 | W75: 70.74 | X75: 143.7 | Y75: 119.229 | AA75: 0.01010454008 | AB75: 0.01786258753 | AC75: 0.01472902885 | AD75: 0.01008734169 | AE75: 0.02237899713 | AF75: 0.004019156573 | AG75: 0.005565373398 | AH75: 0.01824403593 | AI75: 0.009737479909 | AJ75: 0.01927563404 | AK75: 0.01073447556 | AL75: 0.0127525639 | AM75: 0.01983731216 | AN75: 0.01773809325 | AO75: 0.01083224125 | AP75: 0.008399995198 | AQ75: 0.02177205755 | AR75: 0.03080563772 | AS75: 0.02777836949 | AT75: 0.008034977726 | AU75: 0.01278805997
A76: 2016-06-06 | B76: 24 | C76: 6 | D76: 2016 | E76: 137.7346 | F76: 19.586 | G76: 95.7 | H76: 71.609 | I76: 12.549 | J76: 161.649 | K76: 132.237 | L76: 93.42 | M76: 76.341 | N76: 8.411 | O76: 15.474 | P76: 12.155 | Q76: 26.004 | R76: 15.031 | S76: 59.498 | T76: 7.35 | U76: 72.419 | V76: 89.18 | W76: 68.802 | X76: 142.55 | Y76: 117.714 | AA76: 0.013584468 | AB76: -0.006412562053 | AC76: 0.003139720005 | AD76: 0.0018030741 | AE76: 0.02976362041 | AF76: 0.0027938949 | AG76: -0.0001058649165 | AH76: 0.0004282655312 | AI76: 0.00253133148 | AJ76: 0.01656734809 | AK76: -0.01437211958 | AL76: -0.02317647954 | AM76: -0.003340054934 | AN76: -0.003188312233 | AO76: 0.002187337873 | AP76: -0.006509380186 | AQ76: 0.001644566737 | AR76: -0.001792516725 | AS76: 0.004399069016 | AT76: -0.0007012623008 | AU76: 0.008651414374
A77: 2016-06-03 | B77: 23 | C77: 6 | D77: 2016 | E77: 135.8762 | F77: 19.712 | G77: 95.4 | H77: 71.48 | I77: 12.181 | J77: 161.198 | K77: 132.251 | L77: 93.38 | M77: 76.148 | N77: 8.2728 | O77: 15.698 | P77: 12.44 | Q77: 26.091 | R77: 15.079 | S77: 59.368 | T77: 7.398 | U77: 72.3 | V77: 89.34 | W77: 68.5 | X77: 142.65 | Y77: 116.7 | AA77: -0.02738795456 | AB77: 0.001421464347 | AC77: -0.01054172454 | AD77: -0.009107810114 | AE77: 0.05016620283 | AF77: -0.01717202731 | AG77: -0.01497230564 | AH77: -0.00669205804 | AI77: -0.01204825988 | AJ77: 0.01173329934 | AK77: -0.005083248968 | AL77: -0.004251400139 | AM77: -0.01517687601 | AN77: -0.03997542632 | AO77: -0.02301172155 | AP77: -0.02364365799 | AQ77: -0.02526593942 | AR77: 0.01352285651 | AS77: -0.01707958728 | AT77: -0.01633966476 | AU77: -0.0009335829276 | AX77: =IF($B77<$B76,E77,"") -> 135.8762 | AY77: =IF($B77<$B76,F77,"") -> 19.712 | AZ77: =IF($B77<$B76,G77,"") -> 95.4 | BA77: =IF($B77<$B76,H77,"") -> 71.48 | BB77: =IF($B77<$B76,I77,"") -> 12.181 | BC77: =IF($B77<$B76,J77,"") -> 161.198 | BD77: =IF($B77<$B76,K77,"") -> 132.251 | BE77: =IF($B77<$B76,L77,"") -> 93.38 | BF77: =IF($B77<$B76,M77,"") -> 76.148 | BG77: =IF($B77<$B76,N77,"") -> 8.2728 | BH77: =IF($B77<$B76,O77,"") -> 15.698 | BI77: =IF($B77<$B76,P77,"") -> 12.44 | BJ77: =IF($B77<$B76,Q77,"") -> 26.091 | BK77: =IF($B77<$B76,R77,"") -> 15.079 | BL77: =IF($B77<$B76,S77,"") -> 59.368 | BM77: =IF($B77<$B76,T77,"") -> 7.398 | BN77: =IF($B77<$B76,U77,"") -> 72.3 | BO77: =IF($B77<$B76,V77,"") -> 89.34 | BP77: =IF($B77<$B76,W77,"") -> 68.5 | BQ77: =IF($B77<$B76,X77,"") -> 142.65 | BR77: =IF($B77<$B76,Y77,"") -> 116.7 | BU77: =IFERROR(LN(AX77/SUM(AX81:AX82)),"") -> -0.02584145648 | BV77: =IFERROR(LN(AY77/SUM(AY81:AY82)),"") -> 0.000964344701 | BW77: =IFERROR(LN(AZ77/SUM(AZ81:AZ82)),"") -> -0.02892763691 | BX77: =IFERROR(LN(BA77/SUM(BA81:BA82)),"") -> -0.01784486544 | BY77: =IFERROR(LN(BB77/SUM(BB81:BB82)),"") -> 0.01881141032 | BZ77: =IFERROR(LN(BC77/SUM(BC81:BC82)),"") -> -0.04879075498 | CA77: =IFERROR(LN(BD77/SUM(BD81:BD82)),"") -> -0.009512198933 | CB77: =IFERROR(LN(BE77/SUM(BE81:BE82)),"") -> 0.01372624483 | CC77: =IFERROR(LN(BF77/SUM(BF81:BF82)),"") -> -0.02682098505 | CD77: =IFERROR(LN(BG77/SUM(BG81:BG82)),"") -> -0.0164484491 | CE77: =IFERROR(LN(BH77/SUM(BH81:BH82)),"") -> -0.008436727387 | CF77: =IFERROR(LN(BI77/SUM(BI81:BI82)),"") -> -0.0195819359 | CG77: =IFERROR(LN(BJ77/SUM(BJ81:BJ82)),"") -> -0.01807941683 | CH77: =IFERROR(LN(BK77/SUM(BK81:BK82)),"") -> -0.07214020029 | CI77: =IFERROR(LN(BL77/SUM(BL81:BL82)),"") -> -0.02037450229 | CJ77: =IFERROR(LN(BM77/SUM(BM81:BM82)),"") -> -0.05098911188 | CK77: =IFERROR(LN(BN77/SUM(BN81:BN82)),"") -> -0.03630391956 | CL77: =IFERROR(LN(BO77/SUM(BO81:BO82)),"") -> 0.04592322338 | CM77: =IFERROR(LN(BP77/SUM(BP81:BP82)),"") -> -0.01594518979 | CN77: =IFERROR(LN(BQ77/SUM(BQ81:BQ82)),"") -> -0.02833638105 | CO77: =IFERROR(LN(BR77/SUM(BR81:BR82)),"") -> 0.008104734244
A78: 2016-06-02 | B78: 23 | C78: 6 | D78: 2016 | E78: 139.649 | F78: 19.684 | G78: 96.411 | H78: 72.134 | I78: 11.585 | J78: 163.99 | K78: 134.246 | L78: 94.007 | M78: 77.071 | N78: 8.1763 | O78: 15.778 | P78: 12.493 | Q78: 26.49 | R78: 15.694 | S78: 60.75 | T78: 7.575 | U78: 74.15 | V78: 88.14 | W78: 69.68 | X78: 145 | Y78: 116.809 | AA78: 0.02254674512 | AB78: 0.001677895398 | AC78: -0.004357215175 | AD78: -0.002436931781 | AE78: 0.01172142788 | AF78: -0.0210584908 | AG78: 0.003806230386 | AH78: 0.004125211711 | AI78: -0.006582587089 | AJ78: 0.002081344565 | AK78: -0.00139337536 | AL78: 0.004894693824 | AM78: 0.009101314246 | AN78: -0.002481943553 | AO78: 0.004289020102 | AP78: 0.0005281922743 | AQ78: 0.00202497538 | AR78: 0.0216764035 | AS78: 0.003306263344 | AT78: -0.004815970781 | AU78: 0.006949931114
A79: 2016-06-01 | B79: 23 | C79: 6 | D79: 2016 | E79: 136.5356 | F79: 19.651 | G79: 96.832 | H79: 72.31 | I79: 11.45 | J79: 167.48 | K79: 133.736 | L79: 93.62 | M79: 77.58 | N79: 8.1593 | O79: 15.8 | P79: 12.432 | Q79: 26.25 | R79: 15.733 | S79: 60.49 | T79: 7.571 | U79: 74 | V79: 86.25 | W79: 69.45 | X79: 145.7 | Y79: 116 | AA79: -0.01884779865 | AB79: -0.009067714926 | AC79: 0.002088266155 | AD79: -0.008976325484 | AE79: -0.02586351059 | AF79: -0.004682119435 | AG79: -0.002412294155 | AH79: 0.01387492009 | AI79: -0.01237477841 | AJ79: -0.02372571854 | AK79: -0.003348816828 | AL79: -0.01572196304 | AM79: 0.002441072232 | AN79: -0.01807752438 | AO79: -0.01462227889 | AP79: -0.0135128327 | AQ79: -0.02769403657 | AR79: 0.007214366873 | AS79: -0.0005901785821 | AT79: -0.006839971948 | AU79: 0.01206385588
A80: 2016-05-31 | B80: 23 | C80: 5 | D80: 2016 | E80: 139.1334 | F80: 19.83 | G80: 96.63 | H80: 72.962 | I80: 11.75 | J80: 168.266 | K80: 134.059 | L80: 92.33 | M80: 78.546 | N80: 8.3552 | O80: 15.853 | P80: 12.629 | Q80: 26.186 | R80: 16.02 | S80: 61.381 | T80: 7.674 | U80: 76.078 | V80: 85.63 | W80: 69.491 | X80: 146.7 | Y80: 114.609 | AA80: -0.01142489796 | AB80: 0.01039167886 | AC80: -0.01510830819 | AD80: 0.002057980887 | AE80: -0.02529440346 | AF80: -0.007342263838 | AG80: -0.006616927729 | AH80: -0.003718842797 | AI80: 0.0006240329284 | AJ80: -0.01092724922 | AK80: -0.006852140593 | AL80: -0.003714685165 | AM80: -0.01715139062 | AN80: -0.02527099041 | AO80: -0.006997179361 | AP80: -0.01705467693 | AQ80: 0.006289619163 | AR80: -0.009414842601 | AS80: -0.006797869225 | AT80: -0.00204290163 | AU80: -0.009716274879
A81: 2016-05-30 | B81: 23 | C81: 5 | D81: 2016 | E81: 140.7321 | F81: 19.625 | G81: 98.101 | H81: 72.812 | I81: 12.051 | J81: 169.506 | K81: 134.949 | L81: 92.674 | M81: 78.497 | N81: 8.447 | O81: 15.962 | P81: 12.676 | Q81: 26.639 | R81: 16.43 | S81: 61.812 | T81: 7.806 | U81: 75.601 | V81: 86.44 | W81: 69.965 | X81: 147 | Y81: 115.728 | AA81: 0.00927244956 | AB81: -0.003458978982 | AC81: -0.001008655161 | AD81: 0.0006182210543 | AE81: 0.008081693643 | AF81: 0.001464146393 | AG81: 0.01068309821 | AH81: 0.006137013866 | AI81: 0.003560607405 | AJ81: 0.004389874761 | AK81: 0.008240854362 | AL81: -0.000788581383 | AM81: 0.002706463329 | AN81: 0.01366568437 | AO81: 0.01996765741 | AP81: 0.002693863472 | AQ81: 0.00834146189 | AR81: 0.01292443909 | AS81: 0.005216181954 | AT81: 0.001702128071 | AU81: -0.000259194942
A82: 2016-05-27 | B82: 22 | C82: 5 | D82: 2016 | E82: 139.4332 | F82: 19.693 | G82: 98.2 | H82: 72.767 | I82: 11.954 | J82: 169.258 | K82: 133.515 | L82: 92.107 | M82: 78.218 | N82: 8.41 | O82: 15.831 | P82: 12.686 | Q82: 26.567 | R82: 16.207 | S82: 60.59 | T82: 7.785 | U82: 74.973 | V82: 85.33 | W82: 69.601 | X82: 146.75 | Y82: 115.758 | AA82: 0.0007167289059 | AB82: -0.003801226036 | AC82: 0.007666789407 | AD82: 0.007628622811 | AE82: -0.003674018829 | AF82: 0.003954446204 | AG82: 0.002362072973 | AH82: 0.001162367667 | AI82: 0.008151469068 | AJ82: 0.004731747832 | AK82: 0.02416688384 | AL82: -0.00385508522 | AM82: 0.007898009879 | AN82: 0.004638370665 | AO82: -0.003459926015 | AP82: 0.001671273771 | AQ82: -0.008817532728 | AR82: -0.003743132222 | AS82: 0.0004454951177 | AT82: 0.0003407735593 | AU82: -0.001726251529 | AX82: 139.4332 | AY82: 19.693 | AZ82: 98.2 | BA82: 72.767 | BB82: 11.954 | BC82: 169.258 | BD82: 133.515 | BE82: 92.107 | BF82: 78.218 | BG82: 8.41 | BH82: 15.831 | BI82: 12.686 | BJ82: 26.567 | BK82: 16.207 | BL82: 60.59 | BM82: 7.785 | BN82: 74.973 | BO82: 85.33 | BP82: 69.601 | BQ82: 146.75 | BR82: 115.758 | BU82: 0.03537331742 | BV82: 0.06384477582 | BW82: 0.0430308137 | BX82: 0.04803873219 | BY82: 0.03741541713 | BZ82: 0.05852169031 | CA82: 0.04838242796 | CB82: 0.001162367667 | CC82: 0.04615358572 | CD82: 0.06748220744 | CE82: 0.06201922025 | CF82: 0.02457831989 | CG82: 0.02925659323 | CH82: 0.07300269827 | CI82: 0.04629369555 | CJ82: 0.06569525927 | CK82: 0.04712295404 | CL82: -0.04815936026 | CM82: 0.03768341176 | CN82: 0.06329001068 | CO82: 0.02530053071
A83: 2016-05-26 | B83: 22 | C83: 5 | D83: 2016 | E83: 139.3333 | F83: 19.768 | G83: 97.45 | H83: 72.214 | I83: 11.998 | J83: 168.59 | K83: 133.2 | L83: 92 | M83: 77.583 | N83: 8.3703 | O83: 15.453 | P83: 12.735 | Q83: 26.358 | R83: 16.132 | S83: 60.8 | T83: 7.772 | U83: 75.637 | V83: 85.65 | W83: 69.57 | X83: 146.7 | Y83: 115.958 | AA83: 0.001435719491 | AB83: 0.03322496402 | AC83: 0.003804045095 | AD83: 0.002162582633 | AE83: 0.0305502921 | AF83: 0.009655576267 | AG83: 0.008035198923 | AH83: 0.004903305929 | AI83: 0.0004125465785 | AJ83: 0.01067768992 | AK83: 0.005834628979 | AL83: 0.003224667547 | AM83: 0.01167729354 | AN83: 0.002234083094 | AO83: 0.01156330863 | AP83: 0.00154519732 | AQ83: 0.02134009374 | AR83: -0.0173615472 | AS83: -0.0004311274048 | AT83: 0.01027758276 | AU83: 0.0126445
A84: 2016-05-25 | B84: 22 | C84: 5 | D84: 2016 | E84: 139.1334 | F84: 19.122 | G84: 97.08 | H84: 72.058 | I84: 11.637 | J84: 166.97 | K84: 132.134 | L84: 91.55 | M84: 77.551 | N84: 8.2814 | O84: 15.3631 | P84: 12.694 | Q84: 26.052 | R84: 16.096 | S84: 60.101 | T84: 7.76 | U84: 74.04 | V84: 87.15 | W84: 69.6 | X84: 145.2 | Y84: 114.501 | AA84: 0.01228283469 | AB84: 0.02547604878 | AC84: 0.02322814157 | AD84: 0.00889340812 | AE84: 0.01707369117 | AF84: 0.01208688728 | AG84: 0.02223053482 | AH84: 0.009548445481 | AI84: 0.02240223034 | AJ84: 0.03051622422 | AK84: 0.02071014756 | AL84: 0.01220590568 | AM84: -0.003984069015 | AN84: 0.03515344898 | AO84: 0.03116222344 | AP84: 0.0407683018 | AQ84: 0.02278600345 | AR84: 0 | AS84: 0.008672555602 | AT84: 0.02298951822 | AU84: -0.0002095831922
A85: 2016-05-24 | B85: 22 | C85: 5 | D85: 2016 | E85: 137.4349 | F85: 18.641 | G85: 94.851 | H85: 71.42 | I85: 11.44 | J85: 164.964 | K85: 129.229 | L85: 90.68 | M85: 75.833 | N85: 8.0325 | O85: 15.0482 | P85: 12.54 | Q85: 26.156 | R85: 15.54 | S85: 58.257 | T85: 7.45 | U85: 72.372 | V85: 87.15 | W85: 68.999 | X85: 141.9 | Y85: 114.525 | AA85: 0.02428421169 | AB85: 0.01846239604 | AC85: 0.01622992979 | AD85: 0.02587084774 | AE85: 0.01222476857 | AF85: 0.02290155364 | AG85: 0.01562885189 | AH85: 0.003645808601 | AI85: 0.01239301481 | AJ85: 0.01999312163 | AK85: 0.009736108907 | AL85: 0.003755047755 | AM85: 0.005674426697 | AN85: 0.02396572111 | AO85: 0.02172527361 | AP85: 0.02102485042 | AQ85: 0.01919594683 | AR85: 0.03182643161 | AS85: 0.02690995625 | AT85: 0.03004517843 | AU85: 0.003840589819
A86: 2016-05-23 | B86: 22 | C86: 5 | D86: 2016 | E86: 134.1376 | F86: 18.3 | G86: 93.324 | H86: 69.596 | I86: 11.301 | J86: 161.229 | K86: 127.225 | L86: 90.35 | M86: 74.899 | N86: 7.8735 | O86: 14.9024 | P86: 12.493 | Q86: 26.008 | R86: 15.172 | S86: 57.005 | T86: 7.295 | U86: 70.996 | V86: 84.42 | W86: 67.167 | X86: 137.7 | Y86: 114.086 | AA86: -0.00334617735 | AB86: -0.009517406987 | AC86: -0.007898092159 | AD86: 0.003483270884 | AE86: -0.01875931589 | AF86: 0.009923226915 | AG86: 0.0001257693549 | AH86: -0.01809756001 | AI86: 0.00279432493 | AJ86: 0.001563423835 | AK86: 0.00157145096 | AL86: 0.009247784133 | AM86: 0.007990932135 | AN86: 0.007011074423 | AO86: -0.01469718412 | AP86: 0.0006856359542 | AQ86: -0.007381557254 | AR86: -0.05888111246 | AS86: 0.002086532197 | AT86: -0.0003630422984 | AU86: 0.01075127561
A87: 2016-05-20 | B87: 21 | C87: 5 | D87: 2016 | E87: 134.5872 | F87: 18.475 | G87: 94.064 | H87: 69.354 | I87: 11.515 | J87: 159.637 | K87: 127.209 | L87: 92 | M87: 74.69 | N87: 7.8612 | O87: 14.879 | P87: 12.378 | Q87: 25.801 | R87: 15.066 | S87: 57.849 | T87: 7.29 | U87: 71.522 | V87: 89.54 | W87: 67.027 | X87: 137.75 | Y87: 112.866 | AA87: -0.003742231237 | AB87: 0.0255468339 | AC87: 0.01331326785 | AD87: 0.008863457401 | AE87: 0.01284814248 | AF87: 0.0002443341125 | AG87: 0.005344065686 | AH87: 0.002721090114 | AI87: 0.02045138502 | AJ87: 0.008341312071 | AK87: 0.008639945748 | AL87: 0.005508763121 | AM87: -0.002245451969 | AN87: 0.005257390741 | AO87: 0.02534927856 | AP87: -0.001233806449 | AQ87: 0.009651865849 | AR87: 0.01156991283 | AS87: 0.007592868964 | AT87: 0.01094901449 | AU87: 0.03154693785 | AX87: 134.5872 | AY87: 18.475 | AZ87: 94.064 | BA87: 69.354 | BB87: 11.515 | BC87: 159.637 | BD87: 127.209 | BE87: 92 | BF87: 74.69 | BG87: 7.8612 | BH87: 14.879 | BI87: 12.378 | BJ87: 25.801 | BK87: 15.066 | BL87: 57.849 | BM87: 7.29 | BN87: 71.522 | BO87: 89.54 | BP87: 67.027 | BQ87: 137.75 | BR87: 112.866 | BU87: -0.002595686743 | BV87: -0.01258622467 | BW87: 0.005800084496 | BX87: 0.01065435923 | BY87: -0.06440281936 | BZ87: 0.008132606203 | CA87: 0.01013697028 | CB87: 0.03360174655 | CC87: 0.01216365004 | CD87: 0.001323829114 | CE87: 0.003271694706 | CF87: 0.002993650846 | CG87: -0.004717354661 | CH87: 0.03196711607 | CI87: -0.01489312568 | CJ87: 0.04187993849 | CK87: -0.02574171354 | CL87: -0.07112000965 | CM87: -0.007920568651 | CN87: -0.001088336766 | CO87: 0.02665771085
A88: 2016-05-19 | B88: 21 | C88: 5 | D88: 2016 | E88: 135.0918 | F88: 18.009 | G88: 92.82 | H88: 68.742 | I88: 11.368 | J88: 159.598 | K88: 126.531 | L88: 91.75 | M88: 73.178 | N88: 7.7959 | O88: 14.751 | P88: 12.31 | Q88: 25.859 | R88: 14.987 | S88: 56.401 | T88: 7.299 | U88: 70.835 | V88: 88.51 | W88: 66.52 | X88: 136.25 | Y88: 109.361 | AA88: 0.0004064729202 | AB88: -0.05035165512 | AC88: -0.007523876194 | AD88: -0.005310132173 | AE88: -0.03092092354 | AF88: -0.002628155297 | AG88: -0.01123819256 | AH88: 0.01348561895 | AI88: 0.006209624965 | AJ88: -0.007628698787 | AK88: -0.01227604504 | AL88: -0.01323453791 | AM88: -0.007435837848 | AN88: 0.007837398191 | AO88: -0.02569494648 | AP88: 0.01685588402 | AQ88: -0.005265986093 | AR88: -0.085598109 | AS88: -0.01410629056 | AT88: -0.01022279805 | AU88: -0.01151888512
A89: 2016-05-18 | B89: 21 | C89: 5 | D89: 2016 | E89: 135.0369 | F89: 18.939 | G89: 93.521 | H89: 69.108 | I89: 11.725 | J89: 160.018 | K89: 127.961 | L89: 90.521 | M89: 72.725 | N89: 7.8556 | O89: 14.9332 | P89: 12.474 | Q89: 26.052 | R89: 14.87 | S89: 57.869 | T89: 7.177 | U89: 71.209 | V89: 96.42 | W89: 67.465 | X89: 137.65 | Y89: 110.628 | AA89: 0.02303786105 | AB89: -0.002320553755 | AC89: 0.004554791201 | AD89: 0.01048775023 | AE89: -0.006376217139 | AF89: 0.006130565998 | AG89: 0.01196555157 | AH89: 0.001215926575 | AI89: 0.000852890249 | AJ89: -0.007798323898 | AK89: -0.004809885552 | AL89: 0.01193562556 | AM89: 0.003845862751 | AN89: 0.0315621526 | AO89: 0.003808934815 | AP89: 0.01587000515 | AQ89: -0.008529850079 | AR89: 0.006973020917 | AS89: -0.000814905405 | AT89: 0.00436840884 | AU89: 0.004775095265
A90: 2016-05-17 | B90: 21 | C90: 5 | D90: 2016 | E90: 131.9615 | F90: 18.983 | G90: 93.096 | H90: 68.387 | I90: 11.8 | J90: 159.04 | K90: 126.439 | L90: 90.411 | M90: 72.663 | N90: 7.9171 | O90: 15.0052 | P90: 12.326 | Q90: 25.952 | R90: 14.408 | S90: 57.649 | T90: 7.064 | U90: 71.819 | V90: 95.75 | W90: 67.52 | X90: 137.05 | Y90: 110.101 | AA90: -0.02229778947 | AB90: 0.01453915031 | AC90: -0.004544098358 | AD90: -0.003386716228 | AE90: -0.03995382116 | AF90: 0.00438586139 | AG90: 0.004065545592 | AH90: 0.01617911091 | AI90: -0.0153502502 | AJ90: 0.008409539727 | AK90: 0.01171767955 | AL90: -0.001216199931 | AM90: 0.001118072406 | AN90: -0.01268982546 | AO90: -0.01835639257 | AP90: 0.01038785577 | AQ90: -0.02159774321 | AR90: -0.004064834405 | AS90: -0.0005922416519 | AT90: -0.00618296205 | AU90: 0.001854562846
A91: 2016-05-13 | B91: 20 | C91: 5 | D91: 2016 | E91: 134.937 | F91: 18.709 | G91: 93.52 | H91: 68.619 | I91: 12.281 | J91: 158.344 | K91: 125.926 | L91: 88.96 | M91: 73.787 | N91: 7.8508 | O91: 14.8304 | P91: 12.341 | Q91: 25.923 | R91: 14.592 | S91: 58.717 | T91: 6.991 | U91: 73.387 | V91: 96.14 | W91: 67.56 | X91: 137.9 | Y91: 109.897 | AA91: -0.002218573628 | AB91: 0.005789348788 | AC91: 0.005027587223 | AD91: 0.01146169551 | AE91: -0.00154590975 | AF91: 0.005966839136 | AG91: -0.001039752775 | AH91: -0.01604637489 | AI91: 0 | AJ91: 0.01444633501 | AK91: 0.00701695535 | AL91: -0.01280159184 | AM91: 0.005066239203 | AN91: 0.0003427122279 | AO91: -0.004791201527 | AP91: 0.007610058982 | AQ91: 0.004205760436 | AR91: 0.01035086872 | AS91: 0 | AT91: 0.008374343497 | AU91: -0.021033504 | AX91: 134.937 | AY91: 18.709 | AZ91: 93.52 | BA91: 68.619 | BB91: 12.281 | BC91: 158.344 | BD91: 125.926 | BE91: 88.96 | BF91: 73.787 | BG91: 7.8508 | BH91: 14.8304 | BI91: 12.341 | BJ91: 25.923 | BK91: 14.592 | BL91: 58.717 | BM91: 6.991 | BN91: 73.387 | BO91: 96.14 | BP91: 67.56 | BQ91: 137.9 | BR91: 109.897 | BU91: 0.01981756771 | BV91: -0.03187730461 | BW91: 0.009702607048 | BX91: 0.03354884138 | BY91: 0.02732207425 | BZ91: -0.02590812025 | CA91: -0.0003811036172 | CB91: -0.003702669027 | CC91: -0.002450408498 | CD91: -0.01508160235 | CE91: 0.05471175111 | CF91: -0.0144003132 | CG91: 0.04881330991 | CH91: -0.01178608186 | CI91: -0.01432207165 | CJ91: -0.02024847941 | CK91: 0.006850231542 | CL91: -0.01681231905 | CM91: -0.01644194409 | CN91: -0.01045996913 | CO91: -0.02287618254
A92: 2016-05-12 | B92: 20 | C92: 5 | D92: 2016 | E92: 135.2367 | F92: 18.601 | G92: 93.051 | H92: 67.837 | I92: 12.3 | J92: 157.402 | K92: 126.057 | L92: 90.399 | M92: 73.787 | N92: 7.7382 | O92: 14.7267 | P92: 12.5 | Q92: 25.792 | R92: 14.587 | S92: 58.999 | T92: 6.938 | U92: 73.079 | V92: 95.15 | W92: 67.56 | X92: 136.75 | Y92: 112.233 | AA92: -0.02589002954 | AB92: -0.01885240625 | AC92: -0.009614995919 | AD92: 0.01132619031 | AE92: 0.07862095462 | AF92: -0.01003826478 | AG92: -0.01005580955 | AH92: 0.00410136474 | AI92: -0.004187622816 | AJ92: 0.01329519655 | AK92: 0.006752017694 | AL92: -0.002077839795 | AM92: 0.005014100487 | AN92: -0.007104340284 | AO92: -0.00539230665 | AP92: -0.01317315728 | AQ92: -0.01399593463 | AR92: -0.04971559225 | AS92: 0.005045269643 | AT92: -0.01523977245 | AU92: -0.005833282503
A93: 2016-05-11 | B93: 20 | C93: 5 | D93: 2016 | E93: 138.7837 | F93: 18.955 | G93: 93.95 | H93: 67.073 | I93: 11.37 | J93: 158.99 | K93: 127.331 | L93: 90.029 | M93: 74.09664 | N93: 7.636 | O93: 14.6276 | P93: 12.526 | Q93: 25.663 | R93: 14.691 | S93: 59.318 | T93: 7.03 | U93: 74.109 | V93: 100 | W93: 67.22 | X93: 138.85 | Y93: 112.8896 | AA93: -0.007680985231 | AB93: 0.02835931089 | AC93: -0.004259144733 | AD93: -0.008611599163 | AE93: -0.04354124914 | AF93: -0.007694080712 | AG93: -0.009706841253 | AH93: -0.003337790512 | AI93: -0.01765377527 | AJ93: -0.05766829489 | AK93: 6.152941621e-05 | AL93: -0.01607637079 | AM93: 0.01816658957 | AN93: -0.02420937278 | AO93: -0.01159841374 | AP93: -0.005532321366 | AQ93: -0.01092393707 | AR93: -0.001498876124 | AS93: -0.01476695469 | AT93: -0.02031793294 | AU93: 0.0004279431902
A94: 2016-05-10 | B94: 20 | C94: 5 | D94: 2016 | E94: 139.8538 | F94: 18.425 | G94: 94.351 | H94: 67.6531 | I94: 11.876 | J94: 160.218 | K94: 128.573 | L94: 90.33 | M94: 75.41634 | N94: 8.0893 | O94: 14.6267 | P94: 12.729 | Q94: 25.201 | R94: 15.051 | S94: 60.01 | T94: 7.069 | U94: 74.923 | V94: 100.15 | W94: 68.22 | X94: 141.7 | Y94: 112.8413 | AA94: 0.03764253833 | AB94: 0.001901399459 | AC94: 0.01416434622 | AD94: -0.003613401388 | AE94: 0.0149307151 | AF94: -0.02002680649 | AG94: 0.01154626196 | AH94: -0.003867194478 | AI94: 0.0007742698728 | AJ94: 0.01200106431 | AK94: 0.00872756284 | AL94: 0.01623605142 | AM94: 0.01041073602 | AN94: 0.02359694039 | AO94: 0.00449266315 | AP94: 0.003400881838 | AQ94: 0.0166752402 | AR94: 0.001999001165 | AS94: -0.01642836977 | AT94: 0.005661727792 | AU94: 0.001643479028
A95: 2016-05-09 | B95: 20 | C95: 5 | D95: 2016 | E95: 134.6872 | F95: 18.39 | G95: 93.024 | H95: 67.898 | I95: 11.7 | J95: 163.459 | K95: 127.097 | L95: 90.68 | M95: 75.35797 | N95: 7.9928 | O95: 14.4996 | P95: 12.524 | Q95: 24.94 | R95: 14.7 | S95: 59.741 | T95: 7.045 | U95: 73.684 | V95: 99.95 | W95: 69.35 | X95: 140.9 | Y95: 112.656 | AA95: 0.01796461778 | AB95: -0.0490749575 | AC95: 0.004384814261 | AD95: 0.02298595612 | AE95: -0.02114243657 | AF95: 0.005884192595 | AG95: 0.008875038003 | AH95: 0.01544732611 | AI95: 0.01861671971 | AJ95: 0.002844096662 | AK95: 0.03215368581 | AL95: 0.0003194377922 | AM95: 0.01015564463 | AN95: -0.004412021411 | AO95: 0.002967187123 | AP95: -0.01255394159 | AQ95: 0.01088910261 | AR95: 0.02205227943 | AS95: 0.009708110732 | AT95: 0.01106166498 | AU95: 0.001919181738
A96: 2016-05-06 | B96: 19 | C96: 5 | D96: 2016 | E96: 132.2892 | F96: 19.315 | G96: 92.617 | H96: 66.3551 | I96: 11.95 | J96: 162.5 | K96: 125.974 | L96: 89.29 | M96: 73.96803 | N96: 7.9701 | O96: 14.0408 | P96: 12.52 | Q96: 24.688 | R96: 14.765 | S96: 59.564 | T96: 7.134 | U96: 72.886 | V96: 97.77 | W96: 68.68 | X96: 139.35 | Y96: 112.44 | AA96: 0.02021825778 | AB96: 0.003682672281 | AC96: 0.01001576375 | AD96: -0.0006372761557 | AE96: 0.01102287235 | AF96: 0.0007941614166 | AG96: -0.006212109415 | AH96: 0.0077463553 | AI96: -0.001283109535 | AJ96: -0.00154207835 | AK96: -0.001594079472 | AL96: -0.005734326003 | AM96: 0.00956438784 | AN96: 0.01158051089 | AO96: 0.007685085687 | AP96: 0.01810516216 | AQ96: 0.007242916149 | AR96: -0.004082888187 | AS96: 0.002011339968 | AT96: 0.04927467334 | AU96: 0.01168576506 | AX96: 132.2892 | AY96: 19.315 | AZ96: 92.617 | BA96: 66.3551 | BB96: 11.95 | BC96: 162.5 | BD96: 125.974 | BE96: 89.29 | BF96: 73.96803 | BG96: 7.9701 | BH96: 14.0408 | BI96: 12.52 | BJ96: 24.688 | BK96: 14.765 | BL96: 59.564 | BM96: 7.134 | BN96: 72.886 | BO96: 97.77 | BP96: 68.68 | BQ96: 139.35 | BR96: 112.44 | BU96: -0.04576436035 | BV96: -0.05602451267 | BW96: 0.01105235553 | BX96: -0.01641784866 | BY96: -0.08782694391 | BZ96: -0.003194890897 | CA96: -0.03515208584 | CB96: 0.005322685581 | CC96: -0.01518452336 | CD96: -0.07334052479 | CE96: -0.0228273154 | CF96: -0.08127075646 | CG96: -0.00581584838 | CH96: -0.1111614699 | CI96: -0.0272755472 | CJ96: -0.1331458403 | CK96: -0.06390719932 | CL96: -0.004897469232 | CM96: -0.01689204967 | CN96: 0.04161467794 | CO96: 0.007577552247
A97: 2016-05-05 | B97: 19 | C97: 5 | D97: 2016 | E97: 129.6414 | F97: 19.244 | G97: 91.694 | H97: 66.3974 | I97: 11.819 | J97: 162.371 | K97: 126.759 | L97: 88.601 | M97: 74.063 | N97: 7.9824 | O97: 14.0632 | P97: 12.592 | Q97: 24.453 | R97: 14.595 | S97: 59.108 | T97: 7.006 | U97: 72.36 | V97: 98.17 | W97: 68.542 | X97: 132.65 | Y97: 111.1337 | AA97: -0.01716194456 | AB97: -0.01100757865 | AC97: 0.006356451955 | AD97: 0.003308306588 | AE97: 0.01956574868 | AF97: 0.009560805137 | AG97: -0.00115112918 | AH97: 0 | AI97: -0.006006122698 | AJ97: -0.003426673855 | AK97: 0.007601776799 | AL97: -0.007437331537 | AM97: -0.001756931135 | AN97: -0.02322929763 | AO97: 0.006041084043 | AP97: -0.02048528229 | AQ97: -0.01667881637 | AR97: 0.01426030834 | AS97: 0.006058407351 | AT97: -0.01807908199 | AU97: -0.000948856699
A98: 2016-05-04 | B98: 19 | C98: 5 | D98: 2016 | E98: 131.8855 | F98: 19.457 | G98: 91.113 | H98: 66.1781 | I98: 11.59 | J98: 160.826 | K98: 126.905 | L98: 88.601 | M98: 74.50917 | N98: 8.0098 | O98: 13.9567 | P98: 12.686 | Q98: 24.496 | R98: 14.938 | S98: 58.752 | T98: 7.151 | U98: 73.577 | V98: 96.78 | W98: 68.128 | X98: 135.07 | Y98: 111.2392 | AA98: -0.01282706337 | AB98: -0.0001541742686 | AC98: 0.008188140501 | AD98: -0.01363622021 | AE98: -0.04298014721 | AF98: -0.02040887163 | AG98: -0.00811481278 | AH98: -0.007186225335 | AI98: -0.007697667796 | AJ98: -0.03081932641 | AK98: -0.02250804343 | AL98: -0.03089108646 | AM98: -0.004114645367 | AN98: -0.01290340484 | AO98: -0.02100270042 | AP98: -0.0381390531 | AQ98: -0.02350615938 | AR98: -0.01538018629 | AS98: 0.01669566932 | AT98: -0.01060470944 | AU98: -0.005850388957
A99: 2016-05-03 | B99: 19 | C99: 5 | D99: 2016 | E99: 133.5881 | F99: 19.46 | G99: 90.37 | H99: 67.0867 | I99: 12.099 | J99: 164.142 | K99: 127.939 | L99: 89.24 | M99: 75.08493 | N99: 8.2605 | O99: 14.2744 | P99: 13.084 | Q99: 24.597 | R99: 15.132 | S99: 59.999 | T99: 7.429 | U99: 75.327 | V99: 98.28 | W99: 67 | X99: 136.51 | Y99: 111.8919 | AA99: -0.02311899538 | AB99: -0.04378573806 | AC99: -0.01023843369 | AD99: -0.01064422655 | AE99: -0.05389755388 | AF99: -0.0001705694587 | AG99: -0.016050091 | AH99: 0.00670102123 | AI99: 0.0002899803807 | AJ99: -0.02868692186 | AK99: -0.01113266759 | AL99: -0.04877560612 | AM99: -0.01565116051 | AN99: -0.05808684576 | AO99: -0.01587361163 | AP99: -0.08400061236 | AQ99: -0.03744379892 | AR99: -0.01574835697 | AS99: -0.01760530714 | AT99: -0.007880376425 | AU99: -0.007190870524
A100: 2016-05-02 | B100: 19 | C100: 5 | D100: 2016 | E100: 136.7125 | F100: 20.331 | G100: 91.3 | H100: 67.8046 | I100: 12.769 | J100: 164.17 | K100: 130.009 | L100: 88.644 | M100: 75.06316 | N100: 8.5009 | O100: 14.4342 | P100: 13.738 | Q100: 24.985 | R100: 16.037 | S100: 60.959 | T100: 8.08 | U100: 78.201 | V100: 99.84 | W100: 68.19 | X100: 137.59 | Y100: 112.6994 | AA100: -0.01287461483 | AB100: -0.004759693963 | AC100: -0.003269566989 | AD100: 0.005191567656 | AE100: -0.02153786384 | AF100: 0.00702958364 | AG100: -0.003623943465 | AH100: -0.001938465613 | AI100: -0.0004876037079 | AJ100: -0.008865524324 | AK100: 0.004805698296 | AL100: 0.01156759366 | AM100: 0.006142500795 | AN100: -0.0285224326 | AO100: -0.004125404885 | AP100: -0.00862605472 | AQ100: 0.006478659196 | AR100: 0.01605365387 | AS100: -0.02405215917 | AT100: 0.02890417246 | AU100: 0.009881903371
A101: 2016-04-29 | B101: 18 | C101: 4 | D101: 2016 | E101: 138.484 | F101: 20.428 | G101: 91.599 | H101: 67.4535 | I101: 13.047 | J101: 163.02 | K101: 130.481 | L101: 88.816 | M101: 75.09977 | N101: 8.5766 | O101: 14.365 | P101: 13.58 | Q101: 24.832 | R101: 16.501 | S101: 61.211 | T101: 8.15 | U101: 77.696 | V101: 98.25 | W101: 69.85 | X101: 133.67 | Y101: 111.5912 | AA101: -0.02070782221 | AB101: -0.02480245101 | AC101: -0.02567227959 | AD101: -0.02917723688 | AE101: 0.008389504662 | AF101: -0.03009108674 | AG101: 0.017737487 | AH101: -0.0117194744 | AI101: -0.02379448653 | AJ101: -0.01445786002 | AK101: -0.02632634901 | AL101: -0.02974466655 | AM101: -0.02234040149 | AN101: -0.04682298167 | AO101: -0.02647175466 | AP101: -0.02544049984 | AQ101: -0.03312772475 | AR101: -0.03414817097 | AS101: 0.00673703089 | AT101: -0.02599275035 | AU101: -0.006024407931 | AX101: 138.484 | AY101: 20.428 | AZ101: 91.599 | BA101: 67.4535 | BB101: 13.047 | BC101: 163.02 | BD101: 130.481 | BE101: 88.816 | BF101: 75.09977 | BG101: 8.5766 | BH101: 14.365 | BI101: 13.58 | BJ101: 24.832 | BK101: 16.501 | BL101: 61.211 | BM101: 8.15 | BN101: 77.696 | BO101: 98.25 | BP101: 69.85 | BQ101: 133.67 | BR101: 111.5912 | BU101: 0.0178352389 | BV101: -0.05564790737 | BW101: -0.04876988926 | BX101: -0.0369067592 | BY101: 0.02624781838 | BZ101: -0.065642071 | CA101: -0.0101718021 | CB101: -0.01001543162 | CC101: -0.04195843324 | CD101: -0.02570279322 | CE101: -0.02797265181 | CF101: 0.001031459607 | CG101: -0.01641574556 | CH101: -0.01718379221 | CI101: -0.02880781446 | CJ101: -0.01823758755 | CK101: -0.02180793596 | CL101: -0.09056147167 | CM101: 0.03296402077 | CN101: -0.04583968333 | CO101: 0.05149744375
A102: 2016-04-28 | B102: 18 | C102: 4 | D102: 2016 | E102: 141.3816 | F102: 20.941 | G102: 93.981 | H102: 69.4506 | I102: 12.938 | J102: 168 | K102: 128.187 | L102: 89.863 | M102: 76.90816 | N102: 8.7015 | O102: 14.7482 | P102: 13.99 | Q102: 25.393 | R102: 17.292 | S102: 62.853 | T102: 8.36 | U102: 80.313 | V102: 101.663 | W102: 69.381 | X102: 137.19 | Y102: 112.2655 | AA102: 0.003185822714 | AB102: 0.03845504484 | AC102: -0.01446169787 | AD102: -0.007758097633 | AE102: -0.02004811197 | AF102: 0.01300081218 | AG102: -0.003372185418 | AH102: 0.006699220035 | AI102: -0.006641041504 | AJ102: -0.02300518938 | AK102: -0.001138473755 | AL102: 0.01585047594 | AM102: 0.004183115808 | AN102: 0.03274163214 | AO102: -0.0001749962221 | AP102: 0.01094484436 | AQ102: 0.003142656633 | AR102: -0.01333737423 | AS102: -0.001368314378 | AT102: 0.002993030668 | AU102: -0.000991798602
A103: 2016-04-27 | B103: 18 | C103: 4 | D103: 2016 | E103: 140.9319 | F103: 20.151 | G103: 95.35 | H103: 69.9915 | I103: 13.2 | J103: 165.83 | K103: 128.62 | L103: 89.263 | M103: 77.42061 | N103: 8.904 | O103: 14.765 | P103: 13.77 | Q103: 25.287 | R103: 16.735 | S103: 62.864 | T103: 8.269 | U103: 80.061 | V103: 103.028 | W103: 69.476 | X103: 136.78 | Y103: 112.3769 | AA103: 0.03022839221 | AB103: -0.0005953267031 | AC103: 0.007368454391 | AD103: 0.01084851454 | AE103: 0.05697126558 | AF103: -0.04557171703 | AG103: 0.01210059623 | AH103: -0.0004144195665 | AI103: 0.001368271822 | AJ103: 0.03558760839 | AK103: 0.003358155155 | AL103: 0.01293735839 | AM103: 0.002335940882 | AN103: 0.01383896936 | AO103: -0.003493508809 | AP103: -0.0001209262956 | AQ103: 0.01170941201 | AR103: -0.02616212474 | AS103: 0.004558708377 | AT103: -0.007864881788 | AU103: 0.05888545258
A104: 2016-04-26 | B104: 18 | C104: 4 | D104: 2016 | E104: 136.7355 | F104: 20.163 | G104: 94.65 | H104: 69.2363 | I104: 12.469 | J104: 173.562 | K104: 127.073 | L104: 89.3 | M104: 77.31475 | N104: 8.5927 | O104: 14.7155 | P104: 13.593 | Q104: 25.228 | R104: 16.505 | S104: 63.084 | T104: 8.27 | U104: 79.129 | V104: 105.759 | W104: 69.16 | X104: 137.86 | Y104: 105.9506 | AA104: 0.02067288969 | AB104: -0.03637827178 | AC104: -0.006518591525 | AD104: -0.006794100895 | AE104: -0.0007215296741 | AF104: -0.001657974198 | AG104: -0.02194161147 | AH104: -0.003242218727 | AI104: -0.006784046131 | AJ104: 0.001992044134 | AK104: -0.0001223125222 | AL104: -0.0003677687512 | AM104: -0.001821710535 | AN104: 0.02608710155 | AO104: 0.004512098151 | AP104: 0.01326779855 | AQ104: 0.007993546255 | AR104: -0.01146028516 | AS104: 0.01047982324 | AT104: -0.008810629682 | AU104: -0.005447116936
A105: 2016-04-25 | B105: 18 | C105: 4 | D105: 2016 | E105: 133.9378 | F105: 20.91 | G105: 95.269 | H105: 69.7083 | I105: 12.478 | J105: 173.85 | K105: 129.892 | L105: 89.59 | M105: 77.84104 | N105: 8.5756 | O105: 14.7173 | P105: 13.598 | Q105: 25.274 | R105: 16.08 | S105: 62.8 | T105: 8.161 | U105: 78.499 | V105: 106.978 | W105: 68.439 | X105: 139.08 | Y105: 106.5293 | AA105: -0.01554404351 | AB105: -0.03232690271 | AC105: -0.009485774667 | AD105: -0.004025838342 | AE105: -0.01834331021 | AF105: -0.001322105214 | AG105: -0.01469608845 | AH105: -0.001338538962 | AI105: -0.00610713089 | AJ105: -0.02581939633 | AK105: -0.003743671674 | AL105: 0.00235606058 | AM105: 0.001227309773 | AN105: -0.04302851359 | AO105: -0.003179652917 | AP105: -0.01688880432 | AQ105: -0.0115258261 | AR105: -0.005453516576 | AS105: 0.01255677264 | AT105: -0.006164452178 | AU105: 0.005075314643
A106: 2016-04-22 | B106: 17 | C106: 4 | D106: 2016 | E106: 136.036 | F106: 21.597 | G106: 96.177 | H106: 69.9895 | I106: 12.709 | J106: 174.08 | K106: 131.815 | L106: 89.71 | M106: 78.31788 | N106: 8.7999 | O106: 14.7725 | P106: 13.566 | Q106: 25.243 | R106: 16.787 | S106: 63 | T106: 8.3 | U106: 79.409 | V106: 107.563 | W106: 67.585 | X106: 139.94 | Y106: 105.99 | AA106: -0.01747412116 | AB106: 0.02328137567 | AC106: 0.0004783992437 | AD106: 0.003053686541 | AE106: 0.008137512809 | AF106: -0.004928094324 | AG106: -0.005666123284 | AH106: -6.687993939e-05 | AI106: -0.0009089576597 | AJ106: 0.002799400982 | AK106: -0.006430456398 | AL106: 0.00125391866 | AM106: 0.003134487856 | AN106: 0.01246794308 | AO106: -0.04788272309 | AP106: 0.007133819021 | AQ106: -0.01276309571 | AR106: -0.001356423709 | AS106: -0.008207698202 | AT106: -0.0006429260499 | AU106: 0.008933073173 | AX106: 136.036 | AY106: 21.597 | AZ106: 96.177 | BA106: 69.9895 | BB106: 12.709 | BC106: 174.08 | BD106: 131.815 | BE106: 89.71 | BF106: 78.31788 | BG106: 8.7999 | BH106: 14.7725 | BI106: 13.566 | BJ106: 25.243 | BK106: 16.787 | BL106: 63 | BM106: 8.3 | BN106: 79.409 | BO106: 107.563 | BP106: 67.585 | BQ106: 139.94 | BR106: 105.99 | BU106: 0.08362070467 | BV106: 0.05408265563 | BW106: 0.0400632652 | BX106: 0.02128523375 | BY106: 0.0957461864 | BZ106: 0.008080584056 | CA106: 0.03479793213 | CB106: 0.01933634432 | CC106: 0.007187864681 | CD106: 0.05197595137 | CE106: 0.007174090023 | CF106: -0.0184777943 | CG106: 0.03253235884 | CH106: 0.09366740052 | CI106: 0.01005033585 | CJ106: 0.02291599893 | CK106: 0.05852457933 | CL106: 0.04260044067 | CM106: 0.02764807428 | CN106: 0.05056392443 | CO106: 0.03290748235
A107: 2016-04-21 | B107: 17 | C107: 4 | D107: 2016 | E107: 138.434 | F107: 21.1 | G107: 96.131 | H107: 69.7761 | I107: 12.606 | J107: 174.94 | K107: 132.564 | L107: 89.716 | M107: 78.3891 | N107: 8.7753 | O107: 14.8678 | P107: 13.549 | Q107: 25.164 | R107: 16.579 | S107: 66.09 | T107: 8.241 | U107: 80.429 | V107: 107.709 | W107: 68.142 | X107: 140.03 | Y107: 105.0474 | AA107: 0.02595628686 | AB107: -0.03456168129 | AC107: 0.0002080710778 | AD107: -0.004781024587 | AE107: 0.0518529172 | AF107: -0.004653611519 | AG107: 0.002779877904 | AH107: -0.01093028208 | AI107: -0.001954228561 | AJ107: 0.01565412142 | AK107: -0.01429091822 | AL107: -0.01443512884 | AM107: 0.004101548806 | AN107: 0.004715849127 | AO107: -0.002765124946 | AP107: 0.0209682135 | AQ107: -0.003301807821 | AR107: 0.006809940285 | AS107: -0.0004108222371 | AT107: 0 | AU107: -0.009593294843
A108: 2016-04-20 | B108: 17 | C108: 4 | D108: 2016 | E108: 134.887 | F108: 21.842 | G108: 96.111 | H108: 70.1105 | I108: 11.969 | J108: 175.756 | K108: 132.196 | L108: 90.702 | M108: 78.54244 | N108: 8.639 | O108: 15.0818 | P108: 13.746 | Q108: 25.061 | R108: 16.501 | S108: 66.273 | T108: 8.07 | U108: 80.695 | V108: 106.978 | W108: 68.17 | X108: 140.03 | Y108: 106.06 | AA108: 0.04895683608 | AB108: 0.02743076869 | AC108: 0.01162688193 | AD108: 0.004781024587 | AE108: 0.008128864321 | AF108: 0.004402128338 | AG108: 0.01081502727 | AH108: 0.02069738482 | AI108: -0.00387192571 | AJ108: 0.003838820828 | AK108: 0.003660100072 | AL108: 0.001310329954 | AM108: -0.001833838817 | AN108: 0.05429282227 | AO108: 0.0186109968 | AP108: -0.03107231565 | AQ108: 0.01753937466 | AR108: 0.0004581430328 | AS108: -0.002256510401 | AT108: 0.02582515398 | AU108: -0.007520209628
A109: 2016-04-19 | B109: 17 | C109: 4 | D109: 2016 | E109: 128.4424 | F109: 21.251 | G109: 95 | H109: 69.7761 | I109: 11.8721 | J109: 174.984 | K109: 130.774 | L109: 88.844 | M109: 78.84714 | N109: 8.6059 | O109: 15.0267 | P109: 13.728 | Q109: 25.107 | R109: 15.629 | S109: 65.051 | T109: 8.32469 | U109: 79.292 | V109: 106.929 | W109: 68.324 | X109: 136.46 | Y109: 106.8606 | AA109: 0.02229231722 | AB109: 0.02757545204 | AC109: 0.02267622581 | AD109: 0.01269342307 | AE109: 0.03580844368 | AF109: 0.01356713656 | AG109: 0.0206906597 | AH109: 0.001622133461 | AI109: 0.0036577969 | AJ109: 0.0277582884 | AK109: 0.01991523321 | AL109: 0.007604599385 | AM109: 0.02439194485 | AN109: -0.001853805626 | AO109: 0.02331310921 | AP109: -0.006542161094 | AQ109: 0.02885141491 | AR109: 0.02867841854 | AS109: 0.01672178579 | AT109: 0.0206574554 | AU109: 0.01814595238
A110: 2016-04-18 | B110: 17 | C110: 4 | D110: 2016 | E110: 125.6108 | F110: 20.673 | G110: 92.87 | H110: 68.896 | I110: 11.4545 | J110: 172.626 | K110: 128.096 | L110: 88.7 | M110: 78.55926 | N110: 8.3703 | O110: 14.7304 | P110: 13.624 | Q110: 24.502 | R110: 15.658 | S110: 63.552 | T110: 8.37933 | U110: 77.037 | V110: 103.906 | W110: 67.191 | X110: 133.67 | Y110: 104.939 | AA110: 0.003889385681 | AB110: 0.01035674052 | AC110: 0.00507368714 | AD110: 0.005538124138 | AE110: -0.008181551609 | AF110: -0.0003069749955 | AG110: 0.006178490542 | AH110: 0.008013988061 | AI110: 0.01026517971 | AJ110: 0.001925319737 | AK110: 0.004320131356 | AL110: -0.01421151346 | AM110: 0.00273821615 | AN110: 0.02404459167 | AO110: 0.01877407788 | AP110: 0.03242844316 | AQ110: 0.0281986933 | AR110: 0.00801036252 | AS110: 0.02180131934 | AT110: 0.004724241099 | AU110: 0.02294196127
A111: 2016-04-15 | B111: 16 | C111: 4 | D111: 2016 | E111: 125.1232 | F111: 20.46 | G111: 92.4 | H111: 68.5155 | I111: 11.5486 | J111: 172.679 | K111: 127.307 | L111: 87.992 | M111: 77.75696 | N111: 8.3542 | O111: 14.6669 | P111: 13.819 | Q111: 24.435 | R111: 15.286 | S111: 62.37 | T111: 8.11196 | U111: 74.895 | V111: 103.077 | W111: 65.742 | X111: 133.04 | Y111: 102.5589 | AA111: -0.02033009364 | AB111: 0.009280467285 | AC111: -0.005396667172 | AD111: -0.004624736853 | AE111: 0.008932630228 | AF111: -0.003970587077 | AG111: -0.004271852678 | AH111: -0.004286644275 | AI111: -0.00550637565 | AJ111: 0.02383891566 | AK111: 0.007933534436 | AL111: 0.001230947623 | AM111: -0.003023866312 | AN111: -0.00183006587 | AO111: -0.0242819181 | AP111: -0.001682517127 | AQ111: -0.01551425186 | AR111: -0.0004752598257 | AS111: 0.008999640558 | AT111: 0.001353892648 | AU111: -0.009519777977 | AX111: 125.1232 | AY111: 20.46 | AZ111: 92.4 | BA111: 68.5155 | BB111: 11.5486 | BC111: 172.679 | BD111: 127.307 | BE111: 87.992 | BF111: 77.75696 | BG111: 8.3542 | BH111: 14.6669 | BI111: 13.819 | BJ111: 24.435 | BK111: 15.286 | BL111: 62.37 | BM111: 8.11196 | BN111: 74.895 | BO111: 103.077 | BP111: 65.742 | BQ111: 133.04 | BR111: 102.5589 | BU111: 0.03602469291 | BV111: 0.0912860295 | BW111: 0.03455111324 | BX111: 0.03285501701 | BY111: 0.03674037384 | BZ111: 0.03322502156 | CA111: 0.07042350939 | CB111: 0.01341580226 | CC111: 0 | CD111: 0.06334701657 | CE111: 0.03679778033 | CF111: 0.01877269256 | CG111: 0.0516056648 | CH111: 0.09152955571 | CI111: 0.04293193627 | CJ111: 0.09905833809 | CK111: 0.04721519839 | CL111: 0.03808628308 | CM111: 0.0592489751 | CN111: 0.06041793843 | CO111: 0.009475428792
A112: 2016-04-14 | B112: 16 | C112: 4 | D112: 2016 | E112: 127.693 | F112: 20.271 | G112: 92.9 | H112: 68.8331 | I112: 11.4459 | J112: 173.366 | K112: 127.852 | L112: 88.37 | M112: 78.1863 | N112: 8.1574 | O112: 14.551 | P112: 13.802 | Q112: 24.509 | R112: 15.314 | S112: 63.903 | T112: 8.12562 | U112: 76.066 | V112: 103.126 | W112: 65.153 | X112: 132.86 | Y112: 103.5399 | AA112: 0.01656809366 | AB112: -0.007813115591 | AC112: 0.009735068771 | AD112: 0.01107469534 | AE112: 0.006987548212 | AF112: 0.001350657352 | AG112: 0.01417882472 | AH112: 0.0260231341 | AI112: 0.006766735273 | AJ112: 0.004644598876 | AK112: 0.004891332821 | AL112: 0.008951699091 | AM112: 0.01144886221 | AN112: -0.002152572502 | AO112: 0.01009728311 | AP112: 0.003248098837 | AQ112: 0.01655625259 | AR112: 0.0033121136 | AS112: -0.005494981875 | AT112: 0.004450654199 | AU112: 0.01348829303
A113: 2016-04-13 | B113: 16 | C113: 4 | D113: 2016 | E113: 125.5948 | F113: 20.43 | G113: 92 | H113: 68.075 | I113: 11.3662 | J113: 173.132 | K113: 126.052 | L113: 86.1 | M113: 77.65902 | N113: 8.1196 | O113: 14.48 | P113: 13.679 | Q113: 24.23 | R113: 15.347 | S113: 63.261 | T113: 8.09927 | U113: 74.817 | V113: 102.785 | W113: 65.512 | X113: 132.27 | Y113: 102.1527 | AA113: 0.0300821535 | AB113: 0.0594933481 | AC113: 0.02384731778 | AD113: 0.004880048207 | AE113: 0.006097983447 | AF113: 0.02118958318 | AG113: 0.03922769442 | AH113: 0.002325582443 | AI113: 0.001848756702 | AJ113: 0.009839370952 | AK113: 0.008753671445 | AL113: 0.0005850091575 | AM113: 0.0245667435 | AN113: 0.08758612881 | AO113: 0.02862217078 | AP113: 0.06418505381 | AQ113: 0.03195524507 | AR113: 0.02741924324 | AS113: 0.01943604411 | AT113: 0.0318779633 | AU113: 0.005934205268
A114: 2016-04-12 | B114: 16 | C114: 4 | D114: 2016 | E114: 121.8729 | F114: 19.25 | G114: 89.832 | H114: 67.7436 | I114: 11.2971 | J114: 169.502 | K114: 121.203 | L114: 85.9 | M114: 77.51558 | N114: 8.0401 | O114: 14.3538 | P114: 13.671 | Q114: 23.642 | R114: 14.06 | S114: 61.476 | T114: 7.59575 | U114: 72.464 | V114: 100.005 | W114: 64.251 | X114: 128.12 | Y114: 101.5483 | AA114: 0.0006147636206 | AB114: 0.002809136738 | AC114: 0.001414750399 | AD114: 0.01863631923 | AE114: -0.01039098473 | AF114: 0.007556412685 | AG114: 0.002958093114 | AH114: -0.003370332669 | AI114: -0.003363594921 | AJ114: 0.002129104153 | AK114: 0.009217622716 | AL114: -0.005325564292 | AM114: 0.002583488297 | AN114: 0.001423487785 | AO114: 0.01509481177 | AP114: 0.003732725659 | AQ114: 0.008773749064 | AR114: 0.004881652412 | AS114: 0.0295044855 | AT114: 0.01732054007 | AU114: 0.002926039033
A115: 2016-04-11 | B115: 16 | C115: 4 | D115: 2016 | E115: 121.798 | F115: 19.196 | G115: 89.705 | H115: 66.4928 | I115: 11.4151 | J115: 168.226 | K115: 120.845 | L115: 86.19 | M115: 77.77675 | N115: 8.023 | O115: 14.2221 | P115: 13.744 | Q115: 23.581 | R115: 14.04 | S115: 60.555 | T115: 7.56745 | U115: 71.831 | V115: 99.518 | W115: 62.383 | X115: 125.92 | Y115: 101.2516 | AA115: 0.00908977577 | AB115: 0.02751619298 | AC115: 0.004950643468 | AD115: 0.002888691089 | AE115: 0.02511319668 | AF115: 0.007098955429 | AG115: 0.01833074981 | AH115: -0.007275937338 | AI115: 0.0002544785964 | AJ115: 0.02289502692 | AK115: 0.006001618912 | AL115: 0.01333060098 | AM115: 0.01603043711 | AN115: 0.006502577488 | AO115: 0.0133995887 | AP115: 0.02957497691 | AQ115: 0.005444203519 | AR115: 0.002948533657 | AS115: 0.006803786812 | AT115: 0.005414888211 | AU115: -0.003353330563
A116: 2016-04-08 | B116: 15 | C116: 4 | D116: 2016 | E116: 120.6959 | F116: 18.675 | G116: 89.262 | H116: 66.301 | I116: 11.132 | J116: 167.036 | K116: 118.65 | L116: 86.8194 | M116: 77.75696 | N116: 7.8414 | O116: 14.137 | P116: 13.562 | Q116: 23.206 | R116: 13.949 | S116: 59.749 | T116: 7.34692 | U116: 71.441 | V116: 99.225 | W116: 61.96 | X116: 125.24 | Y116: 101.5917 | AA116: 0.0002900270491 | AB116: 0.03664732034 | AC116: 0.01378460874 | AD116: -0.01069657275 | AE116: 0.04741444902 | AF116: 0.01168223516 | AG116: 0.009314207896 | AH116: 0.006249662885 | AI116: 0.007662942984 | AJ116: 0.02357513329 | AK116: 0.002712879333 | AL116: 0.006955262963 | AM116: 0.01205199484 | AN116: 0.02035048686 | AO116: -0.0008364841388 | AP116: 0.03514318934 | AQ116: 0.01557395808 | AR116: 0.01584674331 | AS116: 0.02145182379 | AT116: 0.02040804847 | AU116: 0.002818173602 | AX116: 120.6959 | AY116: 18.675 | AZ116: 89.262 | BA116: 66.301 | BB116: 11.132 | BC116: 167.036 | BD116: 118.65 | BE116: 86.8194 | BF116: 77.75696 | BG116: 7.8414 | BH116: 14.137 | BI116: 13.562 | BJ116: 23.206 | BK116: 13.949 | BL116: 59.749 | BM116: 7.34692 | BN116: 71.441 | BO116: 99.225 | BP116: 61.96 | BQ116: 125.24 | BR116: 101.5917 | BU116: -0.02471769042 | BV116: -0.02746409743 | BW116: -0.02076605827 | BX116: -0.03747975386 | BY116: 0.02505986471 | BZ116: -0.008791671513 | CA116: -0.03490820875 | CB116: 0.04969693941 | CC116: 0.02487426235 | CD116: -0.007090876419 | CE116: -0.02551867909 | CF116: -0.008590045846 | CG116: -0.001808240903 | CH116: -0.06963787097 | CI116: -0.05247420657 | CJ116: -0.01188243178 | CK116: -0.0513723775 | CL116: 0.006410019117 | CM116: -0.006899962236 | CN116: -0.009298696049 | CO116: 0.0039579482
A117: 2016-04-07 | B117: 15 | C117: 4 | D117: 2016 | E117: 120.6609 | F117: 18.003 | G117: 88.04 | H117: 67.014 | I117: 10.6165 | J117: 165.096 | K117: 117.55 | L117: 86.2785 | M117: 77.16339 | N117: 7.6587 | O117: 14.0987 | P117: 13.468 | Q117: 22.928 | R117: 13.668 | S117: 59.799 | T117: 7.09321 | U117: 70.337 | V117: 97.665 | W117: 60.645 | X117: 122.71 | Y117: 101.3058 | AA117: 9.945721235e-05 | AB117: -0.02701608181 | AC117: -0.02051728755 | AD117: -0.01586712174 | AE117: 0.008447010786 | AF117: -0.01095158682 | AG117: -0.008496342983 | AH117: 0.009378729556 | AI117: -0.003532219945 | AJ117: -0.01130850443 | AK117: -0.002054814656 | AL117: 0.007527518309 | AM117: -0.004091409407 | AN117: -0.03317208853 | AO117: 0.002997850159 | AP117: -0.031017318 | AQ117: -0.02582345944 | AR117: -0.01092662205 | AS117: 0.01885921887 | AT117: -0.01134442115 | AU117: -0.01439652149
A118: 2016-04-06 | B118: 15 | C118: 4 | D118: 2016 | E118: 120.6489 | F118: 18.496 | G118: 89.865 | H118: 68.0858 | I118: 10.5272 | J118: 166.914 | K118: 118.553 | L118: 85.4731 | M118: 77.43643 | N118: 7.7458 | O118: 14.1277 | P118: 13.367 | Q118: 23.022 | R118: 14.129 | S118: 59.62 | T118: 7.31667 | U118: 72.177 | V118: 98.738 | W118: 59.512 | X118: 124.11 | Y118: 102.7748 | AA118: 0.01009647631 | AB118: 0.0229140805 | AC118: 0.008549209727 | AD118: 0.009592640352 | AE118: -0.01142847993 | AF118: 0.006250245716 | AG118: -0.002056036115 | AH118: -0.002975453843 | AI118: 0.01508589053 | AJ118: 0.003789867623 | AK118: 0.007502752798 | AL118: -0.004255166736 | AM118: 0.005226037502 | AN118: 0.005535855159 | AO118: -0.01450350539 | AP118: 0.01464336022 | AQ118: 0.004359906934 | AR118: 0.0124226466 | AS118: -0.01532424542 | AT118: 0.01281237118 | AU118: 0.01499982785
A119: 2016-04-05 | B119: 15 | C119: 4 | D119: 2016 | E119: 119.4369 | F119: 18.077 | G119: 89.1 | H119: 67.4358 | I119: 10.6482 | J119: 165.874 | K119: 118.797 | L119: 85.7278 | M119: 76.277 | N119: 7.7165 | O119: 14.0221 | P119: 13.424 | Q119: 22.902 | R119: 14.051 | S119: 60.491 | T119: 7.21031 | U119: 71.863 | V119: 97.519 | W119: 60.431 | X119: 122.53 | Y119: 101.2447 | AA119: -0.03018365166 | AB119: -0.04637164936 | AC119: -0.0265796378 | AD119: -0.02264927147 | AE119: -0.05104956153 | AF119: -0.01508988456 | AG119: -0.02373191515 | AH119: 0.00797076391 | AI119: -0.01486878567 | AJ119: -0.02769559179 | AK119: -0.02279467692 | AL119: -0.01339322251 | AM119: -0.02347566166 | AN119: -0.05051368661 | AO119: -0.03209579715 | AP119: -0.03588894904 | AQ119: -0.03455999555 | AR119: -0.02858694862 | AS119: -0.005297785181 | AT119: -0.02729088671 | AU119: -0.007759851727
A120: 2016-04-04 | B120: 15 | C120: 4 | D120: 2016 | E120: 123.0969 | F120: 18.935 | G120: 91.5 | H120: 68.9806 | I120: 11.2059 | J120: 168.396 | K120: 121.65 | L120: 85.0472 | M120: 77.41962 | N120: 7.9332 | O120: 14.3454 | P120: 13.605 | Q120: 23.446 | R120: 14.779 | S120: 62.464 | T120: 7.47378 | U120: 74.39 | V120: 100.347 | W120: 60.752 | X120: 125.92 | Y120: 102.0334 | AA120: -0.005019999335 | AB120: -0.0136377671 | AC120: 0.003997048605 | AD120: 0.002140571748 | AE120: 0.03167644636 | AF120: -0.0006826810038 | AG120: -0.009938122406 | AH120: 0.0290732369 | AI120: 0.02052643445 | AJ120: 0.004548218877 | AK120: -0.01088481965 | AL120: -0.005424437872 | AM120: 0.008480797822 | AN120: -0.01183843785 | AO120: -0.00803627005 | AP120: 0.005237285691 | AQ120: -0.01092278753 | AR120: 0.01765419988 | AS120: -0.0265889743 | AT120: -0.003883807838 | AU120: 0.008296319971
A121: 2016-04-01 | B121: 14 | C121: 4 | D121: 2016 | E121: 123.7164 | F121: 19.195 | G121: 91.135 | H121: 68.8331 | I121: 10.8565 | J121: 168.511 | K121: 122.865 | L121: 82.6102 | M121: 75.84667 | N121: 7.8972 | O121: 14.5024 | P121: 13.679 | Q121: 23.248 | R121: 14.955 | S121: 62.968 | T121: 7.43474 | U121: 75.207 | V121: 98.591 | W121: 62.389 | X121: 126.41 | Y121: 101.1904 | AA121: -0.02535787867 | AB121: 0.04512925172 | AC121: -0.02347818418 | AD121: -0.01395930447 | AE121: -0.006518568804 | AF121: -0.01824673925 | AG121: -0.0146562427 | AH121: -0.02932835679 | AI121: -0.0159156954 | AJ121: -0.01143214929 | AK121: -0.01877129941 | AL121: -0.01415477486 | AM121: -0.02359251633 | AN121: -0.0003342804644 | AO121: -0.02132169733 | AP121: -0.007975118983 | AQ121: -0.03259807555 | AR121: -0.02153318069 | AS121: -0.003120676598 | AT121: -0.01942873491 | AU121: -0.002549361302 | AX121: 123.7164 | AY121: 19.195 | AZ121: 91.135 | BA121: 68.8331 | BB121: 10.8565 | BC121: 168.511 | BD121: 122.865 | BE121: 82.6102 | BF121: 75.84667 | BG121: 7.8972 | BH121: 14.5024 | BI121: 13.679 | BJ121: 23.248 | BK121: 14.955 | BL121: 62.968 | BM121: 7.43474 | BN121: 75.207 | BO121: 98.591 | BP121: 62.389 | BQ121: 126.41 | BR121: 101.1904 | BU121: -0.02366368891 | BV121: 0.1311897758 | BW121: -0.00104186668 | BX121: -0.01552253622 | BY121: 0.04134409152 | BZ121: -0.007137206589 | CA121: -0.01593871548 | CB121: -0.02200635321 | CC121: 0.007186391147 | CD121: 0.02094672477 | CE121: -0.004568102828 | CF121: 0.0004387247804 | CG121: -0.01256695316 | CH121: -0.05039687132 | CI121: -0.0007461324493 | CJ121: -0.0221964574 | CK121: -0.01891396522 | CL121: -0.01376011396 | CM121: -0.01531749912 | CN121: -0.01702068621 | CO121: -0.000380398514
A122: 2016-03-31 | B122: 14 | C122: 3 | D122: 2016 | E122: 126.8937 | F122: 18.348 | G122: 93.3 | H122: 69.8007 | I122: 10.9275 | J122: 171.614 | K122: 124.679 | L122: 85.0689 | M122: 77.06348 | N122: 7.988 | O122: 14.7772 | P122: 13.874 | Q122: 23.803 | R122: 14.96 | S122: 64.325 | T122: 7.49427 | U122: 77.699 | V122: 100.737 | W122: 62.584 | X122: 128.89 | Y122: 101.4487 | AA122: -0.01195174209 | AB122: 0.01300108825 | AC122: 0.003736876973 | AD122: -0.004946150601 | AE122: 0.00828866026 | AF122: -0.0001631435434 | AG122: -0.0189799419 | AH122: -0.009892263247 | AI122: -0.0007698478929 | AJ122: -0.01819844675 | AK122: -0.008436821429 | AL122: 0.01283975421 | AM122: -0.01517644305 | AN122: -0.01512566982 | AO122: -0.006044655727 | AP122: -0.001951586883 | AQ122: -0.01405791915 | AR122: -0.0009624401078 | AS122: -0.02274835868 | AT122: -0.01111036813 | AU122: -0.01823028963
A123: 2016-03-30 | B123: 14 | C123: 3 | D123: 2016 | E123: 128.4194 | F123: 18.111 | G123: 92.952 | H123: 70.1468 | I123: 10.8373 | J123: 171.642 | K123: 127.068 | L123: 85.9146 | M123: 77.12283 | N123: 8.1347 | O123: 14.9024 | P123: 13.697 | Q123: 24.167 | R123: 15.188 | S123: 64.715 | T123: 7.50891 | U123: 78.799 | V123: 100.834 | W123: 64.024 | X123: 130.33 | Y123: 103.3151 | AA123: 0.02667418205 | AB123: 0.07300003757 | AC123: 0.01260166075 | AD123: 0.007499525382 | AE123: 0.04419259037 | AF123: 0.008977382897 | AG123: 0.003034473129 | AH123: 0.02152083057 | AI123: 0.02680584332 | AJ123: 0.05412663928 | AK123: 0.01434166901 | AL123: -0.002697679446 | AM123: 0.03054410149 | AN123: -0.01405665327 | AO123: 0.02360960195 | AP123: 0.0009100000028 | AQ123: 0.02397839163 | AR123: 0.01068825106 | AS123: -0.003741585807 | AT123: 0.01002476008 | AU123: 0.02156857441
A124: 2016-03-29 | B124: 14 | C124: 3 | D124: 2016 | E124: 125.0392 | F124: 16.836 | G124: 91.788 | H124: 69.6227 | I124: 10.3688 | J124: 170.108 | K124: 126.683 | L124: 84.0854 | M124: 75.08295 | N124: 7.7061 | O124: 14.6902 | P124: 13.734 | Q124: 23.44 | R124: 15.403 | S124: 63.205 | T124: 7.50208 | U124: 76.932 | V124: 99.762 | W124: 64.264 | X124: 129.03 | Y124: 101.1106 | AA124: -0.0130282502 | AB124: 5.939829529e-05 | AC124: 0.00609777977 | AD124: -0.004116606522 | AE124: -0.004618590305 | AF124: 0.002295293304 | AG124: 0.01466299599 | AH124: -0.004306563742 | AI124: -0.002933908876 | AJ124: -0.003549318475 | AK124: 0.008298348998 | AL124: 0.004451424872 | AM124: -0.004342095281 | AN124: -0.02088026776 | AO124: 0.003010618658 | AP124: -0.01317975154 | AQ124: 0.003763637847 | AR124: -0.001952744225 | AS124: 0.01429312196 | AT124: 0.00349365675 | AU124: -0.001169321991
A125: 2016-03-24 | B125: 13 | C125: 3 | D125: 2016 | E125: 126.6789 | F125: 16.835 | G125: 91.23 | H125: 69.9099 | I125: 10.4168 | J125: 169.718 | K125: 124.839 | L125: 84.4483 | M125: 75.30356 | N125: 7.7335 | O125: 14.5688 | P125: 13.673 | Q125: 23.542 | R125: 15.728 | S125: 63.015 | T125: 7.60161 | U125: 76.643 | V125: 99.957 | W125: 63.352 | X125: 128.58 | Y125: 101.2289 | AA125: -0.02504163863 | AB125: -0.01742963514 | AC125: -0.0110100856 | AD125: -0.004602472905 | AE125: -0.003679574868 | AF125: -0.01232082108 | AG125: -0.01773681735 | AH125: 0.006765420821 | AI125: -0.01149436121 | AJ125: -0.009254260357 | AK125: -0.008298348998 | AL125: -0.01740056953 | AM125: -0.006224745386 | AN125: -0.02647748626 | AO125: -0.01263114932 | AP125: -0.01528718467 | AQ125: -0.01193223241 | AR125: -0.01644122742 | AS125: -0.006027385327 | AT125: -0.02009537538 | AU125: -0.0009054577401 | AX125: 126.6789 | AY125: 16.835 | AZ125: 91.23 | BA125: 69.9099 | BB125: 10.4168 | BC125: 169.718 | BD125: 124.839 | BE125: 84.4483 | BF125: 75.30356 | BG125: 7.7335 | BH125: 14.5688 | BI125: 13.673 | BJ125: 23.542 | BK125: 15.728 | BL125: 63.015 | BM125: 7.60161 | BN125: 76.643 | BO125: 99.957 | BP125: 63.352 | BQ125: 128.58 | BR125: 101.2289 | BU125: -0.02127293626 | BV125: -0.04102393433 | BW125: -0.01329498407 | BX125: 0.004130969757 | BY125: -0.01036199529 | BZ125: -0.0241754088 | CA125: 0.00755818954 | CB125: 0.02307822374 | CC125: 0.004397495187 | CD125: -0.05081086084 | CE125: -0.01515015353 | CF125: -0.0374667046 | CG125: -0.0005095974291 | CH125: -0.07982748771 | CI125: -0.01474437183 | CJ125: -0.04885149015 | CK125: -0.01707607822 | CL125: 0.03212409144 | CM125: -0.01831527248 | CN125: -0.0162768279 | CO125: 0.02428162374
A126: 2016-03-23 | B126: 13 | C126: 3 | D126: 2016 | E126: 129.8912 | F126: 17.131 | G126: 92.24 | H126: 70.2324 | I126: 10.4552 | J126: 171.822 | K126: 127.073 | L126: 83.8789 | M126: 76.17412 | N126: 7.8054 | O126: 14.6902 | P126: 13.913 | Q126: 23.689 | R126: 16.15 | S126: 63.816 | T126: 7.71871 | U126: 77.563 | V126: 101.614 | W126: 63.735 | X126: 131.19 | Y126: 101.3206 | AA126: -0.02072209952 | AB126: -0.006690544782 | AC126: -0.006052763831 | AD126: 0.007095927271 | AE126: 0.005611014198 | AF126: -0.003294493859 | AG126: 0.01731236063 | AH126: 0.01250651366 | AI126: 0.005012533907 | AJ126: -0.002546272496 | AK126: 0.004906436306 | AL126: 0.007792809478 | AM126: -0.005094855123 | AN126: -0.03522369068 | AO126: 0.004381529235 | AP126: -0.02027320884 | AQ126: -0.004810298664 | AR126: 0.004804168241 | AS126: 0 | AT126: 0.001067724324 | AU126: 0.01633472406
A127: 2016-03-22 | B127: 13 | C127: 3 | D127: 2016 | E127: 132.6109 | F127: 17.246 | G127: 92.8 | H127: 69.7358 | I127: 10.3967 | J127: 172.389 | K127: 124.892 | L127: 82.8364 | M127: 75.79325 | N127: 7.8253 | O127: 14.6183 | P127: 13.805 | Q127: 23.81 | R127: 16.729 | S127: 63.537 | T127: 7.87679 | U127: 77.937 | V127: 101.127 | W127: 63.735 | X127: 131.05 | Y127: 99.679 | AA127: 0.02314860791 | AB127: 0.001450663207 | AC127: 0.009201688742 | AD127: 0.00467854426 | AE127: 0.01704402076 | AF127: 0.002898813749 | AG127: -0.002319314523 | AH127: 0.001531900799 | AI127: 0.008059623663 | AJ127: -0.01345488229 | AK127: -0.01011402112 | AL127: -0.01474051497 | AM127: 0.005221504199 | AN127: -0.01836109388 | AO127: 0.0007557508271 | AP127: -0.008634925972 | AQ127: -0.002486097085 | AR127: 0.01163705917 | AS127: 0 | AT127: 0.001680159247 | AU127: 0.01181015374
A128: 2016-03-21 | B128: 13 | C128: 3 | D128: 2016 | E128: 129.5764 | F128: 17.221 | G128: 91.95 | H128: 69.4103 | I128: 10.221 | J128: 171.89 | K128: 125.182 | L128: 82.7096 | M128: 75.18484 | N128: 7.9313 | O128: 14.7669 | P128: 14.01 | Q128: 23.686 | R128: 17.039 | S128: 63.489 | T128: 7.9451 | U128: 78.131 | V128: 99.957 | W128: 63.735 | X128: 130.83 | Y128: 98.5087 | AA128: 0.00134219397 | AB128: -0.01835441762 | AC128: -0.005433823382 | AD128: -0.00304102887 | AE128: -0.02933745538 | AF128: -0.01145890761 | AG128: 0.01030196078 | AH128: 0.00227438846 | AI128: 0.00281969883 | AJ128: -0.0255554457 | AK128: -0.001644219721 | AL128: -0.01311842958 | AM128: 0.00558849888 | AN128: 0.0002347831202 | AO128: -0.007250502573 | AP128: -0.00465617067 | AQ128: 0.002152549936 | AR128: 0.03212409144 | AS128: -0.01228788715 | AT128: 0.001070663914 | AU128: -0.002957796319
A129: 2016-03-18 | B129: 12 | C129: 3 | D129: 2016 | E129: 129.4026 | F129: 17.54 | G129: 92.451 | H129: 69.6217 | I129: 10.5253 | J129: 173.871 | K129: 123.899 | L129: 82.5217 | M129: 74.97314 | N129: 8.1366 | O129: 14.7912 | P129: 14.195 | Q129: 23.554 | R129: 17.035 | S129: 63.951 | T129: 7.98218 | U129: 77.963 | V129: 96.797 | W129: 64.523 | X129: 130.69 | Y129: 98.8005 | AA129: -0.004652897831 | AB129: 0.0002851033519 | AC129: 0.01640185517 | AD129: 0.001837321421 | AE129: 0.02821295334 | AF129: -0.005345980599 | AG129: 0.005836253852 | AH129: 0.006576215551 | AI129: 0.005636937484 | AJ129: 0.01417216935 | AK129: 0.0004463108426 | AL129: -0.005479850723 | AM129: 0.01389415935 | AN129: 0.005769473204 | AO129: 0.009489615432 | AP129: 0.01118712362 | AQ129: 0.006872967747 | AR129: 0.003840127272 | AS129: 0.00148894948 | AT129: -0.005570194861 | AU129: 0.002438180295 | AX129: 129.4026 | AY129: 17.54 | AZ129: 92.451 | BA129: 69.6217 | BB129: 10.5253 | BC129: 173.871 | BD129: 123.899 | BE129: 82.5217 | BF129: 74.97314 | BG129: 8.1366 | BH129: 14.7912 | BI129: 14.195 | BJ129: 23.554 | BK129: 17.035 | BL129: 63.951 | BM129: 7.98218 | BN129: 77.963 | BO129: 96.797 | BP129: 64.523 | BQ129: 130.69 | BR129: 98.8005 | BU129: -0.006840400744 | BV129: 0.007496673067 | BW129: 0.03944788631 | BX129: 0.008010835418 | BY129: 0.02100711857 | BZ129: -0.01294845638 | CA129: -0.02912012456 | CB129: -0.003236329044 | CC129: -0.003122373621 | CD129: 0.0319049143 | CE129: 0.002972394151 | CF129: -0.02305035726 | CG129: 0.03578601392 | CH129: -0.07315989404 | CI129: 0.03217704131 | CJ129: -0.02832283588 | CK129: 0.03155879996 | CL129: 0.01318613576 | CM129: 0.02668458331 | CN129: 0.002068094644 | CO129: 0.003488854879
A130: 2016-03-17 | B130: 12 | C130: 3 | D130: 2016 | E130: 130.0061 | F130: 17.535 | G130: 90.947 | H130: 69.4939 | I130: 10.2325 | J130: 174.803 | K130: 123.178 | L130: 81.9808 | M130: 74.55171 | N130: 8.0221 | O130: 14.7846 | P130: 14.273 | Q130: 23.229 | R130: 16.937 | S130: 63.347 | T130: 7.89338 | U130: 77.429 | V130: 96.426 | W130: 64.427 | X130: 131.42 | Y130: 98.5599 | AA130: -0.002954722425 | AB130: 0.008073564425 | AC130: -0.007143435326 | AD130: -0.01234756612 | AE130: -0.003745724602 | AF130: -0.02287106619 | AG130: -0.02076871963 | AH130: -0.02212691558 | AI130: -0.02291740887 | AJ130: 0.0008230658418 | AK130: -0.0131899579 | AL130: -0.0435954168 | AM130: -0.002837247196 | AN130: -0.01686123899 | AO130: -0.01978807925 | AP130: -0.02635184266 | AQ130: -0.02667232551 | AR130: -0.008868940128 | AS130: -0.0004500205689 | AT130: -0.005463665132 | AU130: -0.02410547518
A131: 2016-03-16 | B131: 12 | C131: 3 | D131: 2016 | E131: 130.3908 | F131: 17.394 | G131: 91.599 | H131: 70.3573 | I131: 10.2709 | J131: 178.847 | K131: 125.763 | L131: 83.815 | M131: 76.27997 | N131: 8.0155 | O131: 14.9809 | P131: 14.909 | Q131: 23.295 | R131: 17.225 | S131: 64.613 | T131: 8.10415 | U131: 79.522 | V131: 97.285 | W131: 64.456 | X131: 132.14 | Y131: 100.9646 | AA131: 0.01817229282 | AB131: 0.008893053932 | AC131: 0.01334203016 | AD131: 0.00476421365 | AE131: -0.006434385387 | AF131: 0.008710039538 | AG131: -0.007628092072 | AH131: 0.009728008733 | AI131: 0.003364595976 | AJ131: 0.001898126171 | AK131: 0.00714116489 | AL131: 0.01868580534 | AM131: 0.003353976312 | AN131: -0.04932910247 | AO131: 0.02204803864 | AP131: -0.00540481324 | AQ131: 0.03801121376 | AR131: -0.00240241589 | AS131: 0.01576214769 | AT131: 0.00310759336 | AU131: 0.01231044492
A132: 2016-03-15 | B132: 12 | C132: 3 | D132: 2016 | E132: 128.0427 | F132: 17.24 | G132: 90.385 | H132: 70.0229 | I132: 10.3372 | J132: 177.296 | K132: 126.726 | L132: 83.0036 | M132: 76.02375 | N132: 8.0003 | O132: 14.8743 | P132: 14.633 | Q132: 23.217 | R132: 18.096 | S132: 63.204 | T132: 8.14807 | U132: 76.556 | V132: 97.519 | W132: 63.448 | X132: 131.73 | Y132: 99.7293 | AA132: -0.03287529973 | AB132: -0.01628203849 | AC132: -0.005791681707 | AD132: 0.0006171314157 | AE132: -0.02557654864 | AF132: -0.001037274317 | AG132: -0.0237826119 | AH132: -0.004964548778 | AI132: -0.01107730698 | AJ132: -0.01584815293 | AK132: -0.004326963693 | AL132: -6.833635155e-05 | AM132: 0.002458116252 | AN132: -0.02370012092 | AO132: 0.002106514341 | AP132: -0.0165086391 | AQ132: -0.008985580896 | AR132: -0.002488722666 | AS132: 0.0137110184 | AT132: -0.001062215578 | AU132: -0.007376767369
A133: 2016-03-14 | B133: 12 | C133: 3 | D133: 2016 | E133: 132.3221 | F133: 17.523 | G133: 90.91 | H133: 69.9797 | I133: 10.605 | J133: 177.48 | K133: 129.776 | L133: 83.4167 | M133: 76.87057 | N133: 8.1281 | O133: 14.9388 | P133: 14.634 | Q133: 23.16 | R133: 18.53 | S133: 63.071 | T133: 8.2837 | U133: 77.247 | V133: 97.762 | W133: 62.584 | X133: 131.87 | Y133: 100.4677 | AA133: 0.01547022642 | AB133: 0.00652698985 | AC133: 0.02263911801 | AD133: 0.01313973505 | AE133: 0.02855082386 | AF133: 0.007595825185 | AG133: 0.01722304519 | AH133: 0.007550911026 | AI133: 0.02187080877 | AJ133: 0.03085970587 | AK133: 0.01290184001 | AL133: 0.007407441278 | AM133: 0.01891700921 | AN133: 0.01096109515 | AO133: 0.01832095214 | AP133: 0.008755335498 | AQ133: 0.02233252486 | AR133: 0.02310608717 | AS133: -0.00382751169 | AT133: 0.01105657685 | AU133: 0.02022247222
A134: 2016-03-11 | B134: 11 | C134: 3 | D134: 2016 | E134: 130.2908 | F134: 17.409 | G134: 88.875 | H134: 69.0662 | I134: 10.3065 | J134: 176.137 | K134: 127.56 | L134: 82.7892 | M134: 75.2076 | N134: 7.8811 | O134: 14.7473 | P134: 14.526 | Q134: 22.726 | R134: 18.328 | S134: 61.926 | T134: 8.21149 | U134: 75.541 | V134: 95.529 | W134: 62.824 | X134: 130.42 | Y134: 98.4564 | AA134: 0.04229228836 | AB134: 0.08003313413 | AC134: 0.02410825453 | AD134: 0.03016391215 | AE134: 0.02299561058 | AF134: 0.03417038328 | AG134: 0.03760646329 | AH134: -0.008257953438 | AI134: 0.02722764832 | AJ134: 0.0378071893 | AK134: 0.03095433591 | AL134: 0.04606772715 | AM134: 0.03743405004 | AN134: 0.06678168698 | AO134: 0.03721130038 | AP134: 0.04558662631 | AQ134: 0.0433121524 | AR134: 0.0249074919 | AS134: 0.005362627765 | AT134: 0.04268630347 | AU134: 0.02289135658 | AX134: 130.2908 | AY134: 17.409 | AZ134: 88.875 | BA134: 69.0662 | BB134: 10.3065 | BC134: 176.137 | BD134: 127.56 | BE134: 82.7892 | BF134: 75.2076 | BG134: 7.8811 | BH134: 14.7473 | BI134: 14.526 | BJ134: 22.726 | BK134: 18.328 | BL134: 61.926 | BM134: 8.21149 | BN134: 75.541 | BO134: 95.529 | BP134: 62.824 | BQ134: 130.42 | BR134: 98.4564 | BU134: -0.05713257387 | BV134: 0.02618864752 | BW134: -0.009908553651 | BX134: 0.001069111334 | BY134: -0.05189709984 | BZ134: 0.02685960908 | CA134: -0.008353223949 | CB134: -0.001637760822 | CC134: 0.00284537944 | CD134: -0.0422000399 | CE134: 0.01983978733 | CF134: 0.03203743257 | CG134: 0.02938104809 | CH134: 0.01661478502 | CI134: -0.03028317546 | CJ134: 0.03568495883 | CK134: -0.04931890776 | CL134: -0.00539737706 | CM134: 0.01505934208 | CN134: 0.02444919796 | CO134: 0.02292253296
A135: 2016-03-10 | B135: 11 | C135: 3 | D135: 2016 | E135: 124.8954 | F135: 16.07 | G135: 86.758 | H135: 67.014 | I135: 10.0722 | J135: 170.22 | K135: 122.852 | L135: 83.4757 | M135: 73.1875 | N135: 7.5887 | O135: 14.2978 | P135: 13.872 | Q135: 21.891 | R135: 17.144 | S135: 59.664 | T135: 7.84556 | U135: 72.339 | V135: 93.179 | W135: 62.488 | X135: 124.97 | Y135: 96.2282 | AA135: -0.03998939958 | AB135: -0.02761758834 | AC135: -0.02674892803 | AD135: -0.02247365171 | AE135: -0.02103375921 | AF135: -0.008424058241 | AG135: -0.02186706565 | AH135: -0.0007065428555 | AI135: -0.02560841648 | AJ135: -0.01337751304 | AK135: -0.005600536331 | AL135: -0.01545095116 | AM135: -0.01653604173 | AN135: -0.006163885306 | AO135: -0.03887319419 | AP135: 0.001119730973 | AQ135: -0.04162953135 | AR135: -0.02938822132 | AS135: -0.01117152248 | AT135: -0.02278399324 | AU135: 0.01444895241
A136: 2016-03-09 | B136: 11 | C136: 3 | D136: 2016 | E136: 129.9911 | F136: 16.52 | G136: 89.11 | H136: 68.5371 | I136: 10.2863 | J136: 171.66 | K136: 125.568 | L136: 83.5347 | M136: 75.08592 | N136: 7.6909 | O136: 14.3781 | P136: 14.088 | Q136: 22.256 | R136: 17.25 | S136: 62.029 | T136: 7.83678 | U136: 75.414 | V136: 95.958 | W136: 63.19 | X136: 127.85 | Y136: 94.8478 | AA136: =LN(E136/E137) -> -0.003070108283 | AB136: =LN(F136/F137) -> -0.001330833177 | AC136: =LN(G136/G137) -> 0.001909576542 | AD136: =LN(H136/H137) -> 0.0009897348669 | AE136: =LN(I136/I137) -> -0.01334589212 | AF136: =LN(J136/J137) -> 0.007308478171 | AG136: =LN(K136/K137) -> -0.01628800849 | AH136: =LN(L136/L137) -> 0.01422901445 | AI136: =LN(M136/M137) -> -0.0011454973 | AJ136: =LN(N136/N137) -> -0.0300602149 | AK136: =LN(O136/O137) -> 0.007238492473 | AL136: =LN(P136/P137) -> 0.00569477621 | AM136: =LN(Q136/Q137) -> -0.02922372137 | AN136: =LN(R136/R137) -> -0.006356565755 | AO136: =LN(S136/S137) -> -0.001353289182 | AP136: =LN(T136/T137) -> 0.001495353637 | AQ136: =LN(U136/U137) -> -0.01692181193 | AR136: =LN(V136/V137) -> 0.008161773082 | AS136: =LN(W136/W137) -> 0.01967318481 | AT136: =LN(X136/X137) -> 0.007064393587 | AU136: =LN(Y136/Y137) -> 0.003894855576
A137: 2016-03-08 | B137: 11 | C137: 3 | D137: 2016 | E137: 130.3908 | F137: 16.542 | G137: 88.94 | H137: 68.4693 | I137: 10.4245 | J137: 170.41 | K137: 127.63 | L137: 82.3545 | M137: 75.17198 | N137: 7.9256 | O137: 14.2744 | P137: 14.008 | Q137: 22.916 | R137: 17.36 | S137: 62.113 | T137: 7.82507 | U137: 76.701 | V137: 95.178 | W137: 61.959 | X137: 126.95 | Y137: 94.4791 | AA137: -0.03019057884 | AB137: -0.03492871107 | AC137: -0.002212526945 | AD137: 0.003309139572 | AE137: -0.03439609738 | AF137: -0.002297692768 | AG137: -0.0151012582 | AH137: 0.001911861718 | AI137: 0.001303595361 | AJ137: -0.02172899728 | AK137: -0.01068224679 | AL137: -0.01121613235 | AM137: 0.04370623373 | AN137: -0.01747317909 | AO137: -0.02434974824 | AP137: -0.01975609402 | AQ137: -0.02556321144 | AR137: -0.006639115438 | AS137: 0.03900188269 | AT137: -0.0021245631 | AU137: -0.01476152442
A138: 2016-03-07 | B138: 11 | C138: 3 | D138: 2016 | E138: 134.3874 | F138: 17.13 | G138: 89.137 | H138: 68.2431 | I138: 10.7893 | J138: 170.802 | K138: 129.572 | L138: 82.1972 | M138: 75.07405 | N138: 8.0997 | O138: 14.4277 | P138: 14.166 | Q138: 21.936 | R138: 17.666 | S138: 63.644 | T138: 7.9812 | U138: 78.687 | V138: 95.812 | W138: 59.589 | X138: 127.22 | Y138: 95.8841 | AA138: -0.02617477552 | AB138: 0.01003264597 | AC138: -0.006964929747 | AD138: -0.01092002355 | AE138: -0.006116961711 | AF138: -0.003897501362 | AG138: 0.007296645103 | AH138: -0.008814140702 | AI138: 0.001068049537 | AJ138: -0.01484050398 | AK138: -0.002070257929 | AL138: 0.00694201272 | AM138: -0.00599947259 | AN138: -0.02017327181 | AO138: -0.002918244222 | AP138: 0.007239341939 | AQ138: -0.008516505442 | AR138: -0.002439305278 | AS138: -0.03780683071 | AT138: -0.0003929427533 | AU138: -0.003551107192
A139: 2016-03-04 | B139: 10 | C139: 3 | D139: 2016 | E139: 137.9514 | F139: 16.959 | G139: 89.76 | H139: 68.9924 | I139: 10.8555 | J139: 171.469 | K139: 128.63 | L139: 82.9249 | M139: 74.99391 | N139: 8.2208 | O139: 14.4576 | P139: 14.068 | Q139: 22.068 | R139: 18.026 | S139: 63.83 | T139: 7.92363 | U139: 79.36 | V139: 96.046 | W139: 61.885 | X139: 127.27 | Y139: 96.2252 | AA139: 0.0205620525 | AB139: 0.021395971 | AC139: 0.02150862714 | AD139: 0.004900934273 | AE139: 0.00212098936 | AF139: -0.008848639002 | AG139: 0.01469975526 | AH139: -0.00208525526 | AI139: -0.0005934720648 | AJ139: 0.008441033475 | AK139: -0.001223520781 | AL139: 0.03353884747 | AM139: 0.01304465476 | AN139: 0.01548598383 | AO139: 0.005860788104 | AP139: 0.007416726052 | AQ139: 0.01808082416 | AR139: 0.008868310198 | AS139: 0.01140845084 | AT139: -0.00243280481 | AU139: -0.0007375803752 | AX139: 137.9514 | AY139: 16.959 | AZ139: 89.76 | BA139: 68.9924 | BB139: 10.8555 | BC139: 171.469 | BD139: 128.63 | BE139: 82.9249 | BF139: 74.99391 | BG139: 8.2208 | BH139: 14.4576 | BI139: 14.068 | BJ139: 22.068 | BK139: 18.026 | BL139: 63.83 | BM139: 7.92363 | BN139: 79.36 | BO139: 96.046 | BP139: 61.885 | BQ139: 127.27 | BR139: 96.2252 | BU139: 0.1258676487 | BV139: 0.1139869596 | BW139: 0.03988938586 | BX139: 0.0051718904 | BY139: 0.06643982542 | BZ139: -0.009622936972 | CA139: 0.02373431423 | CB139: 0.0178281871 | CC139: -0.03490804676 | CD139: 0.01953067129 | CE139: 0.002721994761 | CF139: 0.0553870822 | CG139: 0.03218732175 | CH139: 0.1292767737 | CI139: 0.06933983528 | CJ139: 0.0928504473 | CK139: 0.1167518765 | CL139: 0.006727700776 | CM139: 0.03268479481 | CN139: 0.02369326925 | CO139: -0.0112485033
A140: 2016-03-03 | B140: 10 | C140: 3 | D140: 2016 | E140: 135.1438 | F140: 16.6 | G140: 87.85 | H140: 68.6551 | I140: 10.8325 | J140: 172.993 | K140: 126.753 | L140: 83.098 | M140: 75.03843 | N140: 8.1517 | O140: 14.4753 | P140: 13.604 | Q140: 21.782 | R140: 17.749 | S140: 63.457 | T140: 7.86508 | U140: 77.938 | V140: 95.198 | W140: 61.183 | X140: 127.58 | Y140: 96.2962 | AA140: 0.01288831761 | AB140: 0.01517479802 | AC140: 0.006280351788 | AD140: -0.02136931057 | AE140: 0.007924228773 | AF140: -0.01122622363 | AG140: -0.00262371181 | AH140: 0.002203441463 | AI140: -0.02413559485 | AJ140: -0.002095524801 | AK140: -0.01340174248 | AL140: -0.003375654486 | AM140: 0.007372625783 | AN140: 0.03200135691 | AO140: 0.006386868601 | AP140: 0.01273542336 | AQ140: 0.008905558744 | AR140: -0.01241240458 | AS140: -0.0006208947619 | AT140: -0.005315834907 | AU140: -0.01456583898
A141: 2016-03-02 | B141: 10 | C141: 3 | D141: 2016 | E141: 133.4132 | F141: 16.35 | G141: 87.3 | H141: 70.138 | I141: 10.747 | J141: 174.946 | K141: 127.086 | L141: 82.9151 | M141: 76.87156 | N141: 8.1688 | O141: 14.6706 | P141: 13.65 | Q141: 21.622 | R141: 17.19 | S141: 63.053 | T141: 7.76555 | U141: 77.247 | V141: 96.387 | W141: 61.221 | X141: 128.26 | Y141: 97.7091 | AA141: 0.02062679836 | AB141: 0.01547073908 | AC141: 0.003442344191 | AD141: -0.003136028216 | AE141: 0.007256187196 | AF141: -0.002494799041 | AG141: -0.008899113988 | AH141: 0.0216177189 | AI141: -0.01450079565 | AJ141: -0.01482444704 | AK141: -0.01265929714 | AL141: -0.006426194161 | AM141: 0.004310451391 | AN141: 0.04102804639 | AO141: 0.02575180655 | AP141: 0.04195987599 | AQ141: 0.03166894059 | AR141: 0.007811563281 | AS141: 0.004420005231 | AT141: 0.01769818484 | AU141: -0.018871239 | AX141: =IF($B141<$B140,E141,"") ->  | AY141: =IF($B141<$B140,F141,"") ->  | AZ141: =IF($B141<$B140,G141,"") ->  | BA141: =IF($B141<$B140,H141,"") ->  | BB141: =IF($B141<$B140,I141,"") ->  | BC141: =IF($B141<$B140,J141,"") ->  | BD141: =IF($B141<$B140,K141,"") ->  | BE141: =IF($B141<$B140,L141,"") ->  | BF141: =IF($B141<$B140,M141,"") ->  | BG141: =IF($B141<$B140,N141,"") ->  | BH141: =IF($B141<$B140,O141,"") ->  | BI141: =IF($B141<$B140,P141,"") ->  | BJ141: =IF($B141<$B140,Q141,"") ->  | BK141: =IF($B141<$B140,R141,"") ->  | BL141: =IF($B141<$B140,S141,"") ->  | BM141: =IF($B141<$B140,T141,"") ->  | BN141: =IF($B141<$B140,U141,"") ->  | BO141: =IF($B141<$B140,V141,"") ->  | BP141: =IF($B141<$B140,W141,"") ->  | BQ141: =IF($B141<$B140,X141,"") ->  | BR141: =IF($B141<$B140,Y141,"") ->  | BU141: =IFERROR(LN(AX141/SUM(AX145:AX146)),"") ->  | BV141: =IFERROR(LN(AY141/SUM(AY145:AY146)),"") ->  | BW141: =IFERROR(LN(AZ141/SUM(AZ145:AZ146)),"") ->  | BX141: =IFERROR(LN(BA141/SUM(BA145:BA146)),"") ->  | BY141: =IFERROR(LN(BB141/SUM(BB145:BB146)),"") ->  | BZ141: =IFERROR(LN(BC141/SUM(BC145:BC146)),"") ->  | CA141: =IFERROR(LN(BD141/SUM(BD145:BD146)),"") ->  | CB141: =IFERROR(LN(BE141/SUM(BE145:BE146)),"") ->  | CC141: =IFERROR(LN(BF141/SUM(BF145:BF146)),"") ->  | CD141: =IFERROR(LN(BG141/SUM(BG145:BG146)),"") ->  | CE141: =IFERROR(LN(BH141/SUM(BH145:BH146)),"") ->  | CF141: =IFERROR(LN(BI141/SUM(BI145:BI146)),"") ->  | CG141: =IFERROR(LN(BJ141/SUM(BJ145:BJ146)),"") ->  | CH141: =IFERROR(LN(BK141/SUM(BK145:BK146)),"") ->  | CI141: =IFERROR(LN(BL141/SUM(BL145:BL146)),"") ->  | CJ141: =IFERROR(LN(BM141/SUM(BM145:BM146)),"") ->  | CK141: =IFERROR(LN(BN141/SUM(BN145:BN146)),"") ->  | CL141: =IFERROR(LN(BO141/SUM(BO145:BO146)),"") ->  | CM141: =IFERROR(LN(BP141/SUM(BP145:BP146)),"") ->  | CN141: =IFERROR(LN(BQ141/SUM(BQ145:BQ146)),"") ->  | CO141: =IFERROR(LN(BR141/SUM(BR145:BR146)),"") -> 
A142: 2016-03-01 | B142: 10 | C142: 3 | D142: 2016 | E142: 130.6895 | F142: 16.099 | G142: 87 | H142: 70.3583 | I142: 10.6693 | J142: 175.383 | K142: 128.222 | L142: 81.1419 | M142: 77.99438 | N142: 8.2908 | O142: 14.8575 | P142: 13.738 | Q142: 21.529 | R142: 16.499 | S142: 61.45 | T142: 7.44645 | U142: 74.839 | V142: 95.637 | W142: 60.951 | X142: 126.01 | Y142: 99.5705 | AA142: 0.02947455266 | AB142: 0.03991913701 | AC142: 0.01651493424 | AD142: 0.02311674887 | AE142: 0.05691640729 | AF142: 0.01292362054 | AG142: 0.02834157764 | AH142: 0.03599420272 | AI142: 0.01334330016 | AJ142: 0.04194938072 | AK142: 0.02838493319 | AL142: 0.02341958425 | AM142: 0.01450385676 | AN142: 0.03352751328 | AO142: 0.03214668821 | AP142: 0.01744817058 | AQ142: 0.03621770389 | AR142: 0.01687145263 | AS142: 0.004719821285 | AT142: 0.01809786743 | AU142: 0.02522858257
A143: 2016-02-29 | B143: 10 | C143: 2 | D143: 2016 | E143: 126.8937 | F143: 15.469 | G143: 85.575 | H143: 68.7505 | I143: 10.079 | J143: 173.131 | K143: 124.639 | L143: 78.2732 | M143: 76.96059 | N143: 7.9502 | O143: 14.4417 | P143: 13.42 | Q143: 21.219 | R143: 15.955 | S143: 59.506 | T143: 7.31765 | U143: 72.177 | V143: 94.037 | W143: 60.664 | X143: 123.75 | Y143: 97.0899 | AA143: 0.04231592762 | AB143: 0.02202631448 | AC143: -0.007856871495 | AD143: 0.001659546044 | AE143: -0.007777987197 | AF143: 2.310415933e-05 | AG143: -0.007784192879 | AH143: -0.03990192072 | AI143: -0.009021484349 | AJ143: -0.01393977106 | AK143: 0.001621621977 | AL143: 0.008230499137 | AM143: -0.007044266942 | AN143: 0.007233873344 | AO143: -0.0008063161868 | AP143: 0.01329025133 | AQ143: 0.02187884907 | AR143: -0.01441122075 | AS143: 0.01275741222 | AT143: -0.004354143309 | AU143: -0.002302427515
A144: 2016-02-26 | B144: 9 | C144: 2 | D144: 2016 | E144: 121.6361 | F144: 15.132 | G144: 86.25 | H144: 68.6365 | I144: 10.1577 | J144: 173.127 | K144: 125.613 | L144: 81.4596 | M144: 77.65803 | N144: 8.0618 | O144: 14.4183 | P144: 13.31 | Q144: 21.369 | R144: 15.84 | S144: 59.554 | T144: 7.22104 | U144: 70.615 | V144: 95.402 | W144: 59.895 | X144: 124.29 | Y144: 97.3137 | AA144: 0.0418360851 | AB144: 0.03688666939 | AC144: 0.02227524692 | AD144: -0.000428251807 | AE144: 0.01734839222 | AF144: 0.01485620906 | AG144: 0.01537880928 | AH144: 0.007635299287 | AI144: 0.01653084075 | AJ144: -0.0005952233503 | AK144: -0.0007764890607 | AL144: -0.001501501784 | AM144: 0.002577139866 | AN144: 0.04097983526 | AO144: 0.02581995634 | AP144: 0.02047818752 | AQ144: 0.02906667667 | AR144: 0.02503779071 | AS144: 0.001905144465 | AT144: 0.02048352524 | AU144: -0.005717656343 | AX144: 121.6361 | AY144: 15.132 | AZ144: 86.25 | BA144: 68.6365 | BB144: 10.1577 | BC144: 173.127 | BD144: 125.613 | BE144: 81.4596 | BF144: 77.65803 | BG144: 8.0618 | BH144: 14.4183 | BI144: 13.31 | BJ144: 21.369 | BK144: 15.84 | BL144: 59.554 | BM144: 7.22104 | BN144: 70.615 | BO144: 95.402 | BP144: 59.895 | BQ144: 124.29 | BR144: 97.3137 | BU144: 0.02939962697 | BV144: 0.01612186007 | BW144: 0.01785114138 | BX144: 0.003214824513 | BY144: 0.02604077476 | BZ144: 0.03158046007 | CA144: 0.01240819037 | CB144: -0.01020923636 | CC144: 0.02707668699 | CD144: -0.005739038634 | CE144: 0.01206418551 | CF144: 0.004971012722 | CG144: 0.04812353256 | CH144: 0.04433985423 | CI144: -0.007910997012 | CJ144: 0.01841238179 | CK144: -0.002446908288 | CL144: -0.002041896217 | CM144: 0.06195178143 | CN144: 0.02790195689 | CO144: -0.003953589759
A145: 2016-02-25 | B145: 9 | C145: 2 | D145: 2016 | E145: 116.6523 | F145: 14.584 | G145: 84.35 | H145: 68.6659 | I145: 9.983 | J145: 170.574 | K145: 123.696 | L145: 80.84 | M145: 76.38483 | N145: 8.0666 | O145: 14.4295 | P145: 13.33 | Q145: 21.314 | R145: 15.204 | S145: 58.036 | T145: 7.07467 | U145: 68.592 | V145: 93.043 | W145: 59.781 | X145: 121.77 | Y145: 97.8717 | AA145: -0.01001379069 | AB145: -0.004924770555 | AC145: 0.01376351951 | AD145: 0.02071971812 | AE145: 0.02099416129 | AF145: 0.009714390722 | AG145: 0.01598860609 | AH145: 0.0004627493083 | AI145: 0.03974969627 | AJ145: 0.01990775766 | AK145: 0.02074100707 | AL145: 0.02660742291 | AM145: 0.04280035066 | AN145: 0.02923131049 | AO145: 0.004143938522 | AP145: 0.0140293445 | AQ145: 0.01273528759 | AR145: 0.00652360237 | AS145: 0.03233326023 | AT145: 0.01647729268 | AU145: 0.02310184529
A146: 2016-02-24 | B146: 9 | C146: 2 | D146: 2016 | E146: 117.8263 | F146: 14.656 | G146: 83.197 | H146: 67.2578 | I146: 9.7756 | J146: 168.925 | K146: 121.734 | L146: 80.8026 | M146: 73.40811 | N146: 7.9076 | O146: 14.1333 | P146: 12.98 | Q146: 20.421 | R146: 14.766 | S146: 57.796 | T146: 6.97611 | U146: 67.724 | V146: 92.438 | W146: 57.879 | X146: 119.78 | Y146: 95.6366 | AA146: -0.02695582805 | AB146: -0.01301536811 | AC146: -0.02554915976 | AD146: -0.01987469156 | AE146: -0.01955066779 | AF146: 0.001042425629 | AG146: -0.01966828488 | AH146: -0.02283795896 | AI146: -0.0304726337 | AJ146: -0.03237527242 | AK146: -0.0148328784 | AL146: -0.01975730768 | AM146: -0.01911009751 | AN146: -0.031005584 | AO146: -0.03155781481 | AP146: -0.03396729771 | AQ146: -0.0321828113 | AR146: -0.02510466945 | AS146: -0.01401695692 | AT146: -0.01606659819 | AU146: -0.01134732389
A147: 2016-02-23 | B147: 9 | C147: 2 | D147: 2016 | E147: 121.0456 | F147: 14.848 | G147: 85.35 | H147: 68.6079 | I147: 9.9686 | J147: 168.749 | K147: 124.152 | L147: 82.6692 | M147: 75.67948 | N147: 8.1678 | O147: 14.3445 | P147: 13.239 | Q147: 20.815 | R147: 15.231 | S147: 59.649 | T147: 7.21714 | U147: 69.939 | V147: 94.788 | W147: 58.696 | X147: 121.72 | Y147: 96.728 | AA147: -0.006606211511 | AB147: -0.05196655907 | AC147: -0.01337240394 | AD147: -0.008691435241 | AE147: -0.03973720194 | AF147: -0.01747613301 | AG147: -0.01016148375 | AH147: -0.006521632502 | AI147: -0.01719771375 | AJ147: -0.04064273802 | AK147: -0.02266973733 | AL147: -0.004371426919 | AM147: -0.01695844004 | AN147: -0.034522898 | AO147: -0.02666604119 | AP147: -0.0126285583 | AQ147: -0.03480383589 | AR147: -0.01804525657 | AS147: 0.02718224999 | AT147: -0.009240773938 | AU147: -0.00951643891
A148: 2016-02-22 | B148: 9 | C148: 2 | D148: 2016 | E148: 121.8479 | F148: 15.64 | G148: 86.499 | H148: 69.2068 | I148: 10.3727 | J148: 171.724 | K148: 125.42 | L148: 83.2101 | M148: 76.99225 | N148: 8.5066 | O148: 14.6734 | P148: 13.297 | Q148: 21.171 | R148: 15.766 | S148: 61.261 | T148: 7.30886 | U148: 72.416 | V148: 96.514 | W148: 57.122 | X148: 122.85 | Y148: 97.6529 | AA148: 0.03113937212 | AB148: 0.04914188842 | AC148: 0.02073393865 | AD148: 0.011489485 | AE148: 0.04698609098 | AF148: 0.02344356767 | AG148: 0.01087054363 | AH148: 0.01105230651 | AI148: 0.01846649743 | AJ148: 0.04796643751 | AK148: 0.02960228323 | AL148: 0.00399382619 | AM148: 0.03881457959 | AN148: 0.03965719048 | AO148: 0.02034896413 | AP148: 0.03050070578 | AQ148: 0.02273777464 | AR148: 0.009546636731 | AS148: 0.01454808367 | AT148: 0.0162485111 | AU148: -0.0004740159012
A149: 2016-02-19 | B149: 8 | C149: 2 | D149: 2016 | E149: 118.1121 | F149: 14.89 | G149: 84.724 | H149: 68.4162 | I149: 9.8966 | J149: 167.745 | K149: 124.064 | L149: 82.2955 | M149: 75.58352 | N149: 8.1082 | O149: 14.2454 | P149: 13.244 | Q149: 20.365 | R149: 15.153 | S149: 60.027 | T149: 7.0893 | U149: 70.788 | V149: 95.597 | W149: 56.297 | X149: 120.87 | Y149: 97.6992 | AA149: -0.05701790656 | AB149: 0.001478594261 | AC149: 0.002126805632 | AD149: 0.008211510049 | AE149: -0.02101720082 | AF149: 0.00151535067 | AG149: 0.01491758989 | AH149: -0.00096799256 | AI149: -0.01388177702 | AJ149: -0.03857680806 | AK149: -0.0007227791523 | AL149: 0.01001677824 | AM149: -0.02257651417 | AN149: -0.01986344302 | AO149: -0.02126266813 | AP149: -0.02366924915 | AQ149: -0.0205397133 | AR149: -0.009443019451 | AS149: -0.0259149084 | AT149: -0.01257878221 | AU149: 0.009847796888 | AX149: 118.1121 | AY149: 14.89 | AZ149: 84.724 | BA149: 68.4162 | BB149: 9.8966 | BC149: 167.745 | BD149: 124.064 | BE149: 82.2955 | BF149: 75.58352 | BG149: 8.1082 | BH149: 14.2454 | BI149: 13.244 | BJ149: 20.365 | BK149: 15.153 | BL149: 60.027 | BM149: 7.0893 | BN149: 70.788 | BO149: 95.597 | BP149: 56.297 | BQ149: 120.87 | BR149: 97.6992 | BU149: 0.06770068569 | BV149: 0.06808184076 | BW149: 0.04903215558 | BX149: 0.06090447409 | BY149: -0.1018967706 | BZ149: 0.07540703149 | CA149: 0.06911435995 | CB149: 0.06415534153 | CC149: 0.03282211433 | CD149: 0.01445987927 | CE149: 0.05023940059 | CF149: 0.08885266916 | CG149: 0.05672235116 | CH149: -0.008411694469 | CI149: 0.03931200957 | CJ149: -0.04705230246 | CK149: 0.05282014174 | CL149: 0.03381967394 | CM149: -0.02442526633 | CN149: 0.03845654752 | CO149: 0.1165325282
A150: 2016-02-18 | B150: 8 | C150: 2 | D150: 2016 | E150: 125.0423 | F150: 14.868 | G150: 84.544 | H150: 67.8567 | I150: 10.1068 | J150: 167.491 | K150: 122.227 | L150: 82.3752 | M150: 76.64007 | N150: 8.4271 | O150: 14.2557 | P150: 13.112 | Q150: 20.83 | R150: 15.457 | S150: 61.317 | T150: 7.2591 | U150: 72.257 | V150: 96.504 | W150: 57.775 | X150: 122.4 | Y150: 96.7418 | AA150: 0.01388001878 | AB150: 0.001211387186 | AC150: -0.002421837881 | AD150: 0.002350354188 | AE150: 0.009543954418 | AF150: 0.01440249559 | AG150: 0.02642040051 | AH150: 0.01456377379 | AI150: 0.005059878351 | AJ150: 0.007444188334 | AK150: 0.0150612601 | AL150: 0.03027367027 | AM150: -0.005505699126 | AN150: -0.04106780761 | AO150: -0.005237657961 | AP150: -0.009632345462 | AQ150: -0.003384939574 | AR150: 0.01291147936 | AS150: -0.02267476825 | AT150: 0.008533035038 | AU150: 0.0308615282
A151: 2016-02-17 | B151: 8 | C151: 2 | D151: 2016 | E151: 123.3187 | F151: 14.85 | G151: 84.749 | H151: 67.6974 | I151: 10.0108 | J151: 165.096 | K151: 119.04 | L151: 81.1842 | M151: 76.25326 | N151: 8.3646 | O151: 14.0426 | P151: 12.721 | Q151: 20.945 | R151: 16.105 | S151: 61.639 | T151: 7.32936 | U151: 72.502 | V151: 95.266 | W151: 59.1 | X151: 121.36 | Y151: 93.8018 | AA151: 0.03901051571 | AB151: 0.07783414946 | AC151: 0.02863049073 | AD151: 0.0133806227 | AE151: -0.1328743862 | AF151: 0.0169882312 | AG151: 0.02406067185 | AH151: 0.0001207204301 | AI151: 0.01675873923 | AJ151: -0.00766962601 | AK151: 0.02540801377 | AL151: 0.03560803442 | AM151: 0.01534753851 | AN151: 0.04281611641 | AO151: 0.03147712249 | AP151: 0.01165116084 | AQ151: 0.03326348514 | AR151: 0.02477265484 | AS151: 0.02250169798 | AT151: 0.03130224601 | AU151: 0.04289887005
A152: 2016-02-16 | B152: 8 | C152: 2 | D152: 2016 | E152: 118.6006 | F152: 13.738 | G152: 82.357 | H152: 66.7976 | I152: 11.4334 | J152: 162.315 | K152: 116.21 | L152: 81.1744 | M152: 74.986 | N152: 8.429 | O152: 13.6903 | P152: 12.276 | Q152: 20.626 | R152: 15.43 | S152: 59.729 | T152: 7.24446 | U152: 70.13 | V152: 92.935 | W152: 57.785 | X152: 117.62 | Y152: 89.8629 | AA152: -0.01080977375 | AB152: -0.02096089994 | AC152: -0.003539268933 | AD152: 0.01081918251 | AE152: 0.002443201194 | AF152: -0.003345904085 | AG152: -0.01209419704 | AH152: 0.003277332108 | AI152: -0.00781908309 | AJ152: -0.01702123705 | AK152: -0.006196839864 | AL152: -0.003577821348 | AM152: 0.01785455995 | AN152: 0.007154502063 | AO152: -0.008137039878 | AP152: -0.01537170518 | AQ152: -0.006282802717 | AR152: -0.01178799778 | AS152: 0 | AT152: -0.007622633674 | AU152: -0.0007241746145
A153: 2016-02-15 | B153: 8 | C153: 2 | D153: 2016 | E153: 119.8896 | F153: 14.029 | G153: 82.649 | H153: 66.0788 | I153: 11.4055 | J153: 162.859 | K153: 117.624 | L153: 80.9088 | M153: 75.57462 | N153: 8.5737 | O153: 13.7754 | P153: 12.32 | Q153: 20.261 | R153: 15.32 | S153: 60.217 | T153: 7.35668 | U153: 70.572 | V153: 94.037 | W153: 57.785 | X153: 118.52 | Y153: 89.928 | AA153: 0.08263783152 | AB153: 0.008518609801 | AC153: 0.02423596603 | AD153: 0.02614280464 | AE153: 0.04000766074 | AF153: 0.04584685812 | AG153: 0.01580989473 | AH153: 0.04716150776 | AI153: 0.03270435686 | AJ153: 0.07028336205 | AK153: 0.01668974573 | AL153: 0.01653200758 | AM153: 0.051602466 | AN153: 0.002548937689 | AO153: 0.04247225305 | AP153: -0.01003016351 | AQ153: 0.0497641122 | AR153: 0.01736655697 | AS153: 0.001662712336 | AT153: 0.01882268235 | AU153: 0.03364850767
A154: 2016-02-12 | B154: 7 | C154: 2 | D154: 2016 | E154: 110.3805 | F154: 13.91 | G154: 80.67 | H154: 64.3737 | I154: 10.9582 | J154: 155.561 | K154: 115.779 | L154: 77.1816 | M154: 73.14298 | N154: 7.9918 | O154: 13.5474 | P154: 12.118 | Q154: 19.242 | R154: 15.281 | S154: 57.713 | T154: 7.43084 | U154: 67.146 | V154: 92.418 | W154: 57.689 | X154: 116.31 | Y154: 86.9524 | AA154: 0.006073825788 | AB154: 0.06581419668 | AC154: 0.009590906177 | AD154: 0.0002283802028 | AE154: 0.03975525033 | AF154: 0.007685619461 | AG154: 0.01478324488 | AH154: 0.007417806496 | AI154: 0.02219590559 | AJ154: 0.02918886642 | AK154: 0.0136825034 | AL154: 0.00886905395 | AM154: 0.002185110905 | AN154: 0.1096524459 | AO154: 0.0250899157 | AP154: 0.1584715372 | AQ154: 0.03245131441 | AR154: 0.0207840865 | AS154: 0.02187066933 | AT154: 0.01918378348 | AU154: -0.008108274809 | AX154: 110.3805 | AY154: 13.91 | AZ154: 80.67 | BA154: 64.3737 | BB154: 10.9582 | BC154: 155.561 | BD154: 115.779 | BE154: 77.1816 | BF154: 73.14298 | BG154: 7.9918 | BH154: 13.5474 | BI154: 12.118 | BJ154: 19.242 | BK154: 15.281 | BL154: 57.713 | BM154: 7.43084 | BN154: 67.146 | BO154: 92.418 | BP154: 57.689 | BQ154: 116.31 | BR154: 86.9524 | BU154: -0.07473948367 | BV154: -0.0005031085024 | BW154: -0.05003491029 | BX154: -0.03725686444 | BY154: -0.10855211 | BZ154: -0.04818969881 | CA154: -0.03318008989 | CB154: -0.05467012841 | CC154: -0.01370142434 | CD154: -0.1165504582 | CE154: -0.03170486976 | CF154: -0.04177879032 | CG154: -0.05475626549 | CH154: 0.005051675496 | CI154: -0.008712133841 | CJ154: 0.04087616214 | CK154: -0.03853540407 | CL154: -0.01705812016 | CM154: 0.03212844809 | CN154: -0.06780568266 | CO154: -0.01999374358
A155: 2016-02-11 | B155: 7 | C155: 2 | D155: 2016 | E155: 109.7121 | F155: 13.024 | G155: 79.9 | H155: 64.359 | I155: 10.5311 | J155: 154.37 | K155: 114.08 | L155: 76.6112 | M155: 71.53739 | N155: 7.7619 | O155: 13.3633 | P155: 12.011 | Q155: 19.2 | R155: 13.694 | S155: 56.283 | T155: 6.34183 | U155: 65.002 | V155: 90.517 | W155: 56.441 | X155: 114.1 | Y155: 87.6603 | AA155: -0.01924806351 | AB155: -0.0179581755 | AC155: -0.03260408956 | AD155: -0.02765065556 | AE155: -0.03166471733 | AF155: -0.04187811862 | AG155: -0.01533586943 | AH155: -0.03059190774 | AI155: -0.04390983157 | AJ155: -0.03167582368 | AK155: -0.02458437438 | AL155: -0.02149734805 | AM155: -0.03339447869 | AN155: -0.05725983187 | AO155: -0.004113553913 | AP155: -0.05289179094 | AQ155: -0.02332511591 | AR155: -0.02162772197 | AS155: -0.005583152014 | AT155: -0.05424249075 | AU155: 0.01891602827
A156: 2016-02-10 | B156: 7 | C156: 2 | D156: 2016 | E156: 111.8443 | F156: 13.26 | G156: 82.548 | H156: 66.1634 | I156: 10.8699 | J156: 160.972 | K156: 115.843 | L156: 78.9911 | M156: 74.74857 | N156: 8.0117 | O156: 13.6959 | P156: 12.272 | Q156: 19.852 | R156: 14.501 | S156: 56.515 | T156: 6.68629 | U156: 66.536 | V156: 92.496 | W156: 56.757 | X156: 120.46 | Y156: 86.0177 | AA156: 0.02712958831 | AB156: 0.01596385099 | AC156: 0.008638258915 | AD156: 0.02155821878 | AE156: -0.02407783771 | AF156: 0.01685218454 | AG156: 0.02448524133 | AH156: 0.02050216589 | AI156: 0.03740382556 | AJ156: -0.03001301037 | AK156: 0.0184520404 | AL156: 0.04032301538 | AM156: 0.02607756273 | AN156: 0.09112613087 | AO156: 0.01013702438 | AP156: 0.07640058837 | AQ156: 0.02829111986 | AR156: 0.01786755214 | AS156: 0.02190960783 | AT156: 0.01699567888 | AU156: 0.01540797187
A157: 2016-02-09 | B157: 7 | C157: 2 | D157: 2016 | E157: 108.8508 | F157: 13.05 | G157: 81.838 | H157: 64.7523 | I157: 11.1348 | J157: 158.282 | K157: 113.041 | L157: 77.3881 | M157: 72.00433 | N157: 8.2558 | O157: 13.4455 | P157: 11.787 | Q157: 19.341 | R157: 13.238 | S157: 55.945 | T157: 6.19448 | U157: 64.68 | V157: 90.858 | W157: 55.527 | X157: 118.43 | Y157: 84.7025 | AA157: -0.03031376849 | AB157: -0.01656698732 | AC157: -0.005082494654 | AD157: 0.00395671195 | AE157: -0.04715174152 | AF157: -0.02434090914 | AG157: -0.008816216834 | AH157: -0.03373596557 | AI157: 0.00793145142 | AJ157: -0.03557654529 | AK157: 0.01456390972 | AL157: -0.01298062731 | AM157: -0.002942772975 | AN157: -0.03028167246 | AO157: -7.149623754e-05 | AP157: -0.05142743709 | AQ157: -0.02717832105 | AR157: -0.01428260075 | AS157: 0.009518022057 | AT157: -0.02814038498 | AU157: 0.0007806830369
A158: 2016-02-08 | B158: 7 | C158: 2 | D158: 2016 | E158: 112.201 | F158: 13.268 | G158: 82.255 | H158: 64.4966 | I158: 11.6724 | J158: 162.182 | K158: 114.042 | L158: 80.0434 | M158: 71.43549 | N158: 8.5548 | O158: 13.2511 | P158: 11.941 | Q158: 19.398 | R158: 13.645 | S158: 55.949 | T158: 6.52138 | U158: 66.462 | V158: 92.165 | W158: 55.001 | X158: 121.81 | Y158: 84.6364 | AA158: -0.05838106577 | AB158: -0.04775599335 | AC158: -0.03057749117 | AD158: -0.03534951981 | AE158: -0.04541306376 | AF158: -0.006508475051 | AG158: -0.04829648983 | AH158: -0.01826222749 | AI158: -0.03732277533 | AJ158: -0.04847394525 | AK158: -0.0538189489 | AL158: -0.05649288429 | AM158: -0.04668168746 | AN158: -0.108185397 | AO158: -0.03975402377 | AP158: -0.0896767354 | AQ158: -0.04877440137 | AR158: -0.01979943608 | AS158: -0.01558669911 | AT158: -0.0216022693 | AU158: -0.04699015195
A159: 2016-02-05 | B159: 6 | C159: 2 | D159: 2016 | E159: 118.9464 | F159: 13.917 | G159: 84.809 | H159: 66.8173 | I159: 12.2147 | J159: 163.241 | K159: 119.685 | L159: 81.5186 | M159: 74.15204 | N159: 8.9797 | O159: 13.9838 | P159: 12.635 | Q159: 20.325 | R159: 15.204 | S159: 58.218 | T159: 7.13322 | U159: 69.784 | V159: 94.008 | W159: 55.865 | X159: 124.47 | Y159: 88.7084 | AA159: 0.0291669714 | AB159: -0.01114695358 | AC159: -0.00457629014 | AD159: -0.02877939974 | AE159: 0.002828461933 | AF159: -0.01958146943 | AG159: 0.003599233818 | AH159: 0.008298710811 | AI159: -0.03455019731 | AJ159: 0.01400678931 | AK159: -0.03577315735 | AL159: -0.00300300526 | AM159: 0.004339043344 | AN159: 0.005341787358 | AO159: 0.002803748192 | AP159: 0.0200361536 | AQ159: 0.01203765626 | AR159: -0.02124951689 | AS159: 0.01366131617 | AT159: -0.01830969794 | AU159: -0.03308927321 | AX159: 118.9464 | AY159: 13.917 | AZ159: 84.809 | BA159: 66.8173 | BB159: 12.2147 | BC159: 163.241 | BD159: 119.685 | BE159: 81.5186 | BF159: 74.15204 | BG159: 8.9797 | BH159: 13.9838 | BI159: 12.635 | BJ159: 20.325 | BK159: 15.204 | BL159: 58.218 | BM159: 7.13322 | BN159: 69.784 | BO159: 94.008 | BP159: 55.865 | BQ159: 124.47 | BR159: 88.7084 | BU159: -0.01379802091 | BV159: -0.01660350965 | BW159: -0.03424972454 | BX159: -0.07649692632 | BY159: -0.009468162772 | BZ159: -0.03251490944 | CA159: -0.01245501217 | CB159: -0.006732797234 | CC159: -0.08392261019 | CD159: 0.006446337478 | CE159: -0.06506443797 | CF159: -0.04192625204 | CG159: -0.06130451508 | CH159: -0.07992127477 | CI159: -0.05125894016 | CJ159: -0.02832265914 | CK159: -0.05621139391 | CL159: -0.07009571532 | CM159: -0.01110786293 | CN159: -0.07399893248 | CO159: -0.05205910666
A160: 2016-02-04 | B160: 6 | C160: 2 | D160: 2016 | E160: 115.5272 | F160: 14.073 | G160: 85.198 | H160: 68.7682 | I160: 12.1802 | J160: 166.469 | K160: 119.255 | L160: 80.8449 | M160: 76.75878 | N160: 8.8548 | O160: 14.4931 | P160: 12.673 | Q160: 20.237 | R160: 15.123 | S160: 58.055 | T160: 6.99172 | U160: 68.949 | V160: 96.027 | W160: 55.107 | X160: 126.77 | Y160: 91.6928 | AA160: 0.008720718876 | AB160: 0.04156838257 | AC160: 0.007433839789 | AD160: -0.00947823637 | AE160: 0.02320605776 | AF160: 0.03494008044 | AG160: 0.001426533765 | AH160: -0.02930961858 | AI160: -0.03036274611 | AJ160: 0.02433721882 | AK160: -0.005847728489 | AL160: -0.01713321785 | AM160: -0.01330244183 | AN160: 0.021589583 | AO160: -0.03023336164 | AP160: 0.03060938165 | AQ160: -0.010374001 | AR160: -0.0007078835619 | AS160: -0.007790721315 | AT160: -0.001103752871 | AU160: 0.01084350418
A161: 2016-02-03 | B161: 6 | C161: 2 | D161: 2016 | E161: 114.5241 | F161: 13.5 | G161: 84.567 | H161: 69.4231 | I161: 11.9008 | J161: 160.753 | K161: 119.085 | L161: 83.2495 | M161: 79.12513 | N161: 8.6419 | O161: 14.5781 | P161: 12.892 | Q161: 20.508 | R161: 14.8 | S161: 59.837 | T161: 6.78095 | U161: 69.668 | V161: 96.095 | W161: 55.538 | X161: 126.91 | Y161: 90.7039 | AA161: -0.02406626219 | AB161: 0.01229752781 | AC161: -0.01069151519 | AD161: -0.009865740485 | AE161: 0.01970415137 | AF161: -0.01478873884 | AG161: 0.0147959099 | AH161: 0.007351928235 | AI161: -0.02214522821 | AJ161: -0.01045213434 | AK161: -0.0152689272 | AL161: -0.03341017024 | AM161: -0.02945275228 | AN161: -0.05052610828 | AO161: 0.007919371602 | AP161: -0.02571306532 | AQ161: -0.01412438768 | AR161: -0.01820060037 | AS161: -0.03137275888 | AT161: -0.02213134822 | AU161: -0.01492164858
A162: 2016-02-02 | B162: 6 | C162: 2 | D162: 2016 | E162: 117.3137 | F162: 13.335 | G162: 85.476 | H162: 70.1114 | I162: 11.6686 | J162: 163.148 | K162: 117.336 | L162: 82.6397 | M162: 80.89692 | N162: 8.7327 | O162: 14.8024 | P162: 13.33 | Q162: 21.121 | R162: 15.567 | S162: 59.365 | T162: 6.95757 | U162: 70.659 | V162: 97.86 | W162: 57.308 | X162: 129.75 | Y162: 92.0675 | AA162: -0.01787804499 | AB162: -0.06200437928 | AC162: -0.02454536316 | AD162: -0.02109486023 | AE162: -0.04754633162 | AF162: -0.01494767043 | AG162: -0.02197501599 | AH162: -0.0001197899684 | AI162: -0.01096994297 | AJ162: -0.03649646201 | AK162: -0.003782762283 | AL162: -0.01148666318 | AM162: -0.02358224662 | AN162: -0.04459977936 | AO162: -0.01634012364 | AP162: -0.0492570354 | AQ162: -0.02548656205 | AR162: -0.02168229888 | AS162: 0.005073222574 | AT162: -0.02466441538 | AU162: -0.01667289619
A163: 2016-02-01 | B163: 6 | C163: 2 | D163: 2016 | E163: 119.4299 | F163: 14.188 | G163: 87.6 | H163: 71.6061 | I163: 12.2368 | J163: 165.605 | K163: 119.943 | L163: 82.6496 | M163: 81.78924 | N163: 9.0573 | O163: 14.8585 | P163: 13.484 | Q163: 21.625 | R163: 16.277 | S163: 60.343 | T163: 7.30886 | U163: 72.483 | V163: 100.005 | W163: 57.018 | X163: 132.99 | Y163: 93.6154 | AA163: -0.009741404015 | AB163: 0.002681912822 | AC163: -0.001870395837 | AD163: -0.0072786895 | AE163: -0.007660502218 | AF163: -0.01813711117 | AG163: -0.01030167367 | AH163: 0.007045972269 | AI163: 0.01410550442 | AJ163: 0.01505092569 | AK163: -0.004391862652 | AL163: 0.0231068045 | AM163: 0.0006938822991 | AN163: -0.01172675748 | AO163: -0.01540857467 | AP163: -0.003998093671 | AQ163: -0.01826409944 | AR163: -0.008255415613 | AS163: 0.009321078525 | AT163: -0.007789718065 | AU163: 0.001781207137
A164: 2016-01-29 | B164: 5 | C164: 1 | D164: 2016 | E164: 120.599 | F164: 14.15 | G164: 87.764 | H164: 72.1292 | I164: 12.3309 | J164: 168.636 | K164: 121.185 | L164: 82.0693 | M164: 80.64366 | N164: 8.922 | O164: 14.9239 | P164: 13.176 | Q164: 21.61 | R164: 16.469 | S164: 61.28 | T164: 7.33814 | U164: 73.819 | V164: 100.834 | W164: 56.489 | X164: 134.03 | Y164: 93.4488 | AA164: -0.01030255323 | AB164: -0.03431607117 | AC164: 0.01566371797 | AD164: 0.03480254446 | AE164: -0.01245165445 | AF164: 0.02202133958 | AG164: 0.01338287702 | AH164: 0.01169118018 | AI164: 0.02802725009 | AJ164: -0.01807154313 | AK164: 0.02292921409 | AL164: -0.006128721941 | AM164: 0.01929650829 | AN164: 0.01344845747 | AO164: 0.002647103623 | AP164: 0.008278770691 | AQ164: -0.02008972189 | AR164: 0.01412229968 | AS164: 0.0008500841741 | AT164: 0.02730364353 | AU164: 0.01575990737 | AX164: 120.599 | AY164: 14.15 | AZ164: 87.764 | BA164: 72.1292 | BB164: 12.3309 | BC164: 168.636 | BD164: 121.185 | BE164: 82.0693 | BF164: 80.64366 | BG164: 8.922 | BH164: 14.9239 | BI164: 13.176 | BJ164: 21.61 | BK164: 16.469 | BL164: 61.28 | BM164: 7.33814 | BN164: 73.819 | BO164: 100.834 | BP164: 56.489 | BQ164: 134.03 | BR164: 93.4488 | BU164: -0.03420540521 | BV164: -0.05980116917 | BW164: 0.07839399842 | BX164: 0.01763149722 | BY164: 0.06887470844 | BZ164: 0.01986560516 | CA164: -0.008618936844 | CB164: 0.04097213298 | CC164: 0.07421746265 | CD164: 0.06145577861 | CE164: 0.007796379449 | CF164: -0.05341990223 | CG164: -0.05206809827 | CH164: -0.07372189102 | CI164: -0.02890267688 | CJ164: -0.04929658701 | CK164: -0.03452360086 | CL164: -0.02058326048 | CM164: -0.03774622882 | CN164: 0.003363106193 | CO164: 0.03523017554
A165: 2016-01-28 | B165: 5 | C165: 1 | D165: 2016 | E165: 121.8479 | F165: 14.644 | G165: 86.4 | H165: 69.6621 | I165: 12.4854 | J165: 164.963 | K165: 119.574 | L165: 81.1154 | M165: 78.41482 | N165: 9.0847 | O165: 14.5856 | P165: 13.257 | Q165: 21.197 | R165: 16.249 | S165: 61.118 | T165: 7.27764 | U165: 75.317 | V165: 99.42 | W165: 56.441 | X165: 130.42 | Y165: 91.9876 | AA165: -0.02961906177 | AB165: -0.0201453443 | AC165: -0.02411656595 | AD165: -0.03481640837 | AE165: 0.01557064136 | AF165: -0.02133916478 | AG165: -0.005720639032 | AH165: 0.004009734462 | AI165: -0.02549700869 | AJ165: 0.001354842115 | AK165: -0.02792212278 | AL165: -0.03941797699 | AM165: -0.02722427842 | AN165: -0.05367521749 | AO165: -0.0239269069 | AP165: -0.02907186207 | AQ165: -0.01944668253 | AR165: -0.02995324567 | AS165: -0.02848777522 | AT165: -0.01951392546 | AU165: 0.002382504475
A166: 2016-01-27 | B166: 5 | C166: 1 | D166: 2016 | E166: 125.5109 | F166: 14.942 | G166: 88.509 | H166: 72.1302 | I166: 12.2925 | J166: 168.521 | K166: 120.26 | L166: 80.7908 | M166: 80.43987 | N166: 9.0724 | O166: 14.9986 | P166: 13.79 | Q166: 21.782 | R166: 17.145 | S166: 62.598 | T166: 7.49232 | U166: 76.796 | V166: 102.443 | W166: 58.072 | X166: 132.99 | Y166: 91.7687 | AA166: 0.00638151915 | AB166: -0.02099345336 | AC166: 0.02295982782 | AD166: 0.008529246028 | AE166: 0.002737116497 | AF166: 0.0180347971 | AG166: -0.009994787994 | AH166: 0.007820995404 | AI166: 0.04529683295 | AJ166: 0.01863515069 | AK166: 0.007690209004 | AL166: -0.002824144677 | AM166: -0.00421477626 | AN166: -0.002853899837 | AO166: 0.007939031763 | AP166: -0.004158275981 | AQ166: -0.0005077100434 | AR166: -0.002856044714 | AS166: -0.02208858463 | AT166: 0.002710640919 | AU166: -8.608229145e-05
A167: 2016-01-26 | B167: 5 | C167: 1 | D167: 2016 | E167: 124.7125 | F167: 15.259 | G167: 86.5 | H167: 71.5176 | I167: 12.2589 | J167: 165.509 | K167: 121.468 | L167: 80.1614 | M167: 76.87749 | N167: 8.9049 | O167: 14.8837 | P167: 13.829 | Q167: 21.874 | R167: 17.194 | S167: 62.103 | T167: 7.52354 | U167: 76.835 | V167: 102.736 | W167: 59.369 | X167: 132.63 | Y167: 91.7766 | AA167: 0.01263394858 | AB167: 0.02508426146 | AC167: 0.04105323513 | AD167: -0.003719429808 | AE167: 0.05728366083 | AF167: 0.0008401863411 | AG167: 0.01641816774 | AH167: -0.01811553717 | AI167: 9.001739605e-05 | AJ167: 0.04487807433 | AK167: 0.003021282473 | AL167: 0.0003616244208 | AM167: -0.02950465128 | AN167: 0.0314298082 | AO167: 0.008440915548 | AP167: 0.01964667564 | AQ167: 0.01208549084 | AR167: -0.004263984587 | AS167: 0.01351543792 | AT167: -0.004063211008 | AU167: 0.01243085549
A168: 2016-01-25 | B168: 5 | C168: 1 | D168: 2016 | E168: 123.1468 | F168: 14.881 | G168: 83.0208 | H168: 71.7841 | I168: 11.5764 | J168: 165.37 | K168: 119.49 | L168: 81.6268 | M168: 76.87057 | N168: 8.5141 | O168: 14.8388 | P168: 13.824 | Q168: 22.529 | R168: 16.662 | S168: 61.581 | T168: 7.37717 | U168: 75.912 | V168: 103.175 | W168: 58.572 | X168: 133.17 | Y168: 90.6428 | AA168: -0.01329925794 | AB168: -0.009430561816 | AC168: 0.02283378345 | AD168: 0.01283554492 | AE168: 0.005734944205 | AF168: 0.0003084469118 | AG168: -0.02270455458 | AH168: 0.0355657601 | AI168: 0.0263003709 | AJ168: 0.0146592546 | AK168: 0.002077796665 | AL168: -0.005410683041 | AM168: -0.01042090059 | AN168: -0.06207103936 | AO168: -0.02400282091 | AP168: -0.0439918953 | AQ168: -0.00656497723 | AR168: 0.002367714807 | AS168: -0.001535391059 | AT168: -0.003074041783 | AU168: 0.00474299049
A169: 2016-01-22 | B169: 4 | C169: 1 | D169: 2016 | E169: 124.7955 | F169: 15.022 | G169: 81.1466 | H169: 70.8686 | I169: 11.5102 | J169: 165.319 | K169: 122.234 | L169: 78.7747 | M169: 74.8752 | N169: 8.3902 | O169: 14.808 | P169: 13.899 | Q169: 22.765 | R169: 17.729 | S169: 63.077 | T169: 7.70895 | U169: 76.412 | V169: 102.931 | W169: 58.662 | X169: 133.58 | Y169: 90.2139 | AA169: 0.007603626802 | AB169: -0.0007985094915 | AC169: 0.02915406128 | AD169: 0.002041066385 | AE169: 0.01953768003 | AF169: 0.0109110569 | AG169: 0.02007181941 | AH169: 0.03454755664 | AI169: 0.01877816666 | AJ169: 0.0159182597 | AK169: 0.0299135383 | AL169: 0.02093860575 | AM169: 0.02878730111 | AN169: 0.03378680375 | AO169: 0.01053454954 | AP169: 0.03556221926 | AQ169: 0.01231177782 | AR169: 0.02251900434 | AS169: -0.0142345737 | AT169: 0.02118402716 | AU169: 0.00920042837 | AX169: 124.7955 | AY169: 15.022 | AZ169: 81.1466 | BA169: 70.8686 | BB169: 11.5102 | BC169: 165.319 | BD169: 122.234 | BE169: 78.7747 | BF169: 74.8752 | BG169: 8.3902 | BH169: 14.808 | BI169: 13.899 | BJ169: 22.765 | BK169: 17.729 | BL169: 63.077 | BM169: 7.70895 | BN169: 76.412 | BO169: 102.931 | BP169: 58.662 | BQ169: 133.58 | BR169: 90.2139 | BU169: 0.04545342925 | BV169: -0.003919880115 | BW169: 0.04023983318 | BX169: 0.02431081679 | BY169: 0.09953535365 | BZ169: 0.00831543746 | CA169: 0.03995858696 | CB169: -0.006347339581 | CC169: 0.0560281357 | CD169: 0.08114082097 | CE169: 0.03965354587 | CF169: 0.05023735805 | CG169: 0.04299324962 | CH169: -0.07307200548 | CI169: 0.04009431308 | CJ169: -0.01657108772 | CK169: 0.03170986038 | CL169: 0.04803072037 | CM169: 0.01374857526 | CN169: -0.007383960456 | CO169: 0.09319489569
A170: 2016-01-21 | B170: 4 | C170: 1 | D170: 2016 | E170: 123.8502 | F170: 15.034 | G170: 78.815 | H170: 70.7241 | I170: 11.2875 | J170: 163.525 | K170: 119.805 | L170: 76.0997 | M170: 73.4823 | N170: 8.2577 | O170: 14.3716 | P170: 13.611 | Q170: 22.119 | R170: 17.14 | S170: 62.416 | T170: 7.43962 | U170: 75.477 | V170: 100.639 | W170: 59.503 | X170: 130.78 | Y170: 89.3877 | AA170: 0.06486380565 | AB170: 0.03299826102 | AC170: 0.01602958543 | AD170: 0.01828299964 | AE170: 0.05515456009 | AF170: 0.01821098834 | AG170: 0.03567756303 | AH170: 0.007131838118 | AI170: 0.03870436836 | AJ170: 0.04499245104 | AK170: 0.03520862151 | AL170: 0.05163750251 | AM170: 0.02592194968 | AN170: -0.04053257108 | AO170: 0.03088081132 | AP170: 0.01107918399 | AQ170: 0.02836736104 | AR170: 0.02701124963 | AS170: -0.0001512414404 | AT170: 0.003063258637 | AU170: -0.007701753989
A171: 2016-01-20 | B171: 4 | C171: 1 | D171: 2016 | E171: 116.0718 | F171: 14.546 | G171: 77.5617 | H171: 69.4428 | I171: 10.6818 | J171: 160.574 | K171: 115.606 | L171: 75.5589 | M171: 70.69255 | N171: 7.8944 | O171: 13.8744 | P171: 12.926 | Q171: 21.553 | R171: 17.849 | S171: 60.518 | T171: 7.35765 | U171: 73.366 | V171: 97.957 | W171: 59.512 | X171: 130.38 | Y171: 90.0788 | AA171: -0.04733442257 | AB171: -0.03020068376 | AC171: -0.02023945158 | AD171: -0.01849082799 | AE171: -0.06285902361 | AF171: -0.03592204492 | AG171: -0.00874150261 | AH171: -0.02886384142 | AI171: -0.03002376696 | AJ171: -0.05207582153 | AK171: -0.04110564223 | AL171: -0.03070132578 | AM171: -0.03541604785 | AN171: -0.04977945933 | AO171: -0.0307686543 | AP171: -0.05269907292 | AQ171: -0.01915671707 | AR171: -0.02021148664 | AS171: -0.0207701629 | AT171: -0.03467335582 | AU171: -0.001378951738
A172: 2016-01-19 | B172: 4 | C172: 1 | D172: 2016 | E172: 121.6981 | F172: 14.992 | G172: 79.1475 | H172: 70.7388 | I172: 11.3748 | J172: 166.447 | K172: 116.621 | L172: 77.7716 | M172: 72.84719 | N172: 8.3164 | O172: 14.4566 | P172: 13.329 | Q172: 22.33 | R172: 18.76 | S172: 62.409 | T172: 7.75579 | U172: 74.785 | V172: 99.957 | W172: 60.761 | X172: 134.98 | Y172: 90.2031 | AA172: 0.02704570322 | AB172: -0.0003334556035 | AC172: 0.006701071686 | AD172: 0.01389903743 | AE172: 0.08026324869 | AF172: 0.01573166845 | AG172: -0.004158686169 | AH172: 0.01182977361 | AI172: 0.02523530992 | AJ172: 0.06559402163 | AK172: 0.01281644883 | AL172: 0.0164905401 | AM172: 0.01793871387 | AN172: 0.0005331911617 | AO172: 0.008641760879 | AP172: 0.002898809129 | AQ172: -0.001082518766 | AR172: 0.01424709237 | AS172: 0.0254861994 | AT172: 0.01080044762 | AU172: 0.03528708771
A173: 2016-01-18 | B173: 4 | C173: 1 | D173: 2016 | E173: 118.4508 | F173: 14.997 | G173: 78.6189 | H173: 69.7624 | I173: 10.4975 | J173: 163.849 | K173: 117.107 | L173: 76.857 | M173: 71.03187 | N173: 7.7884 | O173: 14.2725 | P173: 13.111 | Q173: 21.933 | R173: 18.75 | S173: 61.872 | T173: 7.73334 | U173: 74.866 | V173: 98.543 | W173: 59.232 | X173: 133.53 | Y173: 87.0756 | AA173: -0.006725283856 | AB173: -0.005585492279 | AC173: 0.008594566365 | AD173: 0.008578541317 | AE173: 0.007438888452 | AF173: -0.0006162313076 | AG173: -0.002890606695 | AH173: -0.03099266653 | AI173: 0.003334057721 | AJ173: 0.006711910129 | AK173: 0.002820579457 | AL173: -0.008127964531 | AM173: 0.005761332809 | AN173: -0.01707996998 | AO173: 0.02080584563 | AP173: -0.01341222718 | AQ173: 0.01126995736 | AR173: 0.004464860682 | AS173: 0.0234183539 | AT173: -0.007758338058 | AU173: 0.05778808533
A174: 2016-01-15 | B174: 3 | C174: 1 | D174: 2016 | E174: 119.2501 | F174: 15.081 | G174: 77.9461 | H174: 69.1665 | I174: 10.4197 | J174: 163.95 | K174: 117.446 | L174: 79.2763 | M174: 70.79544 | N174: 7.7363 | O174: 14.2323 | P174: 13.218 | Q174: 21.807 | R174: 19.073 | S174: 60.598 | T174: 7.83776 | U174: 74.027 | V174: 98.104 | W174: 57.861 | X174: 134.57 | Y174: 82.1863 | AA174: -0.06997022658 | AB174: -0.05168775275 | AC174: -0.04095063925 | AD174: -0.04735401807 | AE174: -0.05754595919 | AF174: -0.02690529383 | AG174: -0.04251597639 | AH174: -0.01749943532 | AI174: -0.04101249712 | AJ174: -0.05844229762 | AK174: -0.03795031337 | AL174: -0.02554474546 | AM174: -0.04873120364 | AN174: -0.06318425162 | AO174: -0.04725034605 | AP174: -0.05674927053 | AQ174: -0.04899148614 | AR174: -0.02211761413 | AS174: -0.009631831743 | AT174: -0.01760440264 | AU174: -0.0131105269 | AX174: 119.2501 | AY174: 15.081 | AZ174: 77.9461 | BA174: 69.1665 | BB174: 10.4197 | BC174: 163.95 | BD174: 117.446 | BE174: 79.2763 | BF174: 70.79544 | BG174: 7.7363 | BH174: 14.2323 | BI174: 13.218 | BJ174: 21.807 | BK174: 19.073 | BL174: 60.598 | BM174: 7.83776 | BN174: 74.027 | BO174: 98.104 | BP174: 57.861 | BQ174: 134.57 | BR174: 82.1863 | BU174: -0.05659981434 | BV174: -0.07680876535 | BW174: -0.03740513994 | BX174: -0.01349887306 | BY174: 0.01073914827 | BZ174: -0.009234449586 | CA174: -0.04111961894 | CB174: -0.03258541265 | CC174: -0.08203238066 | CD174: 0.00674425082 | CE174: -0.03927530039 | CF174: -0.09971592675 | CG174: -0.07408831903 | CH174: -0.07229749451 | CI174: -0.07184697479 | CJ174: -0.09120434867 | CK174: -0.07762174284 | CL174: -0.03227542392 | CM174: -0.0597896158 | CN174: -0.01694706047 | CO174: -0.004453101154
A175: 2016-01-14 | B175: 3 | C175: 1 | D175: 2016 | E175: 127.8929 | F175: 15.881 | G175: 81.2043 | H175: 72.5206 | I175: 11.0369 | J175: 168.421 | K175: 122.547 | L175: 80.6758 | M175: 73.7593 | N175: 8.2019 | O175: 14.7828 | P175: 13.56 | Q175: 22.896 | R175: 20.317 | S175: 63.53 | T175: 8.29541 | U175: 77.744 | V175: 100.298 | W175: 58.421 | X175: 136.96 | Y175: 83.2709 | AA175: -0.00793680611 | AB175: 0.00936300887 | AC175: 0.02383474409 | AD175: 0.01714966295 | AE175: 0.01648022536 | AF175: 0.005919361749 | AG175: -0.0007830662336 | AH175: -0.02143072296 | AI175: -0.01043381802 | AJ175: 0.008116341418 | AK175: 0.002533173035 | AL175: -0.01964355397 | AM175: 0.006089432437 | AN175: -0.0145124826 | AO175: -0.01476531649 | AP175: -0.009250175899 | AQ175: -0.01198032549 | AR175: -0.014481172 | AS175: -0.002086112723 | AT175: -0.01729984153 | AU175: -0.01004890678
A176: 2016-01-13 | B176: 3 | C176: 1 | D176: 2016 | E176: 128.912 | F176: 15.733 | G176: 79.2917 | H176: 71.2875 | I176: 10.8565 | J176: 167.427 | K176: 122.643 | L176: 82.4234 | M176: 74.53292 | N176: 8.1356 | O176: 14.7454 | P176: 13.829 | Q176: 22.757 | R176: 20.614 | S176: 64.475 | T176: 8.3725 | U176: 78.681 | V176: 101.761 | W176: 58.543 | X176: 139.35 | Y176: 84.1119 | AA176: 0.01421483324 | AB176: -0.01645323465 | AC176: -0.0156341558 | AD176: -0.01988445223 | AE176: 0.01874409871 | AF176: -0.0005254641223 | AG176: -0.004385240425 | AH176: 0.01067634698 | AI176: -0.02546234105 | AJ176: 0.01499709225 | AK176: -0.006947476041 | AL176: -0.01435877925 | AM176: -0.01979659595 | AN176: -0.01631137759 | AO176: -0.02164842408 | AP176: -0.01744620937 | AQ176: -0.03932776093 | AR176: 0.00144560566 | AS176: -0.007352098332 | AT176: 0.001651883882 | AU176: -0.01022786929
A177: 2016-01-12 | B177: 3 | C177: 1 | D177: 2016 | E177: 127.0925 | F177: 15.994 | G177: 80.5411 | H177: 72.7192 | I177: 10.6549 | J177: 167.515 | K177: 123.182 | L177: 81.5481 | M177: 76.45507 | N177: 8.0145 | O177: 14.8482 | P177: 14.029 | Q177: 23.212 | R177: 20.953 | S177: 65.886 | T177: 8.51985 | U177: 81.837 | V177: 101.614 | W177: 58.975 | X177: 139.12 | Y177: 84.9766 | AA177: 0.002818453624 | AB177: -0.004491585842 | AC177: 0.005384399036 | AD177: 0.03176182889 | AE177: -0.002249951731 | AF177: 0.01403105713 | AG177: 0.02013942152 | AH177: 0.02054234171 | AI177: 0.01780679334 | AJ177: 0.03593657413 | AK177: 0.01260589237 | AL177: -0.02457264483 | AM177: 0.008870868878 | AN177: 0.01640840374 | AO177: 0.01760851486 | AP177: 0.009320459486 | AQ177: 0.02508065419 | AR177: 0.01352422985 | AS177: -0.05155184511 | AT177: 0.0123677127 | AU177: 0.01458632202
A178: 2016-01-11 | B178: 3 | C178: 1 | D178: 2016 | E178: 126.7348 | F178: 16.066 | G178: 80.1086 | H178: 70.4458 | I178: 10.6789 | J178: 165.181 | K178: 120.726 | L178: 79.89 | M178: 75.1057 | N178: 7.7316 | O178: 14.6622 | P178: 14.378 | Q178: 23.007 | R178: 20.612 | S178: 64.736 | T178: 8.44081 | U178: 79.81 | V178: 100.249 | W178: 62.095 | X178: 137.41 | Y178: 83.7461 | AA178: 0.004273931491 | AB178: -0.01353920098 | AC178: -0.01003948802 | AD178: 0.004828105397 | AE178: 0.03531073512 | AF178: -0.001754110511 | AG178: -0.01357475741 | AH178: -0.02487394306 | AI178: -0.02293051781 | AJ178: 0.006136540641 | AK178: -0.009516576373 | AL178: -0.01559620323 | AM178: -0.02052082075 | AN178: 0.005302213565 | AO178: -0.005791403039 | AP178: -0.01707915236 | AQ178: -0.002402824473 | AR178: -0.0106464733 | AS178: 0.01083227211 | AT178: 0.003937587121 | AU178: 0.0143478798
A179: 2016-01-08 | B179: 2 | C179: 1 | D179: 2016 | E179: 126.1943 | F179: 16.285 | G179: 80.9169 | H179: 70.1065 | I179: 10.3084 | J179: 165.471 | K179: 122.376 | L179: 81.9021 | M179: 76.84781 | N179: 7.6843 | O179: 14.8024 | P179: 14.604 | Q179: 23.484 | R179: 20.503 | S179: 65.112 | T179: 8.58621 | U179: 80.002 | V179: 101.322 | W179: 61.426 | X179: 136.87 | Y179: 82.5531 | AA179: 0.03201972013 | AB179: -0.003188035316 | AC179: 0.01002700504 | AD179: 0.01263322166 | AE179: -0.00352488115 | AF179: -0.0005437540916 | AG179: 0.02166698425 | AH179: 0.002644451406 | AI179: 0.00234556105 | AJ179: -0.01029261875 | AK179: -0.0006280792127 | AL179: 0.01712749051 | AM179: 0.00580801086 | AN179: -0.01754982314 | AO179: 0.008188614144 | AP179: -0.005213372788 | AQ179: -0.007360162744 | AR179: -0.02799896797 | AS179: -0.007573889383 | AT179: -0.01277694333 | AU179: -0.004409238973 | AX179: 126.1943 | AY179: 16.285 | AZ179: 80.9169 | BA179: 70.1065 | BB179: 10.3084 | BC179: 165.471 | BD179: 122.376 | BE179: 81.9021 | BF179: 76.84781 | BG179: 7.6843 | BH179: 14.8024 | BI179: 14.604 | BJ179: 23.484 | BK179: 20.503 | BL179: 65.112 | BM179: 8.58621 | BN179: 80.002 | BO179: 101.322 | BP179: 61.426 | BQ179: 136.87 | BR179: 82.5531
A180: 2016-01-07 | B180: 2 | C180: 1 | D180: 2016 | E180: 122.2176 | F180: 16.337 | G180: 80.1096 | H180: 69.2264 | I180: 10.3448 | J180: 165.561 | K180: 119.753 | L180: 81.6858 | M180: 76.66777 | N180: 7.7638 | O180: 14.8117 | P180: 14.356 | Q180: 23.348 | R180: 20.866 | S180: 64.581 | T180: 8.63109 | U180: 80.593 | V180: 104.199 | W180: 61.893 | X180: 138.63 | Y180: 82.9179 | AA180: -0.06335238107 | AB180: -0.05269709528 | AC180: -0.0289576488 | AD180: -0.02412506616 | AE180: -0.03061463582 | AF180: -0.02331260976 | AG180: -0.02184674191 | AH180: -0.0136312111 | AI180: -0.02576865528 | AJ180: -0.02444188673 | AK180: -0.01216601651 | AL180: -0.01917961518 | AM180: -0.04029418693 | AN180: -0.03341419692 | AO180: -0.0508371739 | AP180: -0.0393517603 | AQ180: -0.05252155469 | AR180: -0.02586253047 | AS180: 0.01423818506 | AT180: -0.02091514193 | AU180: -0.02003602254
A181: 2016-01-06 | B181: 2 | C181: 1 | D181: 2016 | E181: 130.2109 | F181: 17.221 | G181: 82.4633 | H181: 70.9168 | I181: 10.6664 | J181: 169.466 | K181: 122.398 | L181: 82.8069 | M181: 78.66907 | N181: 7.9559 | O181: 14.993 | P181: 14.634 | Q181: 24.308 | R181: 21.575 | S181: 67.949 | T181: 8.97751 | U181: 84.939 | V181: 106.929 | W181: 61.018 | X181: 141.56 | Y181: 84.596 | AA181: -0.002077543416 | AB181: -0.02171251293 | AC181: -0.003607214944 | AD181: 0.00820085245 | AE181: -0.0001781135901 | AF181: -0.0001534113374 | AG181: -0.0268825809 | AH181: -0.01684147477 | AI181: 0.007611800317 | AJ181: -0.009582020225 | AK181: 0.0002468122872 | AL181: 0.008923115009 | AM181: -0.01185962455 | AN181: -0.01330621166 | AO181: -0.03088002284 | AP181: -0.02065513578 | AQ181: -0.03450533221 | AR181: -0.01448372254 | AS181: -0.00684335691 | AT181: 0.003183927408 | AU181: -0.01557736426
A182: 2016-01-05 | B182: 2 | C182: 1 | D182: 2016 | E182: 130.4817 | F182: 17.599 | G182: 82.7613 | H182: 70.3376 | I182: 10.6683 | J182: 169.492 | K182: 125.733 | L182: 84.2133 | M182: 78.07253 | N182: 8.0325 | O182: 14.9893 | P182: 14.504 | Q182: 24.598 | R182: 21.864 | S182: 70.08 | T182: 9.16487 | U182: 87.921 | V182: 108.489 | W182: 61.437 | X182: 141.11 | Y182: 85.9241 | AA182: -0.05327562951 | AB182: 0.008215941691 | AC182: -0.001009624122 | AD182: 0.007648141703 | AE182: 0.0035118726 | AF182: -0.001550493019 | AG182: 0.0001829440475 | AH182: 0.0122197074 | AI182: 0.03734648683 | AJ182: -0.001766257487 | AK182: -0.005840423168 | AL182: 0.0255582657 | AM182: 0.0006099916824 | AN182: 0.0124259503 | AO182: -0.00457002098 | AP182: -0.0007449594243 | AQ182: -0.0138816603 | AR182: 0.001799034542 | AS182: -0.0009923944362 | AT182: 0.00319409719 | AU182: -0.008750752525
A183: 2016-01-04 | B183: 2 | C183: 1 | D183: 2016 | E183: 137.6217 | F183: 17.455 | G183: 82.8449 | H183: 69.8017 | I183: 10.6309 | J183: 169.755 | K183: 125.71 | L183: 83.1905 | M183: 75.21057 | N183: 8.0467 | O183: 15.0771 | P183: 14.138 | Q183: 24.583 | R183: 21.594 | S183: 70.401 | T183: 9.1717 | U183: 89.15 | V183: 108.294 | W183: 61.498 | X183: 140.66 | Y183: 86.6793 | AA183: -0.03399583953 | AB183: -0.03926478155 | AC183: -0.04259602718 | AD183: -0.04014917716 | AE183: -0.05660327384 | AF183: -0.03758126258 | AG183: -0.03940121001 | AH183: -0.05373697975 | AI183: -0.02567183118 | AJ183: -0.04798086865 | AK183: -0.03388231702 | AL183: -0.005712890665 | AM183: -0.0238757322 | AN183: -0.04487047078 | AO183: -0.04807224898 | AP183: -0.02095064216 | AQ183: -0.05301699025 | AR183: -0.04189184144 | AS183: -0.03121601882 | AT183: -0.04721132168 | AU183: -0.02328376769
A184: 2015-12-30 | B184: 53 | C184: 12 | D184: 2015 | E184: 142.3807 | F184: 18.154 | G184: 86.45 | H184: 72.6612 | I184: 11.25 | J184: 176.256 | K184: 130.762 | L184: 87.7832 | M184: 77.16636 | N184: 8.4422 | O184: 15.5967 | P184: 14.219 | Q184: 25.177 | R184: 22.585 | S184: 73.868 | T184: 9.36588 | U184: 94.004 | V184: 112.927 | W184: 63.448 | X184: 147.46 | Y184: 88.7212 | AA184: -0.01047168762 | AB184: 5.508579614e-05 | AC184: -0.008017513406 | AD184: -0.001569069985 | AE184: 0.009341271923 | AF184: -0.007770881209 | AG184: -0.005278103598 | AH184: 0 | AI184: -0.008005954748 | AJ184: -0.001231148201 | AK184: -0.01663997498 | AL184: -0.01139832627 | AM184: -0.01439327673 | AN184: -0.004946788057 | AO184: -0.00663844627 | AP184: -0.009436558632 | AQ184: -0.003991851742 | AR184: -0.01796442359 | AS184: -0.02134724185 | AT184: -0.008844536608 | AU184: -0.01379511318
A185: 2015-12-29 | B185: 53 | C185: 12 | D185: 2015 | E185: 143.8795 | F185: 18.153 | G185: 87.1459 | H185: 72.7753 | I185: 11.1454 | J185: 177.631 | K185: 131.454 | L185: 87.7832 | M185: 77.78663 | N185: 8.4526 | O185: 15.8584 | P185: 14.382 | Q185: 25.542 | R185: 22.697 | S185: 74.36 | T185: 9.45468 | U185: 94.38 | V185: 114.974 | W185: 64.817 | X185: 148.77 | Y185: 89.9536 | AA185: 0.006269984568 | AB185: 0.003365984693 | AC185: 0.01973657932 | AD185: 0.01454979806 | AE185: -0.007891332379 | AF185: 0.02037149611 | AG185: 0.02154589587 | AH185: 0.009681818938 | AI185: 0.0226896641 | AJ185: 0.003804877435 | AK185: 0.02391792913 | AL185: 0.01111705209 | AM185: 0.01371828514 | AN185: 0.0177806169 | AO185: 0.01064005225 | AP185: 0.0006189326942 | AQ185: 0.006814861665 | AR185: 0.0205623919 | AS185: -0.009321248992 | AT185: 0.0214010002 | AU185: 0.02026201403
A186: 2015-12-28 | B186: 53 | C186: 12 | D186: 2015 | E186: 142.9802 | F186: 18.092 | G186: 85.4428 | H186: 71.7241 | I186: 11.2337 | J186: 174.049 | K186: 128.652 | L186: 86.9374 | M186: 76.04155 | N186: 8.4205 | O186: 15.4836 | P186: 14.223 | Q186: 25.194 | R186: 22.297 | S186: 73.573 | T186: 9.44883 | U186: 93.739 | V186: 112.634 | W186: 65.424 | X186: 145.62 | Y186: 88.1493 | AA186: 0.0006989423447 | AB186: -0.02446070852 | AC186: -0.008400668495 | AD186: -0.002190724769 | AE186: -0.0191326744 | AF186: -0.008945841586 | AG186: -0.006577518455 | AH186: -0.00435685527 | AI186: 0.000208065799 | AJ186: -0.005932135494 | AK186: 0.0004780392729 | AL186: 0.01202447647 | AM186: 0.001390185516 | AN186: -0.001881889614 | AO186: 0.0006934294441 | AP186: 0.004450650919 | AQ186: -0.006115316341 | AR186: -0.005180372262 | AS186: -0.03646917449 | AT186: -0.009227995352 | AU186: -0.009816738935
A187: 2015-12-23 | B187: 52 | C187: 12 | D187: 2015 | E187: 142.8803 | F187: 18.54 | G187: 86.1636 | H187: 71.8814 | I187: 11.4507 | J187: 175.613 | K187: 129.501 | L187: 87.317 | M187: 76.02573 | N187: 8.4706 | O187: 15.4762 | P187: 14.053 | Q187: 25.159 | R187: 22.339 | S187: 73.522 | T187: 9.40687 | U187: 94.314 | V187: 113.219 | W187: 67.854 | X187: 146.97 | Y187: 89.0189 | AA187: 0.01059411171 | AB187: 0.0616803299 | AC187: 0.02268716462 | AD187: 0.01852861705 | AE187: 0.05320398834 | AF187: 0.006638810434 | AG187: 0.01434162349 | AH187: 0.02859536485 | AI187: 0.02467419465 | AJ187: 0.05015936308 | AK187: 0.01729765813 | AL187: 0.004421630367 | AM187: 0.01010694712 | AN187: 0.03317785936 | AO187: 0.01441199804 | AP187: 0.02202485528 | AQ187: 0.0194101857 | AR187: 0.02353049741 | AS187: 0 | AT187: 0.01674138586 | AU187: 0.02125694873 | AX187: 142.8803 | AY187: 18.54 | AZ187: 86.1636 | BA187: 71.8814 | BB187: 11.4507 | BC187: 175.613 | BD187: 129.501 | BE187: 87.317 | BF187: 76.02573 | BG187: 8.4706 | BH187: 15.4762 | BI187: 14.053 | BJ187: 25.159 | BK187: 22.339 | BL187: 73.522 | BM187: 9.40687 | BN187: 94.314 | BO187: 113.219 | BP187: 67.854 | BQ187: 146.97 | BR187: 89.0189
A188: 2015-12-22 | B188: 52 | C188: 12 | D188: 2015 | E188: 141.3746 | F188: 17.431 | G188: 84.2308 | H188: 70.5618 | I188: 10.8574 | J188: 174.451 | K188: 127.657 | L188: 84.8555 | M188: 74.17281 | N188: 8.0562 | O188: 15.2108 | P188: 13.991 | Q188: 24.906 | R188: 21.61 | S188: 72.47 | T188: 9.20195 | U188: 92.501 | V188: 110.586 | W188: 67.854 | X188: 144.53 | Y188: 87.1466 | AA188: 0.01382747155 | AB188: 0.004427202861 | AC188: -0.01147012604 | AD188: -0.002407751827 | AE188: -0.007661185359 | AF188: -0.01442673348 | AG188: 0.01014078116 | AH188: -0.008734305072 | AI188: -0.006593710605 | AJ188: -0.00818369568 | AK188: -0.006304538246 | AL188: -0.004136953118 | AM188: -0.005605395843 | AN188: -0.002957214982 | AO188: -0.001254904289 | AP188: 0.003719164166 | AQ188: 0.00462685371 | AR188: -0.007028575647 | AS188: 0 | AT188: -0.002487735372 | AU188: 0.01049707649
A189: 2015-12-21 | B189: 52 | C189: 12 | D189: 2015 | E189: 139.4332 | F189: 17.354 | G189: 85.2025 | H189: 70.7319 | I189: 10.9409 | J189: 176.986 | K189: 126.369 | L189: 85.5999 | M189: 74.6635 | N189: 8.1224 | O189: 15.307 | P189: 14.049 | Q189: 25.046 | R189: 21.674 | S189: 72.561 | T189: 9.16779 | U189: 92.074 | V189: 111.366 | W189: 67.854 | X189: 144.89 | Y189: 86.2366 | AA189: 0.009721265311 | AB189: 0.006474759584 | AC189: -0.005377376528 | AD189: 0.0001527008974 | AE189: 0.02244190491 | AF189: 0.0001243113436 | AG189: -0.01547679385 | AH189: 0.002300544104 | AI189: -0.01769001368 | AJ189: 0.02345575101 | AK189: -0.005056768976 | AL189: 0.02457161486 | AM189: 0.007534501819 | AN189: 0.005644765833 | AO189: -0.002395111816 | AP189: -0.007001119358 | AQ189: -0.003685880761 | AR189: -0.01434448085 | AS189: -0.01064260892 | AT189: -0.007768764795 | AU189: -0.01341204272
A190: 2015-12-18 | B190: 51 | C190: 12 | D190: 2015 | E190: 138.0843 | F190: 17.242 | G190: 85.6619 | H190: 70.7211 | I190: 10.6981 | J190: 176.964 | K190: 128.34 | L190: 85.4032 | M190: 75.99605 | N190: 7.9341 | O190: 15.3846 | P190: 13.708 | Q190: 24.858 | R190: 21.552 | S190: 72.735 | T190: 9.2322 | U190: 92.414 | V190: 112.975 | W190: 68.58 | X190: 146.02 | Y190: 87.401 | AA190: -0.003250692803 | AB190: 0.008386770184 | AC190: -0.006397746662 | AD190: -0.01334223024 | AE190: -0.01266010175 | AF190: -0.0001751615305 | AG190: -0.006167632592 | AH190: -0.003219515318 | AI190: -0.02183741338 | AJ190: -0.02833156281 | AK190: -0.008343603509 | AL190: -0.004875751027 | AM190: -0.01259235923 | AN190: -0.01592668878 | AO190: -0.02573327127 | AP190: -0.01354276793 | AQ190: -0.02270223201 | AR190: -0.023462359 | AS190: 0.01213220781 | AT190: -0.007369028979 | AU190: -0.03058323728 | AX190: 138.0843 | AY190: 17.242 | AZ190: 85.6619 | BA190: 70.7211 | BB190: 10.6981 | BC190: 176.964 | BD190: 128.34 | BE190: 85.4032 | BF190: 75.99605 | BG190: 7.9341 | BH190: 15.3846 | BI190: 13.708 | BJ190: 24.858 | BK190: 21.552 | BL190: 72.735 | BM190: 9.2322 | BN190: 92.414 | BO190: 112.975 | BP190: 68.58 | BQ190: 146.02 | BR190: 87.401 | BU190: 0.01237746701 | BV190: 0.005583357531 | BW190: 0.01467014949 | BX190: 0.02136167975 | BY190: 0.03636037396 | BZ190: 0.01612694701 | CA190: 0.007053020503 | CB190: 0.02361776236 | CC190: 0.01994506063 | CD190: 0.02390297976 | CE190: 0.03486222083 | CF190: 0.05164658886 | CG190: 0.04370415775 | CH190: 0.01467658969 | CI190: 0.02670949355 | CJ190: 0.02580285044 | CK190: 0.0278364134 | CL190: 0.03290548932 | CM190: 0.03298183115 | CN190: 0.02243861455 | CO190: 0.01984644927
A191: 2015-12-17 | B191: 51 | C191: 12 | D191: 2015 | E191: 138.5339 | F191: 17.098 | G191: 86.2117 | H191: 71.671 | I191: 10.8344 | J191: 176.995 | K191: 129.134 | L191: 85.6786 | M191: 77.67386 | N191: 8.1621 | O191: 15.5135 | P191: 13.775 | Q191: 25.173 | R191: 21.898 | S191: 74.631 | T191: 9.35808 | U191: 94.536 | V191: 115.657 | W191: 67.753 | X191: 147.1 | Y191: 90.1153 | AA191: 0.02371883075 | AB191: -0.003561319699 | AC191: 0.01561806605 | AD191: 0.02272990294 | AE191: 0.02140066934 | AF191: 0.0222751297 | AG191: 0.006931520976 | AH191: 0.02545949239 | AI191: 0.03028222348 | AJ191: 0.03563054212 | AK191: 0.02550046129 | AL191: 0.02098081655 | AM191: 0.01880681771 | AN191: 0.01620512398 | AO191: 0.02508729861 | AP191: 0.02331502058 | AQ191: 0.02957540981 | AR191: 0.03955935786 | AS191: -0.006311861173 | AT191: 0.01852540115 | AU191: 0.02358043468
A192: 2015-12-16 | B192: 51 | C192: 12 | D192: 2015 | E192: 135.2867 | F192: 17.159 | G192: 84.8757 | H192: 70.0603 | I192: 10.605 | J192: 173.096 | K192: 128.242 | L192: 83.5248 | M192: 75.35698 | N192: 7.8764 | O192: 15.1229 | P192: 13.489 | Q192: 24.704 | R192: 21.546 | S192: 72.782 | T192: 9.14242 | U192: 91.781 | V192: 111.171 | W192: 68.182 | X192: 144.4 | Y192: 88.0152 | AA192: 0.004485726009 | AB192: -0.002212132699 | AC192: -0.003278246023 | AD192: -0.007593104892 | AE192: 0.03266347531 | AF192: -0.001275933813 | AG192: 0.00140458229 | AH192: 0.001531256253 | AI192: 0.001103359676 | AJ192: 0.005423241513 | AK192: -0.004749693933 | AL192: 0.003713610923 | AM192: 0.004543987046 | AN192: 0.002695544691 | AO192: 0.011775248 | AP192: -0.002984902422 | AQ192: 0.01050375752 | AR192: 0.00527605764 | AS192: 0 | AT192: 0.005973484457 | AU192: 0.003579645733
A193: 2015-12-15 | B193: 51 | C193: 12 | D193: 2015 | E193: 134.6812 | F193: 17.197 | G193: 85.1544 | H193: 70.5943 | I193: 10.2642 | J193: 173.317 | K193: 128.062 | L193: 83.397 | M193: 75.27388 | N193: 7.8338 | O193: 15.1949 | P193: 13.439 | Q193: 24.592 | R193: 21.488 | S193: 71.93 | T193: 9.16975 | U193: 90.822 | V193: 110.586 | W193: 68.182 | X193: 143.54 | Y193: 87.7007 | AA193: 0.02284185913 | AB193: 0.01990962843 | AC193: 0.01822281838 | AD193: 0.02340972738 | AE193: 0.02777846635 | AF193: 0.009396816513 | AG193: 0.01895059076 | AH193: 0.004135787374 | AI193: 0.02785171264 | AJ193: 0.03203781005 | AK193: 0.03900724325 | AL193: 0.04403920876 | AM193: 0.03665082362 | AN193: 0.02588119097 | AO193: 0.03149310611 | AP193: 0.03211634899 | AQ193: 0.02449884572 | AR193: 0.03180645681 | AS193: 0 | AT193: 0.02218947802 | AU193: 0.03055653244
A194: 2015-12-14 | B194: 51 | C194: 12 | D194: 2015 | E194: 131.6397 | F194: 16.858 | G194: 83.6167 | H194: 68.9609 | I194: 9.983 | J194: 171.696 | K194: 125.658 | L194: 83.0528 | M194: 73.2063 | N194: 7.5868 | O194: 14.6136 | P194: 12.86 | Q194: 23.707 | R194: 20.939 | S194: 69.7 | T194: 8.87993 | U194: 88.624 | V194: 107.124 | W194: 68.182 | X194: 140.39 | Y194: 85.0614 | AA194: -0.03541825607 | AB194: -0.01693958868 | AC194: -0.009494742256 | AD194: -0.003842615446 | AE194: -0.0328221353 | AF194: -0.01409390387 | AG194: -0.01406604093 | AH194: -0.004289258336 | AI194: -0.01745482178 | AJ194: -0.0208570511 | AK194: -0.01655218628 | AL194: -0.01221129634 | AM194: -0.003705111392 | AN194: -0.01417858117 | AO194: -0.01591288791 | AP194: -0.01310084878 | AQ194: -0.01403936763 | AR194: -0.02027402399 | AS194: 0.02716148451 | AT194: -0.01688072009 | AU194: -0.007286926318
A195: 2015-12-11 | B195: 50 | C195: 12 | D195: 2015 | E195: 136.3857 | F195: 17.146 | G195: 84.4144 | H195: 69.2264 | I195: 10.3161 | J195: 174.133 | K195: 127.438 | L195: 83.4098 | M195: 74.49532 | N195: 7.7467 | O195: 14.8575 | P195: 13.018 | Q195: 23.795 | R195: 21.238 | S195: 70.818 | T195: 8.99703 | U195: 89.877 | V195: 109.318 | W195: 66.355 | X195: 142.78 | Y195: 85.6835 | AA195: -0.02531802795 | AB195: -0.03202569249 | AC195: -0.02418442082 | AD195: -0.01928801363 | AE195: -0.03411446478 | AF195: -0.01306514551 | AG195: -0.0299157368 | AH195: -0.02913043553 | AI195: -0.01570547164 | AJ195: -0.04233530021 | AK195: -0.02036005654 | AL195: -0.02488369933 | AM195: -0.02108317691 | AN195: -0.04870495836 | AO195: -0.03571535755 | AP195: -0.02453365862 | AQ195: -0.03618762005 | AR195: -0.0229333835 | AS195: -0.004045757103 | AT195: -0.02243861455 | AU195: -0.008307724712 | AX195: 136.3857 | AY195: 17.146 | AZ195: 84.4144 | BA195: 69.2264 | BB195: 10.3161 | BC195: 174.133 | BD195: 127.438 | BE195: 83.4098 | BF195: 74.49532 | BG195: 7.7467 | BH195: 14.8575 | BI195: 13.018 | BJ195: 23.795 | BK195: 21.238 | BL195: 70.818 | BM195: 8.99703 | BN195: 89.877 | BO195: 109.318 | BP195: 66.355 | BQ195: 142.78 | BR195: 85.6835 | BU195: -0.02174007336 | BV195: -0.07535696272 | BW195: -0.05573254873 | BX195: -0.02769611396 | BY195: -0.095080151 | BZ195: -0.02610726617 | CA195: -0.05802251306 | CB195: -0.04085757724 | CC195: -0.0091212662 | CD195: -0.06981954851 | CE195: -0.02674989664 | CF195: -0.03435466762 | CG195: -0.04880017022 | CH195: -0.09941955812 | CI195: -0.06193781528 | CJ195: -0.09313811668 | CK195: -0.05560322955 | CL195: -0.03807026563 | CM195: -0.01611539645 | CN195: -0.0249009961 | CO195: -0.05425191091
A196: 2015-12-10 | B196: 50 | C196: 12 | D196: 2015 | E196: 139.8828 | F196: 17.704 | G196: 86.4808 | H196: 70.5746 | I196: 10.6741 | J196: 176.423 | K196: 131.308 | L196: 85.8753 | M196: 75.67454 | N196: 8.0817 | O196: 15.1631 | P196: 13.346 | Q196: 24.302 | R196: 22.298 | S196: 73.393 | T196: 9.22049 | U196: 93.189 | V196: 111.854 | W196: 66.624 | X196: 146.02 | Y196: 86.3983 | AA196: 0.003577954588 | AB196: 0.01766528358 | AC196: 0.0003342340722 | AD196: 0.01374914212 | AE196: 0.01376287506 | AF196: 0.01258287193 | AG196: 0.01787284888 | AH196: 0.0152326996 | AI196: 0.01907080216 | AJ196: 0.003396136135 | AK196: 0.004693416691 | AL196: 0.02143290798 | AM196: 0.01333850189 | AN196: 0.0067046396 | AO196: 0.01171800075 | AP196: -0.002113704161 | AQ196: 0.009596381761 | AR196: 0.009639170014 | AS196: -0.009768415714 | AT196: 0.003704978509 | AU196: 0.002308262911
A197: 2015-12-09 | B197: 50 | C197: 12 | D197: 2015 | E197: 139.3832 | F197: 17.394 | G197: 86.4519 | H197: 69.6109 | I197: 10.5282 | J197: 174.217 | K197: 128.982 | L197: 84.5771 | M197: 74.24504 | N197: 8.0543 | O197: 15.0921 | P197: 13.063 | Q197: 23.98 | R197: 22.149 | S197: 72.538 | T197: 9.24 | U197: 92.299 | V197: 110.781 | W197: 67.278 | X197: 145.48 | Y197: 86.1991 | AA197: 0.0477150388 | AB197: -0.00978296655 | AC197: -0.01211117305 | AD197: -0.02297185495 | AE197: 0.006680573585 | AF197: -0.02199862207 | AG197: -0.02630582975 | AH197: -0.03472810836 | AI197: -0.02672814296 | AJ197: 0.006014849737 | AK197: -0.009305828351 | AL197: -0.02435087047 | AM197: -0.02544498922 | AN197: -0.0140326438 | AO197: -0.01545794975 | AP197: -0.007995010834 | AQ197: -0.01096899197 | AR197: -0.02091160287 | AS197: -0.01837994659 | AT197: -0.009577306753 | AU197: -0.03562838415
A198: 2015-12-08 | B198: 50 | C198: 12 | D198: 2015 | E198: 132.8887 | F198: 17.565 | G198: 87.5053 | H198: 71.2285 | I198: 10.4581 | J198: 178.092 | K198: 132.42 | L198: 87.5659 | M198: 76.25623 | N198: 8.006 | O198: 15.2332 | P198: 13.385 | Q198: 24.598 | R198: 22.462 | S198: 73.668 | T198: 9.31417 | U198: 93.317 | V198: 113.122 | W198: 68.526 | X198: 146.88 | Y198: 89.3256 | AA198: -0.02597496544 | AB198: -0.03935208467 | AC198: -0.02315806524 | AD198: -0.007317134817 | AE198: -0.04082620178 | AF198: -0.009133198209 | AG198: -0.02045837619 | AH198: -0.01339797222 | AI198: -0.01340167627 | AJ198: -0.03826664646 | AK198: -0.01709176301 | AL198: -0.01099647012 | AM198: -0.01980422156 | AN198: -0.03176678425 | AO198: -0.02687934267 | AP198: -0.02646601634 | AQ198: -0.02830422475 | AR198: -0.02132299327 | AS198: 0.01433036715 | AT198: -0.0131215951 | AU198: -0.02291468703
A199: 2015-12-07 | B199: 50 | C199: 12 | D199: 2015 | E199: 136.3857 | F199: 18.27 | G199: 89.5554 | H199: 71.7516 | I199: 10.8939 | J199: 179.726 | K199: 135.157 | L199: 88.747 | M199: 77.28507 | N199: 8.3183 | O199: 15.4958 | P199: 13.533 | Q199: 25.09 | R199: 23.187 | S199: 75.675 | T199: 9.56397 | U199: 95.996 | V199: 115.56 | W199: 67.551 | X199: 148.82 | Y199: 91.3961 | AA199: -0.02174007336 | AB199: -0.01186150258 | AC199: 0.003386876308 | AD199: 0.008131747324 | AE199: -0.04058293309 | AF199: 0.005506827692 | AG199: 0.0007845808077 | AH199: 0.02116623927 | AI199: 0.02764322252 | AJ199: 0.001371412288 | AK199: 0.01531433456 | AL199: 0.004443464321 | AM199: 0.004193715582 | AN199: -0.01161981131 | AO199: 0.004396833952 | AP199: -0.03202972673 | AQ199: 0.01026122546 | AR199: 0.01745854399 | AS199: 0.001748355806 | AT199: 0.0165315418 | AU199: 0.01029062208
A200: 2015-12-04 | B200: 49 | C200: 12 | D200: 2015 | E200: 139.3832 | F200: 18.488 | G200: 89.2526 | H200: 71.1705 | I200: 11.3451 | J200: 178.739 | K200: 135.051 | L200: 86.8883 | M200: 75.17792 | N200: 8.3069 | O200: 15.2603 | P200: 13.473 | Q200: 24.985 | R200: 23.458 | S200: 75.343 | T200: 9.87526 | U200: 95.016 | V200: 113.56 | W200: 67.433 | X200: 146.38 | Y200: 90.4604 | AA200: =LN(E200/E201) -> 0.01626040326 | AB200: =LN(F200/F201) -> 0.004553840679 | AC200: =LN(G200/G201) -> 0.02213498033 | AD200: =LN(H200/H201) -> 0.01359050429 | AE200: =LN(I200/I201) -> -0.01486460062 | AF200: =LN(J200/J201) -> 0.01660240936 | AG200: =LN(K200/K201) -> 0.01194059602 | AH200: =LN(L200/L201) -> 0.002516736349 | AI200: =LN(M200/M201) -> 0.01179413032 | AJ200: =LN(N200/N201) -> -0.007937691557 | AK200: =LN(O200/O201) -> -0.003545407118 | AL200: =LN(P200/P201) -> 0.02677858394 | AM200: =LN(Q200/Q201) -> 0.01443224276 | AN200: =LN(R200/R201) -> 0.006758227528 | AO200: =LN(S200/S201) -> 0.02016397365 | AP200: =LN(T200/T201) -> 0.02187751369 | AQ200: =LN(U200/U201) -> 0.01516449883 | AR200: =LN(V200/V201) -> -0.01067720872 | AS200: =LN(W200/W201) -> 0.02054081733 | AT200: =LN(X200/X201) -> -0.001228920753 | AU200: =LN(Y200/Y201) -> 0.02506375543 | AX200: 139.3832 | AY200: 18.488 | AZ200: 89.2526 | BA200: 71.1705 | BB200: 11.3451 | BC200: 178.739 | BD200: 135.051 | BE200: 86.8883 | BF200: 75.17792 | BG200: 8.3069 | BH200: 15.2603 | BI200: 13.473 | BJ200: 24.985 | BK200: 23.458 | BL200: 75.343 | BM200: 9.87526 | BN200: 95.016 | BO200: 113.56 | BP200: 67.433 | BQ200: 146.38 | BR200: 90.4604 | BU200: 0.0346432211 | BV200: -0.05799944668 | BW200: -0.04099452363 | BX200: -0.02963498723 | BY200: 0.07828725004 | BZ200: -0.005412234789 | CA200: -0.1924013255 | CB200: -0.04590199908 | CC200: -0.03883185729 | CD200: -0.02707714497 | CE200: -0.06719181017 | CF200: 0.03205281745 | CG200: -0.06758570485 | CH200: -0.02138284451 | CI200: -0.03868813457 | CJ200: -0.02150624831 | CK200: -0.02219029042 | CL200: -0.07723170493 | CM200: -0.01526118079 | CN200: -0.03007998543 | CO200: 0.02621493358
... 362 more rows

Sheet Wochenwerte
E1: Kursdaten | AA1: Wochenänderung | AX1: Wochenwerte | BU1: Wochenänderung
A2: Date | E2: VW | F2: Thyssen | G2: Siemens | H2: SAP | I2: RWE | J2: Münchener | K2: Linde | L2: Henkel | M2: Fresenius | N2: EON | O2: Telekom | P2: Lufthansa | Q2: Deutsche Post | R2: Deutsche Bank | S2: Daimler | T2: Commerzbank | U2: BMW | V2: Bayer | W2: BASF | X2: Allianz | Y2: Adidas | AA2: VW | AB2: Thyssen | AC2: Siemens | AD2: SAP | AE2: RWE | AF2: Münchener | AG2: Linde | AH2: Henkel | AI2: Fresenius | AJ2: EON | AK2: Telekom | AL2: Lufthansa | AM2: Deutsche Post | AN2: Deutsche Bank | AO2: Daimler | AP2: Commerzbank | AQ2: BMW | AR2: Bayer | AS2: BASF | AT2: Allianz | AU2: Adidas | AX2: VW | AY2: Thyssen | AZ2: Siemens | BA2: SAP | BB2: RWE | BC2: Münchener | BD2: Linde | BE2: Henkel | BF2: Fresenius | BG2: EON | BH2: Telekom | BI2: Lufthansa | BJ2: Deutsche Post | BK2: Deutsche Bank | BL2: Daimler | BM2: Commerzbank | BN2: BMW | BO2: Bayer | BP2: BASF | BQ2: Allianz | BR2: Adidas | BU2: VW | BV2: Thyssen | BW2: Siemens | BX2: SAP | BY2: RWE | BZ2: Münchener | CA2: Linde | CB2: Henkel | CC2: Fresenius | CD2: EON | CE2: Telekom | CF2: Lufthansa | CG2: Deutsche Post | CH2: Deutsche Bank | CI2: Daimler | CJ2: Commerzbank | CK2: BMW | CL2: Bayer | CM2: BASF | CN2: Allianz | CO2: Adidas
Z3: Erwartete Rendite | AA3: =(1+AVERAGE(AA7:AA3810))^250-1 -> 0.4329221738 | AB3: =AVERAGE(AB7:AB3810) -> 0.0004668057894 | AC3: 0.001310374905 | AD3: 0.001094874669 | AE3: -0.001055230309 | AF3: -0.0001779578226 | AG3: 0.001705165396 | AH3: 0.002197086709 | AI3: 0.001403396079 | AJ3: -0.0004780936661 | AK3: 0.00162263118 | AL3: -0.0007306304913 | AM3: 0.0009332485257 | AN3: -0.001409306469 | AO3: 0.0008077257685 | AP3: -0.00404186226 | AQ3: 0.001608821167 | AR3: 0.001826029909 | AS3: -0.0003114231162 | AT3: -7.883166287e-05 | AU3: 0.003201935861 | AW3: Erwartete Rendite | AX3: =AVERAGE(AX7:AX3810) -> 104.0541598 | AY3: =AVERAGE(AY7:AY3810) -> 20.0396132 | AZ3: 61.24364567 | BA3: 38.98588849 | BB3: 32.980089 | BC3: 105.0760427 | BD3: 84.12212678 | BE3: 37.61486494 | BF3: 37.53524241 | BG3: 15.12068862 | BH3: 5.441547348 | BI3: 12.22588616 | BJ3: 15.65339198 | BK3: 37.03647684 | BL3: 38.86330013 | BM3: 63.4334404 | BN3: 43.72720569 | BO3: 49.63913066 | BP3: 31.23312937 | BQ3: 81.34338939 | BR3: 42.89308461
Z4: Varianz | AA4: =VAR(AA7:AA3810) -> 0.004075018683 | AB4: =VAR(AB7:AB3810) -> 0.002884919368 | AC4: 0.001962432615 | AD4: 0.002073554596 | AE4: 0.001799883795 | AF4: 0.00185388889 | AG4: 0.001227396935 | AH4: 0.001058591274 | AI4: 0.001511832543 | AJ4: 0.001703412894 | AK4: 0.002379138707 | AL4: 0.002394819074 | AM4: 0.001829496853 | AN4: 0.003346565645 | AO4: 0.002548235887 | AP4: 0.004572551518 | AQ4: 0.002025062019 | AR4: 0.002069273919 | AS4: 0.003020887079 | AT4: 0.002588220974 | AU4: 0.001589306072 | AW4: Varianz | AX4: =VAR(AX7:AX3810) -> 4035.388456 | AY4: =VAR(AY7:AY3810) -> 57.35975873 | AZ4: 338.6412878 | BA4: 204.300205 | BB4: 194.7226094 | BC4: 1665.3196 | BD4: 1676.694099 | BE4: 563.9449242 | BF4: 329.9595111 | BG4: 27.13073316 | BH4: 15.972896 | BI4: 8.592327731 | BJ4: 33.46841763 | BK4: 188.6251721 | BL4: 237.022354 | BM4: 3264.14811 | BN4: 535.8963027 | BO4: 1029.582499 | BP4: 932.9079132 | BQ4: 963.3439015 | BR4: 668.3276293
Z5: Standardabweichung | AA5: =SQRT(AA4) -> 0.06383587301 | AB5: =SQRT(AB4) -> 0.05371144541 | AC5: 0.04429935231 | AD5: 0.04553629977 | AE5: 0.04242503736 | AF5: 0.04305681003 | AG5: 0.03503422519 | AH5: 0.03253599966 | AI5: 0.03888229087 | AJ5: 0.04127242292 | AK5: 0.04877641548 | AL5: 0.04893688869 | AM5: 0.04277261803 | AN5: 0.0578495086 | AO5: 0.05048005435 | AP5: 0.06762064417 | AQ5: 0.04500068909 | AR5: 0.04548927257 | AS5: 0.05496259709 | AT5: 0.05087456117 | AU5: 0.03986610179 | AW5: Standardabweichung | AX5: =SQRT(AX4) -> 63.52470744 | AY5: =SQRT(AY4) -> 7.573622564 | AZ5: 18.40220878 | BA5: 14.29336227 | BB5: 13.95430433 | BC5: 40.80832758 | BD5: 40.94745534 | BE5: 23.74752459 | BF5: 18.16478767 | BG5: 5.208717036 | BH5: 3.996610564 | BI5: 2.931267257 | BJ5: 5.785189507 | BK5: 13.73408796 | BL5: 15.39553033 | BM5: 57.13272364 | BN5: 23.14943418 | BO5: 32.08710799 | BP5: 30.54354127 | BQ5: 31.03778184 | BR5: 25.85203337
Z6: Volatilität | AA6: =STDEV(AA7:AA3810)*SQRT(12) -> 0.2211339508 | AB6: =STDEV(AB7:AB3810)*SQRT(12) -> 0.1860619048 | AC6: 0.1534574579 | AD6: 0.1577423696 | AE6: 0.1469646404 | AF6: 0.1491531652 | AG6: 0.1213621161 | AH6: 0.112708009 | AI6: 0.1346922066 | AJ6: 0.1429718669 | AK6: 0.1689664596 | AL6: 0.1695223551 | AM6: 0.1481686952 | AN6: 0.2003965762 | AO6: 0.1748680378 | AP6: 0.2342447827 | AQ6: 0.1558869598 | AR6: 0.1575794626 | AS6: 0.1903960213 | AT6: 0.1762346495 | AU6: 0.1381002276
A7: 2016-09-09 | B7: 37 | C7: 9 | D7: 2016 | E7: 131.92 | F7: 21.311 | G7: 104.502 | H7: 78.711 | I7: 14.889 | J7: 166.252 | K7: 148.203 | L7: 100.1 | M7: 78.97 | N7: 8.168 | O7: 14.781 | P7: 11.069 | Q7: 27.909 | R7: 13.66 | S7: 63.1 | T7: 6.431 | U7: 76.599 | V7: 95.02 | W7: 72.267 | X7: 136.55 | Y7: 144.745 | AX7: =IF($B7<$B5,AA7,"") ->  | BU7: =IF($C7<$C5,AA7,"") -> 
A8: 2016-09-08 | B8: 37 | C8: 9 | D8: 2016 | E8: 132.095 | F8: 21.912 | G8: 106.3 | H8: 79.997 | I8: 15.142 | J8: 165.003 | K8: 150.29 | L8: 102 | M8: 79.88 | N8: 8.175 | O8: 15.05 | P8: 10.91 | Q8: 28.856 | R8: 13.14 | S8: 63.655 | T8: 6.438 | U8: 77.351 | V8: 96.19 | W8: 73.9 | X8: 135.65 | Y8: 146 | AX8: =IF($B8<$B7,AA8,"") ->  | BN8: =IF($B8<$B7,AQ8,"") ->  | BU8: =IF($C8<$C7,AA8,"") ->  | BV8: =IF($C8<$C7,AB8,"") -> 
A9: 2016-09-07 | B9: 37 | C9: 9 | D9: 2016 | E9: 133 | F9: 22.223 | G9: 108.1 | H9: 80.678 | I9: 15.086 | J9: 164.842 | K9: 154.4 | L9: 102.15 | M9: 80.21 | N9: 8.214 | O9: 15.059 | P9: 10.553 | Q9: 28.765 | R9: 12.921 | S9: 63.955 | T9: 6.377 | U9: 78.8 | V9: 96.95 | W9: 74.36 | X9: 135.05 | Y9: 148.13
A10: 2016-09-06 | B10: 37 | C10: 9 | D10: 2016 | E10: 131.785 | F10: 21.831 | G10: 108 | H10: 80.188 | I10: 15.12 | J10: 163.762 | K10: 153.213 | L10: 101.703 | M10: 81.053 | N10: 8.393 | O10: 15.078 | P10: 10.781 | Q10: 28.809 | R10: 12.9 | S10: 63.384 | T10: 6.311 | U10: 77.743 | V10: 95.92 | W10: 73.39 | X10: 134.7 | Y10: 146.532
A11: 2016-09-05 | B11: 37 | C11: 9 | D11: 2016 | E11: 131.895 | F11: 21.811 | G11: 107.99 | H11: 80.767 | I11: 15.219 | J11: 165 | K11: 155.692 | L11: 101.9 | M11: 80.196 | N11: 8.343 | O11: 15.065 | P11: 10.82 | Q11: 28.778 | R11: 13.275 | S11: 62.874 | T11: 6.459 | U11: 78.046 | V11: 94.24 | W11: 73.499 | X11: 135.5 | Y11: 147.563
A12: 2016-09-02 | B12: 36 | C12: 9 | D12: 2016 | E12: 131.567 | F12: 21.563 | G12: 108.16 | H12: 80.291 | I12: 15.03 | J12: 164 | K12: 154.924 | L12: 100.6 | M12: 80.206 | N12: 8.294 | O12: 15.042 | P12: 10.769 | Q12: 28.772 | R12: 13.326 | S12: 62.731 | T12: 6.511 | U12: 78.375 | V12: 94.93 | W12: 72.981 | X12: 135.7 | Y12: 144.775 | AA12: =IFERROR(LN(AX12/SUM(AX16:AX17)),"") -> 0.02085952954 | AB12: =IFERROR(LN(AY12/SUM(AY16:AY17)),"") -> 0.01415151001 | AC12: 0.009381890375 | AD12: 0.03527637813 | AE12: 0.01542102299 | AF12: 0.03348111862 | AG12: 0.002740577753 | AH12: 0.002129502362 | AI12: 0.01641709719 | AJ12: 0.007503363292 | AK12: 0.005733731289 | AL12: 0.03958850295 | AM12: 0.01548137816 | AN12: 0.06855879835 | AO12: 0.02374496591 | AP12: 0.08140030724 | AQ12: 0.03023233045 | AR12: -0.02157120061 | AS12: 0.01376915327 | AT12: 0.04599378292 | AU12: -0.05250168159 | AX12: =IF($B12<$B11,E12,"") -> 131.567 | AY12: =IF($B12<$B11,F12,"") -> 21.563 | AZ12: 108.16 | BA12: 80.291 | BB12: 15.03 | BC12: 164 | BD12: 154.924 | BE12: 100.6 | BF12: 80.206 | BG12: 8.294 | BH12: 15.042 | BI12: 10.769 | BJ12: 28.772 | BK12: 13.326 | BL12: 62.731 | BM12: 6.511 | BN12: 78.375 | BO12: 94.93 | BP12: 72.981 | BQ12: 135.7 | BR12: 144.775 | BU12: =IFERROR(LN(AX12/SUM(AX16:AX17)),"") -> 0.02085952954 | BV12: =IFERROR(LN(AY12/SUM(AY16:AY17)),"") -> 0.01415151001 | BW12: 0.009381890375 | BX12: 0.03527637813 | BY12: 0.01542102299 | BZ12: 0.03348111862 | CA12: 0.002740577753 | CB12: 0.002129502362 | CC12: 0.01641709719 | CD12: 0.007503363292 | CE12: 0.005733731289 | CF12: 0.03958850295 | CG12: 0.01548137816 | CH12: 0.06855879835 | CI12: 0.02374496591 | CJ12: 0.08140030724 | CK12: 0.03023233045 | CL12: -0.02157120061 | CM12: 0.01376915327 | CN12: 0.04599378292 | CO12: -0.05250168159
A13: 2016-09-01 | B13: 36 | C13: 9 | D13: 2016 | E13: 130.227 | F13: 21.12 | G13: 106.65 | H13: 78.9 | I13: 14.224 | J13: 162.296 | K13: 155.734 | L13: 100.45 | M13: 77.862 | N13: 8.08 | O13: 14.934 | P13: 10.616 | Q13: 28.486 | R13: 13.158 | S13: 62.007 | T13: 6.486 | U13: 78.131 | V13: 93.88 | W13: 72.7 | X13: 133.85 | Y13: 148.111 | AA13: =IFERROR(LN(AX13/SUM(AX17:AX18)),"") ->  | AB13: =IFERROR(LN(AY13/SUM(AY17:AY18)),"") ->  | AC13: =IFERROR(LN(AZ13/SUM(AZ17:AZ18)),"") ->  | AD13: =IFERROR(LN(BA13/SUM(BA17:BA18)),"") ->  | AE13: =IFERROR(LN(BB13/SUM(BB17:BB18)),"") ->  | AF13: =IFERROR(LN(BC13/SUM(BC17:BC18)),"") ->  | AG13: =IFERROR(LN(BD13/SUM(BD17:BD18)),"") ->  | AH13: =IFERROR(LN(BE13/SUM(BE17:BE18)),"") ->  | AI13: =IFERROR(LN(BF13/SUM(BF17:BF18)),"") ->  | AJ13: =IFERROR(LN(BG13/SUM(BG17:BG18)),"") ->  | AK13: =IFERROR(LN(BH13/SUM(BH17:BH18)),"") ->  | AL13: =IFERROR(LN(BI13/SUM(BI17:BI18)),"") ->  | AM13: =IFERROR(LN(BJ13/SUM(BJ17:BJ18)),"") ->  | AN13: =IFERROR(LN(BK13/SUM(BK17:BK18)),"") ->  | AO13: =IFERROR(LN(BL13/SUM(BL17:BL18)),"") ->  | AP13: =IFERROR(LN(BM13/SUM(BM17:BM18)),"") ->  | AQ13: =IFERROR(LN(BN13/SUM(BN17:BN18)),"") ->  | AR13: =IFERROR(LN(BO13/SUM(BO17:BO18)),"") ->  | AS13: =IFERROR(LN(BP13/SUM(BP17:BP18)),"") ->  | AT13: =IFERROR(LN(BQ13/SUM(BQ17:BQ18)),"") ->  | AU13: =IFERROR(LN(BR13/SUM(BR17:BR18)),"") ->  | AX13: =IF($B13<$B12,E13,"") ->  | BU13: =IFERROR(LN(AX13/SUM(AX17:AX18)),"") -> 
A14: 2016-08-31 | B14: 36 | C14: 8 | D14: 2016 | E14: 130.275 | F14: 20.872 | G14: 107.202 | H14: 78.919 | I14: 14.695 | J14: 161.786 | K14: 153.617 | L14: 100.6 | M14: 79.231 | N14: 8.242 | O14: 15.01 | P14: 10.471 | Q14: 28.367 | R14: 13.195 | S14: 62.021 | T14: 6.251 | U14: 77.667 | V14: 95.97 | W14: 72.699 | X14: 133.55 | Y14: 148.636
A15: 2016-08-30 | B15: 36 | C15: 8 | D15: 2016 | E15: 130.916 | F15: 21.005 | G15: 108.311 | H15: 79.67 | I15: 14.722 | J15: 160.724 | K15: 153.5 | L15: 101.1 | M15: 80.266 | N15: 8.326 | O15: 15.055 | P15: 10.532 | Q15: 28.502 | R15: 12.84 | S15: 62.299 | T15: 6.061 | U15: 78.655 | V15: 97.25 | W15: 73.26 | X15: 132.5 | Y15: 152.313
A16: 2016-08-29 | B16: 36 | C16: 8 | D16: 2016 | E16: 128.65 | F16: 21.045 | G16: 107.6 | H16: 78 | I16: 14.685 | J16: 159.382 | K16: 154.124 | L16: 100.375 | M16: 79.56 | N16: 8.23 | O16: 15.026 | P16: 10.458 | Q16: 28.522 | R16: 12.478 | S16: 61.15 | T16: 5.95 | U16: 76.779 | V16: 96.67 | W16: 72.2 | X16: 129.2 | Y16: 152.627
A17: 2016-08-26 | B17: 35 | C17: 8 | D17: 2016 | E17: 128.851 | F17: 21.26 | G17: 107.15 | H17: 77.508 | I17: 14.8 | J17: 158.6 | K17: 154.5 | L17: 100.386 | M17: 78.9 | N17: 8.232 | O17: 14.956 | P17: 10.351 | Q17: 28.33 | R17: 12.443 | S17: 61.259 | T17: 6.002 | U17: 76.041 | V17: 97 | W17: 71.983 | X17: 129.6 | Y17: 152.579 | AA17: 0.004199693529 | AB17: -0.01960892806 | AC17: 0.005615363375 | AD17: -0.005712095809 | AE17: 0.02538711045 | AF17: -0.0009075325822 | AG17: 0.02284803655 | AH17: 0.01087718425 | AI17: -0.0008488158263 | AJ17: 0.006459104779 | AK17: -0.01427315365 | AL17: -0.004722672746 | AM17: 0.01021792754 | AN17: 0.0383370725 | AO17: -0.0009789685717 | AP17: 0.04829878208 | AQ17: -0.01419371086 | AR17: 0.006723583643 | AS17: 0.0002917781118 | AT17: 0.003865486066 | AU17: -0.02541824271 | AX17: 128.851 | AY17: 21.26 | AZ17: 107.15 | BA17: 77.508 | BB17: 14.8 | BC17: 158.6 | BD17: 154.5 | BE17: 100.386 | BF17: 78.9 | BG17: 8.232 | BH17: 14.956 | BI17: 10.351 | BJ17: 28.33 | BK17: 12.443 | BL17: 61.259 | BM17: 6.002 | BN17: 76.041 | BO17: 97 | BP17: 71.983 | BQ17: 129.6 | BR17: 152.579 | BU17: 0.004199693529 | BV17: -0.01960892806 | BW17: 0.005615363375 | BX17: -0.005712095809 | BY17: 0.02538711045 | BZ17: -0.0009075325822 | CA17: 0.02284803655 | CB17: 0.01087718425 | CC17: -0.0008488158263 | CD17: 0.006459104779 | CE17: -0.01427315365 | CF17: -0.004722672746 | CG17: 0.01021792754 | CH17: 0.0383370725 | CI17: -0.0009789685717 | CJ17: 0.04829878208 | CK17: -0.01419371086 | CL17: 0.006723583643 | CM17: 0.0002917781118 | CN17: 0.003865486066 | CO17: -0.02541824271
A18: 2016-08-25 | B18: 35 | C18: 8 | D18: 2016 | E18: 127.525 | F18: 21.166 | G18: 106.8 | H18: 77.451 | I18: 14.606 | J18: 160 | K18: 154.801 | L18: 100.85 | M18: 79.765 | N18: 8.209 | O18: 15.048 | P18: 10.441 | Q18: 28.45 | R18: 12.462 | S18: 61.239 | T18: 6.051 | U18: 76.409 | V18: 96.04 | W18: 72.28 | X18: 129.4 | Y18: 151.24
A19: 2016-08-24 | B19: 35 | C19: 8 | D19: 2016 | E19: 129.675 | F19: 21.136 | G19: 107.898 | H19: 77.59 | I19: 14.699 | J19: 161.425 | K19: 155.65 | L19: 100 | M19: 80.766 | N19: 8.222 | O19: 15.027 | P19: 10.66 | Q19: 28.733 | R19: 12.65 | S19: 62.027 | T19: 6.072 | U19: 77.623 | V19: 96.72 | W19: 72.789 | X19: 130.45 | Y19: 152.881
A20: 2016-08-23 | B20: 35 | C20: 8 | D20: 2016 | E20: 130.1 | F20: 21.272 | G20: 106.734 | H20: 77.581 | I20: 14.581 | J20: 161.4 | K20: 153.538 | L20: 100.4 | M20: 80.738 | N20: 8.245 | O20: 15.129 | P20: 10.499 | Q20: 28.279 | R20: 12.367 | S20: 61.952 | T20: 5.891 | U20: 77.48 | V20: 96.67 | W20: 72.501 | X20: 130.9 | Y20: 153.619
A21: 2016-08-22 | B21: 35 | C21: 8 | D21: 2016 | E21: 127.874 | F21: 21.02 | G21: 105.851 | H21: 77.464 | I21: 14.592 | J21: 158.5 | K21: 149.491 | L21: 99.79 | M21: 80.231 | N21: 8.202 | O21: 15.191 | P21: 10.523 | Q21: 27.963 | R21: 11.988 | S21: 61.459 | T21: 5.739 | U21: 76.759 | V21: 95.89 | W21: 71.76 | X21: 129.25 | Y21: 153.8
A22: 2016-08-19 | B22: 34 | C22: 8 | D22: 2016 | E22: 128.311 | F22: 21.681 | G22: 106.55 | H22: 77.952 | I22: 14.429 | J22: 158.744 | K22: 151.01 | L22: 99.3 | M22: 78.967 | N22: 8.179 | O22: 15.171 | P22: 10.4 | Q22: 28.042 | R22: 11.975 | S22: 61.319 | T22: 5.719 | U22: 77.128 | V22: 96.35 | W22: 71.962 | X22: 129.1 | Y22: 156.507 | AA22: -0.03090980776 | AB22: 0.007407098354 | AC22: -0.006081890092 | AD22: -0.005730674709 | AE22: -0.06843365585 | AF22: -0.01161150635 | AG22: 0.08538607535 | AH22: -0.0189531858 | AI22: -0.06960137939 | AJ22: -0.065080922 | AK22: -0.03012628014 | AL22: -0.04970549604 | AM22: -0.008981724296 | AN22: -0.06082600151 | AO22: -0.02115465056 | AP22: -0.009571116308 | AQ22: -0.03117075803 | AR22: -0.01799997171 | AS22: -0.009955559121 | AT22: -0.04134857932 | AU22: 0.008682565351 | AX22: 128.311 | AY22: 21.681 | AZ22: 106.55 | BA22: 77.952 | BB22: 14.429 | BC22: 158.744 | BD22: 151.01 | BE22: 99.3 | BF22: 78.967 | BG22: 8.179 | BH22: 15.171 | BI22: 10.4 | BJ22: 28.042 | BK22: 11.975 | BL22: 61.319 | BM22: 5.719 | BN22: 77.128 | BO22: 96.35 | BP22: 71.962 | BQ22: 129.1 | BR22: 156.507 | BU22: -0.03090980776 | BV22: 0.007407098354 | BW22: -0.006081890092 | BX22: -0.005730674709 | BY22: -0.06843365585 | BZ22: -0.01161150635 | CA22: 0.08538607535 | CB22: -0.0189531858 | CC22: -0.06960137939 | CD22: -0.065080922 | CE22: -0.03012628014 | CF22: -0.04970549604 | CG22: -0.008981724296 | CH22: -0.06082600151 | CI22: -0.02115465056 | CJ22: -0.009571116308 | CK22: -0.03117075803 | CL22: -0.01799997171 | CM22: -0.009955559121 | CN22: -0.04134857932 | CO22: 0.008682565351
A23: 2016-08-18 | B23: 34 | C23: 8 | D23: 2016 | E23: 128.755 | F23: 21.564 | G23: 106.064 | H23: 77.608 | I23: 14.895 | J23: 159.861 | K23: 150.601 | L23: 99.35 | M23: 81.833 | N23: 8.272 | O23: 15.379 | P23: 10.536 | Q23: 28.031 | R23: 12.315 | S23: 62.097 | T23: 5.73 | U23: 78.899 | V23: 96.8 | W23: 72.7 | X23: 131.9 | Y23: 155.701
A24: 2016-08-17 | B24: 34 | C24: 8 | D24: 2016 | E24: 128.575 | F24: 21.125 | G24: 105.51 | H24: 77.799 | I24: 14.869 | J24: 159.134 | K24: 150.234 | L24: 99.82 | M24: 81.9 | N24: 8.234 | O24: 15.39 | P24: 10.377 | Q24: 27.68 | R24: 12.319 | S24: 61.962 | T24: 5.743 | U24: 78.996 | V24: 95.65 | W24: 72.607 | X24: 131.45 | Y24: 156 | BN24: =IF($B24<$B23,U24,"") ->  | CK24: =IFERROR(LN(BN24/SUM(BN28:BN29)),"") -> 
A25: 2016-08-16 | B25: 34 | C25: 8 | D25: 2016 | E25: 130 | F25: 21.506 | G25: 105.85 | H25: 77.77 | I25: 15.216 | J25: 160.87 | K25: 153.199 | L25: 99.5 | M25: 83.346 | N25: 8.53 | O25: 15.469 | P25: 10.539 | Q25: 28.065 | R25: 12.66 | S25: 62.613 | T25: 5.789 | U25: 79.687 | V25: 97.92 | W25: 72.5 | X25: 132.8 | Y25: 155.971
A26: 2016-08-15 | B26: 34 | C26: 8 | D26: 2016 | E26: 133.73 | F26: 21.581 | G26: 106.723 | H26: 78.654 | I26: 15.411 | J26: 160.496 | K26: 139.2 | L26: 101 | M26: 84.79 | N26: 8.74 | O26: 15.649 | P26: 10.83 | Q26: 28.375 | R26: 12.809 | S26: 63.444 | T26: 5.773 | U26: 80.7 | V26: 98.64 | W26: 73.109 | X26: 134.8 | Y26: 155.922
A27: 2016-08-12 | B27: 33 | C27: 8 | D27: 2016 | E27: 132.339 | F27: 21.521 | G27: 107.2 | H27: 78.4 | I27: 15.451 | J27: 160.598 | K27: 138.651 | L27: 101.2 | M27: 84.659 | N27: 8.729 | O27: 15.635 | P27: 10.93 | Q27: 28.295 | R27: 12.726 | S27: 62.63 | T27: 5.774 | U27: 79.57 | V27: 98.1 | W27: 72.682 | X27: 134.55 | Y27: 155.154 | AA27: 0.006458824846 | AB27: 0.04568176203 | AC27: 0.0489982082 | AD27: 0.01051426534 | AE27: 0.02284654079 | AF27: 0.06395172048 | AG27: 0.04080666839 | AH27: 0.05922984398 | AI27: 0.01952579015 | AJ27: -0.04928647052 | AK27: 0.009963122748 | AL27: 0.04004081146 | AM27: 0.02653739497 | AN27: 0.07343121043 | AO27: 0.02638692594 | AP27: 0.06733656664 | AQ27: 0.02635920103 | AR27: 0.02299425948 | AS27: 0.0461492583 | AT27: 0.06208890406 | AU27: 0.05538111641 | AX27: 132.339 | AY27: 21.521 | AZ27: 107.2 | BA27: 78.4 | BB27: 15.451 | BC27: 160.598 | BD27: 138.651 | BE27: 101.2 | BF27: 84.659 | BG27: 8.729 | BH27: 15.635 | BI27: 10.93 | BJ27: 28.295 | BK27: 12.726 | BL27: 62.63 | BM27: 5.774 | BN27: 79.57 | BO27: 98.1 | BP27: 72.682 | BQ27: 134.55 | BR27: 155.154 | BU27: 0.006458824846 | BV27: 0.04568176203 | BW27: 0.0489982082 | BX27: 0.01051426534 | BY27: 0.02284654079 | BZ27: 0.06395172048 | CA27: 0.04080666839 | CB27: 0.05922984398 | CC27: 0.01952579015 | CD27: -0.04928647052 | CE27: 0.009963122748 | CF27: 0.04004081146 | CG27: 0.02653739497 | CH27: 0.07343121043 | CI27: 0.02638692594 | CJ27: 0.06733656664 | CK27: 0.02635920103 | CL27: 0.02299425948 | CM27: 0.0461492583 | CN27: 0.06208890406 | CO27: 0.05538111641
A28: 2016-08-11 | B28: 33 | C28: 8 | D28: 2016 | E28: 134.051 | F28: 21.228 | G28: 106.801 | H28: 78.804 | I28: 15.64 | J28: 159.894 | K28: 138.729 | L28: 101.616 | M28: 84.767 | N28: 8.809 | O28: 15.675 | P28: 10.85 | Q28: 28.12 | R28: 12.769 | S28: 62.786 | T28: 5.789 | U28: 80.17 | V28: 98.33 | W28: 72.605 | X28: 135.6 | Y28: 154.096
A29: 2016-08-10 | B29: 33 | C29: 8 | D29: 2016 | E29: 133.375 | F29: 20.883 | G29: 105.151 | H29: 78.499 | I29: 15.067 | J29: 159.75 | K29: 138.297 | L29: 97.371 | M29: 84.125 | N29: 8.709 | O29: 15.681 | P29: 10.841 | Q29: 28.196 | R29: 12.699 | S29: 62.5 | T29: 5.738 | U29: 79.751 | V29: 97.42 | W29: 72.3 | X29: 135.9 | Y29: 152.378 | BU29: =IFERROR(LN(AX29/SUM(AX33:AX34)),"") -> 
A30: 2016-08-09 | B30: 33 | C30: 8 | D30: 2016 | E30: 133.276 | F30: 21.501 | G30: 105.411 | H30: 78.362 | I30: 15.501 | J30: 160.591 | K30: 139.682 | L30: 97.402 | M30: 85.114 | N30: 9.382 | O30: 15.64 | P30: 10.996 | Q30: 28.018 | R30: 12.286 | S30: 62.549 | T30: 5.625 | U30: 79.65 | V30: 98.82 | W30: 71.7 | X30: 133.8 | Y30: 148.25
A31: 2016-08-08 | B31: 33 | C31: 8 | D31: 2016 | E31: 131.2 | F31: 21.026 | G31: 103.373 | H31: 77.439 | I31: 15.416 | J31: 153.025 | K31: 135.71 | L31: 95.9 | M31: 83.2 | N31: 9.289 | O31: 15.458 | P31: 10.588 | Q31: 27.649 | R31: 12.166 | S31: 61.261 | T31: 5.589 | U31: 77.437 | V31: 96 | W31: 70.131 | X31: 130.25 | Y31: 147.754
A32: 2016-08-05 | B32: 32 | C32: 8 | D32: 2016 | E32: 131.487 | F32: 20.56 | G32: 102.074 | H32: 77.58 | I32: 15.102 | J32: 150.649 | K32: 133.107 | L32: 95.38 | M32: 83.022 | N32: 9.17 | O32: 15.48 | P32: 10.501 | Q32: 27.554 | R32: 11.825 | S32: 60.999 | T32: 5.398 | U32: 77.5 | V32: 95.87 | W32: 69.404 | X32: 126.45 | Y32: 146.795 | AA32: -0.008858862225 | AB32: 0.003898640416 | AC32: 0.05304071563 | AD32: -0.006680394834 | AE32: -0.04834231494 | AF32: 0.008318661535 | AG32: 0.03172858373 | AH32: -0.01426141904 | AI32: 0.01431507364 | AJ32: -0.04185962394 | AK32: 0.01983363553 | AL32: -0.01352586239 | AM32: 0.03024895832 | AN32: -0.0180185055 | AO32: 0.004436127149 | AP32: -0.08892383632 | AQ32: 0.008305361976 | AR32: -0.003644129182 | AS32: -0.006119214119 | AT32: -0.01452429851 | AU32: -0.0004699328219 | AX32: 131.487 | AY32: 20.56 | AZ32: 102.074 | BA32: 77.58 | BB32: 15.102 | BC32: 150.649 | BD32: 133.107 | BE32: 95.38 | BF32: 83.022 | BG32: 9.17 | BH32: 15.48 | BI32: 10.501 | BJ32: 27.554 | BK32: 11.825 | BL32: 60.999 | BM32: 5.398 | BN32: 77.5 | BO32: 95.87 | BP32: 69.404 | BQ32: 126.45 | BR32: 146.795 | BU32: -0.008858862225 | BV32: 0.003898640416 | BW32: 0.05304071563 | BX32: -0.006680394834 | BY32: -0.04834231494 | BZ32: 0.008318661535 | CA32: 0.03172858373 | CB32: -0.01426141904 | CC32: 0.01431507364 | CD32: -0.04185962394 | CE32: 0.01983363553 | CF32: -0.01352586239 | CG32: 0.03024895832 | CH32: -0.0180185055 | CI32: 0.004436127149 | CJ32: -0.08892383632 | CK32: 0.008305361976 | CL32: -0.003644129182 | CM32: -0.006119214119 | CN32: -0.01452429851 | CO32: -0.0004699328219
A33: 2016-08-04 | B33: 32 | C33: 8 | D33: 2016 | E33: 128.85 | F33: 20.035 | G33: 100.95 | H33: 77.397 | I33: 15.419 | J33: 148.817 | K33: 129.166 | L33: 95.44 | M33: 82.716 | N33: 9.163 | O33: 15.248 | P33: 10.326 | Q33: 27.2 | R33: 11.474 | S33: 59.448 | T33: 5.292 | U33: 75.752 | V33: 93.95 | W33: 69.182 | X33: 128.2 | Y33: 147
A34: 2016-08-03 | B34: 32 | C34: 8 | D34: 2016 | E34: 126.803 | F34: 19.727 | G34: 96.676 | H34: 77.22 | I34: 15.224 | J34: 148.4 | K34: 128.213 | L34: 96.03 | M34: 81.417 | N34: 9.103 | O34: 15.162 | P34: 10.304 | Q34: 27.318 | R34: 11.329 | S34: 59.549 | T34: 5.224 | U34: 76.011 | V34: 94.37 | W34: 69.038 | X34: 127.35 | Y34: 148.2
A35: 2016-08-02 | B35: 32 | C35: 8 | D35: 2016 | E35: 127.175 | F35: 19.64 | G35: 95.838 | H35: 76.9 | I35: 15.102 | J35: 147.882 | K35: 126.378 | L35: 96.569 | M35: 82.35 | N35: 9.224 | O35: 15.187 | P35: 10.312 | Q35: 26.385 | R35: 11.254 | S35: 58.842 | T35: 5.28 | U35: 75.46 | V35: 94.2 | W35: 68.894 | X35: 126.7 | Y35: 148.165
A36: 2016-08-01 | B36: 32 | C36: 8 | D36: 2016 | E36: 131.49 | F36: 20.05 | G36: 96.8 | H36: 78.08 | I36: 15.313 | J36: 148.2 | K36: 129.05 | L36: 96.942 | M36: 81.776 | N36: 9.353 | O36: 15.278 | P36: 10.67 | Q36: 26.65 | R36: 11.732 | S36: 60.45 | T36: 5.764 | U36: 76.728 | V36: 96.35 | W36: 70.314 | X36: 128.1 | Y36: 148.6
A37: 2016-07-29 | B37: 31 | C37: 7 | D37: 2016 | E37: 132.657 | F37: 20.48 | G37: 96.801 | H37: 78.1 | I37: 15.85 | J37: 149.401 | K37: 128.95 | L37: 96.75 | M37: 81.842 | N37: 9.562 | O37: 15.176 | P37: 10.644 | Q37: 26.733 | R37: 12.04 | S37: 60.729 | T37: 5.9 | U37: 76.859 | V37: 96.22 | W37: 69.83 | X37: 128.3 | Y37: 146.864 | AA37: 0.01946346412 | AB37: 0.04534882674 | AC37: 0.02096175794 | AD37: 0.01453534583 | AE37: 0.004679702463 | AF37: 0.01553493479 | AG37: 0.003184592384 | AH37: 0.01941200592 | AI37: 0.01162618019 | AJ37: 0.007663677212 | AK37: -0.00944393168 | AL37: 0.03382380327 | AM37: 0.03703703694 | AN37: -0.08468308723 | AO37: 0.0234411113 | AP37: 0.01124947947 | AQ37: 0.01982864931 | AR37: 0.04408807897 | AS37: -0.02380155093 | AT37: 0.01928055004 | AU37: 0.06702554192 | AX37: 132.657 | AY37: 20.48 | AZ37: 96.801 | BA37: 78.1 | BB37: 15.85 | BC37: 149.401 | BD37: 128.95 | BE37: 96.75 | BF37: 81.842 | BG37: 9.562 | BH37: 15.176 | BI37: 10.644 | BJ37: 26.733 | BK37: 12.04 | BL37: 60.729 | BM37: 5.9 | BN37: 76.859 | BO37: 96.22 | BP37: 69.83 | BQ37: 128.3 | BR37: 146.864 | BU37: 0.01946346412 | BV37: 0.04534882674 | BW37: 0.02096175794 | BX37: 0.01453534583 | BY37: 0.004679702463 | BZ37: 0.01553493479 | CA37: 0.003184592384 | CB37: 0.01941200592 | CC37: 0.01162618019 | CD37: 0.007663677212 | CE37: -0.00944393168 | CF37: 0.03382380327 | CG37: 0.03703703694 | CH37: -0.08468308723 | CI37: 0.0234411113 | CJ37: 0.01124947947 | CK37: 0.01982864931 | CL37: 0.04408807897 | CM37: -0.02380155093 | CN37: 0.01928055004 | CO37: 0.06702554192
A38: 2016-07-28 | B38: 31 | C38: 7 | D38: 2016 | E38: 131.313 | F38: 20.273 | G38: 97 | H38: 78.29 | I38: 15.89 | J38: 148.471 | K38: 129.979 | L38: 96.54 | M38: 82.283 | N38: 9.578 | O38: 15.176 | P38: 10.45 | Q38: 26.65 | R38: 12.001 | S38: 60.799 | T38: 5.705 | U38: 76.652 | V38: 94.31 | W38: 70.75 | X38: 127.45 | Y38: 145.029
A39: 2016-07-27 | B39: 31 | C39: 7 | D39: 2016 | E39: 135.711 | F39: 19.824 | G39: 96.401 | H39: 78.017 | I39: 15.887 | J39: 148.35 | K39: 131.45 | L39: 96.958 | M39: 81.44 | N39: 9.5 | O39: 15.17 | P39: 10.464 | Q39: 26.311 | R39: 12.395 | S39: 61.881 | T39: 5.65 | U39: 78.143 | V39: 94.62 | W39: 70.114 | X39: 129.1 | Y39: 140.834
A40: 2016-07-26 | B40: 31 | C40: 7 | D40: 2016 | E40: 132.75 | F40: 19.883 | G40: 95.8 | H40: 77.3 | I40: 15.921 | J40: 147.497 | K40: 128.837 | L40: 96.68 | M40: 81.61 | N40: 9.564 | O40: 15.16 | P40: 10.298 | Q40: 26.055 | R40: 12.879 | S40: 60.59 | T40: 5.598 | U40: 76.883 | V40: 93.57 | W40: 71.6 | X40: 126.65 | Y40: 140.199 | BA40: =IF($B40<$B39,H40,"") ->  | CK40: =IFERROR(LN(BN40/SUM(BN44:BN45)),"") -> 
A41: 2016-07-25 | B41: 31 | C41: 7 | D41: 2016 | E41: 131.632 | F41: 19.826 | G41: 95.262 | H41: 77.039 | I41: 15.76 | J41: 147.853 | K41: 129.321 | L41: 96.86 | M41: 81.008 | N41: 9.454 | O41: 15.27 | P41: 10.28 | Q41: 26.035 | R41: 13.169 | S41: 60.05 | T41: 5.809 | U41: 76.265 | V41: 92.62 | W41: 71.668 | X41: 126 | Y41: 139.136 | AX41: =IF($B41<$B40,E41,"") -> 
A42: 2016-07-22 | B42: 30 | C42: 7 | D42: 2016 | E42: 130.1 | F42: 19.572 | G42: 94.793 | H42: 76.973 | I42: 15.776 | J42: 147.098 | K42: 128.54 | L42: 94.89 | M42: 80.896 | N42: 9.489 | O42: 15.32 | P42: 10.29 | Q42: 25.761 | R42: 13.104 | S42: 59.322 | T42: 5.834 | U42: 75.35 | V42: 92.07 | W42: 71.512 | X42: 125.85 | Y42: 137.343 | AA42: 0.0205792547 | AB42: -0.005401287017 | AC42: 0.007443795854 | AD42: 0.07841143182 | AE42: 0.01173183566 | AF42: -0.006788689952 | AG42: 0.003819327298 | AH42: -0.006931344701 | AI42: 0.02855097858 | AJ42: -0.001158565615 | AK42: -0.007154502063 | AL42: -0.1024408056 | AM42: 0.001437312086 | AN42: 0.005356199201 | AO42: 0.01732668213 | AP42: -0.01665855283 | AQ42: 0.01168042647 | AR42: -0.01957472697 | AS42: -0.002555742381 | AT42: -0.01693954234 | AU42: 0.04291961589 | AX42: 130.1 | AY42: 19.572 | AZ42: 94.793 | BA42: 76.973 | BB42: 15.776 | BC42: 147.098 | BD42: 128.54 | BE42: 94.89 | BF42: 80.896 | BG42: 9.489 | BH42: 15.32 | BI42: 10.29 | BJ42: 25.761 | BK42: 13.104 | BL42: 59.322 | BM42: 5.834 | BN42: 75.35 | BO42: 92.07 | BP42: 71.512 | BQ42: 125.85 | BR42: 137.343 | BU42: 0.0205792547 | BV42: -0.005401287017 | BW42: 0.007443795854 | BX42: 0.07841143182 | BY42: 0.01173183566 | BZ42: -0.006788689952 | CA42: 0.003819327298 | CB42: -0.006931344701 | CC42: 0.02855097858 | CD42: -0.001158565615 | CE42: -0.007154502063 | CF42: -0.1024408056 | CG42: 0.001437312086 | CH42: 0.005356199201 | CI42: 0.01732668213 | CJ42: -0.01665855283 | CK42: 0.01168042647 | CL42: -0.01957472697 | CM42: -0.002555742381 | CN42: -0.01693954234 | CO42: 0.04291961589
A43: 2016-07-21 | B43: 30 | C43: 7 | D43: 2016 | E43: 130.15 | F43: 19.596 | G43: 94.765 | H43: 76.2 | I43: 15.771 | J43: 146.819 | K43: 128.329 | L43: 95.51 | M43: 80.77 | N43: 9.458 | O43: 15.191 | P43: 10.423 | Q43: 25.92 | R43: 13.118 | S43: 59.574 | T43: 5.94 | U43: 75.999 | V43: 92.04 | W43: 71.79 | X43: 125.4 | Y43: 137.97
A44: 2016-07-20 | B44: 30 | C44: 7 | D44: 2016 | E44: 131.067 | F44: 19.525 | G44: 94.9 | H44: 75.742 | I44: 15.628 | J44: 148.4 | K44: 127.371 | L44: 93.654 | M44: 80.92 | N44: 9.469 | O44: 15.234 | P44: 11.055 | Q44: 25.756 | R44: 12.99 | S44: 58.6 | T44: 5.892 | U44: 75.2 | V44: 91.8 | W44: 71.751 | X44: 126.65 | Y44: 136.226 | CJ44: =IFERROR(LN(BM44/SUM(BM48:BM49)),"") -> 
A45: 2016-07-19 | B45: 30 | C45: 7 | D45: 2016 | E45: 127.61 | F45: 19.416 | G45: 93.369 | H45: 71.618 | I45: 15.531 | J45: 147.113 | K45: 127.2 | L45: 93.98 | M45: 79.117 | N45: 9.33 | O45: 15.242 | P45: 11.149 | Q45: 25.499 | R45: 12.739 | S45: 57.569 | T45: 5.881 | U45: 73.539 | V45: 91.78 | W45: 71.1 | X45: 125.6 | Y45: 132.375 | BU45: =IFERROR(LN(AX45/SUM(AX49:AX50)),"") -> 
A46: 2016-07-18 | B46: 30 | C46: 7 | D46: 2016 | E46: 127.51 | F46: 19.749 | G46: 93.9 | H46: 71.791 | I46: 15.857 | J46: 148.7 | K46: 128.752 | L46: 95.75 | M46: 79.81 | N46: 9.512 | O46: 15.28 | P46: 11.471 | Q46: 25.608 | R46: 13.188 | S46: 58.397 | T46: 5.936 | U46: 75.096 | V46: 92.9 | W46: 71.588 | X46: 127.25 | Y46: 131.321
A47: 2016-07-15 | B47: 29 | C47: 7 | D47: 2016 | E47: 127.45 | F47: 19.678 | G47: 94.09 | H47: 71.168 | I47: 15.592 | J47: 148.1 | K47: 128.05 | L47: 95.55 | M47: 78.619 | N47: 9.5 | O47: 15.43 | P47: 11.4 | Q47: 25.724 | R47: 13.034 | S47: 58.303 | T47: 5.932 | U47: 74.475 | V47: 93.89 | W47: 71.695 | X47: 128 | Y47: 131.573 | AA47: 0.05193358523 | AB47: 0.08580171245 | AC47: 0.05190319892 | AD47: 0.02876522108 | AE47: 0.05165792028 | AF47: 0.02078163439 | AG47: 0.04206740072 | AH47: 0.01848481467 | AI47: -0.004074669732 | AJ47: 0.03372007994 | AK47: 0.03932441263 | AL47: 0.04705482863 | AM47: 0.03807380463 | AN47: 0.09912287083 | AO47: 0.07685470578 | AP47: 0.03516959086 | AQ47: 0.08495910368 | AR47: 0.03214388529 | AS47: 0.06477752499 | AT47: 0.04432748052 | AU47: 0.04343072874 | AX47: 127.45 | AY47: 19.678 | AZ47: 94.09 | BA47: 71.168 | BB47: 15.592 | BC47: 148.1 | BD47: 128.05 | BE47: 95.55 | BF47: 78.619 | BG47: 9.5 | BH47: 15.43 | BI47: 11.4 | BJ47: 25.724 | BK47: 13.034 | BL47: 58.303 | BM47: 5.932 | BN47: 74.475 | BO47: 93.89 | BP47: 71.695 | BQ47: 128 | BR47: 131.573 | BU47: 0.05193358523 | BV47: 0.08580171245 | BW47: 0.05190319892 | BX47: 0.02876522108 | BY47: 0.05165792028 | BZ47: 0.02078163439 | CA47: 0.04206740072 | CB47: 0.01848481467 | CC47: -0.004074669732 | CD47: 0.03372007994 | CE47: 0.03932441263 | CF47: 0.04705482863 | CG47: 0.03807380463 | CH47: 0.09912287083 | CI47: 0.07685470578 | CJ47: 0.03516959086 | CK47: 0.08495910368 | CL47: 0.03214388529 | CM47: 0.06477752499 | CN47: 0.04432748052 | CO47: 0.04343072874
A48: 2016-07-14 | B48: 29 | C48: 7 | D48: 2016 | E48: 127.7 | F48: 19.692 | G48: 93.877 | H48: 70.88 | I48: 15.762 | J48: 149.165 | K48: 128.3 | L48: 95.19 | M48: 78.631 | N48: 9.424 | O48: 15.268 | P48: 11.468 | Q48: 25.762 | R48: 13.031 | S48: 58.677 | T48: 5.984 | U48: 74.37 | V48: 93.44 | W48: 71.217 | X48: 129.05 | Y48: 129.923
A49: 2016-07-13 | B49: 29 | C49: 7 | D49: 2016 | E49: 124.72 | F49: 19.296 | G49: 93 | H49: 70.426 | I49: 15.851 | J49: 148.632 | K49: 124.66 | L49: 94.78 | M49: 78.927 | N49: 9.49 | O49: 15.09 | P49: 11.254 | Q49: 25.357 | R49: 12.638 | S49: 57.339 | T49: 5.835 | U49: 72.9 | V49: 92.93 | W49: 69.089 | X49: 126.8 | Y49: 130.827
A50: 2016-07-12 | B50: 29 | C50: 7 | D50: 2016 | E50: 127.496 | F50: 19.649 | G50: 93.254 | H50: 70.628 | I50: 15.221 | J50: 148.786 | K50: 125.598 | L50: 95.37 | M50: 78.903 | N50: 9.261 | O50: 15.123 | P50: 11.33 | Q50: 25.6 | R50: 12.87 | S50: 57.786 | T50: 5.958 | U50: 73.128 | V50: 93.13 | W50: 69.1 | X50: 126.95 | Y50: 130.833
A51: 2016-07-11 | B51: 29 | C51: 7 | D51: 2016 | E51: 123.592 | F51: 19.303 | G51: 92.027 | H51: 70.53 | I51: 15.085 | J51: 146.495 | K51: 124.687 | L51: 95.3 | M51: 79.737 | N51: 9.271 | O51: 14.945 | P51: 11.12 | Q51: 25.357 | R51: 12.042 | S51: 55.252 | T51: 5.783 | U51: 69.866 | V51: 92.74 | W51: 68.68 | X51: 125.2 | Y51: 129.431
A52: 2016-07-08 | B52: 28 | C52: 7 | D52: 2016 | E52: 121 | F52: 18.06 | G52: 89.331 | H52: 69.15 | I52: 14.807 | J52: 145.054 | K52: 122.775 | L52: 93.8 | M52: 78.94 | N52: 9.185 | O52: 14.835 | P52: 10.876 | Q52: 24.763 | R52: 11.804 | S52: 53.99 | T52: 5.727 | U52: 68.409 | V52: 90.92 | W52: 67.198 | X52: 122.45 | Y52: 125.981 | AA52: -0.03858478308 | AB52: -0.04588556494 | AC52: -0.02713299803 | AD52: 0.02271445474 | AE52: 0.03694061044 | AF52: -0.04822732537 | AG52: -0.04322253182 | AH52: -0.03509131981 | AI52: 0.01083886838 | AJ52: 0.009517109519 | AK52: -0.02562109869 | AL52: -0.00769375475 | AM52: -0.02263886037 | AN52: -0.06064455504 | AO52: -0.01638658167 | AP52: -0.01936771589 | AQ52: 0.006614527625 | AR52: 0.002532901525 | AS52: -0.03080142101 | AT52: -0.03884372217 | AU52: -0.01502377895 | AX52: 121 | AY52: 18.06 | AZ52: 89.331 | BA52: 69.15 | BB52: 14.807 | BC52: 145.054 | BD52: 122.775 | BE52: 93.8 | BF52: 78.94 | BG52: 9.185 | BH52: 14.835 | BI52: 10.876 | BJ52: 24.763 | BK52: 11.804 | BL52: 53.99 | BM52: 5.727 | BN52: 68.409 | BO52: 90.92 | BP52: 67.198 | BQ52: 122.45 | BR52: 125.981 | BU52: -0.03858478308 | BV52: -0.04588556494 | BW52: -0.02713299803 | BX52: 0.02271445474 | BY52: 0.03694061044 | BZ52: -0.04822732537 | CA52: -0.04322253182 | CB52: -0.03509131981 | CC52: 0.01083886838 | CD52: 0.009517109519 | CE52: -0.02562109869 | CF52: -0.00769375475 | CG52: -0.02263886037 | CH52: -0.06064455504 | CI52: -0.01638658167 | CJ52: -0.01936771589 | CK52: 0.006614527625 | CL52: 0.002532901525 | CM52: -0.03080142101 | CN52: -0.03884372217 | CO52: -0.01502377895
A53: 2016-07-07 | B53: 28 | C53: 7 | D53: 2016 | E53: 117.25 | F53: 17 | G53: 88.1 | H53: 67.45 | I53: 14.6 | J53: 142.574 | K53: 120.447 | L53: 94.98 | M53: 77.645 | N53: 9.037 | O53: 14.636 | P53: 10.51 | Q53: 24.39 | R53: 11.364 | S53: 52.258 | T53: 5.415 | U53: 65.763 | V53: 88.62 | W53: 65.94 | X53: 119.8 | Y53: 126.112
A54: 2016-07-06 | B54: 28 | C54: 7 | D54: 2016 | E54: 118.936 | F54: 17.099 | G54: 88.601 | H54: 67.227 | I54: 14.05 | J54: 142.2 | K54: 122.7 | L54: 95.99 | M54: 76.928 | N54: 8.907 | O54: 14.572 | P54: 10.499 | Q54: 24.184 | R54: 11.678 | S54: 52.569 | T54: 5.429 | U54: 65.612 | V54: 88.27 | W54: 66.3 | X54: 119.2 | Y54: 127.752
A55: 2016-07-05 | B55: 28 | C55: 7 | D55: 2016 | E55: 119.112 | F55: 17.05 | G55: 89.75 | H55: 67 | I55: 14.5 | J55: 146.401 | K55: 123.41 | L55: 96.109 | M55: 77.848 | N55: 9.029 | O55: 14.825 | P55: 10.845 | Q55: 24.67 | R55: 12.131 | S55: 52.248 | T55: 5.575 | U55: 65.048 | V55: 90.1 | W55: 67.3 | X55: 122 | Y55: 124.6
A56: 2016-07-04 | B56: 28 | C56: 7 | D56: 2016 | E56: 122.103 | F56: 18.36 | G56: 92.07 | H56: 67.202 | I56: 14.844 | J56: 150.905 | K56: 126.55 | L56: 97.094 | M56: 78.335 | N56: 9.28 | O56: 15.13 | P56: 11.14 | Q56: 25.127 | R56: 12.418 | S56: 54.421 | T56: 5.744 | U56: 66.956 | V56: 90.55 | W56: 69 | X56: 126.15 | Y56: 127.781
A57: 2016-07-01 | B57: 27 | C57: 7 | D57: 2016 | E57: 125.76 | F57: 18.908 | G57: 91.788 | H57: 67.597 | I57: 14.27 | J57: 152.221 | K57: 128.198 | L57: 97.15 | M57: 78.089 | N57: 9.098 | O57: 15.22 | P57: 10.96 | Q57: 25.33 | R57: 12.542 | S57: 54.882 | T57: 5.839 | U57: 67.958 | V57: 90.69 | W57: 69.3 | X57: 127.3 | Y57: 127.888 | AA57: -0.01374103592 | AB57: 0.08202354844 | AC57: 0.0196718998 | AD57: 0.006783611814 | AE57: 0.1333111746 | AF57: 0.01645299038 | AG57: 0.02667920991 | AH57: 0.03936483059 | AI57: 0.06083594151 | AJ57: 0.06305943673 | AK57: 0.08355302282 | AL57: -0.0009119927673 | AM57: 0.0361366463 | AN57: -0.06833353548 | AO57: -0.002911104272 | AP57: -0.06545863204 | AQ57: -0.006760696538 | AR57: 0.03420958273 | AS57: 0.03823995327 | AT57: 0.00393546356 | AU57: 0.0653311952 | AX57: 125.76 | AY57: 18.908 | AZ57: 91.788 | BA57: 67.597 | BB57: 14.27 | BC57: 152.221 | BD57: 128.198 | BE57: 97.15 | BF57: 78.089 | BG57: 9.098 | BH57: 15.22 | BI57: 10.96 | BJ57: 25.33 | BK57: 12.542 | BL57: 54.882 | BM57: 5.839 | BN57: 67.958 | BO57: 90.69 | BP57: 69.3 | BQ57: 127.3 | BR57: 127.888 | BU57: -0.01374103592 | BV57: 0.08202354844 | BW57: 0.0196718998 | BX57: 0.006783611814 | BY57: 0.1333111746 | BZ57: 0.01645299038 | CA57: 0.02667920991 | CB57: 0.03936483059 | CC57: 0.06083594151 | CD57: 0.06305943673 | CE57: 0.08355302282 | CF57: -0.0009119927673 | CG57: 0.0361366463 | CH57: -0.06833353548 | CI57: -0.002911104272 | CJ57: -0.06545863204 | CK57: -0.006760696538 | CL57: 0.03420958273 | CM57: 0.03823995327 | CN57: 0.00393546356 | CO57: 0.0653311952
A58: 2016-06-30 | B58: 27 | C58: 6 | D58: 2016 | E58: 121.999 | F58: 18.089 | G58: 92.63 | H58: 67.68 | I58: 14.355 | J58: 151 | K58: 126.733 | L58: 97.103 | M58: 77.908 | N58: 9.069 | O58: 15.326 | P58: 10.678 | Q58: 25.285 | R58: 12.499 | S58: 54.19 | T58: 5.94 | U58: 66.454 | V58: 90 | W58: 69.25 | X58: 127.8 | Y58: 129
A59: 2016-06-29 | B59: 27 | C59: 6 | D59: 2016 | E59: 122.3 | F59: 17.971 | G59: 90.9 | H59: 67.62 | I59: 13.249 | J59: 149.63 | K59: 124.91 | L59: 95.48 | M59: 77.77 | N59: 8.754 | O59: 15.023 | P59: 10.52 | Q59: 24.888 | R59: 12.659 | S59: 53.889 | T59: 5.93 | U59: 66.2 | V59: 89.11 | W59: 67.629 | X59: 127 | Y59: 125.65 | BI59: =IF($B59<$B58,P59,"") -> 
A60: 2016-06-28 | B60: 27 | C60: 6 | D60: 2016 | E60: 124.953 | F60: 17.694 | G60: 89.5 | H60: 66.437 | I60: 12.8 | J60: 145.8 | K60: 123.175 | L60: 94.75 | M60: 76.53 | N60: 8.501 | O60: 14.52 | P60: 10.505 | Q60: 24.305 | R60: 12.715 | S60: 53.96 | T60: 5.989 | U60: 66.144 | V60: 89.14 | W60: 66.066 | X60: 124 | Y60: 122.901 | CK60: =IFERROR(LN(BN60/SUM(BN64:BN65)),"") -> 
A61: 2016-06-27 | B61: 27 | C61: 6 | D61: 2016 | E61: 121 | F61: 17.133 | G61: 87.711 | H61: 65.31 | I61: 12.17 | J61: 144.87 | K61: 121.692 | L61: 95.12 | M61: 73.834 | N61: 8.261 | O61: 14.013 | P61: 10.15 | Q61: 23.907 | R61: 12.608 | S61: 53.67 | T61: 5.94 | U61: 66.2 | V61: 86.98 | W61: 65.15 | X61: 120.15 | Y61: 120 | BU61: =IFERROR(LN(AX61/SUM(AX65:AX66)),"") -> 
A62: 2016-06-24 | B62: 26 | C62: 6 | D62: 2016 | E62: 127.5 | F62: 17.419 | G62: 90 | H62: 67.14 | I62: 12.489 | J62: 149.737 | K62: 124.823 | L62: 93.4 | M62: 73.48 | N62: 8.542 | O62: 14 | P62: 10.97 | Q62: 24.431 | R62: 13.429 | S62: 55.042 | T62: 6.234 | U62: 68.419 | V62: 87.64 | W62: 66.7 | X62: 126.8 | Y62: 119.8 | AA62: -0.01627005909 | AB62: -0.06015511207 | AC62: -0.02488771551 | AD62: -0.01124131536 | AE62: 0.0008010253552 | AF62: -0.009233504077 | AG62: 0.0001842778916 | AH62: 0.03331101501 | AI62: 0.01826597513 | AJ62: 0.00539970792 | AK62: -0.02106233773 | AL62: -0.03176009296 | AM62: -0.03570228431 | AN62: -0.02362227651 | AO62: -0.02053548868 | AP62: -0.0494468683 | AQ62: -0.01340021939 | AR62: -0.005007977687 | AS62: -0.01192264496 | AT62: -0.02761209838 | AU62: 0.01851764356 | AX62: 127.5 | AY62: 17.419 | AZ62: 90 | BA62: 67.14 | BB62: 12.489 | BC62: 149.737 | BD62: 124.823 | BE62: 93.4 | BF62: 73.48 | BG62: 8.542 | BH62: 14 | BI62: 10.97 | BJ62: 24.431 | BK62: 13.429 | BL62: 55.042 | BM62: 6.234 | BN62: 68.419 | BO62: 87.64 | BP62: 66.7 | BQ62: 126.8 | BR62: 119.8 | BU62: -0.01627005909 | BV62: -0.06015511207 | BW62: -0.02488771551 | BX62: -0.01124131536 | BY62: 0.0008010253552 | BZ62: -0.009233504077 | CA62: 0.0001842778916 | CB62: 0.03331101501 | CC62: 0.01826597513 | CD62: 0.00539970792 | CE62: -0.02106233773 | CF62: -0.03176009296 | CG62: -0.03570228431 | CH62: -0.02362227651 | CI62: -0.02053548868 | CJ62: -0.0494468683 | CK62: -0.01340021939 | CL62: -0.005007977687 | CM62: -0.01192264496 | CN62: -0.02761209838 | CO62: 0.01851764356
A63: 2016-06-23 | B63: 26 | C63: 6 | D63: 2016 | E63: 135.55 | F63: 19.681 | G63: 97.33 | H63: 70.907 | I63: 13.75 | J63: 161.1 | K63: 131.85 | L63: 93.01 | M63: 75.88 | N63: 9.25 | O63: 14.886 | P63: 12.01 | Q63: 26.438 | R63: 15.6 | S63: 60.149 | T63: 7.15 | U63: 74.026 | V63: 93.17 | W63: 71.8 | X63: 141.5 | Y63: 123.265
A64: 2016-06-22 | B64: 26 | C64: 6 | D64: 2016 | E64: 131.31 | F64: 18.896 | G64: 96.173 | H64: 69.801 | I64: 13.311 | J64: 157.753 | K64: 127.963 | L64: 91.631 | M64: 75.455 | N64: 9.044 | O64: 14.47 | P64: 11.726 | Q64: 25.901 | R64: 15.039 | S64: 58.932 | T64: 6.847 | U64: 72.34 | V64: 91.84 | W64: 70.35 | X64: 138.2 | Y64: 123.453
A65: 2016-06-21 | B65: 26 | C65: 6 | D65: 2016 | E65: 132.3901 | F65: 18.964 | G65: 95.85 | H65: 70.199 | I65: 13.149 | J65: 156.946 | K65: 128.38 | L65: 91.43 | M65: 74.407 | N65: 8.977 | O65: 14.543 | P65: 11.724 | Q65: 25.9 | R65: 14.803 | S65: 58.69 | T65: 6.819 | U65: 72.82 | V65: 91.74 | W65: 69.89 | X65: 136.45 | Y65: 123.11
A66: 2016-06-20 | B66: 26 | C66: 6 | D66: 2016 | E66: 135.2867 | F66: 19.002 | G66: 95.06 | H66: 69.425 | I66: 13.018 | J66: 155.768 | K66: 127.537 | L66: 90.88 | M66: 74.194 | N66: 8.8 | O66: 14.575 | P66: 11.65 | Q66: 26.237 | R66: 14.479 | S66: 58.624 | T66: 6.723 | U66: 72.719 | V66: 90.42 | W66: 69.5 | X66: 135.55 | Y66: 121.843
A67: 2016-06-17 | B67: 25 | C67: 6 | D67: 2016 | E67: 129.5914 | F67: 18.499 | G67: 92.268 | H67: 67.899 | I67: 12.479 | J67: 151.126 | K67: 124.8 | L67: 90.34 | M67: 72.15 | N67: 8.496 | O67: 14.298 | P67: 11.324 | Q67: 25.319 | R67: 13.75 | S67: 56.184 | T67: 6.55 | U67: 69.342 | V67: 88.08 | W67: 67.5 | X67: 130.35 | Y67: 117.602 | AA67: -0.02173649343 | AB67: 0.005529068726 | AC67: -0.007364328329 | AD67: -0.02105831844 | AE67: -0.03007448728 | AF67: -0.03144716602 | AG67: -0.02800170311 | AH67: -0.03865005599 | AI67: -0.02098410673 | AJ67: 0.003891743812 | AK67: -0.03078437492 | AL67: -0.003174046043 | AM67: -0.02075549893 | AN67: -0.0180185055 | AO67: -0.01748472105 | AP67: -0.03613315648 | AQ67: -0.01939478968 | AR67: 0.0009086779362 | AS67: -0.00148038517 | AT67: -0.03319806941 | AU67: -0.00684713622 | AX67: 129.5914 | AY67: 18.499 | AZ67: 92.268 | BA67: 67.899 | BB67: 12.479 | BC67: 151.126 | BD67: 124.8 | BE67: 90.34 | BF67: 72.15 | BG67: 8.496 | BH67: 14.298 | BI67: 11.324 | BJ67: 25.319 | BK67: 13.75 | BL67: 56.184 | BM67: 6.55 | BN67: 69.342 | BO67: 88.08 | BP67: 67.5 | BQ67: 130.35 | BR67: 117.602 | BU67: -0.02173649343 | BV67: 0.005529068726 | BW67: -0.007364328329 | BX67: -0.02105831844 | BY67: -0.03007448728 | BZ67: -0.03144716602 | CA67: -0.02800170311 | CB67: -0.03865005599 | CC67: -0.02098410673 | CD67: 0.003891743812 | CE67: -0.03078437492 | CF67: -0.003174046043 | CG67: -0.02075549893 | CH67: -0.0180185055 | CI67: -0.01748472105 | CJ67: -0.03613315648 | CK67: -0.01939478968 | CL67: 0.0009086779362 | CM67: -0.00148038517 | CN67: -0.03319806941 | CO67: -0.00684713622
A68: 2016-06-16 | B68: 25 | C68: 6 | D68: 2016 | E68: 126.8937 | F68: 18.113 | G68: 91.699 | H68: 67.35 | I68: 12.021 | J68: 150.084 | K68: 125.252 | L68: 90.514 | M68: 72.525 | N68: 8.293 | O68: 14.478 | P68: 11.135 | Q68: 25.365 | R68: 13.083 | S68: 55.8 | T68: 6.35 | U68: 69.121 | V68: 87.77 | W68: 68.352 | X68: 129.35 | Y68: 115.99
A69: 2016-06-15 | B69: 25 | C69: 6 | D69: 2016 | E69: 129.1418 | F69: 17.75 | G69: 91.86 | H69: 67.7 | I69: 12.115 | J69: 150.915 | K69: 126.746 | L69: 91.28 | M69: 72.8 | N69: 8.388 | O69: 14.431 | P69: 11.087 | Q69: 25.301 | R69: 13.339 | S69: 55.799 | T69: 6.48 | U69: 69.031 | V69: 88.1 | W69: 68.05 | X69: 129.35 | Y69: 115.44
A70: 2016-06-14 | B70: 25 | C70: 6 | D70: 2016 | E70: 127.5432 | F70: 17.395 | G70: 90.15 | H70: 67.571 | I70: 11.835 | J70: 150.049 | K70: 125.576 | L70: 89.8 | M70: 72.808 | N70: 8.1 | O70: 14.337 | P70: 11.015 | Q70: 25.07 | R70: 13.145 | S70: 55.182 | T70: 6.45 | U70: 67.868 | V70: 87.16 | W70: 66.56 | X70: 128.55 | Y70: 115.122
A71: 2016-06-13 | B71: 25 | C71: 6 | D71: 2016 | E71: 128.6103 | F71: 17.627 | G71: 91 | H71: 68.041 | I71: 12.4 | J71: 152.38 | K71: 125.5 | L71: 89.88 | M71: 72.573 | N71: 8.324 | O71: 14.555 | P71: 11.3 | Q71: 25.301 | R71: 13.48 | S71: 56.176 | T71: 6.519 | U71: 68.91 | V71: 88.06 | W71: 66.78 | X71: 130.85 | Y71: 116.878
A72: 2016-06-10 | B72: 24 | C72: 6 | D72: 2016 | E72: 132.4391 | F72: 18.397 | G72: 92.95 | H72: 69.344 | I72: 12.86 | J72: 155.954 | K72: 128.344 | L72: 93.9 | M72: 73.68 | N72: 8.463 | O72: 14.745 | P72: 11.36 | Q72: 25.85 | R72: 14 | S72: 57.175 | T72: 6.791 | U72: 70.7 | V72: 88 | W72: 67.6 | X72: 134.75 | Y72: 118.41 | AA72: -0.02562125992 | AB72: -0.06903997951 | AC72: -0.02601686429 | AD72: -0.03033806494 | AE72: 0.05424435809 | AF72: -0.03307233108 | AG72: -0.0299874731 | AH72: 0.005553196671 | AI72: -0.0329474231 | AJ72: 0.0227306958 | AK72: -0.06262927344 | AL72: -0.09081867402 | AM72: -0.009279826321 | AN72: -0.07424571777 | AO72: -0.03763862076 | AP72: -0.08561148728 | AQ72: -0.02237855626 | AR72: -0.01511250145 | AS72: -0.01322576222 | AT72: -0.05697286787 | AU72: 0.01454663905 | AX72: 132.4391 | AY72: 18.397 | AZ72: 92.95 | BA72: 69.344 | BB72: 12.86 | BC72: 155.954 | BD72: 128.344 | BE72: 93.9 | BF72: 73.68 | BG72: 8.463 | BH72: 14.745 | BI72: 11.36 | BJ72: 25.85 | BK72: 14 | BL72: 57.175 | BM72: 6.791 | BN72: 70.7 | BO72: 88 | BP72: 67.6 | BQ72: 134.75 | BR72: 118.41 | BU72: -0.02562125992 | BV72: -0.06903997951 | BW72: -0.02601686429 | BX72: -0.03033806494 | BY72: 0.05424435809 | BZ72: -0.03307233108 | CA72: -0.0299874731 | CB72: 0.005553196671 | CC72: -0.0329474231 | CD72: 0.0227306958 | CE72: -0.06262927344 | CF72: -0.09081867402 | CG72: -0.009279826321 | CH72: -0.07424571777 | CI72: -0.03763862076 | CJ72: -0.08561148728 | CK72: -0.02237855626 | CL72: -0.01511250145 | CM72: -0.01322576222 | CN72: -0.05697286787 | CO72: 0.01454663905
A73: 2016-06-09 | B73: 24 | C73: 6 | D73: 2016 | E73: 134.1066 | F73: 19.431 | G73: 95.2 | H73: 71.082 | I73: 13.261 | J73: 159.57 | K73: 130.83 | L73: 94.209 | M73: 76.158 | N73: 8.753 | O73: 14.959 | P73: 11.984 | Q73: 26.522 | R73: 14.816 | S73: 58.832 | T73: 7.1 | U73: 72.098 | V73: 90.23 | W73: 69.21 | X73: 139.85 | Y73: 119.5
A74: 2016-06-08 | B74: 24 | C74: 6 | D74: 2016 | E74: 137.308 | F74: 19.797 | G74: 96.201 | H74: 71.685 | I74: 13.217 | J74: 160.599 | K74: 132.107 | L74: 94.31 | M74: 76.831 | N74: 8.798 | O74: 15.505 | P74: 12.153 | Q74: 26.473 | R74: 14.93 | S74: 59.634 | T74: 7.278 | U74: 73.141 | V74: 91.64 | W74: 70.2 | X74: 142.95 | Y74: 119.7
A75: 2016-06-07 | B75: 24 | C75: 6 | D75: 2016 | E75: 139.1334 | F75: 19.939 | G75: 97.12 | H75: 72.335 | I75: 12.833 | J75: 162.3 | K75: 132.975 | L75: 95.14 | M75: 77.088 | N75: 8.5747 | O75: 15.641 | P75: 12.311 | Q75: 26.525 | R75: 15.3 | S75: 60.146 | T75: 7.412 | U75: 74.013 | V75: 91.97 | W75: 70.74 | X75: 143.7 | Y75: 119.229
A76: 2016-06-06 | B76: 24 | C76: 6 | D76: 2016 | E76: 137.7346 | F76: 19.586 | G76: 95.7 | H76: 71.609 | I76: 12.549 | J76: 161.649 | K76: 132.237 | L76: 93.42 | M76: 76.341 | N76: 8.411 | O76: 15.474 | P76: 12.155 | Q76: 26.004 | R76: 15.031 | S76: 59.498 | T76: 7.35 | U76: 72.419 | V76: 89.18 | W76: 68.802 | X76: 142.55 | Y76: 117.714 | CJ76: =IFERROR(LN(BM76/SUM(BM80:BM81)),"") -> 
A77: 2016-06-03 | B77: 23 | C77: 6 | D77: 2016 | E77: 135.8762 | F77: 19.712 | G77: 95.4 | H77: 71.48 | I77: 12.181 | J77: 161.198 | K77: 132.251 | L77: 93.38 | M77: 76.148 | N77: 8.2728 | O77: 15.698 | P77: 12.44 | Q77: 26.091 | R77: 15.079 | S77: 59.368 | T77: 7.398 | U77: 72.3 | V77: 89.34 | W77: 68.5 | X77: 142.65 | Y77: 116.7 | AA77: =IFERROR(LN(AX77/SUM(AX81:AX82)),"") -> -0.02584145648 | AB77: =IFERROR(LN(AY77/SUM(AY81:AY82)),"") -> 0.000964344701 | AC77: =IFERROR(LN(AZ77/SUM(AZ81:AZ82)),"") -> -0.02892763691 | AD77: =IFERROR(LN(BA77/SUM(BA81:BA82)),"") -> -0.01784486544 | AE77: =IFERROR(LN(BB77/SUM(BB81:BB82)),"") -> 0.01881141032 | AF77: =IFERROR(LN(BC77/SUM(BC81:BC82)),"") -> -0.04879075498 | AG77: =IFERROR(LN(BD77/SUM(BD81:BD82)),"") -> -0.009512198933 | AH77: =IFERROR(LN(BE77/SUM(BE81:BE82)),"") -> 0.01372624483 | AI77: =IFERROR(LN(BF77/SUM(BF81:BF82)),"") -> -0.02682098505 | AJ77: =IFERROR(LN(BG77/SUM(BG81:BG82)),"") -> -0.0164484491 | AK77: =IFERROR(LN(BH77/SUM(BH81:BH82)),"") -> -0.008436727387 | AL77: =IFERROR(LN(BI77/SUM(BI81:BI82)),"") -> -0.0195819359 | AM77: =IFERROR(LN(BJ77/SUM(BJ81:BJ82)),"") -> -0.01807941683 | AN77: =IFERROR(LN(BK77/SUM(BK81:BK82)),"") -> -0.07214020029 | AO77: =IFERROR(LN(BL77/SUM(BL81:BL82)),"") -> -0.02037450229 | AP77: =IFERROR(LN(BM77/SUM(BM81:BM82)),"") -> -0.05098911188 | AQ77: =IFERROR(LN(BN77/SUM(BN81:BN82)),"") -> -0.03630391956 | AR77: =IFERROR(LN(BO77/SUM(BO81:BO82)),"") -> 0.04592322338 | AS77: =IFERROR(LN(BP77/SUM(BP81:BP82)),"") -> -0.01594518979 | AT77: =IFERROR(LN(BQ77/SUM(BQ81:BQ82)),"") -> -0.02833638105 | AU77: =IFERROR(LN(BR77/SUM(BR81:BR82)),"") -> 0.008104734244 | AX77: 135.8762 | AY77: 19.712 | AZ77: 95.4 | BA77: 71.48 | BB77: 12.181 | BC77: 161.198 | BD77: 132.251 | BE77: 93.38 | BF77: 76.148 | BG77: 8.2728 | BH77: 15.698 | BI77: 12.44 | BJ77: 26.091 | BK77: 15.079 | BL77: 59.368 | BM77: 7.398 | BN77: 72.3 | BO77: 89.34 | BP77: 68.5 | BQ77: 142.65 | BR77: 116.7 | BU77: =IFERROR(LN(AX77/SUM(AX81:AX82)),"") -> -0.02584145648 | BV77: 0.000964344701 | BW77: -0.02892763691 | BX77: -0.01784486544 | BY77: 0.01881141032 | BZ77: -0.04879075498 | CA77: -0.009512198933 | CB77: 0.01372624483 | CC77: -0.02682098505 | CD77: -0.0164484491 | CE77: -0.008436727387 | CF77: -0.0195819359 | CG77: -0.01807941683 | CH77: -0.07214020029 | CI77: -0.02037450229 | CJ77: -0.05098911188 | CK77: -0.03630391956 | CL77: 0.04592322338 | CM77: -0.01594518979 | CN77: -0.02833638105 | CO77: 0.008104734244
A78: 2016-06-02 | B78: 23 | C78: 6 | D78: 2016 | E78: 139.649 | F78: 19.684 | G78: 96.411 | H78: 72.134 | I78: 11.585 | J78: 163.99 | K78: 134.246 | L78: 94.007 | M78: 77.071 | N78: 8.1763 | O78: 15.778 | P78: 12.493 | Q78: 26.49 | R78: 15.694 | S78: 60.75 | T78: 7.575 | U78: 74.15 | V78: 88.14 | W78: 69.68 | X78: 145 | Y78: 116.809 | AX78: =IF($B78<$B77,E78,"") -> 
A79: 2016-06-01 | B79: 23 | C79: 6 | D79: 2016 | E79: 136.5356 | F79: 19.651 | G79: 96.832 | H79: 72.31 | I79: 11.45 | J79: 167.48 | K79: 133.736 | L79: 93.62 | M79: 77.58 | N79: 8.1593 | O79: 15.8 | P79: 12.432 | Q79: 26.25 | R79: 15.733 | S79: 60.49 | T79: 7.571 | U79: 74 | V79: 86.25 | W79: 69.45 | X79: 145.7 | Y79: 116
A80: 2016-05-31 | B80: 23 | C80: 5 | D80: 2016 | E80: 139.1334 | F80: 19.83 | G80: 96.63 | H80: 72.962 | I80: 11.75 | J80: 168.266 | K80: 134.059 | L80: 92.33 | M80: 78.546 | N80: 8.3552 | O80: 15.853 | P80: 12.629 | Q80: 26.186 | R80: 16.02 | S80: 61.381 | T80: 7.674 | U80: 76.078 | V80: 85.63 | W80: 69.491 | X80: 146.7 | Y80: 114.609
A81: 2016-05-30 | B81: 23 | C81: 5 | D81: 2016 | E81: 140.7321 | F81: 19.625 | G81: 98.101 | H81: 72.812 | I81: 12.051 | J81: 169.506 | K81: 134.949 | L81: 92.674 | M81: 78.497 | N81: 8.447 | O81: 15.962 | P81: 12.676 | Q81: 26.639 | R81: 16.43 | S81: 61.812 | T81: 7.806 | U81: 75.601 | V81: 86.44 | W81: 69.965 | X81: 147 | Y81: 115.728
A82: 2016-05-27 | B82: 22 | C82: 5 | D82: 2016 | E82: 139.4332 | F82: 19.693 | G82: 98.2 | H82: 72.767 | I82: 11.954 | J82: 169.258 | K82: 133.515 | L82: 92.107 | M82: 78.218 | N82: 8.41 | O82: 15.831 | P82: 12.686 | Q82: 26.567 | R82: 16.207 | S82: 60.59 | T82: 7.785 | U82: 74.973 | V82: 85.33 | W82: 69.601 | X82: 146.75 | Y82: 115.758 | AA82: 0.03537331742 | AB82: 0.06384477582 | AC82: 0.0430308137 | AD82: 0.04803873219 | AE82: 0.03741541713 | AF82: 0.05852169031 | AG82: 0.04838242796 | AH82: 0.001162367667 | AI82: 0.04615358572 | AJ82: 0.06748220744 | AK82: 0.06201922025 | AL82: 0.02457831989 | AM82: 0.02925659323 | AN82: 0.07300269827 | AO82: 0.04629369555 | AP82: 0.06569525927 | AQ82: 0.04712295404 | AR82: -0.04815936026 | AS82: 0.03768341176 | AT82: 0.06329001068 | AU82: 0.02530053071 | AX82: 139.4332 | AY82: 19.693 | AZ82: 98.2 | BA82: 72.767 | BB82: 11.954 | BC82: 169.258 | BD82: 133.515 | BE82: 92.107 | BF82: 78.218 | BG82: 8.41 | BH82: 15.831 | BI82: 12.686 | BJ82: 26.567 | BK82: 16.207 | BL82: 60.59 | BM82: 7.785 | BN82: 74.973 | BO82: 85.33 | BP82: 69.601 | BQ82: 146.75 | BR82: 115.758 | BU82: 0.03537331742 | BV82: 0.06384477582 | BW82: 0.0430308137 | BX82: 0.04803873219 | BY82: 0.03741541713 | BZ82: 0.05852169031 | CA82: 0.04838242796 | CB82: 0.001162367667 | CC82: 0.04615358572 | CD82: 0.06748220744 | CE82: 0.06201922025 | CF82: 0.02457831989 | CG82: 0.02925659323 | CH82: 0.07300269827 | CI82: 0.04629369555 | CJ82: 0.06569525927 | CK82: 0.04712295404 | CL82: -0.04815936026 | CM82: 0.03768341176 | CN82: 0.06329001068 | CO82: 0.02530053071
A83: 2016-05-26 | B83: 22 | C83: 5 | D83: 2016 | E83: 139.3333 | F83: 19.768 | G83: 97.45 | H83: 72.214 | I83: 11.998 | J83: 168.59 | K83: 133.2 | L83: 92 | M83: 77.583 | N83: 8.3703 | O83: 15.453 | P83: 12.735 | Q83: 26.358 | R83: 16.132 | S83: 60.8 | T83: 7.772 | U83: 75.637 | V83: 85.65 | W83: 69.57 | X83: 146.7 | Y83: 115.958
A84: 2016-05-25 | B84: 22 | C84: 5 | D84: 2016 | E84: 139.1334 | F84: 19.122 | G84: 97.08 | H84: 72.058 | I84: 11.637 | J84: 166.97 | K84: 132.134 | L84: 91.55 | M84: 77.551 | N84: 8.2814 | O84: 15.3631 | P84: 12.694 | Q84: 26.052 | R84: 16.096 | S84: 60.101 | T84: 7.76 | U84: 74.04 | V84: 87.15 | W84: 69.6 | X84: 145.2 | Y84: 114.501
A85: 2016-05-24 | B85: 22 | C85: 5 | D85: 2016 | E85: 137.4349 | F85: 18.641 | G85: 94.851 | H85: 71.42 | I85: 11.44 | J85: 164.964 | K85: 129.229 | L85: 90.68 | M85: 75.833 | N85: 8.0325 | O85: 15.0482 | P85: 12.54 | Q85: 26.156 | R85: 15.54 | S85: 58.257 | T85: 7.45 | U85: 72.372 | V85: 87.15 | W85: 68.999 | X85: 141.9 | Y85: 114.525
A86: 2016-05-23 | B86: 22 | C86: 5 | D86: 2016 | E86: 134.1376 | F86: 18.3 | G86: 93.324 | H86: 69.596 | I86: 11.301 | J86: 161.229 | K86: 127.225 | L86: 90.35 | M86: 74.899 | N86: 7.8735 | O86: 14.9024 | P86: 12.493 | Q86: 26.008 | R86: 15.172 | S86: 57.005 | T86: 7.295 | U86: 70.996 | V86: 84.42 | W86: 67.167 | X86: 137.7 | Y86: 114.086
A87: 2016-05-20 | B87: 21 | C87: 5 | D87: 2016 | E87: 134.5872 | F87: 18.475 | G87: 94.064 | H87: 69.354 | I87: 11.515 | J87: 159.637 | K87: 127.209 | L87: 92 | M87: 74.69 | N87: 7.8612 | O87: 14.879 | P87: 12.378 | Q87: 25.801 | R87: 15.066 | S87: 57.849 | T87: 7.29 | U87: 71.522 | V87: 89.54 | W87: 67.027 | X87: 137.75 | Y87: 112.866 | AA87: -0.002595686743 | AB87: -0.01258622467 | AC87: 0.005800084496 | AD87: 0.01065435923 | AE87: -0.06440281936 | AF87: 0.008132606203 | AG87: 0.01013697028 | AH87: 0.03360174655 | AI87: 0.01216365004 | AJ87: 0.001323829114 | AK87: 0.003271694706 | AL87: 0.002993650846 | AM87: -0.004717354661 | AN87: 0.03196711607 | AO87: -0.01489312568 | AP87: 0.04187993849 | AQ87: -0.02574171354 | AR87: -0.07112000965 | AS87: -0.007920568651 | AT87: -0.001088336766 | AU87: 0.02665771085 | AX87: 134.5872 | AY87: 18.475 | AZ87: 94.064 | BA87: 69.354 | BB87: 11.515 | BC87: 159.637 | BD87: 127.209 | BE87: 92 | BF87: 74.69 | BG87: 7.8612 | BH87: 14.879 | BI87: 12.378 | BJ87: 25.801 | BK87: 15.066 | BL87: 57.849 | BM87: 7.29 | BN87: 71.522 | BO87: 89.54 | BP87: 67.027 | BQ87: 137.75 | BR87: 112.866 | BU87: -0.002595686743 | BV87: -0.01258622467 | BW87: 0.005800084496 | BX87: 0.01065435923 | BY87: -0.06440281936 | BZ87: 0.008132606203 | CA87: 0.01013697028 | CB87: 0.03360174655 | CC87: 0.01216365004 | CD87: 0.001323829114 | CE87: 0.003271694706 | CF87: 0.002993650846 | CG87: -0.004717354661 | CH87: 0.03196711607 | CI87: -0.01489312568 | CJ87: 0.04187993849 | CK87: -0.02574171354 | CL87: -0.07112000965 | CM87: -0.007920568651 | CN87: -0.001088336766 | CO87: 0.02665771085
A88: 2016-05-19 | B88: 21 | C88: 5 | D88: 2016 | E88: 135.0918 | F88: 18.009 | G88: 92.82 | H88: 68.742 | I88: 11.368 | J88: 159.598 | K88: 126.531 | L88: 91.75 | M88: 73.178 | N88: 7.7959 | O88: 14.751 | P88: 12.31 | Q88: 25.859 | R88: 14.987 | S88: 56.401 | T88: 7.299 | U88: 70.835 | V88: 88.51 | W88: 66.52 | X88: 136.25 | Y88: 109.361
A89: 2016-05-18 | B89: 21 | C89: 5 | D89: 2016 | E89: 135.0369 | F89: 18.939 | G89: 93.521 | H89: 69.108 | I89: 11.725 | J89: 160.018 | K89: 127.961 | L89: 90.521 | M89: 72.725 | N89: 7.8556 | O89: 14.9332 | P89: 12.474 | Q89: 26.052 | R89: 14.87 | S89: 57.869 | T89: 7.177 | U89: 71.209 | V89: 96.42 | W89: 67.465 | X89: 137.65 | Y89: 110.628
A90: 2016-05-17 | B90: 21 | C90: 5 | D90: 2016 | E90: 131.9615 | F90: 18.983 | G90: 93.096 | H90: 68.387 | I90: 11.8 | J90: 159.04 | K90: 126.439 | L90: 90.411 | M90: 72.663 | N90: 7.9171 | O90: 15.0052 | P90: 12.326 | Q90: 25.952 | R90: 14.408 | S90: 57.649 | T90: 7.064 | U90: 71.819 | V90: 95.75 | W90: 67.52 | X90: 137.05 | Y90: 110.101
A91: 2016-05-13 | B91: 20 | C91: 5 | D91: 2016 | E91: 134.937 | F91: 18.709 | G91: 93.52 | H91: 68.619 | I91: 12.281 | J91: 158.344 | K91: 125.926 | L91: 88.96 | M91: 73.787 | N91: 7.8508 | O91: 14.8304 | P91: 12.341 | Q91: 25.923 | R91: 14.592 | S91: 58.717 | T91: 6.991 | U91: 73.387 | V91: 96.14 | W91: 67.56 | X91: 137.9 | Y91: 109.897 | AA91: 0.01981756771 | AB91: -0.03187730461 | AC91: 0.009702607048 | AD91: 0.03354884138 | AE91: 0.02732207425 | AF91: -0.02590812025 | AG91: -0.0003811036172 | AH91: -0.003702669027 | AI91: -0.002450408498 | AJ91: -0.01508160235 | AK91: 0.05471175111 | AL91: -0.0144003132 | AM91: 0.04881330991 | AN91: -0.01178608186 | AO91: -0.01432207165 | AP91: -0.02024847941 | AQ91: 0.006850231542 | AR91: -0.01681231905 | AS91: -0.01644194409 | AT91: -0.01045996913 | AU91: -0.02287618254 | AX91: 134.937 | AY91: 18.709 | AZ91: 93.52 | BA91: 68.619 | BB91: 12.281 | BC91: 158.344 | BD91: 125.926 | BE91: 88.96 | BF91: 73.787 | BG91: 7.8508 | BH91: 14.8304 | BI91: 12.341 | BJ91: 25.923 | BK91: 14.592 | BL91: 58.717 | BM91: 6.991 | BN91: 73.387 | BO91: 96.14 | BP91: 67.56 | BQ91: 137.9 | BR91: 109.897 | BU91: 0.01981756771 | BV91: -0.03187730461 | BW91: 0.009702607048 | BX91: 0.03354884138 | BY91: 0.02732207425 | BZ91: -0.02590812025 | CA91: -0.0003811036172 | CB91: -0.003702669027 | CC91: -0.002450408498 | CD91: -0.01508160235 | CE91: 0.05471175111 | CF91: -0.0144003132 | CG91: 0.04881330991 | CH91: -0.01178608186 | CI91: -0.01432207165 | CJ91: -0.02024847941 | CK91: 0.006850231542 | CL91: -0.01681231905 | CM91: -0.01644194409 | CN91: -0.01045996913 | CO91: -0.02287618254
A92: 2016-05-12 | B92: 20 | C92: 5 | D92: 2016 | E92: 135.2367 | F92: 18.601 | G92: 93.051 | H92: 67.837 | I92: 12.3 | J92: 157.402 | K92: 126.057 | L92: 90.399 | M92: 73.787 | N92: 7.7382 | O92: 14.7267 | P92: 12.5 | Q92: 25.792 | R92: 14.587 | S92: 58.999 | T92: 6.938 | U92: 73.079 | V92: 95.15 | W92: 67.56 | X92: 136.75 | Y92: 112.233 | BN92: =IF($B92<$B91,U92,"") ->  | CK92: =IFERROR(LN(BN92/SUM(BN96:BN97)),"") -> 
A93: 2016-05-11 | B93: 20 | C93: 5 | D93: 2016 | E93: 138.7837 | F93: 18.955 | G93: 93.95 | H93: 67.073 | I93: 11.37 | J93: 158.99 | K93: 127.331 | L93: 90.029 | M93: 74.09664 | N93: 7.636 | O93: 14.6276 | P93: 12.526 | Q93: 25.663 | R93: 14.691 | S93: 59.318 | T93: 7.03 | U93: 74.109 | V93: 100 | W93: 67.22 | X93: 138.85 | Y93: 112.8896 | BU93: =IFERROR(LN(AX93/SUM(AX97:AX98)),"") -> 
A94: 2016-05-10 | B94: 20 | C94: 5 | D94: 2016 | E94: 139.8538 | F94: 18.425 | G94: 94.351 | H94: 67.6531 | I94: 11.876 | J94: 160.218 | K94: 128.573 | L94: 90.33 | M94: 75.41634 | N94: 8.0893 | O94: 14.6267 | P94: 12.729 | Q94: 25.201 | R94: 15.051 | S94: 60.01 | T94: 7.069 | U94: 74.923 | V94: 100.15 | W94: 68.22 | X94: 141.7 | Y94: 112.8413
A95: 2016-05-09 | B95: 20 | C95: 5 | D95: 2016 | E95: 134.6872 | F95: 18.39 | G95: 93.024 | H95: 67.898 | I95: 11.7 | J95: 163.459 | K95: 127.097 | L95: 90.68 | M95: 75.35797 | N95: 7.9928 | O95: 14.4996 | P95: 12.524 | Q95: 24.94 | R95: 14.7 | S95: 59.741 | T95: 7.045 | U95: 73.684 | V95: 99.95 | W95: 69.35 | X95: 140.9 | Y95: 112.656
A96: 2016-05-06 | B96: 19 | C96: 5 | D96: 2016 | E96: 132.2892 | F96: 19.315 | G96: 92.617 | H96: 66.3551 | I96: 11.95 | J96: 162.5 | K96: 125.974 | L96: 89.29 | M96: 73.96803 | N96: 7.9701 | O96: 14.0408 | P96: 12.52 | Q96: 24.688 | R96: 14.765 | S96: 59.564 | T96: 7.134 | U96: 72.886 | V96: 97.77 | W96: 68.68 | X96: 139.35 | Y96: 112.44 | AA96: -0.04576436035 | AB96: -0.05602451267 | AC96: 0.01105235553 | AD96: -0.01641784866 | AE96: -0.08782694391 | AF96: -0.003194890897 | AG96: -0.03515208584 | AH96: 0.005322685581 | AI96: -0.01518452336 | AJ96: -0.07334052479 | AK96: -0.0228273154 | AL96: -0.08127075646 | AM96: -0.00581584838 | AN96: -0.1111614699 | AO96: -0.0272755472 | AP96: -0.1331458403 | AQ96: -0.06390719932 | AR96: -0.004897469232 | AS96: -0.01689204967 | AT96: 0.04161467794 | AU96: 0.007577552247 | AX96: 132.2892 | AY96: 19.315 | AZ96: 92.617 | BA96: 66.3551 | BB96: 11.95 | BC96: 162.5 | BD96: 125.974 | BE96: 89.29 | BF96: 73.96803 | BG96: 7.9701 | BH96: 14.0408 | BI96: 12.52 | BJ96: 24.688 | BK96: 14.765 | BL96: 59.564 | BM96: 7.134 | BN96: 72.886 | BO96: 97.77 | BP96: 68.68 | BQ96: 139.35 | BR96: 112.44 | BU96: -0.04576436035 | BV96: -0.05602451267 | BW96: 0.01105235553 | BX96: -0.01641784866 | BY96: -0.08782694391 | BZ96: -0.003194890897 | CA96: -0.03515208584 | CB96: 0.005322685581 | CC96: -0.01518452336 | CD96: -0.07334052479 | CE96: -0.0228273154 | CF96: -0.08127075646 | CG96: -0.00581584838 | CH96: -0.1111614699 | CI96: -0.0272755472 | CJ96: -0.1331458403 | CK96: -0.06390719932 | CL96: -0.004897469232 | CM96: -0.01689204967 | CN96: 0.04161467794 | CO96: 0.007577552247
A97: 2016-05-05 | B97: 19 | C97: 5 | D97: 2016 | E97: 129.6414 | F97: 19.244 | G97: 91.694 | H97: 66.3974 | I97: 11.819 | J97: 162.371 | K97: 126.759 | L97: 88.601 | M97: 74.063 | N97: 7.9824 | O97: 14.0632 | P97: 12.592 | Q97: 24.453 | R97: 14.595 | S97: 59.108 | T97: 7.006 | U97: 72.36 | V97: 98.17 | W97: 68.542 | X97: 132.65 | Y97: 111.1337
A98: 2016-05-04 | B98: 19 | C98: 5 | D98: 2016 | E98: 131.8855 | F98: 19.457 | G98: 91.113 | H98: 66.1781 | I98: 11.59 | J98: 160.826 | K98: 126.905 | L98: 88.601 | M98: 74.50917 | N98: 8.0098 | O98: 13.9567 | P98: 12.686 | Q98: 24.496 | R98: 14.938 | S98: 58.752 | T98: 7.151 | U98: 73.577 | V98: 96.78 | W98: 68.128 | X98: 135.07 | Y98: 111.2392 | BH98: =IF($B98<$B97,O98,"") -> 
A99: 2016-05-03 | B99: 19 | C99: 5 | D99: 2016 | E99: 133.5881 | F99: 19.46 | G99: 90.37 | H99: 67.0867 | I99: 12.099 | J99: 164.142 | K99: 127.939 | L99: 89.24 | M99: 75.08493 | N99: 8.2605 | O99: 14.2744 | P99: 13.084 | Q99: 24.597 | R99: 15.132 | S99: 59.999 | T99: 7.429 | U99: 75.327 | V99: 98.28 | W99: 67 | X99: 136.51 | Y99: 111.8919 | AX99: =IF($B99<$B98,E99,"") -> 
A100: 2016-05-02 | B100: 19 | C100: 5 | D100: 2016 | E100: 136.7125 | F100: 20.331 | G100: 91.3 | H100: 67.8046 | I100: 12.769 | J100: 164.17 | K100: 130.009 | L100: 88.644 | M100: 75.06316 | N100: 8.5009 | O100: 14.4342 | P100: 13.738 | Q100: 24.985 | R100: 16.037 | S100: 60.959 | T100: 8.08 | U100: 78.201 | V100: 99.84 | W100: 68.19 | X100: 137.59 | Y100: 112.6994
A101: 2016-04-29 | B101: 18 | C101: 4 | D101: 2016 | E101: 138.484 | F101: 20.428 | G101: 91.599 | H101: 67.4535 | I101: 13.047 | J101: 163.02 | K101: 130.481 | L101: 88.816 | M101: 75.09977 | N101: 8.5766 | O101: 14.365 | P101: 13.58 | Q101: 24.832 | R101: 16.501 | S101: 61.211 | T101: 8.15 | U101: 77.696 | V101: 98.25 | W101: 69.85 | X101: 133.67 | Y101: 111.5912 | AA101: 0.0178352389 | AB101: -0.05564790737 | AC101: -0.04876988926 | AD101: -0.0369067592 | AE101: 0.02624781838 | AF101: -0.065642071 | AG101: -0.0101718021 | AH101: -0.01001543162 | AI101: -0.04195843324 | AJ101: -0.02570279322 | AK101: -0.02797265181 | AL101: 0.001031459607 | AM101: -0.01641574556 | AN101: -0.01718379221 | AO101: -0.02880781446 | AP101: -0.01823758755 | AQ101: -0.02180793596 | AR101: -0.09056147167 | AS101: 0.03296402077 | AT101: -0.04583968333 | AU101: 0.05149744375 | AX101: 138.484 | AY101: 20.428 | AZ101: 91.599 | BA101: 67.4535 | BB101: 13.047 | BC101: 163.02 | BD101: 130.481 | BE101: 88.816 | BF101: 75.09977 | BG101: 8.5766 | BH101: 14.365 | BI101: 13.58 | BJ101: 24.832 | BK101: 16.501 | BL101: 61.211 | BM101: 8.15 | BN101: 77.696 | BO101: 98.25 | BP101: 69.85 | BQ101: 133.67 | BR101: 111.5912 | BU101: 0.0178352389 | BV101: -0.05564790737 | BW101: -0.04876988926 | BX101: -0.0369067592 | BY101: 0.02624781838 | BZ101: -0.065642071 | CA101: -0.0101718021 | CB101: -0.01001543162 | CC101: -0.04195843324 | CD101: -0.02570279322 | CE101: -0.02797265181 | CF101: 0.001031459607 | CG101: -0.01641574556 | CH101: -0.01718379221 | CI101: -0.02880781446 | CJ101: -0.01823758755 | CK101: -0.02180793596 | CL101: -0.09056147167 | CM101: 0.03296402077 | CN101: -0.04583968333 | CO101: 0.05149744375
A102: 2016-04-28 | B102: 18 | C102: 4 | D102: 2016 | E102: 141.3816 | F102: 20.941 | G102: 93.981 | H102: 69.4506 | I102: 12.938 | J102: 168 | K102: 128.187 | L102: 89.863 | M102: 76.90816 | N102: 8.7015 | O102: 14.7482 | P102: 13.99 | Q102: 25.393 | R102: 17.292 | S102: 62.853 | T102: 8.36 | U102: 80.313 | V102: 101.663 | W102: 69.381 | X102: 137.19 | Y102: 112.2655
A103: 2016-04-27 | B103: 18 | C103: 4 | D103: 2016 | E103: 140.9319 | F103: 20.151 | G103: 95.35 | H103: 69.9915 | I103: 13.2 | J103: 165.83 | K103: 128.62 | L103: 89.263 | M103: 77.42061 | N103: 8.904 | O103: 14.765 | P103: 13.77 | Q103: 25.287 | R103: 16.735 | S103: 62.864 | T103: 8.269 | U103: 80.061 | V103: 103.028 | W103: 69.476 | X103: 136.78 | Y103: 112.3769
A104: 2016-04-26 | B104: 18 | C104: 4 | D104: 2016 | E104: 136.7355 | F104: 20.163 | G104: 94.65 | H104: 69.2363 | I104: 12.469 | J104: 173.562 | K104: 127.073 | L104: 89.3 | M104: 77.31475 | N104: 8.5927 | O104: 14.7155 | P104: 13.593 | Q104: 25.228 | R104: 16.505 | S104: 63.084 | T104: 8.27 | U104: 79.129 | V104: 105.759 | W104: 69.16 | X104: 137.86 | Y104: 105.9506
A105: 2016-04-25 | B105: 18 | C105: 4 | D105: 2016 | E105: 133.9378 | F105: 20.91 | G105: 95.269 | H105: 69.7083 | I105: 12.478 | J105: 173.85 | K105: 129.892 | L105: 89.59 | M105: 77.84104 | N105: 8.5756 | O105: 14.7173 | P105: 13.598 | Q105: 25.274 | R105: 16.08 | S105: 62.8 | T105: 8.161 | U105: 78.499 | V105: 106.978 | W105: 68.439 | X105: 139.08 | Y105: 106.5293
A106: 2016-04-22 | B106: 17 | C106: 4 | D106: 2016 | E106: 136.036 | F106: 21.597 | G106: 96.177 | H106: 69.9895 | I106: 12.709 | J106: 174.08 | K106: 131.815 | L106: 89.71 | M106: 78.31788 | N106: 8.7999 | O106: 14.7725 | P106: 13.566 | Q106: 25.243 | R106: 16.787 | S106: 63 | T106: 8.3 | U106: 79.409 | V106: 107.563 | W106: 67.585 | X106: 139.94 | Y106: 105.99 | AA106: 0.08362070467 | AB106: 0.05408265563 | AC106: 0.0400632652 | AD106: 0.02128523375 | AE106: 0.0957461864 | AF106: 0.008080584056 | AG106: 0.03479793213 | AH106: 0.01933634432 | AI106: 0.007187864681 | AJ106: 0.05197595137 | AK106: 0.007174090023 | AL106: -0.0184777943 | AM106: 0.03253235884 | AN106: 0.09366740052 | AO106: 0.01005033585 | AP106: 0.02291599893 | AQ106: 0.05852457933 | AR106: 0.04260044067 | AS106: 0.02764807428 | AT106: 0.05056392443 | AU106: 0.03290748235 | AX106: 136.036 | AY106: 21.597 | AZ106: 96.177 | BA106: 69.9895 | BB106: 12.709 | BC106: 174.08 | BD106: 131.815 | BE106: 89.71 | BF106: 78.31788 | BG106: 8.7999 | BH106: 14.7725 | BI106: 13.566 | BJ106: 25.243 | BK106: 16.787 | BL106: 63 | BM106: 8.3 | BN106: 79.409 | BO106: 107.563 | BP106: 67.585 | BQ106: 139.94 | BR106: 105.99 | BU106: 0.08362070467 | BV106: 0.05408265563 | BW106: 0.0400632652 | BX106: 0.02128523375 | BY106: 0.0957461864 | BZ106: 0.008080584056 | CA106: 0.03479793213 | CB106: 0.01933634432 | CC106: 0.007187864681 | CD106: 0.05197595137 | CE106: 0.007174090023 | CF106: -0.0184777943 | CG106: 0.03253235884 | CH106: 0.09366740052 | CI106: 0.01005033585 | CJ106: 0.02291599893 | CK106: 0.05852457933 | CL106: 0.04260044067 | CM106: 0.02764807428 | CN106: 0.05056392443 | CO106: 0.03290748235
A107: 2016-04-21 | B107: 17 | C107: 4 | D107: 2016 | E107: 138.434 | F107: 21.1 | G107: 96.131 | H107: 69.7761 | I107: 12.606 | J107: 174.94 | K107: 132.564 | L107: 89.716 | M107: 78.3891 | N107: 8.7753 | O107: 14.8678 | P107: 13.549 | Q107: 25.164 | R107: 16.579 | S107: 66.09 | T107: 8.241 | U107: 80.429 | V107: 107.709 | W107: 68.142 | X107: 140.03 | Y107: 105.0474
A108: 2016-04-20 | B108: 17 | C108: 4 | D108: 2016 | E108: 134.887 | F108: 21.842 | G108: 96.111 | H108: 70.1105 | I108: 11.969 | J108: 175.756 | K108: 132.196 | L108: 90.702 | M108: 78.54244 | N108: 8.639 | O108: 15.0818 | P108: 13.746 | Q108: 25.061 | R108: 16.501 | S108: 66.273 | T108: 8.07 | U108: 80.695 | V108: 106.978 | W108: 68.17 | X108: 140.03 | Y108: 106.06 | CJ108: =IFERROR(LN(BM108/SUM(BM112:BM113)),"") -> 
A109: 2016-04-19 | B109: 17 | C109: 4 | D109: 2016 | E109: 128.4424 | F109: 21.251 | G109: 95 | H109: 69.7761 | I109: 11.8721 | J109: 174.984 | K109: 130.774 | L109: 88.844 | M109: 78.84714 | N109: 8.6059 | O109: 15.0267 | P109: 13.728 | Q109: 25.107 | R109: 15.629 | S109: 65.051 | T109: 8.32469 | U109: 79.292 | V109: 106.929 | W109: 68.324 | X109: 136.46 | Y109: 106.8606 | BU109: =IFERROR(LN(AX109/SUM(AX113:AX114)),"") -> 
A110: 2016-04-18 | B110: 17 | C110: 4 | D110: 2016 | E110: 125.6108 | F110: 20.673 | G110: 92.87 | H110: 68.896 | I110: 11.4545 | J110: 172.626 | K110: 128.096 | L110: 88.7 | M110: 78.55926 | N110: 8.3703 | O110: 14.7304 | P110: 13.624 | Q110: 24.502 | R110: 15.658 | S110: 63.552 | T110: 8.37933 | U110: 77.037 | V110: 103.906 | W110: 67.191 | X110: 133.67 | Y110: 104.939
A111: 2016-04-15 | B111: 16 | C111: 4 | D111: 2016 | E111: 125.1232 | F111: 20.46 | G111: 92.4 | H111: 68.5155 | I111: 11.5486 | J111: 172.679 | K111: 127.307 | L111: 87.992 | M111: 77.75696 | N111: 8.3542 | O111: 14.6669 | P111: 13.819 | Q111: 24.435 | R111: 15.286 | S111: 62.37 | T111: 8.11196 | U111: 74.895 | V111: 103.077 | W111: 65.742 | X111: 133.04 | Y111: 102.5589 | AA111: 0.03602469291 | AB111: 0.0912860295 | AC111: 0.03455111324 | AD111: 0.03285501701 | AE111: 0.03674037384 | AF111: 0.03322502156 | AG111: 0.07042350939 | AH111: 0.01341580226 | AI111: 0 | AJ111: 0.06334701657 | AK111: 0.03679778033 | AL111: 0.01877269256 | AM111: 0.0516056648 | AN111: 0.09152955571 | AO111: 0.04293193627 | AP111: 0.09905833809 | AQ111: 0.04721519839 | AR111: 0.03808628308 | AS111: 0.0592489751 | AT111: 0.06041793843 | AU111: 0.009475428792 | AX111: 125.1232 | AY111: 20.46 | AZ111: 92.4 | BA111: 68.5155 | BB111: 11.5486 | BC111: 172.679 | BD111: 127.307 | BE111: 87.992 | BF111: 77.75696 | BG111: 8.3542 | BH111: 14.6669 | BI111: 13.819 | BJ111: 24.435 | BK111: 15.286 | BL111: 62.37 | BM111: 8.11196 | BN111: 74.895 | BO111: 103.077 | BP111: 65.742 | BQ111: 133.04 | BR111: 102.5589 | BU111: 0.03602469291 | BV111: 0.0912860295 | BW111: 0.03455111324 | BX111: 0.03285501701 | BY111: 0.03674037384 | BZ111: 0.03322502156 | CA111: 0.07042350939 | CB111: 0.01341580226 | CC111: 0 | CD111: 0.06334701657 | CE111: 0.03679778033 | CF111: 0.01877269256 | CG111: 0.0516056648 | CH111: 0.09152955571 | CI111: 0.04293193627 | CJ111: 0.09905833809 | CK111: 0.04721519839 | CL111: 0.03808628308 | CM111: 0.0592489751 | CN111: 0.06041793843 | CO111: 0.009475428792
A112: 2016-04-14 | B112: 16 | C112: 4 | D112: 2016 | E112: 127.693 | F112: 20.271 | G112: 92.9 | H112: 68.8331 | I112: 11.4459 | J112: 173.366 | K112: 127.852 | L112: 88.37 | M112: 78.1863 | N112: 8.1574 | O112: 14.551 | P112: 13.802 | Q112: 24.509 | R112: 15.314 | S112: 63.903 | T112: 8.12562 | U112: 76.066 | V112: 103.126 | W112: 65.153 | X112: 132.86 | Y112: 103.5399
A113: 2016-04-13 | B113: 16 | C113: 4 | D113: 2016 | E113: 125.5948 | F113: 20.43 | G113: 92 | H113: 68.075 | I113: 11.3662 | J113: 173.132 | K113: 126.052 | L113: 86.1 | M113: 77.65902 | N113: 8.1196 | O113: 14.48 | P113: 13.679 | Q113: 24.23 | R113: 15.347 | S113: 63.261 | T113: 8.09927 | U113: 74.817 | V113: 102.785 | W113: 65.512 | X113: 132.27 | Y113: 102.1527
A114: 2016-04-12 | B114: 16 | C114: 4 | D114: 2016 | E114: 121.8729 | F114: 19.25 | G114: 89.832 | H114: 67.7436 | I114: 11.2971 | J114: 169.502 | K114: 121.203 | L114: 85.9 | M114: 77.51558 | N114: 8.0401 | O114: 14.3538 | P114: 13.671 | Q114: 23.642 | R114: 14.06 | S114: 61.476 | T114: 7.59575 | U114: 72.464 | V114: 100.005 | W114: 64.251 | X114: 128.12 | Y114: 101.5483
A115: 2016-04-11 | B115: 16 | C115: 4 | D115: 2016 | E115: 121.798 | F115: 19.196 | G115: 89.705 | H115: 66.4928 | I115: 11.4151 | J115: 168.226 | K115: 120.845 | L115: 86.19 | M115: 77.77675 | N115: 8.023 | O115: 14.2221 | P115: 13.744 | Q115: 23.581 | R115: 14.04 | S115: 60.555 | T115: 7.56745 | U115: 71.831 | V115: 99.518 | W115: 62.383 | X115: 125.92 | Y115: 101.2516
A116: 2016-04-08 | B116: 15 | C116: 4 | D116: 2016 | E116: 120.6959 | F116: 18.675 | G116: 89.262 | H116: 66.301 | I116: 11.132 | J116: 167.036 | K116: 118.65 | L116: 86.8194 | M116: 77.75696 | N116: 7.8414 | O116: 14.137 | P116: 13.562 | Q116: 23.206 | R116: 13.949 | S116: 59.749 | T116: 7.34692 | U116: 71.441 | V116: 99.225 | W116: 61.96 | X116: 125.24 | Y116: 101.5917 | AA116: -0.02471769042 | AB116: -0.02746409743 | AC116: -0.02076605827 | AD116: -0.03747975386 | AE116: 0.02505986471 | AF116: -0.008791671513 | AG116: -0.03490820875 | AH116: 0.04969693941 | AI116: 0.02487426235 | AJ116: -0.007090876419 | AK116: -0.02551867909 | AL116: -0.008590045846 | AM116: -0.001808240903 | AN116: -0.06963787097 | AO116: -0.05247420657 | AP116: -0.01188243178 | AQ116: -0.0513723775 | AR116: 0.006410019117 | AS116: -0.006899962236 | AT116: -0.009298696049 | AU116: 0.0039579482 | AX116: 120.6959 | AY116: 18.675 | AZ116: 89.262 | BA116: 66.301 | BB116: 11.132 | BC116: 167.036 | BD116: 118.65 | BE116: 86.8194 | BF116: 77.75696 | BG116: 7.8414 | BH116: 14.137 | BI116: 13.562 | BJ116: 23.206 | BK116: 13.949 | BL116: 59.749 | BM116: 7.34692 | BN116: 71.441 | BO116: 99.225 | BP116: 61.96 | BQ116: 125.24 | BR116: 101.5917 | BU116: -0.02471769042 | BV116: -0.02746409743 | BW116: -0.02076605827 | BX116: -0.03747975386 | BY116: 0.02505986471 | BZ116: -0.008791671513 | CA116: -0.03490820875 | CB116: 0.04969693941 | CC116: 0.02487426235 | CD116: -0.007090876419 | CE116: -0.02551867909 | CF116: -0.008590045846 | CG116: -0.001808240903 | CH116: -0.06963787097 | CI116: -0.05247420657 | CJ116: -0.01188243178 | CK116: -0.0513723775 | CL116: 0.006410019117 | CM116: -0.006899962236 | CN116: -0.009298696049 | CO116: 0.0039579482
A117: 2016-04-07 | B117: 15 | C117: 4 | D117: 2016 | E117: 120.6609 | F117: 18.003 | G117: 88.04 | H117: 67.014 | I117: 10.6165 | J117: 165.096 | K117: 117.55 | L117: 86.2785 | M117: 77.16339 | N117: 7.6587 | O117: 14.0987 | P117: 13.468 | Q117: 22.928 | R117: 13.668 | S117: 59.799 | T117: 7.09321 | U117: 70.337 | V117: 97.665 | W117: 60.645 | X117: 122.71 | Y117: 101.3058
A118: 2016-04-06 | B118: 15 | C118: 4 | D118: 2016 | E118: 120.6489 | F118: 18.496 | G118: 89.865 | H118: 68.0858 | I118: 10.5272 | J118: 166.914 | K118: 118.553 | L118: 85.4731 | M118: 77.43643 | N118: 7.7458 | O118: 14.1277 | P118: 13.367 | Q118: 23.022 | R118: 14.129 | S118: 59.62 | T118: 7.31667 | U118: 72.177 | V118: 98.738 | W118: 59.512 | X118: 124.11 | Y118: 102.7748
A119: 2016-04-05 | B119: 15 | C119: 4 | D119: 2016 | E119: 119.4369 | F119: 18.077 | G119: 89.1 | H119: 67.4358 | I119: 10.6482 | J119: 165.874 | K119: 118.797 | L119: 85.7278 | M119: 76.277 | N119: 7.7165 | O119: 14.0221 | P119: 13.424 | Q119: 22.902 | R119: 14.051 | S119: 60.491 | T119: 7.21031 | U119: 71.863 | V119: 97.519 | W119: 60.431 | X119: 122.53 | Y119: 101.2447
A120: 2016-04-04 | B120: 15 | C120: 4 | D120: 2016 | E120: 123.0969 | F120: 18.935 | G120: 91.5 | H120: 68.9806 | I120: 11.2059 | J120: 168.396 | K120: 121.65 | L120: 85.0472 | M120: 77.41962 | N120: 7.9332 | O120: 14.3454 | P120: 13.605 | Q120: 23.446 | R120: 14.779 | S120: 62.464 | T120: 7.47378 | U120: 74.39 | V120: 100.347 | W120: 60.752 | X120: 125.92 | Y120: 102.0334
A121: 2016-04-01 | B121: 14 | C121: 4 | D121: 2016 | E121: 123.7164 | F121: 19.195 | G121: 91.135 | H121: 68.8331 | I121: 10.8565 | J121: 168.511 | K121: 122.865 | L121: 82.6102 | M121: 75.84667 | N121: 7.8972 | O121: 14.5024 | P121: 13.679 | Q121: 23.248 | R121: 14.955 | S121: 62.968 | T121: 7.43474 | U121: 75.207 | V121: 98.591 | W121: 62.389 | X121: 126.41 | Y121: 101.1904 | AA121: -0.02366368891 | AB121: 0.1311897758 | AC121: -0.00104186668 | AD121: -0.01552253622 | AE121: 0.04134409152 | AF121: -0.007137206589 | AG121: -0.01593871548 | AH121: -0.02200635321 | AI121: 0.007186391147 | AJ121: 0.02094672477 | AK121: -0.004568102828 | AL121: 0.0004387247804 | AM121: -0.01256695316 | AN121: -0.05039687132 | AO121: -0.0007461324493 | AP121: -0.0221964574 | AQ121: -0.01891396522 | AR121: -0.01376011396 | AS121: -0.01531749912 | AT121: -0.01702068621 | AU121: -0.000380398514 | AX121: 123.7164 | AY121: 19.195 | AZ121: 91.135 | BA121: 68.8331 | BB121: 10.8565 | BC121: 168.511 | BD121: 122.865 | BE121: 82.6102 | BF121: 75.84667 | BG121: 7.8972 | BH121: 14.5024 | BI121: 13.679 | BJ121: 23.248 | BK121: 14.955 | BL121: 62.968 | BM121: 7.43474 | BN121: 75.207 | BO121: 98.591 | BP121: 62.389 | BQ121: 126.41 | BR121: 101.1904 | BU121: -0.02366368891 | BV121: 0.1311897758 | BW121: -0.00104186668 | BX121: -0.01552253622 | BY121: 0.04134409152 | BZ121: -0.007137206589 | CA121: -0.01593871548 | CB121: -0.02200635321 | CC121: 0.007186391147 | CD121: 0.02094672477 | CE121: -0.004568102828 | CF121: 0.0004387247804 | CG121: -0.01256695316 | CH121: -0.05039687132 | CI121: -0.0007461324493 | CJ121: -0.0221964574 | CK121: -0.01891396522 | CL121: -0.01376011396 | CM121: -0.01531749912 | CN121: -0.01702068621 | CO121: -0.000380398514
A122: 2016-03-31 | B122: 14 | C122: 3 | D122: 2016 | E122: 126.8937 | F122: 18.348 | G122: 93.3 | H122: 69.8007 | I122: 10.9275 | J122: 171.614 | K122: 124.679 | L122: 85.0689 | M122: 77.06348 | N122: 7.988 | O122: 14.7772 | P122: 13.874 | Q122: 23.803 | R122: 14.96 | S122: 64.325 | T122: 7.49427 | U122: 77.699 | V122: 100.737 | W122: 62.584 | X122: 128.89 | Y122: 101.4487
A123: 2016-03-30 | B123: 14 | C123: 3 | D123: 2016 | E123: 128.4194 | F123: 18.111 | G123: 92.952 | H123: 70.1468 | I123: 10.8373 | J123: 171.642 | K123: 127.068 | L123: 85.9146 | M123: 77.12283 | N123: 8.1347 | O123: 14.9024 | P123: 13.697 | Q123: 24.167 | R123: 15.188 | S123: 64.715 | T123: 7.50891 | U123: 78.799 | V123: 100.834 | W123: 64.024 | X123: 130.33 | Y123: 103.3151
A124: 2016-03-29 | B124: 14 | C124: 3 | D124: 2016 | E124: 125.0392 | F124: 16.836 | G124: 91.788 | H124: 69.6227 | I124: 10.3688 | J124: 170.108 | K124: 126.683 | L124: 84.0854 | M124: 75.08295 | N124: 7.7061 | O124: 14.6902 | P124: 13.734 | Q124: 23.44 | R124: 15.403 | S124: 63.205 | T124: 7.50208 | U124: 76.932 | V124: 99.762 | W124: 64.264 | X124: 129.03 | Y124: 101.1106 | BC124: =IF($B124<$B123,J124,"") ->  | CK124: =IFERROR(LN(BN124/SUM(BN128:BN129)),"") -> 
A125: 2016-03-24 | B125: 13 | C125: 3 | D125: 2016 | E125: 126.6789 | F125: 16.835 | G125: 91.23 | H125: 69.9099 | I125: 10.4168 | J125: 169.718 | K125: 124.839 | L125: 84.4483 | M125: 75.30356 | N125: 7.7335 | O125: 14.5688 | P125: 13.673 | Q125: 23.542 | R125: 15.728 | S125: 63.015 | T125: 7.60161 | U125: 76.643 | V125: 99.957 | W125: 63.352 | X125: 128.58 | Y125: 101.2289 | AA125: -0.02127293626 | AB125: -0.04102393433 | AC125: -0.01329498407 | AD125: 0.004130969757 | AE125: -0.01036199529 | AF125: -0.0241754088 | AG125: 0.00755818954 | AH125: 0.02307822374 | AI125: 0.004397495187 | AJ125: -0.05081086084 | AK125: -0.01515015353 | AL125: -0.0374667046 | AM125: -0.0005095974291 | AN125: -0.07982748771 | AO125: -0.01474437183 | AP125: -0.04885149015 | AQ125: -0.01707607822 | AR125: 0.03212409144 | AS125: -0.01831527248 | AT125: -0.0162768279 | AU125: 0.02428162374 | AX125: =IF($B125<$B124,E125,"") -> 126.6789 | AY125: 16.835 | AZ125: 91.23 | BA125: 69.9099 | BB125: 10.4168 | BC125: 169.718 | BD125: 124.839 | BE125: 84.4483 | BF125: 75.30356 | BG125: 7.7335 | BH125: 14.5688 | BI125: 13.673 | BJ125: 23.542 | BK125: 15.728 | BL125: 63.015 | BM125: 7.60161 | BN125: 76.643 | BO125: 99.957 | BP125: 63.352 | BQ125: 128.58 | BR125: 101.2289 | BU125: =IFERROR(LN(AX125/SUM(AX129:AX130)),"") -> -0.02127293626 | BV125: -0.04102393433 | BW125: -0.01329498407 | BX125: 0.004130969757 | BY125: -0.01036199529 | BZ125: -0.0241754088 | CA125: 0.00755818954 | CB125: 0.02307822374 | CC125: 0.004397495187 | CD125: -0.05081086084 | CE125: -0.01515015353 | CF125: -0.0374667046 | CG125: -0.0005095974291 | CH125: -0.07982748771 | CI125: -0.01474437183 | CJ125: -0.04885149015 | CK125: -0.01707607822 | CL125: 0.03212409144 | CM125: -0.01831527248 | CN125: -0.0162768279 | CO125: 0.02428162374
A126: 2016-03-23 | B126: 13 | C126: 3 | D126: 2016 | E126: 129.8912 | F126: 17.131 | G126: 92.24 | H126: 70.2324 | I126: 10.4552 | J126: 171.822 | K126: 127.073 | L126: 83.8789 | M126: 76.17412 | N126: 7.8054 | O126: 14.6902 | P126: 13.913 | Q126: 23.689 | R126: 16.15 | S126: 63.816 | T126: 7.71871 | U126: 77.563 | V126: 101.614 | W126: 63.735 | X126: 131.19 | Y126: 101.3206
A127: 2016-03-22 | B127: 13 | C127: 3 | D127: 2016 | E127: 132.6109 | F127: 17.246 | G127: 92.8 | H127: 69.7358 | I127: 10.3967 | J127: 172.389 | K127: 124.892 | L127: 82.8364 | M127: 75.79325 | N127: 7.8253 | O127: 14.6183 | P127: 13.805 | Q127: 23.81 | R127: 16.729 | S127: 63.537 | T127: 7.87679 | U127: 77.937 | V127: 101.127 | W127: 63.735 | X127: 131.05 | Y127: 99.679
A128: 2016-03-21 | B128: 13 | C128: 3 | D128: 2016 | E128: 129.5764 | F128: 17.221 | G128: 91.95 | H128: 69.4103 | I128: 10.221 | J128: 171.89 | K128: 125.182 | L128: 82.7096 | M128: 75.18484 | N128: 7.9313 | O128: 14.7669 | P128: 14.01 | Q128: 23.686 | R128: 17.039 | S128: 63.489 | T128: 7.9451 | U128: 78.131 | V128: 99.957 | W128: 63.735 | X128: 130.83 | Y128: 98.5087
A129: 2016-03-18 | B129: 12 | C129: 3 | D129: 2016 | E129: 129.4026 | F129: 17.54 | G129: 92.451 | H129: 69.6217 | I129: 10.5253 | J129: 173.871 | K129: 123.899 | L129: 82.5217 | M129: 74.97314 | N129: 8.1366 | O129: 14.7912 | P129: 14.195 | Q129: 23.554 | R129: 17.035 | S129: 63.951 | T129: 7.98218 | U129: 77.963 | V129: 96.797 | W129: 64.523 | X129: 130.69 | Y129: 98.8005 | AA129: -0.006840400744 | AB129: 0.007496673067 | AC129: 0.03944788631 | AD129: 0.008010835418 | AE129: 0.02100711857 | AF129: -0.01294845638 | AG129: -0.02912012456 | AH129: -0.003236329044 | AI129: -0.003122373621 | AJ129: 0.0319049143 | AK129: 0.002972394151 | AL129: -0.02305035726 | AM129: 0.03578601392 | AN129: -0.07315989404 | AO129: 0.03217704131 | AP129: -0.02832283588 | AQ129: 0.03155879996 | AR129: 0.01318613576 | AS129: 0.02668458331 | AT129: 0.002068094644 | AU129: 0.003488854879 | AX129: 129.4026 | AY129: 17.54 | AZ129: 92.451 | BA129: 69.6217 | BB129: 10.5253 | BC129: 173.871 | BD129: 123.899 | BE129: 82.5217 | BF129: 74.97314 | BG129: 8.1366 | BH129: 14.7912 | BI129: 14.195 | BJ129: 23.554 | BK129: 17.035 | BL129: 63.951 | BM129: 7.98218 | BN129: 77.963 | BO129: 96.797 | BP129: 64.523 | BQ129: 130.69 | BR129: 98.8005 | BU129: -0.006840400744 | BV129: 0.007496673067 | BW129: 0.03944788631 | BX129: 0.008010835418 | BY129: 0.02100711857 | BZ129: -0.01294845638 | CA129: -0.02912012456 | CB129: -0.003236329044 | CC129: -0.003122373621 | CD129: 0.0319049143 | CE129: 0.002972394151 | CF129: -0.02305035726 | CG129: 0.03578601392 | CH129: -0.07315989404 | CI129: 0.03217704131 | CJ129: -0.02832283588 | CK129: 0.03155879996 | CL129: 0.01318613576 | CM129: 0.02668458331 | CN129: 0.002068094644 | CO129: 0.003488854879
A130: 2016-03-17 | B130: 12 | C130: 3 | D130: 2016 | E130: 130.0061 | F130: 17.535 | G130: 90.947 | H130: 69.4939 | I130: 10.2325 | J130: 174.803 | K130: 123.178 | L130: 81.9808 | M130: 74.55171 | N130: 8.0221 | O130: 14.7846 | P130: 14.273 | Q130: 23.229 | R130: 16.937 | S130: 63.347 | T130: 7.89338 | U130: 77.429 | V130: 96.426 | W130: 64.427 | X130: 131.42 | Y130: 98.5599
A131: 2016-03-16 | B131: 12 | C131: 3 | D131: 2016 | E131: 130.3908 | F131: 17.394 | G131: 91.599 | H131: 70.3573 | I131: 10.2709 | J131: 178.847 | K131: 125.763 | L131: 83.815 | M131: 76.27997 | N131: 8.0155 | O131: 14.9809 | P131: 14.909 | Q131: 23.295 | R131: 17.225 | S131: 64.613 | T131: 8.10415 | U131: 79.522 | V131: 97.285 | W131: 64.456 | X131: 132.14 | Y131: 100.9646
A132: 2016-03-15 | B132: 12 | C132: 3 | D132: 2016 | E132: 128.0427 | F132: 17.24 | G132: 90.385 | H132: 70.0229 | I132: 10.3372 | J132: 177.296 | K132: 126.726 | L132: 83.0036 | M132: 76.02375 | N132: 8.0003 | O132: 14.8743 | P132: 14.633 | Q132: 23.217 | R132: 18.096 | S132: 63.204 | T132: 8.14807 | U132: 76.556 | V132: 97.519 | W132: 63.448 | X132: 131.73 | Y132: 99.7293
A133: 2016-03-14 | B133: 12 | C133: 3 | D133: 2016 | E133: 132.3221 | F133: 17.523 | G133: 90.91 | H133: 69.9797 | I133: 10.605 | J133: 177.48 | K133: 129.776 | L133: 83.4167 | M133: 76.87057 | N133: 8.1281 | O133: 14.9388 | P133: 14.634 | Q133: 23.16 | R133: 18.53 | S133: 63.071 | T133: 8.2837 | U133: 77.247 | V133: 97.762 | W133: 62.584 | X133: 131.87 | Y133: 100.4677
A134: 2016-03-11 | B134: 11 | C134: 3 | D134: 2016 | E134: 130.2908 | F134: 17.409 | G134: 88.875 | H134: 69.0662 | I134: 10.3065 | J134: 176.137 | K134: 127.56 | L134: 82.7892 | M134: 75.2076 | N134: 7.8811 | O134: 14.7473 | P134: 14.526 | Q134: 22.726 | R134: 18.328 | S134: 61.926 | T134: 8.21149 | U134: 75.541 | V134: 95.529 | W134: 62.824 | X134: 130.42 | Y134: 98.4564 | AA134: -0.05713257387 | AB134: 0.02618864752 | AC134: -0.009908553651 | AD134: 0.001069111334 | AE134: -0.05189709984 | AF134: 0.02685960908 | AG134: -0.008353223949 | AH134: -0.001637760822 | AI134: 0.00284537944 | AJ134: -0.0422000399 | AK134: 0.01983978733 | AL134: 0.03203743257 | AM134: 0.02938104809 | AN134: 0.01661478502 | AO134: -0.03028317546 | AP134: 0.03568495883 | AQ134: -0.04931890776 | AR134: -0.00539737706 | AS134: 0.01505934208 | AT134: 0.02444919796 | AU134: 0.02292253296 | AX134: 130.2908 | AY134: 17.409 | AZ134: 88.875 | BA134: 69.0662 | BB134: 10.3065 | BC134: 176.137 | BD134: 127.56 | BE134: 82.7892 | BF134: 75.2076 | BG134: 7.8811 | BH134: 14.7473 | BI134: 14.526 | BJ134: 22.726 | BK134: 18.328 | BL134: 61.926 | BM134: 8.21149 | BN134: 75.541 | BO134: 95.529 | BP134: 62.824 | BQ134: 130.42 | BR134: 98.4564 | BU134: -0.05713257387 | BV134: 0.02618864752 | BW134: -0.009908553651 | BX134: 0.001069111334 | BY134: -0.05189709984 | BZ134: 0.02685960908 | CA134: -0.008353223949 | CB134: -0.001637760822 | CC134: 0.00284537944 | CD134: -0.0422000399 | CE134: 0.01983978733 | CF134: 0.03203743257 | CG134: 0.02938104809 | CH134: 0.01661478502 | CI134: -0.03028317546 | CJ134: 0.03568495883 | CK134: -0.04931890776 | CL134: -0.00539737706 | CM134: 0.01505934208 | CN134: 0.02444919796 | CO134: 0.02292253296
A135: 2016-03-10 | B135: 11 | C135: 3 | D135: 2016 | E135: 124.8954 | F135: 16.07 | G135: 86.758 | H135: 67.014 | I135: 10.0722 | J135: 170.22 | K135: 122.852 | L135: 83.4757 | M135: 73.1875 | N135: 7.5887 | O135: 14.2978 | P135: 13.872 | Q135: 21.891 | R135: 17.144 | S135: 59.664 | T135: 7.84556 | U135: 72.339 | V135: 93.179 | W135: 62.488 | X135: 124.97 | Y135: 96.2282
A136: 2016-03-09 | B136: 11 | C136: 3 | D136: 2016 | E136: 129.9911 | F136: 16.52 | G136: 89.11 | H136: 68.5371 | I136: 10.2863 | J136: 171.66 | K136: 125.568 | L136: 83.5347 | M136: 75.08592 | N136: 7.6909 | O136: 14.3781 | P136: 14.088 | Q136: 22.256 | R136: 17.25 | S136: 62.029 | T136: 7.83678 | U136: 75.414 | V136: 95.958 | W136: 63.19 | X136: 127.85 | Y136: 94.8478
A137: 2016-03-08 | B137: 11 | C137: 3 | D137: 2016 | E137: 130.3908 | F137: 16.542 | G137: 88.94 | H137: 68.4693 | I137: 10.4245 | J137: 170.41 | K137: 127.63 | L137: 82.3545 | M137: 75.17198 | N137: 7.9256 | O137: 14.2744 | P137: 14.008 | Q137: 22.916 | R137: 17.36 | S137: 62.113 | T137: 7.82507 | U137: 76.701 | V137: 95.178 | W137: 61.959 | X137: 126.95 | Y137: 94.4791
A138: 2016-03-07 | B138: 11 | C138: 3 | D138: 2016 | E138: 134.3874 | F138: 17.13 | G138: 89.137 | H138: 68.2431 | I138: 10.7893 | J138: 170.802 | K138: 129.572 | L138: 82.1972 | M138: 75.07405 | N138: 8.0997 | O138: 14.4277 | P138: 14.166 | Q138: 21.936 | R138: 17.666 | S138: 63.644 | T138: 7.9812 | U138: 78.687 | V138: 95.812 | W138: 59.589 | X138: 127.22 | Y138: 95.8841
A139: 2016-03-04 | B139: 10 | C139: 3 | D139: 2016 | E139: 137.9514 | F139: 16.959 | G139: 89.76 | H139: 68.9924 | I139: 10.8555 | J139: 171.469 | K139: 128.63 | L139: 82.9249 | M139: 74.99391 | N139: 8.2208 | O139: 14.4576 | P139: 14.068 | Q139: 22.068 | R139: 18.026 | S139: 63.83 | T139: 7.92363 | U139: 79.36 | V139: 96.046 | W139: 61.885 | X139: 127.27 | Y139: 96.2252 | AA139: 0.1258676487 | AB139: 0.1139869596 | AC139: 0.03988938586 | AD139: 0.0051718904 | AE139: 0.06643982542 | AF139: -0.009622936972 | AG139: 0.02373431423 | AH139: 0.0178281871 | AI139: -0.03490804676 | AJ139: 0.01953067129 | AK139: 0.002721994761 | AL139: 0.0553870822 | AM139: 0.03218732175 | AN139: 0.1292767737 | AO139: 0.06933983528 | AP139: 0.0928504473 | AQ139: 0.1167518765 | AR139: 0.006727700776 | AS139: 0.03268479481 | AT139: 0.02369326925 | AU139: -0.0112485033 | AX139: 137.9514 | AY139: 16.959 | AZ139: 89.76 | BA139: 68.9924 | BB139: 10.8555 | BC139: 171.469 | BD139: 128.63 | BE139: 82.9249 | BF139: 74.99391 | BG139: 8.2208 | BH139: 14.4576 | BI139: 14.068 | BJ139: 22.068 | BK139: 18.026 | BL139: 63.83 | BM139: 7.92363 | BN139: 79.36 | BO139: 96.046 | BP139: 61.885 | BQ139: 127.27 | BR139: 96.2252 | BU139: 0.1258676487 | BV139: 0.1139869596 | BW139: 0.03988938586 | BX139: 0.0051718904 | BY139: 0.06643982542 | BZ139: -0.009622936972 | CA139: 0.02373431423 | CB139: 0.0178281871 | CC139: -0.03490804676 | CD139: 0.01953067129 | CE139: 0.002721994761 | CF139: 0.0553870822 | CG139: 0.03218732175 | CH139: 0.1292767737 | CI139: 0.06933983528 | CJ139: 0.0928504473 | CK139: 0.1167518765 | CL139: 0.006727700776 | CM139: 0.03268479481 | CN139: 0.02369326925 | CO139: -0.0112485033
A140: 2016-03-03 | B140: 10 | C140: 3 | D140: 2016 | E140: 135.1438 | F140: 16.6 | G140: 87.85 | H140: 68.6551 | I140: 10.8325 | J140: 172.993 | K140: 126.753 | L140: 83.098 | M140: 75.03843 | N140: 8.1517 | O140: 14.4753 | P140: 13.604 | Q140: 21.782 | R140: 17.749 | S140: 63.457 | T140: 7.86508 | U140: 77.938 | V140: 95.198 | W140: 61.183 | X140: 127.58 | Y140: 96.2962 | BK140: =IF($B140<$B139,R140,"") ->  | CJ140: =IFERROR(LN(BM140/SUM(BM144:BM145)),"") -> 
A141: 2016-03-02 | B141: 10 | C141: 3 | D141: 2016 | E141: 133.4132 | F141: 16.35 | G141: 87.3 | H141: 70.138 | I141: 10.747 | J141: 174.946 | K141: 127.086 | L141: 82.9151 | M141: 76.87156 | N141: 8.1688 | O141: 14.6706 | P141: 13.65 | Q141: 21.622 | R141: 17.19 | S141: 63.053 | T141: 7.76555 | U141: 77.247 | V141: 96.387 | W141: 61.221 | X141: 128.26 | Y141: 97.7091 | AA141: =IFERROR(LN(AX141/SUM(AX145:AX146)),"") ->  | AB141: =IFERROR(LN(AY141/SUM(AY145:AY146)),"") ->  | AC141: =IFERROR(LN(AZ141/SUM(AZ145:AZ146)),"") ->  | AD141: =IFERROR(LN(BA141/SUM(BA145:BA146)),"") ->  | AE141: =IFERROR(LN(BB141/SUM(BB145:BB146)),"") ->  | AF141: =IFERROR(LN(BC141/SUM(BC145:BC146)),"") ->  | AG141: =IFERROR(LN(BD141/SUM(BD145:BD146)),"") ->  | AH141: =IFERROR(LN(BE141/SUM(BE145:BE146)),"") ->  | AI141: =IFERROR(LN(BF141/SUM(BF145:BF146)),"") ->  | AJ141: =IFERROR(LN(BG141/SUM(BG145:BG146)),"") ->  | AK141: =IFERROR(LN(BH141/SUM(BH145:BH146)),"") ->  | AL141: =IFERROR(LN(BI141/SUM(BI145:BI146)),"") ->  | AM141: =IFERROR(LN(BJ141/SUM(BJ145:BJ146)),"") ->  | AN141: =IFERROR(LN(BK141/SUM(BK145:BK146)),"") ->  | AO141: =IFERROR(LN(BL141/SUM(BL145:BL146)),"") ->  | AP141: =IFERROR(LN(BM141/SUM(BM145:BM146)),"") ->  | AQ141: =IFERROR(LN(BN141/SUM(BN145:BN146)),"") ->  | AR141: =IFERROR(LN(BO141/SUM(BO145:BO146)),"") ->  | AS141: =IFERROR(LN(BP141/SUM(BP145:BP146)),"") ->  | AT141: =IFERROR(LN(BQ141/SUM(BQ145:BQ146)),"") ->  | AU141: =IFERROR(LN(BR141/SUM(BR145:BR146)),"") ->  | BU141: =IFERROR(LN(AX141/SUM(AX145:AX146)),"") -> 
A142: 2016-03-01 | B142: 10 | C142: 3 | D142: 2016 | E142: 130.6895 | F142: 16.099 | G142: 87 | H142: 70.3583 | I142: 10.6693 | J142: 175.383 | K142: 128.222 | L142: 81.1419 | M142: 77.99438 | N142: 8.2908 | O142: 14.8575 | P142: 13.738 | Q142: 21.529 | R142: 16.499 | S142: 61.45 | T142: 7.44645 | U142: 74.839 | V142: 95.637 | W142: 60.951 | X142: 126.01 | Y142: 99.5705
A143: 2016-02-29 | B143: 10 | C143: 2 | D143: 2016 | E143: 126.8937 | F143: 15.469 | G143: 85.575 | H143: 68.7505 | I143: 10.079 | J143: 173.131 | K143: 124.639 | L143: 78.2732 | M143: 76.96059 | N143: 7.9502 | O143: 14.4417 | P143: 13.42 | Q143: 21.219 | R143: 15.955 | S143: 59.506 | T143: 7.31765 | U143: 72.177 | V143: 94.037 | W143: 60.664 | X143: 123.75 | Y143: 97.0899
